Workbook

Sheet Home
D2: Artificial Intelligence (AI) Based Project Duration Estimation Tool
D8: [AI-PDET]
D22: Instruction:
D23: * This tool has been developed to estimate the probable duration of a construction project when there is limited project information available
D24: * To use this tool, you will need to input the estimated construction cost of the project and the estimated quantities of major work items.
D25: * This tool has embedded Aritifical Neural Network (ANN) and Regression Models as computational engines to estimate the project duration in working days
D26: * This tool can be used during preconstruction stages to rapidly estimate the project duration
D27: * This tool can serve as a valuable back-check, enabling the assessment of reasonableness of a project's estimated duration calculated during the final design
D28: stage with detailed project information
D29: * When the estimated construction cost is higher than $8M, the prediction accuracy may not be reliable due to the limited number of data points used in training

Sheet ContractTimeEstimation
B2: AI-PDET
B3: Input section | I3: Output section
C5: Engineer's estimate ($)
C6: 8500000
C7: =IF(C6>8000000, "Note: the prediction accuracy may not be reliable because the estimated cost is higher than $8M", "") -> Note: the prediction accuracy may not be reliable because the estimated cost is higher than $8M
B9: Major controlling work items | J9: Estimated Duration (working days)
B10: No | C10: Activity | D10: Unit | E10: Quantity
B11: 1 | C11: Deck Grooving | D11: SQYD | E11: 13429
B12: 2 | C12: Embankment in Place | D12: CUYD | E12: 0
B13: 3 | C13: Pilling | D13: LNFT | E13: 500
B14: 4 | C14: Guardrail | D14: LNFT | E14: 23
B15: 5 | C15: Curb and Gutter | D15: LNFT | E15: 0 | K15: ANN estimation | N15: Regression estimation
B16: 6 | C16: Commercial Mix | D16: TON | E16: 0
B17: 7 | C17: Plant Mix Surfacing | D17: TON | E17: 1786.92 | K17: =IF(C6=0,0,'b3'!D8) -> 170 | N17: =IF(C6=0,0,Regression!G28) -> 226
B18: 8 | C18: Mobilization | D18: LS | E18: 2
B19: 9 | C19: Milling and Pulverizing | D19: SQYD | E19: 17602.5
B20: 10 | C20: Crushed Aggregate Course | D20: CUYD | E20: 500
B21: 11 | C21: Reinforcing Steel | D21: LB | E21: 0
B22: 12 | C22: Excavation-unclassified | D22: CUYD | E22: 0
B23: 13 | C23: Cover | D23: SQYD | E23: 719642
B24: 14 | C24: Riprap | D24: CUYD | E24: 0
B25: 15 | C25: Traffic control | D25: UNIT | E25: 450000
B26: 16 | C26: Bridge Deck | D26: CUYD | E26: 14209.2
B27: 17 | C27: Signs | D27: LS | E27: 1
B28: 18 | C28: Seeding | D28: ACRE | E28: 0
B29: 19 | C29: Asphalt Cement | D29: TON | E29: 113.041
B30: 20 | C30: Drainage Pipe (< 24 in) | D30: LNFT | E30: 0
B31: 21 | C31: Special Borrow | D31: CUYD | E31: 0
B32: 22 | C32: Sidewalk | D32: SQYD | E32: 0
B33: 23 | C33: Drainage Pipe (> 24 in) | D33: LNFT | E33: 0
B34: 24 | C34: Rumble Strips | D34: ML | E34: 0
B35: 25 | C35: Emulsified Asphalt | D35: GAL | E35: 649.297
G84: 2022

Sheet CostIndex
A1: Year | B1: CostIndex
A2: 2008 | B2: 115.06
A3: 2009 | B3: 100.25
A4: 2010 | B4: 100 | D4: =ContractTimeEstimation!C6*VLOOKUP(ContractTimeEstimation!G84,CostIndex!A2:B18,2)/100 -> 12325000
A5: 2011 | B5: 110.46
A6: 2012 | B6: 111.12
A7: 2013 | B7: 113.06
A8: 2014 | B8: 115.46
A9: 2015 | B9: 118.01
A10: 2016 | B10: 115.38
A11: 2017 | B11: 116.34
A12: 2018 | B12: 124.1
A13: 2019 | B13: 133.45
A14: 2020 | B14: 133.4
A15: 2021 | B15: 139.66
A16: 2022 | B16: 145
A17: 2023 | B17: 149
A18: 2024 | B18: 154

Sheet SampleProjects
A3: Project characteristics | B3: Case1 | C3: Case2 | D3: Case3
A4: Project # | B4: 7603114000 | C4: 7287133000 | D4: 6814019000
A5: Project type | B5: Brindge Construction, Rehabilitation and Removal | C5: Brindge Construction, Rehabilitation and Removal | D5: Overlay
A6: Project location | B6: Rural | C6: Rural | D6: Rural
A7: Project year | B7: 2016 | C7: 2014 | D7: 2015
A8: Engineers' estimate ($) | B8: 5510131 | C8: 9655270 | D8: 9531209
A9: Project time (working days) | B9: 149 | C9: 189 | D9: 124
A10: Activity quantities
A11: Deck Grooving | B11: 13429 | C11: 4802 | D11: 325.2
A12: Embankment in Place | B12: 0 | C12: 12624 | D12: 0
A13: Pilling | B13: 0 | C13: 0 | D13: 0
A14: Guardrail | B14: 23 | C14: 9477.5 | D14: 0
A15: Curb and Gutter | B15: 0 | C15: 0 | D15: 0
A16: Commercial Mix | B16: 0 | C16: 0 | D16: 577.1
A17: Plant Mix Surfacing | B17: 1786.92 | C17: 5925.66 | D17: 45417.91
A18: Mobilization | B18: 2 | C18: 5 | D18: 2
A19: Milling and Pulverizing | B19: 17602.5 | C19: 16824 | D19: 26387
A20: Crushed Aggregate Course | B20: 0 | C20: 5058.89 | D20: 0
A21: Reinforcing Steel | B21: 0 | C21: 0 | D21: 0
A22: Excavation-unclassified | B22: 0 | C22: 0 | D22: 0
A23: Cover | B23: 719642 | C23: 21465.6 | D23: 444419.1
A24: Riprap | B24: 0 | C24: 0 | D24: 0
A25: Traffic control | B25: 458931 | C25: 155816 | D25: 555985
A26: Bridge Deck | B26: 14209.2 | C26: 14953.7 | D26: 0
A27: Signs | B27: 1 | C27: 30 | D27: 4925.6
A28: Seeding | B28: 0 | C28: 3.02 | D28: 0
A29: Asphalt Cement | B29: 113.041 | C29: 281.194 | D29: 2353.771
A30: Drainage Pipe (< 24 in) | B30: 0 | C30: 273 | D30: 0
A31: Special Borrow | B31: 0 | C31: 4121 | D31: 0
A32: Sidewalk | B32: 0 | C32: 0 | D32: 0
A33: Drainage Pipe (> 24 in) | B33: 0 | C33: 0 | D33: 0
A34: Rumble Strips | B34: 0 | C34: 1.86 | D34: 42.08
A35: Emulsified Asphalt | B35: 649.297 | C35: 42.89 | D35: 797.415

Sheet Normalization (hidden)
B7: Min | C7: Max
E8: Main vector | G8: Normalized
A9: 0 | B9: 0 | C9: 14504 | E9: =ContractTimeEstimation!E11 -> 13429 | G9: =(E9-B9)/(C9-B9) -> 0.9258825152
A10: 1 | B10: 0 | C10: 605813 | E10: =ContractTimeEstimation!E12 -> 0 | G10: =(E10-B10)/(C10-B10) -> 0
A11: 2 | B11: 0 | C11: 1642 | E11: =ContractTimeEstimation!E13 -> 500 | G11: 0.3045066991
A12: 3 | B12: 0 | C12: 40563 | E12: =ContractTimeEstimation!E14 -> 23 | G12: 0.0005670192047
A13: 4 | B13: 0 | C13: 23648.3 | E13: =ContractTimeEstimation!E15 -> 0 | G13: 0
A14: 5 | B14: 0 | C14: 23047.39 | E14: =ContractTimeEstimation!E16 -> 0 | G14: 0
A15: 6 | B15: 0 | C15: 99312.96 | E15: =ContractTimeEstimation!E17 -> 1786.92 | G15: 0.01799281786
A16: 7 | B16: 1 | C16: 12 | E16: =ContractTimeEstimation!E18 -> 2 | G16: 0.09090909091
A17: 8 | B17: 0 | C17: 787972.7 | E17: =ContractTimeEstimation!E19 -> 17602.5 | G17: 0.0223389719
A18: 9 | B18: 0 | C18: 134407.47 | E18: =ContractTimeEstimation!E20 -> 500 | G18: 0.003720031335
A19: 10 | B19: 0 | C19: 2731615 | E19: =ContractTimeEstimation!E21 -> 0 | G19: 0
A20: 11 | B20: 0 | C20: 1167854.47 | E20: =ContractTimeEstimation!E22 -> 0 | G20: 0
A21: 12 | B21: 0 | C21: 971474 | E21: =ContractTimeEstimation!E23 -> 719642 | G21: 0.7407732991
A22: 13 | B22: 0 | C22: 7443.16 | E22: =ContractTimeEstimation!E24 -> 0 | G22: 0
A23: 14 | B23: 0 | C23: 1731887.2 | E23: =ContractTimeEstimation!E25 -> 450000 | G23: 0.2598321646
A24: 15 | B24: 0 | C24: 26673.8 | E24: =ContractTimeEstimation!E26 -> 14209.2 | G24: 0.5327025021
A25: 16 | B25: 0 | C25: 56265.4 | E25: =ContractTimeEstimation!E27 -> 1 | G25: 1.777291195e-05
A26: 17 | B26: 0 | C26: 251.65 | E26: =ContractTimeEstimation!E28 -> 0 | G26: 0
A27: 18 | B27: 0 | C27: 7514.335 | E27: =ContractTimeEstimation!E29 -> 113.041 | G27: 0.01504338042
A28: 19 | B28: 0 | C28: 5738 | E28: =ContractTimeEstimation!E30 -> 0 | G28: 0
A29: 20 | B29: 0 | C29: 325395.26 | E29: =ContractTimeEstimation!E31 -> 0 | G29: 0
A30: 21 | B30: 0 | C30: 8509.5 | E30: =ContractTimeEstimation!E32 -> 0 | G30: 0
A31: 22 | B31: 0 | C31: 5008.6 | E31: =ContractTimeEstimation!E33 -> 0 | G31: 0
A32: 23 | B32: 0 | C32: 279.086 | E32: =ContractTimeEstimation!E34 -> 0 | G32: 0
A33: 24 | B33: 0 | C33: 267144.6 | E33: =ContractTimeEstimation!E35 -> 649.297 | G33: 0.002430507673
A34: 25 | B34: 15028.5735 | C34: 35266002.13 | E34: =CostIndex!D4 -> 12325000 | G34: 0.3492094029

Sheet Regression (hidden)
B1: Normalized_vector | D1: Coefficient
A2: 0 | B2: =Normalization!G9 -> 0.9258825152 | D2: 0.1353172328
A3: 1 | B3: =Normalization!G10 -> 0 | D3: 0.3012075503
A4: 2 | B4: =Normalization!G11 -> 0.3045066991 | D4: 0.02165503848
A5: 3 | B5: =Normalization!G12 -> 0.0005670192047 | D5: -0.09653937688
A6: 4 | B6: =Normalization!G13 -> 0 | D6: -0.06487823462
A7: 5 | B7: =Normalization!G14 -> 0 | D7: 0.1591953086
A8: 6 | B8: =Normalization!G15 -> 0.01799281786 | D8: -0.1022836798 | F8: maxtime | G8: 552
A9: 7 | B9: =Normalization!G16 -> 0.09090909091 | D9: 0.2410347541 | F9: min time | G9: 1
A10: 8 | B10: =Normalization!G17 -> 0.0223389719 | D10: 0.03442970877
A11: 9 | B11: =Normalization!G18 -> 0.003720031335 | D11: 0.03334821495
A12: 10 | B12: =Normalization!G19 -> 0 | D12: 0.183374192
A13: 11 | B13: =Normalization!G20 -> 0 | D13: 0.06547429398
A14: 12 | B14: =Normalization!G21 -> 0.7407732991 | D14: -0.02920882271
A15: 13 | B15: =Normalization!G22 -> 0 | D15: -0.009176748307
A16: 14 | B16: =Normalization!G23 -> 0.2598321646 | D16: -0.08446442328
A17: 15 | B17: =Normalization!G24 -> 0.5327025021 | D17: -0.114402555
A18: 16 | B18: =Normalization!G25 -> 1.777291195e-05 | D18: 0.02094499113
A19: 17 | B19: =Normalization!G26 -> 0 | D19: -0.07338519056
A20: 18 | B20: =Normalization!G27 -> 0.01504338042 | D20: -0.02691008812
A21: 19 | B21: =Normalization!G28 -> 0 | D21: 0.07587325375
A22: 20 | B22: =Normalization!G29 -> 0 | D22: 0.03942465697
A23: 21 | B23: =Normalization!G30 -> 0 | D23: 0.108462728
A24: 22 | B24: =Normalization!G31 -> 0 | D24: 0.1201420752
A25: 23 | B25: =Normalization!G32 -> 0 | D25: 0.02148980027
A26: 24 | B26: =Normalization!G33 -> 0.002430507673 | D26: 0.02953413996
A27: 25 | B27: =Normalization!G34 -> 0.3492094029 | D27: 0.8833712254
D28: 0.05271428 | G28: =ROUND(D30*(G8-G9)+G9,0) -> 226
D30: =SUMPRODUCT(D2:D27,B2:B27)+D28 -> 0.4091292214

Sheet w0 (hidden)
C1: 0 | D1: 1 | E1: 2 | F1: 3 | G1: 4 | H1: 5 | I1: 6 | J1: 7 | K1: 8 | L1: 9 | M1: 10 | N1: 11 | O1: 12 | P1: 13 | Q1: 14 | R1: 15 | S1: 16 | T1: 17 | U1: 18 | V1: 19 | W1: 20 | X1: 21 | Y1: 22 | Z1: 23 | AA1: 24 | AB1: 25 | AC1: 26 | AD1: 27 | AE1: 28 | AF1: 29 | AG1: 30 | AH1: 31 | AI1: 32 | AJ1: 33 | AK1: 34 | AL1: 35 | AM1: 36 | AN1: 37 | AO1: 38 | AP1: 39 | AQ1: 40 | AR1: 41 | AS1: 42 | AT1: 43 | AU1: 44 | AV1: 45 | AW1: 46 | AX1: 47 | AY1: 48 | AZ1: 49 | BA1: 50 | BB1: 51 | BC1: 52 | BD1: 53 | BE1: 54 | BF1: 55 | BG1: 56 | BH1: 57 | BI1: 58 | BJ1: 59 | BK1: 60 | BL1: 61 | BM1: 62 | BN1: 63 | BO1: 64 | BP1: 65 | BQ1: 66 | BR1: 67 | BS1: 68 | BT1: 69 | BU1: 70 | BV1: 71 | BW1: 72 | BX1: 73 | BY1: 74 | BZ1: 75 | CA1: 76 | CB1: 77 | CC1: 78 | CD1: 79 | CE1: 80 | CF1: 81 | CG1: 82 | CH1: 83 | CI1: 84 | CJ1: 85 | CK1: 86 | CL1: 87 | CM1: 88 | CN1: 89 | CO1: 90 | CP1: 91 | CQ1: 92 | CR1: 93 | CS1: 94 | CT1: 95 | CU1: 96 | CV1: 97 | CW1: 98 | CX1: 99 | CY1: 100 | CZ1: 101 | DA1: 102 | DB1: 103 | DC1: 104 | DD1: 105 | DE1: 106 | DF1: 107 | DG1: 108 | DH1: 109 | DI1: 110 | DJ1: 111 | DK1: 112 | DL1: 113 | DM1: 114 | DN1: 115 | DO1: 116 | DP1: 117 | DQ1: 118 | DR1: 119 | DS1: 120 | DT1: 121 | DU1: 122 | DV1: 123 | DW1: 124 | DX1: 125 | DY1: 126 | DZ1: 127 | EA1: 128 | EB1: 129 | EC1: 130 | ED1: 131 | EE1: 132 | EF1: 133 | EG1: 134 | EH1: 135 | EI1: 136 | EJ1: 137 | EK1: 138 | EL1: 139 | EM1: 140 | EN1: 141 | EO1: 142 | EP1: 143 | EQ1: 144 | ER1: 145 | ES1: 146 | ET1: 147 | EU1: 148 | EV1: 149 | EW1: 150 | EX1: 151 | EY1: 152 | EZ1: 153 | FA1: 154 | FB1: 155 | FC1: 156 | FD1: 157 | FE1: 158 | FF1: 159 | FG1: 160 | FH1: 161 | FI1: 162 | FJ1: 163 | FK1: 164 | FL1: 165 | FM1: 166 | FN1: 167 | FO1: 168 | FP1: 169 | FQ1: 170 | FR1: 171 | FS1: 172 | FT1: 173 | FU1: 174 | FV1: 175 | FW1: 176 | FX1: 177 | FY1: 178 | FZ1: 179 | GA1: 180 | GB1: 181 | GC1: 182 | GD1: 183 | GE1: 184 | GF1: 185 | GG1: 186 | GH1: 187 | GI1: 188 | GJ1: 189 | GK1: 190 | GL1: 191 | GM1: 192 | GN1: 193 | GO1: 194 | GP1: 195 | GQ1: 196 | GR1: 197 | GS1: 198 | GT1: 199 | GU1: 200 | GV1: 201 | GW1: 202 | GX1: 203 | GY1: 204 | GZ1: 205 | HA1: 206 | HB1: 207 | HC1: 208 | HD1: 209 | HE1: 210 | HF1: 211 | HG1: 212 | HH1: 213 | HI1: 214 | HJ1: 215 | HK1: 216 | HL1: 217 | HM1: 218 | HN1: 219 | HO1: 220 | HP1: 221 | HQ1: 222 | HR1: 223 | HS1: 224 | HT1: 225 | HU1: 226 | HV1: 227 | HW1: 228 | HX1: 229 | HY1: 230 | HZ1: 231 | IA1: 232 | IB1: 233 | IC1: 234 | ID1: 235 | IE1: 236 | IF1: 237 | IG1: 238 | IH1: 239 | II1: 240 | IJ1: 241 | IK1: 242 | IL1: 243 | IM1: 244 | IN1: 245 | IO1: 246 | IP1: 247 | IQ1: 248 | IR1: 249 | IS1: 250 | IT1: 251 | IU1: 252 | IV1: 253 | IW1: 254 | IX1: 255 | IY1: 256 | IZ1: 257 | JA1: 258 | JB1: 259 | JC1: 260 | JD1: 261 | JE1: 262 | JF1: 263 | JG1: 264 | JH1: 265 | JI1: 266 | JJ1: 267 | JK1: 268 | JL1: 269 | JM1: 270 | JN1: 271 | JO1: 272 | JP1: 273 | JQ1: 274 | JR1: 275 | JS1: 276 | JT1: 277 | JU1: 278 | JV1: 279 | JW1: 280 | JX1: 281 | JY1: 282 | JZ1: 283 | KA1: 284 | KB1: 285 | KC1: 286 | KD1: 287 | KE1: 288 | KF1: 289 | KG1: 290 | KH1: 291 | KI1: 292 | KJ1: 293 | KK1: 294 | KL1: 295 | KM1: 296 | KN1: 297 | KO1: 298 | KP1: 299 | KQ1: 300 | KR1: 301 | KS1: 302 | KT1: 303 | KU1: 304 | KV1: 305 | KW1: 306 | KX1: 307 | KY1: 308 | KZ1: 309 | LA1: 310 | LB1: 311 | LC1: 312 | LD1: 313 | LE1: 314 | LF1: 315 | LG1: 316 | LH1: 317 | LI1: 318 | LJ1: 319 | LK1: 320 | LL1: 321 | LM1: 322 | LN1: 323 | LO1: 324 | LP1: 325 | LQ1: 326 | LR1: 327 | LS1: 328 | LT1: 329 | LU1: 330 | LV1: 331 | LW1: 332 | LX1: 333 | LY1: 334 | LZ1: 335 | MA1: 336 | MB1: 337 | MC1: 338 | MD1: 339 | ME1: 340 | MF1: 341 | MG1: 342 | MH1: 343 | MI1: 344 | MJ1: 345 | MK1: 346 | ML1: 347 | MM1: 348 | MN1: 349 | MO1: 350 | MP1: 351 | MQ1: 352 | MR1: 353 | MS1: 354 | MT1: 355 | MU1: 356 | MV1: 357 | MW1: 358 | MX1: 359 | MY1: 360 | MZ1: 361 | NA1: 362 | NB1: 363 | NC1: 364 | ND1: 365 | NE1: 366 | NF1: 367 | NG1: 368 | NH1: 369 | NI1: 370 | NJ1: 371 | NK1: 372 | NL1: 373 | NM1: 374 | NN1: 375 | NO1: 376 | NP1: 377 | NQ1: 378 | NR1: 379 | NS1: 380 | NT1: 381 | NU1: 382 | NV1: 383 | NW1: 384 | NX1: 385 | NY1: 386 | NZ1: 387 | OA1: 388 | OB1: 389 | OC1: 390 | OD1: 391 | OE1: 392 | OF1: 393 | OG1: 394 | OH1: 395 | OI1: 396 | OJ1: 397 | OK1: 398 | OL1: 399 | OM1: 400 | ON1: 401 | OO1: 402 | OP1: 403 | OQ1: 404 | OR1: 405 | OS1: 406 | OT1: 407 | OU1: 408 | OV1: 409 | OW1: 410 | OX1: 411 | OY1: 412 | OZ1: 413 | PA1: 414 | PB1: 415 | PC1: 416 | PD1: 417 | PE1: 418 | PF1: 419 | PG1: 420 | PH1: 421 | PI1: 422 | PJ1: 423 | PK1: 424 | PL1: 425 | PM1: 426 | PN1: 427 | PO1: 428 | PP1: 429 | PQ1: 430 | PR1: 431 | PS1: 432 | PT1: 433 | PU1: 434 | PV1: 435 | PW1: 436 | PX1: 437 | PY1: 438 | PZ1: 439 | QA1: 440 | QB1: 441 | QC1: 442 | QD1: 443 | QE1: 444 | QF1: 445 | QG1: 446 | QH1: 447 | QI1: 448 | QJ1: 449 | QK1: 450 | QL1: 451 | QM1: 452 | QN1: 453 | QO1: 454 | QP1: 455 | QQ1: 456 | QR1: 457 | QS1: 458 | QT1: 459 | QU1: 460 | QV1: 461 | QW1: 462 | QX1: 463 | QY1: 464 | QZ1: 465 | RA1: 466 | RB1: 467 | RC1: 468 | RD1: 469 | RE1: 470 | RF1: 471 | RG1: 472 | RH1: 473 | RI1: 474 | RJ1: 475 | RK1: 476 | RL1: 477 | RM1: 478 | RN1: 479 | RO1: 480 | RP1: 481 | RQ1: 482 | RR1: 483 | RS1: 484 | RT1: 485 | RU1: 486 | RV1: 487 | RW1: 488 | RX1: 489 | RY1: 490 | RZ1: 491 | SA1: 492 | SB1: 493 | SC1: 494 | SD1: 495 | SE1: 496 | SF1: 497 | SG1: 498 | SH1: 499
A2: 0 | B2: =Normalization!G9 -> 0.9258825152 | C2: -0.1377441734 | D2: 0.08107563108 | E2: -0.2058921605 | F2: 0.06021171808 | G2: 0.004193933215 | H2: 0.053636197 | I2: -0.01594418101 | J2: -0.4485596418 | K2: -0.05255912989 | L2: -0.2690557539 | M2: 0.1202078611 | N2: 0.05139439553 | O2: -0.1066665351 | P2: -0.07594100386 | Q2: -0.1220958605 | R2: -0.1104617566 | S2: -0.01746320352 | T2: -0.03517895564 | U2: -0.002245899057 | V2: 0.04987582564 | W2: 0.02207829617 | X2: -0.04250689223 | Y2: -0.04470689967 | Z2: -0.09498862922 | AA2: -0.03126286343 | AB2: -0.2061648518 | AC2: -0.1390448362 | AD2: -0.08675209433 | AE2: -0.1208750606 | AF2: 0.08155006915 | AG2: -0.02338688448 | AH2: 0.0550054796 | AI2: 0.01593989506 | AJ2: 0.06155518815 | AK2: 0.09892858565 | AL2: 0.1476977319 | AM2: 0.02639968693 | AN2: -0.3582643569 | AO2: 0.07187757641 | AP2: 0.03902902454 | AQ2: -0.008048646152 | AR2: -0.003065820551 | AS2: 0.03121651523 | AT2: 0.04522095993 | AU2: -0.07115612179 | AV2: 0.01599585637 | AW2: 0.1053949073 | AX2: 0.02804082073 | AY2: -0.1959372163 | AZ2: -0.173458308 | BA2: 0.08474157751 | BB2: 0.1217475533 | BC2: 0.06576303393 | BD2: 0.05584972724 | BE2: 0.07618492842 | BF2: 0.05443444103 | BG2: -0.2897827923 | BH2: 0.0768461749 | BI2: -0.0393615216 | BJ2: 0.02971599251 | BK2: 0.09182241559 | BL2: -0.06142487377 | BM2: -0.01007523201 | BN2: -0.6050645709 | BO2: 0.02302928828 | BP2: 0.003305863589 | BQ2: -0.1132529452 | BR2: 0.02946475893 | BS2: 0.08515325189 | BT2: 0.06334441155 | BU2: -0.05628654733 | BV2: -0.1234328672 | BW2: -0.03255078197 | BX2: 0.04560649395 | BY2: -0.05361635983 | BZ2: -0.01325988583 | CA2: 0.0003410932259 | CB2: -0.0540898405 | CC2: -0.01575758867 | CD2: -0.134208113 | CE2: -0.06859913468 | CF2: 0.001227077213 | CG2: 0.09325458109 | CH2: 0.06148479879 | CI2: 0.01081971731 | CJ2: -0.01827217638 | CK2: -0.3524863422 | CL2: -0.07625985891 | CM2: -0.199919194 | CN2: -0.008136204444 | CO2: 0.06155798957 | CP2: 0.009798297659 | CQ2: -0.09463308752 | CR2: -0.01097251195 | CS2: -0.0788429305 | CT2: 0.1033695042 | CU2: 0.01409867872 | CV2: -0.1357997805 | CW2: -0.06214867905 | CX2: -0.01975362189 | CY2: -0.05090076476 | CZ2: 0.081557706 | DA2: -0.6691487432 | DB2: 0.05076120049 | DC2: 0.07417114824 | DD2: 0.003307924839 | DE2: 0.02807982266 | DF2: 0.1249834895 | DG2: 0.06436692923 | DH2: 0.08870895207 | DI2: 0.1336202174 | DJ2: 0.05783628672 | DK2: -0.3713822663 | DL2: -0.01964939386 | DM2: 0.01891007833 | DN2: -0.2084783167 | DO2: -0.03266008943 | DP2: 0.04873794317 | DQ2: 0.06653899699 | DR2: -0.1169514582 | DS2: -0.03982472047 | DT2: -0.02430459857 | DU2: 0.04408046231 | DV2: -0.05413398519 | DW2: -0.3889036477 | DX2: 0.08044882119 | DY2: -0.06343842298 | DZ2: -0.05932656303 | EA2: -0.05367814377 | EB2: -0.04274431244 | EC2: 0.06505809724 | ED2: -0.01328524668 | EE2: 0.08087514341 | EF2: 0.1003389359 | EG2: 0.05350943282 | EH2: 0.08690217137 | EI2: 0.01160016842 | EJ2: -0.4980620742 | EK2: -0.1438672245 | EL2: 0.01434706338 | EM2: 0.08128450066 | EN2: -0.001238719909 | EO2: -0.03455644473 | EP2: -0.1067510247 | EQ2: 0.043432381 | ER2: -0.02782964893 | ES2: 0.0202032961 | ET2: -0.0155577492 | EU2: 0.01297515817 | EV2: -0.05572938547 | EW2: 0.04023116082 | EX2: -0.1242312565 | EY2: -0.03727921471 | EZ2: 0.03601746261 | FA2: 0.05709257349 | FB2: -0.1098978668 | FC2: -0.1224843264 | FD2: -0.05937644839 | FE2: 0.08883731067 | FF2: -0.01441783179 | FG2: -0.05655917898 | FH2: -0.0447631143 | FI2: 0.05598761886 | FJ2: -0.07863845676 | FK2: -0.01286084764 | FL2: -0.01210909802 | FM2: 0.04042748362 | FN2: 0.09258069843 | FO2: -0.09331095964 | FP2: -0.05166640878 | FQ2: 0.003001414472 | FR2: 0.007184295915 | FS2: -0.02813962102 | FT2: 0.02361261472 | FU2: 0.09104895592 | FV2: 0.03069650568 | FW2: -0.09585177898 | FX2: -0.01595736295 | FY2: -0.09733219445 | FZ2: 0.07113266736 | GA2: 0.1017086357 | GB2: 0.01378665399 | GC2: -0.01435204037 | GD2: -0.09009125084 | GE2: -0.02100316063 | GF2: -0.02798765153 | GG2: -0.006611943245 | GH2: -0.01694451459 | GI2: 0.02143811248 | GJ2: 0.03500019759 | GK2: 0.04841483384 | GL2: -0.1316974014 | GM2: 0.05354252458 | GN2: -0.06108118594 | GO2: -0.0296368897 | GP2: 0.06808853894 | GQ2: -0.02411560901 | GR2: 0.06162238866 | GS2: 0.001306530787 | GT2: -0.1209846735 | GU2: -0.07779679447 | GV2: 0.006195394322 | GW2: -0.007533336058 | GX2: -0.005666622426 | GY2: -0.06853476912 | GZ2: -0.02729765326 | HA2: 0.05200597644 | HB2: 0.05890607461 | HC2: 0.03134933487 | HD2: -0.1045787707 | HE2: -0.05276624858 | HF2: 0.09053379297 | HG2: -0.09091421217 | HH2: 0.05429101735 | HI2: -0.008554475382 | HJ2: -0.03481344506 | HK2: 0.04254334047 | HL2: -0.1063254103 | HM2: 0.103215307 | HN2: 0.04394935071 | HO2: -0.3151801229 | HP2: 0.1138427183 | HQ2: -0.1210203245 | HR2: 0.1215919256 | HS2: 0.02351960912 | HT2: -0.06406042725 | HU2: -0.2980448604 | HV2: 0.02463825047 | HW2: -0.2379514277 | HX2: -0.1086448804 | HY2: -0.001347138896 | HZ2: -0.03680897877 | IA2: 0.07248269767 | IB2: 0.04647741467 | IC2: 0.004815303255 | ID2: -0.2226457894 | IE2: -0.0727494061 | IF2: -0.003880749689 | IG2: 0.07029511034 | IH2: -0.0422774367 | II2: 0.006670570001 | IJ2: -0.06868955493 | IK2: -0.001683809794 | IL2: 0.07644609362 | IM2: -0.05930744484 | IN2: -0.02831318974 | IO2: -0.1767743677 | IP2: 0.03557695448 | IQ2: -0.05585045367 | IR2: -0.02633025125 | IS2: -0.01026109885 | IT2: -0.03803705424 | IU2: 0.0498521775 | IV2: -0.01888008043 | IW2: 0.02019848488 | IX2: 0.001403521164 | IY2: 0.003491386538 | IZ2: 0.03774127364 | JA2: 0.1047537997 | JB2: 0.1038216501 | JC2: 0.09852686524 | JD2: 0.02301503904 | JE2: 0.08005012572 | JF2: 0.007169265766 | JG2: 0.1789465696 | JH2: 0.01493891142 | JI2: 0.08891045302 | JJ2: -0.1253501326 | JK2: 0.04805601016 | JL2: 0.06374231726 | JM2: -0.02116049267 | JN2: 0.01288695633 | JO2: -0.02836627327 | JP2: 0.05865450203 | JQ2: 0.1005655676 | JR2: -0.0806909129 | JS2: -0.06214355305 | JT2: -0.06292064488 | JU2: -0.4268405139 | JV2: -0.1234169379 | JW2: 0.05227024481 | JX2: -0.4906187654 | JY2: 0.005563227925 | JZ2: 0.1102308929 | KA2: 0.04312829301 | KB2: 0.006076008547 | KC2: -0.04795496911 | KD2: 0.03057673387 | KE2: 0.03138885275 | KF2: 0.0894709602 | KG2: 0.1091606617 | KH2: 0.005599842872 | KI2: 0.03987941146 | KJ2: 0.01102014259 | KK2: -0.07901645452 | KL2: 0.09155639261 | KM2: -0.0417750068 | KN2: 0.1030738652 | KO2: 0.1356976777 | KP2: -0.0443017669 | KQ2: -0.01192637626 | KR2: -0.003295667004 | KS2: 0.02200309001 | KT2: 0.08103316277 | KU2: -0.03904481977 | KV2: 0.06148314849 | KW2: -0.05428951979 | KX2: 0.01197285671 | KY2: 0.1055343673 | KZ2: -0.03627544269 | LA2: -0.1670679748 | LB2: 0.04377926141 | LC2: -0.08879816532 | LD2: 0.0304774344 | LE2: -0.01393619925 | LF2: -0.6720805168 | LG2: 0.03518582508 | LH2: -0.01515153144 | LI2: -0.02651724964 | LJ2: -0.4746927023 | LK2: 0.01907299645 | LL2: 0.06525135785 | LM2: -0.01772998832 | LN2: 0.08978359401 | LO2: 0.0631640926 | LP2: 0.0005149343633 | LQ2: 0.04559792951 | LR2: -0.1382031143 | LS2: 0.003739190986 | LT2: 0.02338019758 | LU2: -0.04139877856 | LV2: -0.05629787222 | LW2: 0.02584423684 | LX2: -0.03444148973 | LY2: -0.02344460785 | LZ2: 0.04957474396 | MA2: 0.05550850183 | MB2: -0.08467552811 | MC2: -0.04727232829 | MD2: -0.1712771505 | ME2: 0.00604456244 | MF2: -0.07561902702 | MG2: 0.00573925674 | MH2: -0.1970749348 | MI2: -0.1373630911 | MJ2: 0.005624113139 | MK2: 0.02694864385 | ML2: 0.04380479828 | MM2: 0.1142078862 | MN2: 0.07344616205 | MO2: 0.13163957 | MP2: 0.1316676587 | MQ2: -0.07691740245 | MR2: -0.05221041664 | MS2: -0.4176729918 | MT2: -0.1585789472 | MU2: -0.02334924787 | MV2: -0.00612286292 | MW2: 0.05644447729 | MX2: 0.1392482221 | MY2: 0.01634447649 | MZ2: -0.07725930959 | NA2: -0.003022247227 | NB2: -0.09719015658 | NC2: 0.1295155585 | ND2: -0.06598074734 | NE2: 0.0411827825 | NF2: 0.04732407629 | NG2: -0.183387816 | NH2: 0.04725892469 | NI2: -0.07596310228 | NJ2: -0.03043388575 | NK2: -0.02198087983 | NL2: -0.0717574954 | NM2: -0.02995898761 | NN2: 0.02618915215 | NO2: -0.07121419907 | NP2: 0.06106615439 | NQ2: 0.01893861778 | NR2: 0.1182674915 | NS2: -0.07850184292 | NT2: -0.08671280742 | NU2: 0.1073967591 | NV2: -0.07115998864 | NW2: 0.08000788093 | NX2: -0.04479792714 | NY2: -0.04351505637 | NZ2: 0.02920636535 | OA2: -0.008111777715 | OB2: -0.1325050741 | OC2: 0.05289457738 | OD2: -0.02340367436 | OE2: -0.005235014949 | OF2: -0.09658247232 | OG2: -0.03274384141 | OH2: 0.04356176779 | OI2: 0.1507564932 | OJ2: 0.05553960428 | OK2: 0.04597616568 | OL2: -0.04026213288 | OM2: -0.5560469627 | ON2: 0.001040802454 | OO2: -0.1021494716 | OP2: -0.4630883932 | OQ2: -0.08186286688 | OR2: -0.1709061712 | OS2: 0.08272195607 | OT2: 0.03016335145 | OU2: 0.05881597847 | OV2: -0.003213452408 | OW2: -0.1161578968 | OX2: -0.03776950389 | OY2: 0.01418062579 | OZ2: 0.004763898905 | PA2: -0.0041789799 | PB2: -0.1877112389 | PC2: 0.1145390868 | PD2: 0.07204227149 | PE2: 0.02183242328 | PF2: 0.0261548236 | PG2: -0.1085562557 | PH2: -0.01338506397 | PI2: 0.03723322973 | PJ2: -0.1249600202 | PK2: -0.07267477363 | PL2: 0.06204171106 | PM2: 0.002160791075 | PN2: 0.02158592455 | PO2: 0.1046204194 | PP2: 0.0866940394 | PQ2: -0.05160944909 | PR2: -0.713758707 | PS2: 0.07214549929 | PT2: 0.0332316421 | PU2: 0.06930512935 | PV2: 0.1171300933 | PW2: 0.02845797129 | PX2: 0.010910023 | PY2: -0.2384880334 | PZ2: 0.07805398852 | QA2: -0.3288576901 | QB2: 0.04165667295 | QC2: 0.02321678773 | QD2: 0.06416406482 | QE2: -0.02982565388 | QF2: 0.04299246892 | QG2: 0.05720239505 | QH2: -0.08171801269 | QI2: 0.05922855809 | QJ2: 0.05805916712 | QK2: 0.1052145511 | QL2: 0.05822981894 | QM2: -0.5195824504 | QN2: -0.3434598744 | QO2: 0.08706953377 | QP2: 0.05032420158 | QQ2: -0.07298114151 | QR2: 0.05442523956 | QS2: -0.2098064721 | QT2: 0.03485521674 | QU2: 0.1378231794 | QV2: -0.101110369 | QW2: -0.00739770988 | QX2: 0.02109152451 | QY2: 0.03180376813 | QZ2: 0.04015691206 | RA2: -0.001749741961 | RB2: -0.07880500704 | RC2: -0.06612333655 | RD2: 0.0399775058 | RE2: -0.02086832747 | RF2: 0.04125806317 | RG2: -0.1388278306 | RH2: 0.03572397679 | RI2: -0.1521586925 | RJ2: 0.05504395068 | RK2: -0.03536404297 | RL2: -0.09639415145 | RM2: -0.02741978131 | RN2: 0.0731857419 | RO2: -0.06741072983 | RP2: -0.01254155673 | RQ2: 0.1114641428 | RR2: -0.4317193031 | RS2: -0.08001505584 | RT2: 0.01681115478 | RU2: -0.07370590419 | RV2: -0.04428251833 | RW2: 0.0007956057088 | RX2: -0.02500192821 | RY2: 0.0127780484 | RZ2: 0.007611316163 | SA2: -0.0230601877 | SB2: 0.06867450476 | SC2: -0.0223691687 | SD2: 0.03355722129 | SE2: -0.08510059118 | SF2: -0.01149638277 | SG2: -0.1154331416 | SH2: 0.04311599582
A3: 1 | B3: =Normalization!G10 -> 0 | C3: -0.07904356718 | D3: -0.1759064198 | E3: 0.1429069042 | F3: 0.08067112416 | G3: 0.06250306219 | H3: 0.06380788237 | I3: -0.09084939212 | J3: 0.08562204987 | K3: -0.01542244386 | L3: 0.110923171 | M3: -0.05716807768 | N3: 0.1265698522 | O3: -0.0860113278 | P3: -0.03748142719 | Q3: -0.1136139184 | R3: -0.08886384964 | S3: 0.1402477026 | T3: -0.09251777828 | U3: -0.02011001855 | V3: -0.0133799566 | W3: 0.06430830061 | X3: 0.1984374821 | Y3: 3.394177475e-05 | Z3: -0.05327953398 | AA3: 0.02663221769 | AB3: 0.2724248767 | AC3: -0.0970274955 | AD3: 0.06003363803 | AE3: 0.06407407671 | AF3: -0.038738098 | AG3: 0.158481434 | AH3: 0.03929696232 | AI3: 0.1152133569 | AJ3: 0.09516020119 | AK3: -0.00827200897 | AL3: -0.1026190892 | AM3: 0.08304535598 | AN3: 0.07439721376 | AO3: 0.09972774237 | AP3: 0.01594465412 | AQ3: -0.2364396602 | AR3: -0.07291897386 | AS3: -0.04372809827 | AT3: -0.04698838294 | AU3: -0.007389741484 | AV3: 0.01758841239 | AW3: -0.09314847738 | AX3: -0.07540673763 | AY3: -0.07500305027 | AZ3: -0.09664662927 | BA3: -0.05448587611 | BB3: 0.2357967794 | BC3: -0.1246412918 | BD3: -0.04136541486 | BE3: -0.1476279795 | BF3: -0.04294068366 | BG3: -0.1210336909 | BH3: 0.08121254295 | BI3: -0.211138621 | BJ3: -0.00560679147 | BK3: -0.0441365689 | BL3: -0.08047224581 | BM3: -0.3218602538 | BN3: 0.09399174154 | BO3: 0.09767607599 | BP3: 0.1641347557 | BQ3: 0.02855367027 | BR3: 0.0289615877 | BS3: -0.1417613328 | BT3: -0.1031176075 | BU3: -0.05486909673 | BV3: 0.04550720751 | BW3: -0.3975791931 | BX3: -0.01390203927 | BY3: -0.05994026735 | BZ3: 0.06182285771 | CA3: -0.1657918692 | CB3: -0.04600876197 | CC3: -0.07981237024 | CD3: 0.05332062393 | CE3: -0.1388369352 | CF3: -0.1043456122 | CG3: 0.004376501311 | CH3: 0.02333511785 | CI3: -0.09795955569 | CJ3: -0.1002300233 | CK3: -0.0227872543 | CL3: -0.1704686284 | CM3: -0.07618379593 | CN3: 0.0690677762 | CO3: 0.02494933642 | CP3: 0.006746481638 | CQ3: 0.06283508241 | CR3: -0.03084450215 | CS3: 0.0536169149 | CT3: -0.3997881413 | CU3: -0.1476323605 | CV3: -0.1270788461 | CW3: 0.1800824553 | CX3: -0.2783456147 | CY3: 0.03513540328 | CZ3: 0.05837245658 | DA3: 0.02003676817 | DB3: -0.0372300595 | DC3: 0.07018408179 | DD3: -0.1022765636 | DE3: -0.08048870414 | DF3: 0.05326482654 | DG3: 0.07230174541 | DH3: -0.06540138274 | DI3: -0.06565518677 | DJ3: 0.05592306703 | DK3: -0.1167352423 | DL3: 0.186665982 | DM3: -0.09884683043 | DN3: -0.07006591558 | DO3: -0.1411741376 | DP3: 0.02211653441 | DQ3: -0.05838810652 | DR3: 0.1245649531 | DS3: 0.05804176256 | DT3: -0.1908146292 | DU3: -0.0009584178333 | DV3: 0.1601660848 | DW3: -0.1461283416 | DX3: 0.01349105686 | DY3: 0.007062292192 | DZ3: -0.09271593392 | EA3: -0.1950813234 | EB3: 0.06701055914 | EC3: -0.03692247719 | ED3: -0.04596567154 | EE3: -0.1733925492 | EF3: -0.401670903 | EG3: 0.02587438934 | EH3: -0.1135531366 | EI3: 0.04622087628 | EJ3: -0.02603616752 | EK3: 0.1241992787 | EL3: 0.04761394113 | EM3: 0.03026665933 | EN3: -0.0543544516 | EO3: 0.04093616456 | EP3: 0.2126433998 | EQ3: -0.0549909398 | ER3: 0.1457054019 | ES3: 0.1046339795 | ET3: 0.01425975934 | EU3: -0.01019394305 | EV3: 0.05813784897 | EW3: 0.04413706437 | EX3: 0.09617152065 | EY3: -0.05288845673 | EZ3: -0.1294947565 | FA3: 0.01722823083 | FB3: 0.03434075788 | FC3: -0.04729568586 | FD3: -0.08051656187 | FE3: 0.1267268807 | FF3: -0.01712654531 | FG3: -0.09080521762 | FH3: 0.06024767458 | FI3: -0.03887379915 | FJ3: 0.06598196179 | FK3: 0.03035545163 | FL3: -0.1177209169 | FM3: -0.05313221365 | FN3: 0.1849335134 | FO3: 0.08429899812 | FP3: 0.2223581672 | FQ3: -0.04660972208 | FR3: 0.01270442549 | FS3: -0.0434625335 | FT3: 0.01119595207 | FU3: 0.1675488651 | FV3: 0.1512535661 | FW3: -0.1026794314 | FX3: -0.006254149135 | FY3: 0.02491275221 | FZ3: 0.05705304071 | GA3: 0.06254775822 | GB3: 0.07950430363 | GC3: 0.06166292727 | GD3: -0.03894021735 | GE3: 0.02858341113 | GF3: -0.1704984605 | GG3: 0.1337676495 | GH3: -0.1016720235 | GI3: -0.02488334849 | GJ3: -0.01684937254 | GK3: -0.05649200827 | GL3: 0.1576807797 | GM3: -0.07364543527 | GN3: 0.04774502665 | GO3: -0.01536462642 | GP3: -0.0256611947 | GQ3: -0.2040765584 | GR3: 0.004875589162 | GS3: -0.0341837965 | GT3: 0.004320108797 | GU3: 0.2327846289 | GV3: 0.09488357604 | GW3: 0.04914429039 | GX3: -0.3173270822 | GY3: 0.05399975553 | GZ3: -0.04742215574 | HA3: -0.09762434661 | HB3: 0.08802963793 | HC3: 0.09584341943 | HD3: 0.2121300101 | HE3: -0.08178590983 | HF3: -0.2334032208 | HG3: -0.0550481528 | HH3: 0.1575392932 | HI3: 0.08561708778 | HJ3: -0.1078975871 | HK3: 0.03080077283 | HL3: -0.127017647 | HM3: -0.05026980862 | HN3: 0.05427546427 | HO3: -0.1028921008 | HP3: 0.02189520001 | HQ3: -0.04775611684 | HR3: -0.02036372945 | HS3: -0.1689529419 | HT3: -0.04261030629 | HU3: 0.0266240444 | HV3: 0.01793499663 | HW3: -0.1615134925 | HX3: -0.05955486745 | HY3: 0.1705255806 | HZ3: -0.1215363815 | IA3: -0.06135450304 | IB3: -0.2028734982 | IC3: -0.0417808257 | ID3: 0.06549093872 | IE3: -0.1002621874 | IF3: -0.07220630348 | IG3: 0.08851328492 | IH3: -0.08317197859 | II3: 0.104485482 | IJ3: -0.05289474875 | IK3: 0.1574559808 | IL3: 0.06520728767 | IM3: -0.05899485946 | IN3: -0.03756106645 | IO3: -0.1631722152 | IP3: 0.2090684921 | IQ3: -0.03016427346 | IR3: 0.06238438562 | IS3: -0.07771511376 | IT3: -0.166244328 | IU3: -0.02275763452 | IV3: 0.07611986995 | IW3: -0.123389639 | IX3: -0.01541916467 | IY3: -0.03637490794 | IZ3: 0.06563231349 | JA3: 0.2186148316 | JB3: -0.2599834502 | JC3: 0.01524572913 | JD3: 0.005291774403 | JE3: -0.1151895002 | JF3: -0.03492892534 | JG3: 0.1672658026 | JH3: 0.09973163158 | JI3: -0.02031180635 | JJ3: 0.05373164639 | JK3: -0.02841142938 | JL3: 0.09481357783 | JM3: 0.04418126494 | JN3: -0.1313882768 | JO3: -0.06681990623 | JP3: -0.2023706436 | JQ3: -0.2717827857 | JR3: 0.1116516143 | JS3: -0.006886440329 | JT3: 0.04003368691 | JU3: -0.006682696752 | JV3: 0.1068576276 | JW3: -0.04272490367 | JX3: -0.01122242492 | JY3: 0.01454466395 | JZ3: -0.3677797914 | KA3: -0.1296653897 | KB3: -0.06219405681 | KC3: 0.01884752139 | KD3: 0.02510944381 | KE3: -0.06397052109 | KF3: 0.01079321187 | KG3: -0.2167669237 | KH3: 0.1251841038 | KI3: -0.06491832435 | KJ3: 0.01684984565 | KK3: -0.1027532816 | KL3: -0.0149515206 | KM3: 0.04539535195 | KN3: -0.03734141961 | KO3: -0.1048015654 | KP3: 0.02773463354 | KQ3: -0.04727346823 | KR3: -0.08586982638 | KS3: 0.04724594951 | KT3: -0.1655171663 | KU3: 0.1550379992 | KV3: 0.04527273774 | KW3: -0.005589996465 | KX3: -0.2481642365 | KY3: 0.007057057228 | KZ3: -0.1397474855 | LA3: -0.2192620486 | LB3: 0.1782465279 | LC3: 0.255417496 | LD3: 0.07191847265 | LE3: 0.0466049239 | LF3: 0.1341825277 | LG3: 0.119319573 | LH3: 0.03301641345 | LI3: -0.2048054338 | LJ3: 0.08915984631 | LK3: -0.01476927567 | LL3: -0.05317250267 | LM3: 0.02173253335 | LN3: -0.1100747585 | LO3: -0.02512355708 | LP3: 0.07675221562 | LQ3: -0.01304362155 | LR3: 0.08708440512 | LS3: -0.0330102779 | LT3: -0.119586505 | LU3: -0.05055973679 | LV3: -0.1094024628 | LW3: -0.008858595975 | LX3: 0.1115463376 | LY3: -0.1536041796 | LZ3: -0.1337127537 | MA3: 0.1861982793 | MB3: 0.06629975885 | MC3: -0.01098802593 | MD3: 0.175755173 | ME3: 0.2432462722 | MF3: 0.06982455403 | MG3: 0.03134546429 | MH3: -0.07724696398 | MI3: 0.1966991276 | MJ3: 0.1084388942 | MK3: -0.4072850645 | ML3: -0.1463056058 | MM3: 0.03271917254 | MN3: -0.09868577123 | MO3: -0.2038993984 | MP3: 0.02362776175 | MQ3: 0.08848619461 | MR3: 0.01560531184 | MS3: 0.1710651517 | MT3: 0.1758707762 | MU3: -0.01516120043 | MV3: 0.03756886721 | MW3: 0.1667602062 | MX3: -0.0941286087 | MY3: 0.02939653955 | MZ3: -0.0115759708 | NA3: -0.3336780369 | NB3: -0.08621140569 | NC3: -0.08389345556 | ND3: -0.03740929067 | NE3: -0.002151519759 | NF3: 0.1250365227 | NG3: -0.02354003116 | NH3: -0.194852069 | NI3: -0.003853017697 | NJ3: 0.03695647418 | NK3: -0.1566962153 | NL3: 0.2228213698 | NM3: -0.07442957908 | NN3: 0.08152865618 | NO3: -0.1107496023 | NP3: 0.01629790477 | NQ3: -0.1564980447 | NR3: -0.1048425063 | NS3: 0.1571833342 | NT3: 0.2171055377 | NU3: 0.09137526155 | NV3: -0.1638177484 | NW3: 0.07094924152 | NX3: 0.03201627731 | NY3: -0.1197347492 | NZ3: -0.0587072894 | OA3: 0.1401088238 | OB3: 0.1181247607 | OC3: -0.1663883626 | OD3: -0.05394019932 | OE3: 0.2182613164 | OF3: -0.1066428274 | OG3: 0.08502022177 | OH3: -0.04444449022 | OI3: 0.005770253483 | OJ3: -0.1752077043 | OK3: 0.01229187939 | OL3: -0.07181432098 | OM3: -0.02598280087 | ON3: 0.03648812696 | OO3: -0.02115936764 | OP3: 0.008088083938 | OQ3: 0.004697028548 | OR3: -0.02287395298 | OS3: -0.117367439 | OT3: -0.2514528632 | OU3: -0.04922659323 | OV3: 0.1467054486 | OW3: 0.02520179749 | OX3: 0.06656057388 | OY3: -0.2681407928 | OZ3: 0.02024264634 | PA3: -0.02426769398 | PB3: -0.08236834407 | PC3: -0.215984419 | PD3: -0.01286478154 | PE3: 0.019564908 | PF3: -0.1224805489 | PG3: 0.05449683219 | PH3: 0.07292918116 | PI3: 0.04619936273 | PJ3: 0.02867069282 | PK3: 0.08191330731 | PL3: -0.1423926353 | PM3: 0.1093007475 | PN3: -0.1602240652 | PO3: -0.03284868225 | PP3: 0.04532621056 | PQ3: -0.2558792233 | PR3: 0.1550389826 | PS3: 0.1176846847 | PT3: -0.1633712351 | PU3: 0.13313362 | PV3: -0.2054884434 | PW3: 0.1212767959 | PX3: 0.0007240322302 | PY3: -0.07682958245 | PZ3: 0.07848116755 | QA3: -0.02344608679 | QB3: -0.008892035112 | QC3: 0.02883506753 | QD3: -0.3334726691 | QE3: 0.08445357531 | QF3: -0.121713087 | QG3: -0.008332115598 | QH3: 0.06147011742 | QI3: -0.1506294906 | QJ3: 0.06124704704 | QK3: 0.01555904001 | QL3: 0.1253737807 | QM3: -0.07789419591 | QN3: 0.2125809491 | QO3: 0.09796880931 | QP3: 0.1145961061 | QQ3: -0.1054953784 | QR3: -0.4590241909 | QS3: 0.1108424067 | QT3: -0.04030169174 | QU3: -0.00197806838 | QV3: -0.2751137018 | QW3: -0.06788054109 | QX3: 0.1232533455 | QY3: 0.03870322555 | QZ3: 0.1908461303 | RA3: 0.0480062142 | RB3: -0.0579870455 | RC3: -0.03779134154 | RD3: -0.0168159306 | RE3: 0.01389255654 | RF3: -0.01267279685 | RG3: 0.02892204933 | RH3: -0.0138930222 | RI3: -0.02729156986 | RJ3: 0.1155957952 | RK3: 0.05704765022 | RL3: -0.05337427557 | RM3: 0.127102375 | RN3: -0.06488318741 | RO3: 0.03755416721 | RP3: -0.1547852457 | RQ3: -0.1346603483 | RR3: 0.1900107712 | RS3: -0.02743887343 | RT3: 0.1216991767 | RU3: 0.08771599084 | RV3: 0.06120423228 | RW3: -0.1149038523 | RX3: -0.1523569822 | RY3: 0.0307471808 | RZ3: 0.04444360733 | SA3: -0.08090183139 | SB3: 0.003123085946 | SC3: -0.1732887626 | SD3: 0.06945675611 | SE3: 0.04445762932 | SF3: -0.2483450174 | SG3: -0.001195322606 | SH3: 0.06063146889
A4: 2 | B4: =Normalization!G11 -> 0.3045066991 | C4: 0.03120870702 | D4: -0.2587430477 | E4: -0.1323662698 | F4: 0.06300357729 | G4: 0.07779490203 | H4: -0.007911653258 | I4: 0.04128779471 | J4: -0.05468120426 | K4: -0.02134022862 | L4: -0.01836950891 | M4: -0.1727701575 | N4: -0.06923865527 | O4: 0.08326692879 | P4: -0.04874075577 | Q4: -0.1148055494 | R4: -0.05861032754 | S4: -0.2638516724 | T4: 0.05337549001 | U4: -0.038201157 | V4: -0.05009602755 | W4: 0.02540272474 | X4: 0.1116293147 | Y4: -0.01244947221 | Z4: 0.005366918165 | AA4: 0.01074960083 | AB4: -0.7970372438 | AC4: -0.03563157469 | AD4: -0.1609752029 | AE4: 0.02920508385 | AF4: -0.0359782055 | AG4: -0.02771664225 | AH4: -0.01862204075 | AI4: 0.02235750295 | AJ4: 0.01309925597 | AK4: -0.1800108105 | AL4: 0.072484456 | AM4: -0.04879711941 | AN4: 0.0927362442 | AO4: -0.1369466037 | AP4: -0.1172548831 | AQ4: -0.0396893546 | AR4: 0.02608616464 | AS4: -0.101317741 | AT4: 0.05804783106 | AU4: -0.1487083584 | AV4: 0.06954286993 | AW4: 0.08511573076 | AX4: -0.05566607788 | AY4: -0.072478652 | AZ4: 0.1407520324 | BA4: -0.2799651921 | BB4: 0.06122033671 | BC4: -0.2337177098 | BD4: -0.009473559447 | BE4: -0.03817937151 | BF4: 0.007965989411 | BG4: -0.1374830008 | BH4: 0.003758645849 | BI4: 0.06148713827 | BJ4: -0.07590749115 | BK4: 0.03339843452 | BL4: -0.04516603798 | BM4: -0.03551805764 | BN4: -0.3764176965 | BO4: 0.04669309407 | BP4: 0.08267424256 | BQ4: -0.02915380895 | BR4: -0.1350720376 | BS4: 0.02680565789 | BT4: 0.05446584523 | BU4: -0.07773767412 | BV4: 0.0736021921 | BW4: 0.0529143773 | BX4: -0.03433517367 | BY4: -0.09053752571 | BZ4: -0.0111713279 | CA4: -0.00712278951 | CB4: 0.02356527932 | CC4: -0.1040348858 | CD4: -0.2277090997 | CE4: 0.07958820462 | CF4: 0.03174452111 | CG4: 0.0044684452 | CH4: -0.007070524618 | CI4: -0.08493966609 | CJ4: -0.04865142703 | CK4: -0.00871337112 | CL4: -0.04479175806 | CM4: 0.04093505442 | CN4: -0.02389104851 | CO4: 0.07557095587 | CP4: 0.01891348138 | CQ4: -0.02407883294 | CR4: -0.2033395916 | CS4: -0.03723580763 | CT4: -0.0350509733 | CU4: -0.03116700798 | CV4: 0.04952706769 | CW4: 0.01141113602 | CX4: -0.3143699765 | CY4: -0.041318845 | CZ4: -0.05004667118 | DA4: -0.03684516996 | DB4: 0.006205309648 | DC4: 0.03189150989 | DD4: 0.1486126333 | DE4: -0.008761768229 | DF4: -0.0536259301 | DG4: 0.0712601915 | DH4: -0.09611133486 | DI4: 0.02038148232 | DJ4: -0.0499885641 | DK4: -0.07561346143 | DL4: -0.3150425553 | DM4: -0.2099889517 | DN4: -0.04459354281 | DO4: 0.02564063482 | DP4: 0.1067297235 | DQ4: -0.01095494721 | DR4: 0.07152070105 | DS4: 0.0134059824 | DT4: 0.009798378684 | DU4: -0.02377223223 | DV4: 0.009015220217 | DW4: -0.1385147125 | DX4: 0.04174863175 | DY4: -0.1199214086 | DZ4: 0.1518543363 | EA4: 0.1237170249 | EB4: 0.02173163928 | EC4: 0.00546462927 | ED4: -0.05021808296 | EE4: 0.007161273621 | EF4: 0.06407791376 | EG4: 0.003792559728 | EH4: 0.0316349715 | EI4: -0.06038062647 | EJ4: -0.2033632398 | EK4: -0.007871522568 | EL4: -0.01077833399 | EM4: 0.07927720249 | EN4: 0.04503133893 | EO4: 0.03891867772 | EP4: 0.09117884934 | EQ4: 0.06600132585 | ER4: 0.04470235854 | ES4: -0.04379336536 | ET4: -0.01131251454 | EU4: -0.1012419239 | EV4: 0.05260619894 | EW4: 0.07202675194 | EX4: -0.2341790944 | EY4: -0.04729590565 | EZ4: 0.06655871123 | FA4: 0.0709156096 | FB4: 0.07183878124 | FC4: 0.1081276014 | FD4: 0.06431408226 | FE4: -0.0993097648 | FF4: 0.008295724168 | FG4: -0.07715374976 | FH4: 0.05579539016 | FI4: 0.01535626501 | FJ4: -0.0726377964 | FK4: 0.0164912343 | FL4: -0.007794050965 | FM4: 0.05896317214 | FN4: 0.1191609949 | FO4: -0.05864689127 | FP4: -0.04707609117 | FQ4: 0.03192522004 | FR4: -0.3150857985 | FS4: -0.01942135952 | FT4: -0.1341461688 | FU4: -0.07183086872 | FV4: 0.08045955002 | FW4: -0.1189385429 | FX4: 0.06630341709 | FY4: 0.1006082669 | FZ4: 0.05686733499 | GA4: 0.04045895115 | GB4: -0.07042878866 | GC4: -0.05239817128 | GD4: 0.05035446584 | GE4: -0.05023270473 | GF4: 0.04836846516 | GG4: 0.09780097753 | GH4: 0.04317271337 | GI4: -0.03427314013 | GJ4: -0.004991990514 | GK4: 0.06838924438 | GL4: 0.03933891281 | GM4: 0.0009507844225 | GN4: 0.06952475756 | GO4: -0.1362444013 | GP4: 0.04259821773 | GQ4: -0.001129447483 | GR4: 0.005123167299 | GS4: -0.1286408007 | GT4: 0.05760759488 | GU4: 0.08810679615 | GV4: -0.007057412062 | GW4: -0.01186294388 | GX4: 0.04539713264 | GY4: 0.07214913517 | GZ4: -0.1633913517 | HA4: 0.01076631527 | HB4: 0.04909560457 | HC4: 0.04122508317 | HD4: 0.007009106223 | HE4: -0.03644694015 | HF4: -0.1314211935 | HG4: 0.07649306208 | HH4: -0.1146823168 | HI4: -0.005042350851 | HJ4: 0.02163311839 | HK4: -0.03940878436 | HL4: 0.02560675889 | HM4: 0.09415832162 | HN4: -0.03392410278 | HO4: -0.1759448797 | HP4: 0.06698253006 | HQ4: -0.0447140485 | HR4: 0.0257641878 | HS4: -0.03537666425 | HT4: -0.1086269468 | HU4: -0.395565778 | HV4: 0.05175458267 | HW4: 0.04891134799 | HX4: -0.03304821625 | HY4: 0.1215264276 | HZ4: -0.01665541157 | IA4: -0.05637126416 | IB4: 0.02321479097 | IC4: 0.05204306915 | ID4: 0.04062338546 | IE4: 0.003883893136 | IF4: -0.02002702095 | IG4: 0.01840656623 | IH4: 0.1356809139 | II4: 0.002078783931 | IJ4: 0.04477581754 | IK4: 0.03811912239 | IL4: 0.1176178828 | IM4: 0.04321814701 | IN4: 0.002121011727 | IO4: -0.03074416146 | IP4: -0.1088151783 | IQ4: 0.1190654561 | IR4: -0.02284170687 | IS4: -0.07462609559 | IT4: 0.02500754781 | IU4: -0.09065616131 | IV4: 0.03433160484 | IW4: -0.05073849112 | IX4: 0.03565678746 | IY4: -0.08201423287 | IZ4: 0.03011262044 | JA4: -0.1102034152 | JB4: 0.08662188053 | JC4: 0.05851630867 | JD4: -0.1007839665 | JE4: -0.06132441014 | JF4: -0.01978543028 | JG4: -0.0110984901 | JH4: -0.0914946571 | JI4: 0.08676014841 | JJ4: -0.120278798 | JK4: 0.06464967132 | JL4: 0.005768823903 | JM4: -0.04081180319 | JN4: 0.01993758045 | JO4: 0.006879558321 | JP4: -0.01710485294 | JQ4: -0.1011920348 | JR4: -0.04044922814 | JS4: -0.05591907725 | JT4: -0.008898628876 | JU4: 0.0618468374 | JV4: -0.1038636789 | JW4: 0.08058439195 | JX4: 0.02411533892 | JY4: -0.08570923656 | JZ4: -0.0158574488 | KA4: 0.001466689631 | KB4: -0.03579210117 | KC4: 0.04152885824 | KD4: -0.0621678941 | KE4: -0.05560510978 | KF4: -0.1361809224 | KG4: 0.06843513995 | KH4: -0.2511023283 | KI4: -0.02747863717 | KJ4: 0.03011226468 | KK4: -0.05377989262 | KL4: -0.03973847628 | KM4: 0.008260194212 | KN4: -0.07286743075 | KO4: 0.02121975273 | KP4: 0.06976654381 | KQ4: 0.006180747412 | KR4: -0.222343117 | KS4: 0.06533023715 | KT4: -0.06241080165 | KU4: 0.06028036028 | KV4: 0.08334320039 | KW4: 0.0008111735806 | KX4: 0.005819542333 | KY4: -0.08555605263 | KZ4: 0.107159242 | LA4: -0.1454152167 | LB4: 0.0397263132 | LC4: -0.02309813537 | LD4: -0.02723018266 | LE4: 0.004729174078 | LF4: -0.1010151803 | LG4: -0.05442746356 | LH4: -0.008239711635 | LI4: 0.1062256545 | LJ4: -0.0562148951 | LK4: 0.121691756 | LL4: -0.0002246965159 | LM4: -0.02257968485 | LN4: 0.08447966725 | LO4: -0.008655578829 | LP4: -0.06114096567 | LQ4: 0.05935299024 | LR4: -0.04636643454 | LS4: -0.05669090897 | LT4: -0.06576736271 | LU4: -0.1064203531 | LV4: -0.05452832207 | LW4: -0.005293580703 | LX4: 0.04833551496 | LY4: -0.1102242246 | LZ4: 0.008080700412 | MA4: -0.0424826853 | MB4: -0.001619709306 | MC4: -0.06463418156 | MD4: -0.0329768993 | ME4: -0.03110028431 | MF4: -0.08357501775 | MG4: 0.06193821877 | MH4: -0.04926940426 | MI4: -0.02182908729 | MJ4: -0.2903262973 | MK4: -0.1879214793 | ML4: -0.05539836362 | MM4: 0.1292681098 | MN4: -0.1056095064 | MO4: -0.01657279581 | MP4: -0.09747828543 | MQ4: -0.09659089893 | MR4: -0.1906909645 | MS4: -0.009864197113 | MT4: -0.002279134002 | MU4: -0.04871127754 | MV4: -0.1939467192 | MW4: 0.09423229098 | MX4: -0.08568359166 | MY4: -0.02182183228 | MZ4: -0.06363549829 | NA4: -0.002083010972 | NB4: 0.1078386232 | NC4: 0.01990406401 | ND4: -0.2784710228 | NE4: 0.03219696134 | NF4: 0.04192584381 | NG4: 0.04765062779 | NH4: 0.03189446032 | NI4: -0.05758775771 | NJ4: 0.002209294587 | NK4: 0.01869538613 | NL4: -0.04615579918 | NM4: -0.04466913268 | NN4: 0.003665467724 | NO4: -0.01837375388 | NP4: -0.03450461105 | NQ4: 0.08256738633 | NR4: -0.1084873751 | NS4: -0.04928180575 | NT4: 0.08289574087 | NU4: 0.03111621737 | NV4: 0.05172934756 | NW4: 0.03803283349 | NX4: -0.08207345009 | NY4: -0.2166781873 | NZ4: 0.01308259182 | OA4: 0.06438521296 | OB4: -0.1793275177 | OC4: 0.03216600791 | OD4: -0.09312529117 | OE4: -0.01402405556 | OF4: -0.03119795397 | OG4: -0.1107119322 | OH4: -0.05713762715 | OI4: -0.03884604946 | OJ4: 0.02847418748 | OK4: -0.1165109947 | OL4: -0.03129423782 | OM4: 0.06722285599 | ON4: -0.1279116124 | OO4: -0.0928132534 | OP4: -0.03676956892 | OQ4: 0.06514101475 | OR4: -0.09628066421 | OS4: -0.05318394303 | OT4: -0.03551171347 | OU4: -0.002122338628 | OV4: 0.01025865786 | OW4: -0.05026755854 | OX4: -0.04404871538 | OY4: 0.2172721773 | OZ4: 0.05813056231 | PA4: 0.009241133928 | PB4: 0.04007842764 | PC4: -0.04156883806 | PD4: 0.03363429382 | PE4: 0.07916879654 | PF4: -0.04886055365 | PG4: 0.09729012847 | PH4: -0.07191658765 | PI4: -0.06731566042 | PJ4: -0.04758155718 | PK4: 0.03542658687 | PL4: -0.02393359877 | PM4: 0.06439926475 | PN4: -0.009910969995 | PO4: -0.01466420759 | PP4: -0.08684133738 | PQ4: 0.01732644439 | PR4: 0.05412757024 | PS4: 0.05936479941 | PT4: 0.0742175281 | PU4: 0.08497331291 | PV4: -0.0779331699 | PW4: -0.01958695985 | PX4: -0.05011108145 | PY4: 0.02146856114 | PZ4: -0.03426536918 | QA4: -0.1261163354 | QB4: 0.006215599366 | QC4: 0.05990426987 | QD4: 0.03458381072 | QE4: -0.1920100152 | QF4: -0.119091019 | QG4: 0.06623486429 | QH4: -0.0982574746 | QI4: -0.2647970021 | QJ4: 0.08310836554 | QK4: 0.04672946036 | QL4: -0.001563712023 | QM4: -0.02584644221 | QN4: -0.1029058471 | QO4: 0.05065936595 | QP4: -0.09066376835 | QQ4: -0.01831881888 | QR4: 0.1959808916 | QS4: 0.1252962798 | QT4: 0.0442324169 | QU4: 0.09200246632 | QV4: -0.009500972927 | QW4: -0.1415599585 | QX4: -0.1520458758 | QY4: 0.03017128259 | QZ4: -0.1289129108 | RA4: 0.02192570269 | RB4: 0.06727066636 | RC4: -0.1095170081 | RD4: -0.02501556464 | RE4: -0.07448320836 | RF4: -0.01293913554 | RG4: -0.01944285445 | RH4: 0.155899331 | RI4: 0.1721429974 | RJ4: -0.0988343358 | RK4: 0.005611542612 | RL4: 0.009098570794 | RM4: -0.3472243249 | RN4: -0.05654590949 | RO4: 0.06831570715 | RP4: -0.01576493122 | RQ4: 0.07329273969 | RR4: -0.1842147708 | RS4: 0.1483527422 | RT4: -0.04107674584 | RU4: -0.05662048236 | RV4: 0.00846325513 | RW4: 0.01256548055 | RX4: 0.1021015123 | RY4: -0.1618964076 | RZ4: -0.1012187824 | SA4: -0.06798306108 | SB4: 0.09148960561 | SC4: -0.0429340452 | SD4: -0.1356710643 | SE4: 0.0159153156 | SF4: 0.02184094116 | SG4: -0.1414323151 | SH4: -0.08848789334
A5: 3 | B5: =Normalization!G12 -> 0.0005670192047 | C5: 0.0841774866 | D5: -0.193188414 | E5: 0.1285152137 | F5: 0.1102361605 | G5: -0.03382239118 | H5: -0.1035155579 | I5: 0.03429067507 | J5: 0.01666509174 | K5: -0.09002487361 | L5: 0.01235892065 | M5: -0.1320240051 | N5: -0.1998951882 | O5: -0.02304694802 | P5: 0.03335145116 | Q5: 0.09244761616 | R5: -0.006762498058 | S5: -0.2026382685 | T5: -0.0668169409 | U5: -0.01126756985 | V5: 0.1243825927 | W5: -0.09735615551 | X5: -0.2767203748 | Y5: -0.05305655301 | Z5: -0.09267868102 | AA5: -0.02050185576 | AB5: -0.3607013524 | AC5: -0.1766697317 | AD5: 0.01773527823 | AE5: 0.09597060084 | AF5: -0.05682091042 | AG5: 0.02219808288 | AH5: -0.176267311 | AI5: 0.1513013691 | AJ5: -0.1298004836 | AK5: -0.1479328275 | AL5: 0.09258179367 | AM5: 0.09095174074 | AN5: 0.1707951725 | AO5: 0.03986499459 | AP5: -0.1036057621 | AQ5: 0.04571516812 | AR5: -0.07611319423 | AS5: 0.2618229687 | AT5: 0.07100439817 | AU5: 0.07495202869 | AV5: 0.06233265251 | AW5: 0.2157467604 | AX5: -0.04163682088 | AY5: 0.1083552912 | AZ5: 0.0403288044 | BA5: -0.1302087605 | BB5: -0.06908839196 | BC5: -0.7887859344 | BD5: -0.01209979504 | BE5: -0.1831478775 | BF5: -0.1261866093 | BG5: 0.1120618582 | BH5: 0.03357226402 | BI5: -0.08280275017 | BJ5: 0.07231751829 | BK5: -0.1250092387 | BL5: -0.1417266577 | BM5: -0.1052610576 | BN5: -0.3374948204 | BO5: -0.2307043523 | BP5: -0.06892543286 | BQ5: 0.1287499368 | BR5: -0.2120721191 | BS5: -0.1224033386 | BT5: 0.1097291857 | BU5: 0.04490639269 | BV5: -0.01451557595 | BW5: 0.1029494256 | BX5: 0.1251642555 | BY5: -0.1488485932 | BZ5: -0.1607057005 | CA5: 0.1420537382 | CB5: -0.07554984838 | CC5: -0.160615772 | CD5: 0.0034207555 | CE5: -0.08396422863 | CF5: 0.07409942895 | CG5: -0.08440385759 | CH5: 0.007539447397 | CI5: -0.1055206954 | CJ5: -0.01483189594 | CK5: 0.1289948672 | CL5: -0.2092050314 | CM5: -0.07597666234 | CN5: -0.03568955883 | CO5: -0.3829209208 | CP5: -0.02095650136 | CQ5: -0.08981014043 | CR5: -0.08847070485 | CS5: 0.07269525528 | CT5: -0.2003338635 | CU5: 0.1317334622 | CV5: -0.0659480989 | CW5: 0.004694290925 | CX5: -0.03670717403 | CY5: 0.06933608651 | CZ5: -0.05951281637 | DA5: 0.1440999359 | DB5: 0.0624848865 | DC5: 0.07123934478 | DD5: -0.2098549455 | DE5: 0.003600653028 | DF5: -0.05738250166 | DG5: 0.09520326555 | DH5: -0.03975275904 | DI5: -0.1262037307 | DJ5: -0.06441503018 | DK5: 0.03554917499 | DL5: 0.2214164883 | DM5: 0.1959566325 | DN5: -0.6342899799 | DO5: -0.2837437093 | DP5: -0.1046103835 | DQ5: -0.07811550051 | DR5: -0.002684996929 | DS5: -0.0848967582 | DT5: 0.06078001857 | DU5: -0.2170374095 | DV5: -0.1651714295 | DW5: -0.1069050431 | DX5: 0.02601371706 | DY5: -0.07648849487 | DZ5: -0.02595581487 | EA5: 0.06336013973 | EB5: -0.04368586093 | EC5: -0.317376554 | ED5: -0.05673948303 | EE5: 0.05989590287 | EF5: -0.04958704859 | EG5: -0.03781316802 | EH5: -0.02413071133 | EI5: 0.1021133885 | EJ5: 0.1763681173 | EK5: 0.1001228616 | EL5: 0.07256711274 | EM5: -0.1410041749 | EN5: 0.02829961292 | EO5: 0.0167345833 | EP5: 0.1109876931 | EQ5: -0.09235140681 | ER5: 0.05049031228 | ES5: 0.04336965457 | ET5: -0.071438618 | EU5: -0.1928224117 | EV5: 0.05598734692 | EW5: -0.009400782175 | EX5: 0.06549181789 | EY5: -0.1894225925 | EZ5: -0.02076005377 | FA5: 0.002952874405 | FB5: -0.2064268887 | FC5: -0.245468542 | FD5: -0.03163504973 | FE5: 0.0607521385 | FF5: -0.08095944673 | FG5: -0.2260418981 | FH5: -0.008065314032 | FI5: -0.0699544847 | FJ5: -0.1458349526 | FK5: 0.09922974557 | FL5: 0.1824214458 | FM5: -0.03027638793 | FN5: 0.02467341349 | FO5: -0.0575905107 | FP5: -0.02871019952 | FQ5: 0.03587532789 | FR5: -0.08400123566 | FS5: -0.1639351547 | FT5: -0.2199190259 | FU5: -0.008740732446 | FV5: 0.1368236542 | FW5: 0.1059384942 | FX5: -0.03605149686 | FY5: -0.1681108922 | FZ5: 0.05968828127 | GA5: -0.2049646974 | GB5: -0.03171600029 | GC5: -0.1346782148 | GD5: 0.09063635767 | GE5: -0.1463484466 | GF5: -0.07175835222 | GG5: -0.1368852854 | GH5: -0.02290052362 | GI5: -0.00703058904 | GJ5: -0.0274080392 | GK5: -0.05036105588 | GL5: -0.03176468238 | GM5: -0.1137918904 | GN5: 0.01475425065 | GO5: 0.2409339547 | GP5: 0.06650910527 | GQ5: -0.03504293039 | GR5: -0.219165951 | GS5: -0.03413436562 | GT5: -0.1423426718 | GU5: 0.1333332807 | GV5: -0.1314384639 | GW5: -0.2132618576 | GX5: -0.09837333113 | GY5: 0.02171032876 | GZ5: 0.02723884024 | HA5: 0.1108469442 | HB5: 0.1188299879 | HC5: -0.08579900116 | HD5: 0.1478188038 | HE5: 0.06942152977 | HF5: 0.06434740871 | HG5: 0.06123282015 | HH5: 0.007844306529 | HI5: -0.1234554201 | HJ5: 0.1988068521 | HK5: -0.1056676805 | HL5: -0.05376990885 | HM5: 0.01918837056 | HN5: -0.1341391802 | HO5: -0.09047013521 | HP5: -0.009634544142 | HQ5: 0.08081308007 | HR5: 0.111274302 | HS5: 0.03163032979 | HT5: 0.1170921326 | HU5: 0.1248527318 | HV5: -0.2816009223 | HW5: -0.2825340629 | HX5: -0.0506477654 | HY5: 0.07064254582 | HZ5: 0.1467643976 | IA5: -0.1616624892 | IB5: 0.1273312718 | IC5: -0.02238686942 | ID5: -0.2753897011 | IE5: 0.07900601625 | IF5: -0.08289188147 | IG5: -0.08145646006 | IH5: 0.01302834507 | II5: -0.1436682492 | IJ5: 0.08132880181 | IK5: -0.04655020684 | IL5: 0.06076335534 | IM5: 0.003254497424 | IN5: -0.02460864745 | IO5: 0.005432456732 | IP5: 0.09891394526 | IQ5: 0.2263361216 | IR5: 0.04511457682 | IS5: -0.09040898085 | IT5: -0.04954313114 | IU5: -0.09408082813 | IV5: -0.07809721678 | IW5: -0.1023275927 | IX5: 0.1290929914 | IY5: 0.02223058604 | IZ5: 0.01637239195 | JA5: -0.0710619539 | JB5: -0.05774559826 | JC5: -0.06258747727 | JD5: 0.04371148348 | JE5: -0.03761648014 | JF5: -0.06896007806 | JG5: -0.1708549708 | JH5: 0.09913662076 | JI5: 0.01408050023 | JJ5: 0.05272805318 | JK5: 0.02106090449 | JL5: 0.1745872051 | JM5: 0.1864303648 | JN5: -0.1855155826 | JO5: -0.119524695 | JP5: -0.02336970717 | JQ5: 0.01657137647 | JR5: -0.1556883007 | JS5: -0.1091534644 | JT5: 0.2420652807 | JU5: 0.06457415223 | JV5: -0.07133089006 | JW5: -0.0836667046 | JX5: 0.05173629522 | JY5: 0.1463940591 | JZ5: -0.1418523192 | KA5: -0.02001872472 | KB5: 0.1336894482 | KC5: 0.03081951477 | KD5: -0.02594082057 | KE5: -0.003364583477 | KF5: -0.1193965375 | KG5: 0.02001158893 | KH5: -0.06340058148 | KI5: -0.2117716521 | KJ5: 0.01065890864 | KK5: -0.1382313371 | KL5: -0.05438508093 | KM5: 0.07169061899 | KN5: -0.02188120782 | KO5: -0.08562254161 | KP5: -0.08993010968 | KQ5: -0.1776292026 | KR5: -0.08963739127 | KS5: 0.08699435741 | KT5: 0.1164208725 | KU5: -0.08884911984 | KV5: 0.1573366523 | KW5: 0.04666470736 | KX5: 0.0116827134 | KY5: 0.03227466345 | KZ5: 0.04332853854 | LA5: -0.1077309325 | LB5: 0.1074711755 | LC5: 0.03854002431 | LD5: 0.1510711163 | LE5: -0.06808867306 | LF5: -0.0558100827 | LG5: 0.04598367587 | LH5: -0.02178630605 | LI5: 0.03169906512 | LJ5: -0.1548065096 | LK5: -0.004679223057 | LL5: -0.09959699214 | LM5: 0.002982866019 | LN5: 0.07993876934 | LO5: -0.2415139675 | LP5: -0.07021484524 | LQ5: 0.05251192674 | LR5: -0.01114188787 | LS5: -0.03001699783 | LT5: 0.07278838754 | LU5: 0.1432915181 | LV5: 0.06339304894 | LW5: -0.05992745981 | LX5: 0.007651010528 | LY5: -0.1492507011 | LZ5: 0.1374251842 | MA5: -0.1439355314 | MB5: 0.1305253059 | MC5: 0.06813523173 | MD5: -0.3866499662 | ME5: -0.08371575922 | MF5: -0.145694539 | MG5: 0.05096352845 | MH5: 0.01558689494 | MI5: 0.04588327557 | MJ5: -0.08816127479 | MK5: -0.09741474688 | ML5: -0.2420085073 | MM5: -0.05574931204 | MN5: -0.01703266054 | MO5: 0.1668144017 | MP5: 0.0486192815 | MQ5: -0.03527724743 | MR5: -0.3692721426 | MS5: 0.04405070469 | MT5: -0.1344660223 | MU5: -0.1985237896 | MV5: 0.1197937205 | MW5: -0.1579900384 | MX5: 0.0404291153 | MY5: -0.1473358124 | MZ5: 0.01508540101 | NA5: -0.2405467182 | NB5: -0.110472098 | NC5: 0.02928242646 | ND5: 0.1039483994 | NE5: -0.1973522604 | NF5: 0.01242133509 | NG5: -0.01263173856 | NH5: -0.3723776937 | NI5: -0.2941896021 | NJ5: -0.06236149371 | NK5: -0.1397381723 | NL5: -0.01025377586 | NM5: -0.07114706933 | NN5: -0.04310502857 | NO5: 0.01809456199 | NP5: 0.1346849054 | NQ5: -0.1315943748 | NR5: 0.03147273138 | NS5: -0.07625029236 | NT5: -0.1961166561 | NU5: -0.08002711087 | NV5: -0.1641563475 | NW5: 0.01305878907 | NX5: 0.09856031835 | NY5: -0.1605188996 | NZ5: -0.1747312099 | OA5: 0.1208778322 | OB5: -0.1040561944 | OC5: -0.09081526101 | OD5: 0.02975004166 | OE5: -0.05030762777 | OF5: -0.04581678286 | OG5: 0.06984660029 | OH5: 0.007303251419 | OI5: -0.4134680629 | OJ5: -0.1901377141 | OK5: -0.1008058041 | OL5: 0.09503364563 | OM5: 0.1736112088 | ON5: 0.0641162321 | OO5: -0.08416182548 | OP5: 0.07275500149 | OQ5: -0.3186607361 | OR5: -0.06187371537 | OS5: -0.1481841505 | OT5: -0.06652311981 | OU5: 0.01131769828 | OV5: 0.04691480845 | OW5: -0.02745199576 | OX5: 0.1003553644 | OY5: 0.05216497928 | OZ5: 0.1116325036 | PA5: -0.04229743034 | PB5: 0.1101265326 | PC5: 0.09669303149 | PD5: 0.03114112467 | PE5: -0.03026013635 | PF5: -0.1666399837 | PG5: -0.1318199784 | PH5: -0.07132477313 | PI5: -0.005943778437 | PJ5: 0.006747888867 | PK5: -0.0384545587 | PL5: -0.5719763041 | PM5: 0.07420066744 | PN5: 0.2502566278 | PO5: -0.05557006598 | PP5: 0.05019968748 | PQ5: -0.006528381724 | PR5: -0.03921065107 | PS5: -0.01395617519 | PT5: -0.08857995272 | PU5: 0.0168999806 | PV5: 0.05032512173 | PW5: -0.3341424763 | PX5: 0.05175082386 | PY5: 0.006195346359 | PZ5: -0.06643952429 | QA5: -0.03133719787 | QB5: 0.02020001598 | QC5: -0.03151875734 | QD5: -0.1726519912 | QE5: 0.02157069556 | QF5: -0.007690028287 | QG5: 0.07187059522 | QH5: -0.1146616563 | QI5: -0.1488624513 | QJ5: -0.2589824498 | QK5: 0.02988252975 | QL5: -0.05316784978 | QM5: 0.006190803833 | QN5: 0.05959537253 | QO5: -0.05239911005 | QP5: -0.02699103765 | QQ5: 0.1282871217 | QR5: 0.01814686507 | QS5: -0.3792048991 | QT5: -0.0149615733 | QU5: -0.1247245818 | QV5: -0.03670724481 | QW5: 0.1157616898 | QX5: -0.06048977748 | QY5: 0.04368614405 | QZ5: 0.03879615292 | RA5: -0.07015110552 | RB5: -0.09315303713 | RC5: 0.03098557144 | RD5: -0.05942588672 | RE5: 0.02220340073 | RF5: 0.01981613226 | RG5: 0.09202975035 | RH5: -0.07916592807 | RI5: -0.2064487636 | RJ5: -0.08450704068 | RK5: 0.1160948873 | RL5: -0.01630877331 | RM5: -0.1194937304 | RN5: -0.03542068228 | RO5: 0.1273765117 | RP5: -0.01078407466 | RQ5: 0.09840697795 | RR5: -0.1445563436 | RS5: -0.1563884467 | RT5: 0.009762726724 | RU5: 0.1660821885 | RV5: 0.1185382977 | RW5: -0.02259237319 | RX5: 0.02998483926 | RY5: 0.1830386966 | RZ5: -0.004281038884 | SA5: -0.2537712455 | SB5: -0.0384815 | SC5: 0.03749028593 | SD5: -0.2348177582 | SE5: -0.03368375823 | SF5: 0.1288839281 | SG5: 0.06836387515 | SH5: 0.1444654316
A6: 4 | B6: =Normalization!G13 -> 0 | C6: -0.05195604637 | D6: 0.006991005037 | E6: -0.08039061725 | F6: -0.06748134643 | G6: 0.02423656918 | H6: -0.06573076546 | I6: 0.08806096017 | J6: 0.05039187893 | K6: 0.09597283602 | L6: 0.01670981757 | M6: 0.04100197554 | N6: 0.10050188 | O6: -0.08831060678 | P6: -0.1556809247 | Q6: 0.02409490012 | R6: -0.1027612314 | S6: 0.05409774929 | T6: -0.06007574871 | U6: 0.07487122715 | V6: -0.06248348206 | W6: -0.03655365109 | X6: -0.07816844434 | Y6: 0.04369236529 | Z6: 0.07224196941 | AA6: 0.0420502983 | AB6: -0.4372445941 | AC6: -0.1313782781 | AD6: 0.0134077929 | AE6: 0.02199923247 | AF6: 0.001431023586 | AG6: -0.06706739962 | AH6: 0.0857436955 | AI6: 0.07556501031 | AJ6: -0.06677164882 | AK6: -0.2717491388 | AL6: -0.2055494785 | AM6: 0.06775697321 | AN6: -0.3774748147 | AO6: 0.04010349885 | AP6: 0.04754564539 | AQ6: 0.02126095816 | AR6: -0.1059174687 | AS6: 0.158086732 | AT6: -0.007996350527 | AU6: -0.1269507259 | AV6: 0.036280334 | AW6: -0.2241784036 | AX6: 0.01716980338 | AY6: -0.1014335379 | AZ6: 0.03795125708 | BA6: 0.1535830498 | BB6: 0.1028331444 | BC6: 0.1717242748 | BD6: -0.1319380999 | BE6: -0.1331865042 | BF6: 0.0005221122992 | BG6: -0.2140502185 | BH6: 0.02610208839 | BI6: 0.03454090282 | BJ6: -0.001281515695 | BK6: -0.09355844557 | BL6: 0.09241501987 | BM6: -0.0688560009 | BN6: -0.1246763542 | BO6: 0.07662017643 | BP6: -0.05632828176 | BQ6: 0.02184547856 | BR6: -0.0405241549 | BS6: -0.0880857408 | BT6: -0.08718825877 | BU6: 0.0295857396 | BV6: 0.07599898428 | BW6: -0.1237286702 | BX6: 0.08033312857 | BY6: -0.0063936878 | BZ6: -0.03513158113 | CA6: -0.06639844179 | CB6: -0.03181291372 | CC6: 0.03007025644 | CD6: 0.08056410402 | CE6: -0.1298771501 | CF6: 0.03806792572 | CG6: -0.1136190966 | CH6: -0.05108039454 | CI6: -0.05422728509 | CJ6: -0.002739788033 | CK6: -0.03939160705 | CL6: -0.02943713218 | CM6: 0.09051112831 | CN6: 0.09733403474 | CO6: 0.001211824361 | CP6: 0.06302616745 | CQ6: 0.03868296742 | CR6: -0.1375040859 | CS6: -0.0285663642 | CT6: -0.1180656627 | CU6: -0.05785516277 | CV6: -0.01482582279 | CW6: 0.01789073646 | CX6: 0.05289695412 | CY6: -0.2130802721 | CZ6: 0.04045881703 | DA6: 0.1594522893 | DB6: -0.01010328252 | DC6: -0.05922629312 | DD6: -0.002111445647 | DE6: 0.01210302208 | DF6: 0.09246818721 | DG6: 0.06147358194 | DH6: -0.1479443163 | DI6: 0.05002722889 | DJ6: 0.05850958079 | DK6: -0.02605732158 | DL6: 0.1637101173 | DM6: 0.02498408407 | DN6: -0.08355458081 | DO6: 0.01517039817 | DP6: 0.1055912003 | DQ6: 0.06110593677 | DR6: 0.06564580649 | DS6: -0.006183333695 | DT6: -0.0830367133 | DU6: -0.03989838064 | DV6: -0.005694247317 | DW6: -0.008997831494 | DX6: -0.0006643598317 | DY6: -0.05119241774 | DZ6: -0.00355219841 | EA6: -0.1621142328 | EB6: -0.01127247512 | EC6: -0.07486570626 | ED6: -0.06919223815 | EE6: -0.02333568968 | EF6: 0.1377077401 | EG6: -0.05231208727 | EH6: -0.04840268195 | EI6: 0.09850520641 | EJ6: 0.06951896101 | EK6: -0.06243272871 | EL6: 0.03238219768 | EM6: -0.0820274055 | EN6: -0.1069605872 | EO6: 0.04977371544 | EP6: 0.08168178052 | EQ6: 0.06695675105 | ER6: 0.02993037552 | ES6: 0.06842315942 | ET6: -0.06180872023 | EU6: -0.004268256947 | EV6: -0.3046949506 | EW6: -0.1177786812 | EX6: 0.1346265078 | EY6: -0.07022473216 | EZ6: 0.107152842 | FA6: -0.05691416562 | FB6: -0.1986937523 | FC6: -0.0820004344 | FD6: 0.06658489257 | FE6: 0.002351617673 | FF6: -0.1223404929 | FG6: -0.1236015782 | FH6: -0.08786921203 | FI6: -0.04306997359 | FJ6: 0.06903263927 | FK6: 0.03118669242 | FL6: 0.01383180078 | FM6: -0.251696378 | FN6: 0.01149266865 | FO6: -0.009722216986 | FP6: 0.02799079381 | FQ6: 0.18886365 | FR6: -0.0003953218693 | FS6: -0.0527250953 | FT6: -0.1098559722 | FU6: -0.07276503742 | FV6: -0.03395242244 | FW6: 0.06192815676 | FX6: 0.01556189824 | FY6: 0.1148469523 | FZ6: -0.09870592505 | GA6: -0.04893914238 | GB6: 0.06749466062 | GC6: 0.01103522908 | GD6: -0.0004115983611 | GE6: -0.09847460687 | GF6: -0.1404431164 | GG6: -0.1893226057 | GH6: -0.1462328583 | GI6: -0.07911857218 | GJ6: -0.01966274343 | GK6: -0.05321851745 | GL6: -0.1535437852 | GM6: -0.0352101773 | GN6: -0.08350529522 | GO6: 0.08330021799 | GP6: 0.1537864953 | GQ6: -0.2228999883 | GR6: -0.05225542188 | GS6: -0.06184720621 | GT6: 0.07125619054 | GU6: -0.07848299295 | GV6: 0.07127957046 | GW6: -0.03905618563 | GX6: -0.1340148449 | GY6: -0.04376341775 | GZ6: -0.1005051732 | HA6: -0.05634022877 | HB6: -0.01354989968 | HC6: -0.08920878917 | HD6: -0.0570028685 | HE6: -0.1284704953 | HF6: 0.0646558553 | HG6: 0.04616785049 | HH6: 0.03282378614 | HI6: 0.05841187388 | HJ6: 0.08801662922 | HK6: -0.008468576707 | HL6: 0.0670023486 | HM6: 0.0346551165 | HN6: -0.03577391431 | HO6: 0.1273005158 | HP6: -0.03686008602 | HQ6: 0.01819870807 | HR6: 0.1085937247 | HS6: 0.07472442836 | HT6: -0.06157314032 | HU6: -0.03354661912 | HV6: 0.0405330658 | HW6: 0.01054029446 | HX6: -0.08017335832 | HY6: -0.1160874218 | HZ6: -0.08334011585 | IA6: -0.0795699954 | IB6: 0.0935665369 | IC6: 0.06953486055 | ID6: 0.06241649762 | IE6: -0.02603725158 | IF6: -0.08607032895 | IG6: -0.0006196299219 | IH6: -0.08746767789 | II6: 0.005132564809 | IJ6: 0.07732775062 | IK6: -0.02842112817 | IL6: -0.03614750877 | IM6: 0.04797817022 | IN6: 0.06586848944 | IO6: -0.09358342737 | IP6: -0.1780755371 | IQ6: 0.09391774982 | IR6: -0.1096427366 | IS6: -0.009939108975 | IT6: 0.08676121384 | IU6: 0.06638441235 | IV6: -0.1251635402 | IW6: 0.06213594973 | IX6: 0.01089364942 | IY6: 0.05490941182 | IZ6: -0.09053843468 | JA6: 0.05536690727 | JB6: 0.05095781386 | JC6: -0.1308037788 | JD6: 0.04115271941 | JE6: -0.07222402096 | JF6: -0.07478726655 | JG6: 0.02261987329 | JH6: 0.007832424715 | JI6: 0.05803174898 | JJ6: -0.02371015027 | JK6: -0.004500335548 | JL6: -0.07532338798 | JM6: -0.03723791614 | JN6: -0.08658476919 | JO6: -0.05383400247 | JP6: 0.04121129587 | JQ6: 0.06021495908 | JR6: -0.005432031117 | JS6: 0.08437360823 | JT6: 0.1000338793 | JU6: 0.02686612681 | JV6: -0.04630294815 | JW6: -0.06994263828 | JX6: -0.03687383607 | JY6: -0.06931239367 | JZ6: -0.06721766293 | KA6: -0.04819175228 | KB6: 0.1291690469 | KC6: -0.09203912318 | KD6: -0.08663413674 | KE6: 0.04447420686 | KF6: -0.07020046562 | KG6: 0.02833473124 | KH6: -0.04854836687 | KI6: 0.03820799291 | KJ6: -0.06789221615 | KK6: -0.06620766968 | KL6: -0.02529255673 | KM6: 0.08542059362 | KN6: 0.05943552405 | KO6: -0.1506267786 | KP6: -0.07577391714 | KQ6: 0.09329134226 | KR6: -0.02700082585 | KS6: 0.08799315244 | KT6: -0.4648042321 | KU6: -0.04228429124 | KV6: -0.07701569051 | KW6: 0.01386543456 | KX6: -0.07406442612 | KY6: -0.005939653609 | KZ6: -0.04899434745 | LA6: -0.05168517306 | LB6: -0.04761245847 | LC6: -0.1172472835 | LD6: -0.03414086998 | LE6: 0.04498170316 | LF6: -0.01243949961 | LG6: -0.1163622513 | LH6: -0.002351591131 | LI6: 0.04316712916 | LJ6: -0.07355321199 | LK6: 0.0448779203 | LL6: -0.1100073308 | LM6: -0.01711722836 | LN6: 0.1063206717 | LO6: -0.0505422838 | LP6: -0.004487451166 | LQ6: -0.02738554962 | LR6: 0.1112687439 | LS6: -0.1050607264 | LT6: -0.02586351335 | LU6: -0.07089016587 | LV6: 0.009553264827 | LW6: -0.0683420375 | LX6: -0.01603119262 | LY6: 0.0541591011 | LZ6: -0.09989060462 | MA6: -0.08718024939 | MB6: 0.07914336026 | MC6: 0.02398922108 | MD6: -0.2196850777 | ME6: -0.2533289194 | MF6: -0.06152417511 | MG6: -0.04105923697 | MH6: -0.06692805886 | MI6: -0.2217038572 | MJ6: -0.07614419609 | MK6: -0.1495146602 | ML6: 0.04992688075 | MM6: 0.02298667654 | MN6: 0.05619703606 | MO6: 0.1247789636 | MP6: 0.02327424847 | MQ6: -0.1116267294 | MR6: -0.1175248027 | MS6: -0.158948496 | MT6: 0.1010731012 | MU6: 0.04789084569 | MV6: 0.05685751885 | MW6: -0.09867018461 | MX6: 0.01327388827 | MY6: -0.0764740929 | MZ6: 0.05683859438 | NA6: -0.05174242705 | NB6: -0.04285296798 | NC6: 0.0229062885 | ND6: 0.004970242269 | NE6: -0.05634168908 | NF6: -0.03628377989 | NG6: 0.04280546308 | NH6: -0.2572140098 | NI6: -0.09379632771 | NJ6: -0.0158997234 | NK6: -0.04895027727 | NL6: 0.1266426891 | NM6: 0.07422977686 | NN6: -0.04865067825 | NO6: 0.04398713261 | NP6: -0.03685298562 | NQ6: -0.03878998011 | NR6: -0.2806914747 | NS6: 0.08509740233 | NT6: -0.1783887148 | NU6: 0.1202516481 | NV6: -0.1611396074 | NW6: -0.08619939536 | NX6: 0.04091206938 | NY6: -0.08874145895 | NZ6: 0.08700627834 | OA6: -0.004537235014 | OB6: -0.1365932226 | OC6: -0.2388900965 | OD6: 0.01283553708 | OE6: -0.006653272081 | OF6: -0.1376117915 | OG6: -0.04341488332 | OH6: -0.09208459407 | OI6: -0.1050126329 | OJ6: -0.01209163573 | OK6: 0.01754050702 | OL6: -0.07734943181 | OM6: 0.01515342575 | ON6: 0.01503261551 | OO6: -0.0353346467 | OP6: 0.04338476062 | OQ6: -0.06725404412 | OR6: -0.09518782794 | OS6: -0.07525548339 | OT6: 0.005986326374 | OU6: -0.07884384692 | OV6: -0.04212766141 | OW6: 0.04017409682 | OX6: -0.04383305088 | OY6: 0.01630120538 | OZ6: 0.11228735 | PA6: -0.06468649954 | PB6: 0.1433262378 | PC6: 0.08538018912 | PD6: 0.05368331075 | PE6: 0.004804646596 | PF6: 0.05489799753 | PG6: -0.004010690376 | PH6: 0.03216489032 | PI6: 0.06987400353 | PJ6: 0.005869936198 | PK6: 0.05244107172 | PL6: -0.02684607916 | PM6: 0.03821888566 | PN6: -0.03245015815 | PO6: -0.0310658291 | PP6: -0.08923783898 | PQ6: -0.07789863646 | PR6: -0.2557321191 | PS6: -0.01044280734 | PT6: -0.0355785042 | PU6: -0.04454735294 | PV6: 0.10354238 | PW6: 0.04537793621 | PX6: -0.09412227571 | PY6: -0.05894736946 | PZ6: 0.1083426028 | QA6: 0.01735179685 | QB6: 0.07268740237 | QC6: -0.009057839401 | QD6: 0.07131819427 | QE6: -0.05468718708 | QF6: -0.02753609046 | QG6: -0.04001652822 | QH6: 0.08945339918 | QI6: 0.1270421594 | QJ6: -0.1107139587 | QK6: -0.1050818041 | QL6: 0.09880621731 | QM6: 0.2693768442 | QN6: 0.03949065879 | QO6: -0.01391307916 | QP6: 0.04455544427 | QQ6: 0.01369555946 | QR6: 0.05343000591 | QS6: 0.06829792261 | QT6: -0.03502317518 | QU6: 0.05974703282 | QV6: -0.164356038 | QW6: -0.05831293017 | QX6: 0.07760547847 | QY6: -0.05629774928 | QZ6: 0.07510498166 | RA6: 0.01339983847 | RB6: -0.02475641295 | RC6: 0.02501318417 | RD6: 0.01048428379 | RE6: 0.123396799 | RF6: 0.06365786493 | RG6: -0.06117259711 | RH6: -0.0729252547 | RI6: 0.04577504098 | RJ6: -0.08270099759 | RK6: -0.06782239676 | RL6: 0.01664805599 | RM6: 0.0002041417756 | RN6: -0.05555454269 | RO6: -0.05520012975 | RP6: 0.04679246992 | RQ6: -0.05106781796 | RR6: -0.4080978036 | RS6: -0.002300838241 | RT6: 0.04430946708 | RU6: -0.0183408577 | RV6: -0.01166400965 | RW6: 0.07239107043 | RX6: -0.1445297301 | RY6: -0.1857964396 | RZ6: 0.03407718986 | SA6: 0.07681316137 | SB6: -0.148458153 | SC6: -0.05586989596 | SD6: 0.1061724871 | SE6: -0.07884628326 | SF6: 0.1802832037 | SG6: 0.006886632647 | SH6: -0.06715331227
A7: 5 | B7: =Normalization!G14 -> 0 | C7: -0.05570317805 | D7: -0.06002325565 | E7: -0.8522738218 | F7: 0.0468104668 | G7: -0.04196653515 | H7: 0.02610898577 | I7: -0.02708162367 | J7: 0.1002572551 | K7: 0.05505110323 | L7: -0.02193389274 | M7: 0.07872004062 | N7: 0.02384564839 | O7: 0.1447977126 | P7: 0.1509800106 | Q7: -0.02875378728 | R7: 0.0997011438 | S7: 0.0297972858 | T7: 0.008708714508 | U7: 0.02569470927 | V7: -0.03909854963 | W7: -0.0243869666 | X7: 0.141536206 | Y7: 0.06912065297 | Z7: -0.008707551286 | AA7: 0.0413909182 | AB7: 0.01641415432 | AC7: 0.1065063253 | AD7: 0.07743894309 | AE7: 0.07479182631 | AF7: 0.04655720294 | AG7: 0.1135664806 | AH7: -0.132491529 | AI7: 0.05118732154 | AJ7: -0.07857532799 | AK7: 0.03799020126 | AL7: -0.1980643868 | AM7: -0.1185738295 | AN7: 0.1035448387 | AO7: 0.09210257977 | AP7: -0.1083338931 | AQ7: 0.07576608658 | AR7: -0.06629626453 | AS7: -0.02909866907 | AT7: -0.08514264226 | AU7: 0.1347694546 | AV7: -0.1101806834 | AW7: -0.2748270929 | AX7: 0.0850296095 | AY7: 0.07382062078 | AZ7: -0.191872552 | BA7: 0.1253424436 | BB7: 0.06690856814 | BC7: -0.1207737103 | BD7: 0.03948739171 | BE7: 0.03426019102 | BF7: -0.07548674941 | BG7: -0.1552608609 | BH7: 0.07985943556 | BI7: 0.01402398665 | BJ7: 0.02004491352 | BK7: -0.3133713603 | BL7: -0.01999032125 | BM7: -0.1466203928 | BN7: -0.01751078479 | BO7: -0.057508789 | BP7: -0.4065322578 | BQ7: 0.03646763042 | BR7: -0.03401003405 | BS7: 0.0006705851993 | BT7: -0.166460529 | BU7: 0.0569742471 | BV7: 0.005519743077 | BW7: 0.02172873728 | BX7: -0.07447864115 | BY7: -0.1930227131 | BZ7: -0.08499728888 | CA7: -0.005704148673 | CB7: -0.1812280267 | CC7: -0.01308808383 | CD7: -0.1315293312 | CE7: -0.1561758816 | CF7: -0.1361096054 | CG7: -0.1539612561 | CH7: -0.01585350558 | CI7: -0.03180397674 | CJ7: -0.1295752972 | CK7: 0.03234955668 | CL7: -0.1449900568 | CM7: -0.06667961925 | CN7: 0.07701434195 | CO7: 0.01121534687 | CP7: -0.1812885553 | CQ7: 0.07793392241 | CR7: 0.08350291103 | CS7: -0.04885252938 | CT7: -0.05021752045 | CU7: 0.03394303471 | CV7: -0.02733371034 | CW7: 0.1366020739 | CX7: -0.005754864309 | CY7: -0.06929467618 | CZ7: 0.1326861084 | DA7: -0.09794934094 | DB7: -0.03744141012 | DC7: -0.1217736751 | DD7: 0.003118817229 | DE7: -0.03827427328 | DF7: -0.05028994754 | DG7: 0.104279615 | DH7: 0.05150217563 | DI7: -0.06895633042 | DJ7: 0.005979295354 | DK7: 0.1085635573 | DL7: -0.005111770704 | DM7: 0.09653005004 | DN7: -0.3534846306 | DO7: 0.002521781018 | DP7: -0.06058442593 | DQ7: 0.07240617275 | DR7: 0.02579908818 | DS7: -0.0661444664 | DT7: -0.1209039986 | DU7: -0.05909917131 | DV7: 0.05213065445 | DW7: 0.1128739417 | DX7: -0.009804209694 | DY7: 0.0506185703 | DZ7: -0.1577668339 | EA7: 0.1466830969 | EB7: 0.03996918723 | EC7: 0.1252270937 | ED7: 0.03764126077 | EE7: 0.01614578627 | EF7: -0.176651597 | EG7: 0.007392234635 | EH7: -0.1121294498 | EI7: 0.09931755811 | EJ7: 0.03443571553 | EK7: -0.05061912909 | EL7: -0.08657728881 | EM7: -0.1132185087 | EN7: -0.03081448935 | EO7: -0.02417525463 | EP7: 0.0611682944 | EQ7: -0.09586817771 | ER7: -0.1371835172 | ES7: 0.03405133262 | ET7: 0.08355578035 | EU7: -0.02671566233 | EV7: 0.03489971906 | EW7: 0.124608919 | EX7: -0.08316562325 | EY7: -0.08316521347 | EZ7: -0.0352406539 | FA7: 0.03458854929 | FB7: -0.1984987706 | FC7: -0.007575318217 | FD7: 0.08037798852 | FE7: -0.007669069339 | FF7: 0.01349632069 | FG7: -0.01032559853 | FH7: 0.06355147064 | FI7: -0.1511778682 | FJ7: 0.1225921884 | FK7: 0.01842121966 | FL7: -0.09750995785 | FM7: 0.01310297474 | FN7: 0.06919964403 | FO7: 0.0890680626 | FP7: 0.1090506539 | FQ7: -0.05283036456 | FR7: 0.1317723393 | FS7: -0.08540875465 | FT7: -0.00268906448 | FU7: 0.05675882846 | FV7: 0.08382227272 | FW7: -0.1203349754 | FX7: 0.10473378 | FY7: -0.09642353654 | FZ7: -0.01383981016 | GA7: -0.111078009 | GB7: -0.001028170926 | GC7: 0.02798729017 | GD7: 0.1001089066 | GE7: 0.05417124182 | GF7: -0.1137110367 | GG7: 0.1323924214 | GH7: -0.02452323213 | GI7: -0.01639843732 | GJ7: -0.03870171681 | GK7: 0.0141689498 | GL7: 0.04789186642 | GM7: 0.07435749471 | GN7: 0.005786203779 | GO7: 0.04615405574 | GP7: -0.1918100864 | GQ7: -0.02888304554 | GR7: -0.0284168981 | GS7: -0.01960714348 | GT7: -0.0127097154 | GU7: -0.03024767525 | GV7: 0.03556605428 | GW7: -0.03876655549 | GX7: -0.1756349653 | GY7: 0.05017623678 | GZ7: 0.1502542496 | HA7: 0.05329682305 | HB7: -0.1230248287 | HC7: -0.0355874598 | HD7: 0.02705851756 | HE7: 0.1007935852 | HF7: -0.03918989375 | HG7: -0.04672351852 | HH7: -0.07938139141 | HI7: 0.05577379465 | HJ7: 0.04681323841 | HK7: -0.07644869387 | HL7: -0.00244683912 | HM7: -0.04729315639 | HN7: 0.04182529449 | HO7: 0.01904828101 | HP7: -0.01208556257 | HQ7: 0.0120765157 | HR7: -0.147796452 | HS7: -0.04199901596 | HT7: 0.06067026407 | HU7: -0.09387137741 | HV7: -0.06368212402 | HW7: -0.07313665748 | HX7: 0.081310004 | HY7: -0.05124064907 | HZ7: -0.05680554733 | IA7: 0.07024491578 | IB7: -0.01365326531 | IC7: -0.1011473164 | ID7: -0.0006708253641 | IE7: -0.0541545637 | IF7: 0.02065269276 | IG7: -0.1083459705 | IH7: -0.10023956 | II7: -0.1928942204 | IJ7: 0.0634322539 | IK7: 0.07307145745 | IL7: 0.02565873787 | IM7: -0.06249794737 | IN7: 0.08248712122 | IO7: -0.1192004532 | IP7: 0.1359762996 | IQ7: -0.09057608247 | IR7: -0.03378960863 | IS7: -0.04252792522 | IT7: 0.001662933384 | IU7: 0.0319067128 | IV7: -0.09556315839 | IW7: 0.05763300136 | IX7: -0.08769325167 | IY7: 0.02807893418 | IZ7: 0.01679590158 | JA7: -0.05055836216 | JB7: -0.04772583395 | JC7: -0.06583978236 | JD7: -0.001151957549 | JE7: -0.1305704713 | JF7: 0.05282996222 | JG7: -0.157649979 | JH7: 0.05885378271 | JI7: 0.08719526976 | JJ7: -0.1354043782 | JK7: 0.06492150575 | JL7: 0.0884552896 | JM7: -0.02392025478 | JN7: -0.1460484713 | JO7: -0.06334529817 | JP7: -0.01845381223 | JQ7: -0.08961449564 | JR7: 0.06094547361 | JS7: 0.01757302321 | JT7: -0.2251204401 | JU7: -0.08705336601 | JV7: 0.0504370518 | JW7: 0.07768889517 | JX7: 0.01414562576 | JY7: 0.1186998039 | JZ7: -0.06533654034 | KA7: -0.01873734035 | KB7: 0.04768827185 | KC7: 0.09968862683 | KD7: 0.0996459797 | KE7: 0.1091319397 | KF7: -0.06016737595 | KG7: -0.1731602103 | KH7: -0.1424527615 | KI7: -0.06061304361 | KJ7: 0.1336391419 | KK7: 0.006488665473 | KL7: -0.06631296873 | KM7: -0.0597351715 | KN7: 0.08618847281 | KO7: 0.02989944071 | KP7: 0.04535176605 | KQ7: 0.1744449884 | KR7: 0.04235545173 | KS7: -0.03690146655 | KT7: -0.2699710727 | KU7: 0.0314472951 | KV7: -0.013954564 | KW7: 0.0849711895 | KX7: -0.050636217 | KY7: 0.03841120377 | KZ7: -0.0864020139 | LA7: 0.04277924448 | LB7: 0.04950628802 | LC7: 0.1155154854 | LD7: 0.04273169488 | LE7: 0.04755942523 | LF7: -0.02106178179 | LG7: -0.1125439033 | LH7: 0.08052294701 | LI7: -0.06994209439 | LJ7: 0.02719235979 | LK7: -0.05440157652 | LL7: -0.04558479786 | LM7: 0.1019427329 | LN7: -0.1542248726 | LO7: -0.01071925648 | LP7: 0.08332747966 | LQ7: 0.02302727662 | LR7: -0.1066414341 | LS7: 0.04217854515 | LT7: -0.0719325915 | LU7: 0.09653811902 | LV7: 0.084806934 | LW7: -0.103914775 | LX7: -0.03889623657 | LY7: -0.04798946157 | LZ7: -0.09443733841 | MA7: -0.08083470911 | MB7: -0.1029222459 | MC7: 0.0731099993 | MD7: -0.07712674141 | ME7: -0.2109354436 | MF7: -0.04050924256 | MG7: 0.03398503363 | MH7: 0.02761333622 | MI7: 0.0749758184 | MJ7: 0.06247687712 | MK7: 0.02429281361 | ML7: -0.1624967456 | MM7: -0.08023658395 | MN7: -0.02461096272 | MO7: 0.007514767349 | MP7: -0.08330371231 | MQ7: -0.008026738651 | MR7: -0.1114371493 | MS7: -0.1135016605 | MT7: -0.03713957965 | MU7: 0.04384705052 | MV7: 0.03694949672 | MW7: -0.1017296389 | MX7: 0.1105167195 | MY7: -0.01886638068 | MZ7: 0.00268715783 | NA7: 0.05971573666 | NB7: -0.0754327476 | NC7: 0.06819580495 | ND7: -0.02799693681 | NE7: 0.09489127249 | NF7: 0.09562235326 | NG7: -0.01567058265 | NH7: -0.01219138596 | NI7: -0.2637226284 | NJ7: -0.02663972043 | NK7: 0.06736368686 | NL7: -0.007288406137 | NM7: 0.06268947572 | NN7: 0.01644080505 | NO7: 0.01521877199 | NP7: 0.01669566892 | NQ7: 0.09052222222 | NR7: 0.1176747084 | NS7: 0.1146833971 | NT7: -0.01331091579 | NU7: -0.04140446335 | NV7: 0.05871631578 | NW7: -0.009078525007 | NX7: -0.0872727409 | NY7: -0.09941670299 | NZ7: -0.02367367595 | OA7: -0.006200036034 | OB7: 0.04848594591 | OC7: -0.1763129383 | OD7: -0.002947743284 | OE7: -0.03064709902 | OF7: -0.05508195609 | OG7: 0.03107469156 | OH7: -0.06999705732 | OI7: -0.07675157487 | OJ7: -0.1806316674 | OK7: 0.08366215974 | OL7: -0.2005237043 | OM7: -0.004248133395 | ON7: -0.1214312166 | OO7: -0.1180780679 | OP7: 0.1107535511 | OQ7: 0.02385636419 | OR7: -0.10079474 | OS7: 0.114797242 | OT7: -0.0008920020773 | OU7: -0.04839370027 | OV7: -0.12673527 | OW7: 0.06475733221 | OX7: 0.04661338404 | OY7: 0.1134387106 | OZ7: -0.1149471104 | PA7: -0.03133688495 | PB7: 0.0860747844 | PC7: -0.06975350529 | PD7: -0.02526832931 | PE7: -0.1262477785 | PF7: 0.06500213593 | PG7: 0.05420896411 | PH7: -0.1236810759 | PI7: -0.01990844682 | PJ7: -0.04533205554 | PK7: 0.08105197549 | PL7: 0.01930403709 | PM7: -0.03856842592 | PN7: 0.007507720031 | PO7: -0.09635327756 | PP7: 0.04055624083 | PQ7: -0.009165002964 | PR7: 0.006268642843 | PS7: 0.01126140077 | PT7: 0.1285429299 | PU7: -0.084354572 | PV7: -0.05840055272 | PW7: 0.02421439998 | PX7: 0.1487306952 | PY7: 0.04577039182 | PZ7: -0.05234615877 | QA7: -0.009924382903 | QB7: 0.1059946641 | QC7: 0.06737721711 | QD7: 0.02199818939 | QE7: 0.06482349336 | QF7: 0.06587298959 | QG7: -0.04731291533 | QH7: 0.1159996614 | QI7: -0.2658222914 | QJ7: -0.06774263829 | QK7: 0.08306426555 | QL7: 0.001455191523 | QM7: -0.2307016999 | QN7: 0.01319908258 | QO7: 0.01504589524 | QP7: 0.004600014072 | QQ7: -0.08757221699 | QR7: 0.09027970582 | QS7: 0.1034277231 | QT7: 0.001047591795 | QU7: -0.1327662021 | QV7: -0.09146982431 | QW7: -0.0223253537 | QX7: -0.05541358516 | QY7: -0.02084619924 | QZ7: -0.1002163291 | RA7: 0.07851683348 | RB7: -0.1444622725 | RC7: -0.003122088267 | RD7: -0.03359228 | RE7: -0.03614118695 | RF7: 0.05496054143 | RG7: 0.02208374813 | RH7: -0.06826600432 | RI7: 0.1484013796 | RJ7: -0.007308209315 | RK7: 0.05945986882 | RL7: -0.08362303674 | RM7: 0.05349512026 | RN7: -0.0293562822 | RO7: 0.008692265488 | RP7: 0.07077317685 | RQ7: -0.05808402598 | RR7: -0.2668843567 | RS7: -0.02939587645 | RT7: 0.02673709393 | RU7: 0.07980913669 | RV7: 0.02022986114 | RW7: -0.03157405928 | RX7: -0.1720635593 | RY7: -0.01899846643 | RZ7: 0.02715549432 | SA7: 0.03796099126 | SB7: -0.1895896345 | SC7: -0.04861872643 | SD7: -0.05537770316 | SE7: 0.07014878094 | SF7: -0.05812351778 | SG7: -0.04859987646 | SH7: -0.007368256804
A8: 6 | B8: =Normalization!G15 -> 0.01799281786 | C8: -0.02270089276 | D8: 0.0997716859 | E8: -0.3821985126 | F8: -0.05673443526 | G8: -0.07950697094 | H8: 0.05555372685 | I8: 0.05306676403 | J8: -0.2140701115 | K8: 0.02274317853 | L8: 0.04406375065 | M8: 0.1037569866 | N8: -0.03971960023 | O8: -0.07993467897 | P8: -0.1650376767 | Q8: 0.03916450217 | R8: 0.0547028482 | S8: 0.06899054348 | T8: -0.1068940684 | U8: 0.08395449072 | V8: -0.03736237064 | W8: 0.02890350297 | X8: 0.08365770429 | Y8: -0.04399243742 | Z8: -0.01364532206 | AA8: 0.05436082557 | AB8: -0.08534240723 | AC8: -0.0076079024 | AD8: 0.07624346763 | AE8: -0.1043392345 | AF8: 0.1451674849 | AG8: 0.03506982699 | AH8: 0.05985778198 | AI8: -0.01315128524 | AJ8: 0.03310140595 | AK8: -0.03707795963 | AL8: -0.002553047612 | AM8: -0.006863927934 | AN8: -0.1935787797 | AO8: -0.1095165759 | AP8: 0.09980929643 | AQ8: 0.03033432737 | AR8: -0.08090186864 | AS8: -0.06144905463 | AT8: 0.04510406032 | AU8: -0.1435249597 | AV8: -0.101462543 | AW8: -0.01694387943 | AX8: -0.09311685711 | AY8: 0.01381022856 | AZ8: 0.08896452188 | BA8: 0.1005444676 | BB8: 0.0807499662 | BC8: 0.04392771795 | BD8: 0.05293428898 | BE8: -0.05175842345 | BF8: 0.05302025378 | BG8: 0.06504417211 | BH8: -0.08980184048 | BI8: 0.08627820015 | BJ8: 0.03884139284 | BK8: 0.08710432053 | BL8: -0.0968472138 | BM8: -0.1542059332 | BN8: 0.1133331507 | BO8: 0.0779979974 | BP8: 0.05312286317 | BQ8: -0.08282054216 | BR8: 0.02836498618 | BS8: 0.01058137789 | BT8: -0.09592690319 | BU8: -0.03371242061 | BV8: 0.003388105892 | BW8: -0.1557919681 | BX8: -0.06662520766 | BY8: 0.06806488335 | BZ8: 0.07680099458 | CA8: -0.02272782102 | CB8: -0.02607613057 | CC8: 0.02441016026 | CD8: 0.1270648837 | CE8: -0.01247737091 | CF8: 0.05361650512 | CG8: -0.074010171 | CH8: 0.02077995613 | CI8: 0.07163587213 | CJ8: 0.0585546121 | CK8: -0.03669529036 | CL8: 0.08289398253 | CM8: 0.003155093407 | CN8: 0.009912171401 | CO8: -0.1007261425 | CP8: 0.004615258891 | CQ8: 0.06226696447 | CR8: -0.3537247181 | CS8: -0.07146572322 | CT8: -0.03032704815 | CU8: -0.03146345541 | CV8: -0.08467724174 | CW8: 0.019040104 | CX8: 0.02439088002 | CY8: 0.002268694807 | CZ8: -0.01312860753 | DA8: -0.04316383228 | DB8: -0.05063920096 | DC8: -0.1051538736 | DD8: 0.01078218874 | DE8: 0.05825900286 | DF8: 0.03625613824 | DG8: -0.07035323977 | DH8: -0.1216893941 | DI8: -0.1044588983 | DJ8: 0.01623154432 | DK8: 0.05263528228 | DL8: 0.01761511713 | DM8: 0.1013478041 | DN8: 0.0415308848 | DO8: -0.004685374442 | DP8: -0.04170579091 | DQ8: 0.01568673737 | DR8: -0.1130262017 | DS8: -0.06322071701 | DT8: -0.0009584265063 | DU8: 0.02174177021 | DV8: -0.09496723115 | DW8: 0.123230882 | DX8: -0.00205812999 | DY8: -0.03498649597 | DZ8: -0.1082629338 | EA8: 0.04224094003 | EB8: -0.03460486606 | EC8: 0.09617122263 | ED8: -0.1238077581 | EE8: 0.0271799136 | EF8: -0.02050859667 | EG8: 0.02942020632 | EH8: -0.1110408381 | EI8: -0.08857192099 | EJ8: -0.08579906821 | EK8: -0.02773431689 | EL8: -0.08897785097 | EM8: -0.003446219722 | EN8: -0.113785632 | EO8: -0.0122524621 | EP8: 0.06066541001 | EQ8: -0.03615419939 | ER8: -0.003269473324 | ES8: -0.002713036956 | ET8: 0.04127082601 | EU8: -0.05377008393 | EV8: 0.0006098776939 | EW8: -0.1008165702 | EX8: -0.02424245328 | EY8: 0.06174737215 | EZ8: 0.02167542279 | FA8: 0.07080075145 | FB8: 0.104658775 | FC8: -0.02529008687 | FD8: -0.05894247442 | FE8: 0.06787564605 | FF8: 0.03558098525 | FG8: -0.001796294353 | FH8: -0.03740825504 | FI8: -0.179132089 | FJ8: -0.06721027195 | FK8: -0.02289912663 | FL8: 0.06511636078 | FM8: 0.05442618951 | FN8: 0.06028156728 | FO8: -0.02392664738 | FP8: 0.09850668162 | FQ8: -0.162059918 | FR8: 0.06399530172 | FS8: -0.07967987657 | FT8: 0.08642398566 | FU8: -0.09639464319 | FV8: -0.074392654 | FW8: -0.160309419 | FX8: 0.0469256416 | FY8: 0.09750052541 | FZ8: 0.03940293193 | GA8: -0.1112630293 | GB8: 0.01755437441 | GC8: -0.07806105912 | GD8: 0.09031990916 | GE8: 0.1446629316 | GF8: -0.1464565247 | GG8: -0.2721762955 | GH8: 0.05088399723 | GI8: 0.04069368914 | GJ8: -0.0857495591 | GK8: 0.03485489637 | GL8: 0.1020644084 | GM8: -0.0631942153 | GN8: 0.04930993915 | GO8: -0.08409338444 | GP8: 0.03785416111 | GQ8: 0.1405827403 | GR8: 0.05148269981 | GS8: 0.01147171669 | GT8: -0.1391608119 | GU8: 0.006762074307 | GV8: 0.05143774673 | GW8: -0.001345958561 | GX8: 0.03872876987 | GY8: -0.02223735116 | GZ8: -0.01546552032 | HA8: 0.09935499728 | HB8: 0.08710074425 | HC8: 0.0466581732 | HD8: -0.0828332454 | HE8: -0.1448067874 | HF8: -0.03344830871 | HG8: -0.0903160274 | HH8: 0.03435790166 | HI8: -0.0708822161 | HJ8: -0.01976525411 | HK8: -0.02778492868 | HL8: -0.05493595451 | HM8: -0.07066206634 | HN8: -0.09216932952 | HO8: 0.001474487479 | HP8: -0.1767144501 | HQ8: -0.004291974474 | HR8: -0.001088114921 | HS8: -0.01620853879 | HT8: -0.1018159688 | HU8: -0.1567442268 | HV8: -0.0406275019 | HW8: 0.06429884583 | HX8: 0.05997269973 | HY8: -0.02610136569 | HZ8: -0.03664014488 | IA8: -0.03486001864 | IB8: 0.06614527851 | IC8: -0.02767979167 | ID8: 0.06232183799 | IE8: 0.008953800425 | IF8: -0.03050142899 | IG8: -0.0709240213 | IH8: -0.04721813276 | II8: -0.1279184669 | IJ8: 0.03613644093 | IK8: -0.05332877487 | IL8: -0.01229948923 | IM8: -0.03018450923 | IN8: -0.03748353198 | IO8: 0.02130476572 | IP8: 0.01337284595 | IQ8: -0.03325865045 | IR8: -0.05802248418 | IS8: 0.06221482903 | IT8: 0.0677126348 | IU8: 0.1351887286 | IV8: -0.05716457963 | IW8: -0.01733307354 | IX8: 0.007069468498 | IY8: -0.04533396661 | IZ8: -0.08663211018 | JA8: -0.08136159927 | JB8: -0.005283556879 | JC8: 0.03048378043 | JD8: -0.04825897515 | JE8: 0.104731001 | JF8: 0.04399136826 | JG8: -0.06409110874 | JH8: 0.03863374144 | JI8: 0.110876359 | JJ8: -0.04076869786 | JK8: -0.06488939375 | JL8: -0.0874350369 | JM8: -0.006062196102 | JN8: -0.06244203076 | JO8: 0.03372437134 | JP8: -0.06291563809 | JQ8: 0.01512963139 | JR8: -0.005799580831 | JS8: -0.08397481591 | JT8: 0.02982574143 | JU8: -0.1175436303 | JV8: 0.00850522425 | JW8: -0.004280068446 | JX8: -0.1579129845 | JY8: -0.1215927303 | JZ8: -0.03713930398 | KA8: -0.08217334002 | KB8: -0.09296984971 | KC8: -0.0001080746442 | KD8: -0.07223042101 | KE8: -0.04146896303 | KF8: 0.006074937526 | KG8: 0.02473043278 | KH8: -0.159686327 | KI8: -0.03789396212 | KJ8: -0.09441619366 | KK8: 0.05137804896 | KL8: -0.04666021094 | KM8: 0.03430419415 | KN8: -0.1033519134 | KO8: -0.3626760542 | KP8: -0.05562313646 | KQ8: -0.04933457077 | KR8: -0.03458642587 | KS8: 0.08109658957 | KT8: 0.02315608971 | KU8: -0.006089771632 | KV8: 0.01962334663 | KW8: -0.01294291951 | KX8: -0.1270165145 | KY8: -0.06814377755 | KZ8: 0.06458318233 | LA8: -0.04405141994 | LB8: -0.0210615173 | LC8: 0.07717908919 | LD8: -0.02638511173 | LE8: -0.05702214688 | LF8: -0.06985730678 | LG8: -0.1196343303 | LH8: -0.1204411611 | LI8: 0.09571258724 | LJ8: -0.2081238478 | LK8: 0.03227441758 | LL8: 0.04108512029 | LM8: 0.07360775769 | LN8: -0.1453652382 | LO8: -0.08661772311 | LP8: 0.0112489583 | LQ8: 0.0227857139 | LR8: -0.08572424948 | LS8: 0.01394661237 | LT8: 0.03457910195 | LU8: 0.04163996875 | LV8: 0.05908528343 | LW8: -0.06433298439 | LX8: 0.03162495047 | LY8: 0.003540547565 | LZ8: 0.007359143812 | MA8: -0.02423508093 | MB8: 0.05817713216 | MC8: -0.001835780684 | MD8: -0.07902254164 | ME8: 0.002174417023 | MF8: -0.02366318554 | MG8: -0.1559368223 | MH8: 0.0538023226 | MI8: -0.0257944297 | MJ8: 0.008436297998 | MK8: 0.1279644668 | ML8: 0.07385324687 | MM8: -0.002432189416 | MN8: 0.05527611077 | MO8: -0.03019451164 | MP8: -0.03239925206 | MQ8: -0.005617602263 | MR8: -0.05123402178 | MS8: -0.124789536 | MT8: 0.02248592116 | MU8: -0.07176756114 | MV8: -0.1267609447 | MW8: -0.05147255585 | MX8: -0.05500265956 | MY8: 0.08413910866 | MZ8: -0.04082841799 | NA8: 0.05662715062 | NB8: -0.0943955034 | NC8: -0.04150212184 | ND8: 0.06291471422 | NE8: -0.01242137048 | NF8: 0.07651047409 | NG8: 0.06870889664 | NH8: -0.07890740782 | NI8: -0.2914472818 | NJ8: 0.09547142684 | NK8: 0.1030957028 | NL8: 0.03921377286 | NM8: 0.04820644855 | NN8: -0.05965742469 | NO8: 0.005174903199 | NP8: 0.03820076957 | NQ8: 0.06972258538 | NR8: -0.1285593063 | NS8: -0.1275066435 | NT8: 0.09757007658 | NU8: 0.09214165062 | NV8: 0.0072169411 | NW8: 0.06165986881 | NX8: -0.04241207987 | NY8: -0.07451836765 | NZ8: 0.08169027418 | OA8: -0.06971877068 | OB8: -0.1015778854 | OC8: -0.03924173862 | OD8: -0.007590589579 | OE8: -0.07418644428 | OF8: 0.08163520694 | OG8: 0.07799430937 | OH8: -0.02674953826 | OI8: 0.1208448559 | OJ8: -0.1069804281 | OK8: -0.02537500858 | OL8: -0.03724033386 | OM8: -0.03916608542 | ON8: -0.008677301928 | OO8: 0.1081475541 | OP8: -0.04875604808 | OQ8: -0.1086128876 | OR8: -0.03263077885 | OS8: 0.05365996808 | OT8: 0.06651664525 | OU8: -0.03362421691 | OV8: 0.02752231061 | OW8: -0.1063257009 | OX8: -0.08527927101 | OY8: -0.003498481587 | OZ8: -0.08345811069 | PA8: -0.04213583097 | PB8: -0.00124678982 | PC8: 0.06481951475 | PD8: 0.02811682038 | PE8: -0.02136952989 | PF8: -0.03659757599 | PG8: -0.02433977649 | PH8: 0.04787347093 | PI8: -0.0200977996 | PJ8: 0.01025902387 | PK8: -0.08810000867 | PL8: 0.01441563014 | PM8: -0.005381312687 | PN8: 0.0332300365 | PO8: 0.09749110788 | PP8: -0.07560613751 | PQ8: -0.05667654052 | PR8: -0.05758176371 | PS8: 0.01556772087 | PT8: 0.0716496706 | PU8: 0.0893285647 | PV8: 0.04219007492 | PW8: -0.07529071718 | PX8: -0.1244578511 | PY8: 0.08712869883 | PZ8: 0.03917270899 | QA8: -0.01692440175 | QB8: 0.04511315748 | QC8: -0.0225934647 | QD8: 0.01782662608 | QE8: -0.05311187357 | QF8: -0.03437997773 | QG8: -0.06459596008 | QH8: 0.07532446831 | QI8: 0.01706787758 | QJ8: 0.143385753 | QK8: -0.01171725057 | QL8: 0.07260659337 | QM8: -0.3504044414 | QN8: -0.07895784825 | QO8: -0.07177971303 | QP8: 0.03756392002 | QQ8: 0.07329884917 | QR8: -0.2074418366 | QS8: 0.0526329726 | QT8: 0.06759506464 | QU8: 0.0149951065 | QV8: 0.009802965447 | QW8: 0.02320794947 | QX8: 0.0526041016 | QY8: 0.0416893959 | QZ8: -0.09622895718 | RA8: -0.05491948128 | RB8: -0.0291744452 | RC8: 0.07554657012 | RD8: -0.08754470944 | RE8: -0.01512640528 | RF8: -0.08893303573 | RG8: -0.03590589389 | RH8: 0.06877598166 | RI8: -0.04323503003 | RJ8: 0.04746644199 | RK8: 0.0705877468 | RL8: -0.01807111502 | RM8: 0.09404487908 | RN8: -0.02409741655 | RO8: 0.005121039692 | RP8: 0.01911817119 | RQ8: 0.06945308298 | RR8: -0.003703718306 | RS8: 0.1029228717 | RT8: 0.0380897522 | RU8: 0.06298179179 | RV8: -0.05000993609 | RW8: -0.1258051544 | RX8: 0.06705943495 | RY8: -0.09777635336 | RZ8: -0.06393025815 | SA8: 0.0672608763 | SB8: 0.09385190904 | SC8: 0.1279246062 | SD8: 0.1195695177 | SE8: 0.005769153126 | SF8: -0.07383542508 | SG8: -0.08573336899 | SH8: 0.008250826038
A9: 7 | B9: =Normalization!G16 -> 0.09090909091 | C9: -0.01685849763 | D9: 0.07193750143 | E9: 0.07670500875 | F9: -0.06892546266 | G9: -0.01146554947 | H9: -0.1059296504 | I9: 0.0181978438 | J9: -0.06646567583 | K9: 0.07700607926 | L9: 0.09840886295 | M9: 0.06768820435 | N9: -0.1238898858 | O9: 0.03053227998 | P9: -0.1202125475 | Q9: 0.03028457612 | R9: -0.01032973919 | S9: 0.04309038073 | T9: 0.04209786654 | U9: 0.09594102204 | V9: 0.119890146 | W9: 0.03660179675 | X9: -0.2585119903 | Y9: -0.203905955 | Z9: -0.09534966201 | AA9: 0.03646732867 | AB9: -0.05531360954 | AC9: 0.1237780675 | AD9: 0.0904539898 | AE9: -0.04262136295 | AF9: -0.1234403178 | AG9: 0.1332059801 | AH9: -0.08028700948 | AI9: -0.06255141646 | AJ9: -0.0742533952 | AK9: 0.03456667811 | AL9: 0.02845143341 | AM9: -0.1226097867 | AN9: -0.1087288037 | AO9: -0.1769717336 | AP9: -0.02221293375 | AQ9: 0.1157836393 | AR9: 0.1167262942 | AS9: 0.04375804961 | AT9: -0.04455104098 | AU9: -0.05714507774 | AV9: -0.02717849426 | AW9: 0.090240255 | AX9: -0.0005847544526 | AY9: 0.03996128961 | AZ9: -0.02601555735 | BA9: -0.3028332591 | BB9: -0.04894646257 | BC9: -0.0002754546003 | BD9: 0.03176314384 | BE9: 0.07112140208 | BF9: 0.02562117204 | BG9: -0.09678831697 | BH9: -0.05983383954 | BI9: -0.02426538616 | BJ9: -0.07202085108 | BK9: -0.1768054962 | BL9: 0.07422520965 | BM9: -0.139908269 | BN9: -0.1441211998 | BO9: -0.1982275695 | BP9: -0.0444181636 | BQ9: 0.06866120547 | BR9: 0.1214264333 | BS9: -0.1466312706 | BT9: 0.007294048555 | BU9: 0.08417233825 | BV9: -0.06461308897 | BW9: -0.05330359936 | BX9: 0.028100105 | BY9: 0.1018146947 | BZ9: -0.04755367339 | CA9: -0.005418401677 | CB9: 0.05671727285 | CC9: 0.08112550527 | CD9: -0.05222288519 | CE9: 0.06460952014 | CF9: 0.007115401328 | CG9: 0.06516250223 | CH9: -0.1145893708 | CI9: 0.1040522456 | CJ9: 0.1335087568 | CK9: -0.1148000583 | CL9: 0.08694657683 | CM9: -0.04543047026 | CN9: -0.1056850553 | CO9: 0.09292720258 | CP9: 0.1161110476 | CQ9: 0.06350516528 | CR9: 0.08316219598 | CS9: 0.03800062463 | CT9: -0.06367443502 | CU9: 0.05293799564 | CV9: -0.04685220122 | CW9: 0.1222276166 | CX9: -0.1286748797 | CY9: -0.01630937308 | CZ9: 0.1279547513 | DA9: -0.1635874659 | DB9: 0.05245165899 | DC9: -0.08668644726 | DD9: -0.05139893293 | DE9: -0.06671837717 | DF9: 0.09325029701 | DG9: -0.1272833943 | DH9: 0.01111956034 | DI9: -0.005480446853 | DJ9: 0.004247012548 | DK9: -0.1351758987 | DL9: 0.1441344917 | DM9: -0.02553379349 | DN9: 0.2122140229 | DO9: 0.08234698325 | DP9: -9.472631791e-05 | DQ9: -0.1806633174 | DR9: -0.09486651421 | DS9: 0.06093434244 | DT9: 0.09568977356 | DU9: 0.0513606444 | DV9: -0.07961414009 | DW9: -0.09943699092 | DX9: 0.1048930138 | DY9: -0.07169108093 | DZ9: -0.2850136161 | EA9: -0.1334174871 | EB9: 0.03032544442 | EC9: 0.008804636076 | ED9: -0.1452617794 | EE9: 0.09562429786 | EF9: -0.2045307904 | EG9: -0.09357076138 | EH9: 0.07249130309 | EI9: -0.07026588917 | EJ9: -0.02805959247 | EK9: -0.07222878188 | EL9: 0.1365514696 | EM9: -0.08449098468 | EN9: 0.008022136055 | EO9: 0.003803851549 | EP9: -0.2260629088 | EQ9: -0.008398692124 | ER9: 0.0007423661882 | ES9: 0.003039554926 | ET9: 0.04784439504 | EU9: 0.04940994084 | EV9: -0.005938714836 | EW9: -0.1890463531 | EX9: -0.0994951874 | EY9: -0.008478590287 | EZ9: 0.05773323402 | FA9: 0.03881657496 | FB9: -0.01278799679 | FC9: 0.1234515086 | FD9: 0.02980129793 | FE9: -0.05165490508 | FF9: -0.05141590908 | FG9: 0.0787974298 | FH9: -0.06341579556 | FI9: 0.07884451747 | FJ9: 0.119784683 | FK9: 0.00082655804 | FL9: -0.06148896366 | FM9: 0.07890041918 | FN9: 0.1206919104 | FO9: 0.1108548567 | FP9: -0.03786703572 | FQ9: -0.06805502623 | FR9: -0.0231456887 | FS9: 0.0978596136 | FT9: 0.06931365281 | FU9: -0.1104135364 | FV9: 0.113933526 | FW9: 0.009765255265 | FX9: 0.02121127211 | FY9: -0.1038445234 | FZ9: -0.006250293925 | GA9: 0.07657653093 | GB9: -0.04310631007 | GC9: 0.07699919492 | GD9: -0.0490459837 | GE9: 0.02978218533 | GF9: -0.0005011772737 | GG9: -0.05188862979 | GH9: 0.0254867319 | GI9: -0.1177787632 | GJ9: -0.1883817017 | GK9: 0.04162382334 | GL9: -0.1032222137 | GM9: 0.06594634056 | GN9: -0.08534895629 | GO9: 0.05303422734 | GP9: 0.01659031585 | GQ9: -0.1712080538 | GR9: 0.03470987827 | GS9: 0.001930570463 | GT9: 0.07687754929 | GU9: -0.1236960143 | GV9: 0.1029314101 | GW9: 0.109721683 | GX9: 0.02046679147 | GY9: -0.07978125662 | GZ9: -0.09367187321 | HA9: -0.02146407962 | HB9: 0.02086427808 | HC9: -0.006064055022 | HD9: -0.01858850569 | HE9: 0.0356355533 | HF9: 0.1554914713 | HG9: -0.01181168761 | HH9: -0.1698371768 | HI9: -0.01487351954 | HJ9: 0.1009001732 | HK9: 0.08498144895 | HL9: 0.1065023541 | HM9: -0.1297382712 | HN9: 0.1051095948 | HO9: -0.06045959517 | HP9: 0.001495629083 | HQ9: -0.04746237397 | HR9: -0.06363022327 | HS9: 0.03093202226 | HT9: -0.1967413723 | HU9: 0.03609120101 | HV9: 0.0810598731 | HW9: -0.08982641995 | HX9: 0.07193599641 | HY9: -0.09773578495 | HZ9: 0.03560871258 | IA9: -0.01937221177 | IB9: -0.2703542709 | IC9: -0.01874062978 | ID9: -0.01946622878 | IE9: -0.04962467775 | IF9: -0.06394812465 | IG9: -0.03603819758 | IH9: 0.1520602405 | II9: -0.1027010232 | IJ9: -0.007856197655 | IK9: -0.01033474132 | IL9: -0.06758837402 | IM9: 0.001195054618 | IN9: 0.0329829976 | IO9: 0.08381453902 | IP9: 0.07873988152 | IQ9: -0.02045640349 | IR9: -0.1591826677 | IS9: -0.1420267969 | IT9: -0.152577877 | IU9: -0.09184988588 | IV9: -0.01528316084 | IW9: 0.0733339861 | IX9: -0.210583806 | IY9: 0.04728619754 | IZ9: 0.09130445123 | JA9: 0.08522740006 | JB9: 0.008205685765 | JC9: -0.001130519784 | JD9: 0.1199881062 | JE9: 0.09683371335 | JF9: -0.05321210623 | JG9: -0.03025854006 | JH9: -0.04104470834 | JI9: 0.0645769462 | JJ9: -0.03708517179 | JK9: 0.07652988285 | JL9: -0.04236202687 | JM9: 0.13094078 | JN9: -0.008353374898 | JO9: 0.04797432199 | JP9: -0.2569164038 | JQ9: 0.1060780287 | JR9: 0.05040180311 | JS9: 0.01578075998 | JT9: 0.103610836 | JU9: -0.04662651941 | JV9: 0.03258851171 | JW9: -0.1280072778 | JX9: -0.1913293451 | JY9: 0.02242567018 | JZ9: 0.01095303893 | KA9: 0.157438904 | KB9: 0.2121437341 | KC9: 0.00210203696 | KD9: 0.007185264025 | KE9: 0.144152239 | KF9: -0.02149125561 | KG9: -0.1617642343 | KH9: 0.06615952402 | KI9: 0.05500918627 | KJ9: 0.04078174382 | KK9: -0.05579825118 | KL9: -0.08670145273 | KM9: -0.007249463815 | KN9: -0.07050684839 | KO9: -0.06976224482 | KP9: -0.09238315374 | KQ9: 0.008360927925 | KR9: -0.02011534758 | KS9: -0.05775601789 | KT9: -0.2578514814 | KU9: -0.1496558636 | KV9: 0.08225393295 | KW9: -0.05057667196 | KX9: -0.02757341042 | KY9: -0.009480739944 | KZ9: -0.09803730994 | LA9: -0.01078030467 | LB9: -0.101800099 | LC9: 0.1483901888 | LD9: -0.04265451059 | LE9: 0.08522827923 | LF9: -0.1859766692 | LG9: -0.09324603528 | LH9: 0.1880369633 | LI9: -0.02153205313 | LJ9: -0.09886334091 | LK9: -0.03695072979 | LL9: 0.04782192037 | LM9: -0.1268943697 | LN9: -0.07551129162 | LO9: 0.03556568548 | LP9: 0.06082835048 | LQ9: -0.01345149148 | LR9: -0.007675237022 | LS9: 0.02011673898 | LT9: 0.04353546351 | LU9: 0.1922659576 | LV9: 0.02047680132 | LW9: 0.06168410555 | LX9: 0.01804026775 | LY9: 0.09775678068 | LZ9: -0.01823593676 | MA9: 0.1373061687 | MB9: 0.002164709382 | MC9: 0.1119287238 | MD9: -0.1368690878 | ME9: 0.1477451026 | MF9: -0.07861271501 | MG9: -0.0149593642 | MH9: 0.02398794517 | MI9: 0.001391227241 | MJ9: -0.0752568543 | MK9: -0.005107569508 | ML9: 0.08812854439 | MM9: -0.08965677023 | MN9: -0.148189038 | MO9: 0.08301276714 | MP9: 0.0465506427 | MQ9: -0.0652609393 | MR9: 0.06106198952 | MS9: 0.1079379171 | MT9: 0.1626500189 | MU9: 0.1292559355 | MV9: 0.1350404769 | MW9: -0.06167439744 | MX9: 0.04605757445 | MY9: -0.07310032099 | MZ9: -0.1794074327 | NA9: -0.1589051932 | NB9: -0.1395590901 | NC9: -0.04922178388 | ND9: 0.07365734875 | NE9: -0.123602435 | NF9: 0.1254151314 | NG9: 0.06423479319 | NH9: 0.05188191682 | NI9: -0.0006797997048 | NJ9: -0.0002134433889 | NK9: 0.1106773838 | NL9: 0.08933542669 | NM9: 0.0829180032 | NN9: -0.04872273654 | NO9: -0.002986805048 | NP9: -0.004791284911 | NQ9: 0.09369562566 | NR9: 0.1833706349 | NS9: 0.07966581732 | NT9: 0.04028333351 | NU9: 0.06412215531 | NV9: 0.07432927936 | NW9: -0.09202645719 | NX9: 0.09876466542 | NY9: -0.009861673228 | NZ9: -0.1250666976 | OA9: 0.07691732794 | OB9: -0.08544699103 | OC9: -0.03584506735 | OD9: 0.04801039398 | OE9: 0.06056598201 | OF9: 0.07990446687 | OG9: -0.06572539359 | OH9: -0.04063104093 | OI9: -0.003878076561 | OJ9: 0.08576529473 | OK9: 0.03611581028 | OL9: 0.009469580837 | OM9: -0.125310868 | ON9: 0.08554519713 | OO9: -0.06737159938 | OP9: -0.1353343725 | OQ9: -0.07305896282 | OR9: 0.1149993464 | OS9: 0.03681921959 | OT9: -0.006854927633 | OU9: 0.1098208576 | OV9: 0.01240056287 | OW9: -0.07024522871 | OX9: 0.02183447406 | OY9: -0.3160608411 | OZ9: 0.02103415504 | PA9: 0.1323198676 | PB9: -0.2038912475 | PC9: 0.03519426659 | PD9: 0.1266543716 | PE9: 0.06478026509 | PF9: 0.1080052033 | PG9: 0.04559597 | PH9: -0.04921068996 | PI9: -0.06680890918 | PJ9: 0.0676728189 | PK9: 0.07382130623 | PL9: 0.01120377332 | PM9: -0.01786390319 | PN9: 0.1252213866 | PO9: -0.01516360883 | PP9: -0.04526943341 | PQ9: 0.1288016587 | PR9: -0.1530653536 | PS9: 0.01620997116 | PT9: -0.1541927755 | PU9: 0.04435996711 | PV9: 0.01307404693 | PW9: 0.01899387315 | PX9: -0.01158187166 | PY9: -0.1057315245 | PZ9: 1.992817852e-05 | QA9: 0.03591097519 | QB9: -0.1313701719 | QC9: -0.003587039886 | QD9: 0.01280086488 | QE9: 0.2145801336 | QF9: 0.04170261323 | QG9: 0.01814037934 | QH9: -0.02004029229 | QI9: -0.1624616534 | QJ9: -0.05447842553 | QK9: 0.02411501482 | QL9: 0.07345305383 | QM9: -0.01874316856 | QN9: -0.1921854317 | QO9: 0.1038583443 | QP9: -0.05176034197 | QQ9: -0.1238802895 | QR9: -0.2546188235 | QS9: -0.2408560514 | QT9: 0.06291915476 | QU9: -0.01040795911 | QV9: -0.01277548261 | QW9: -0.126115486 | QX9: 0.0607724525 | QY9: -0.09818314761 | QZ9: -0.1749065518 | RA9: 0.09127028286 | RB9: 0.1420629025 | RC9: 0.01329469401 | RD9: -0.05505524203 | RE9: -0.04544101283 | RF9: -0.1538416445 | RG9: -0.07366654277 | RH9: -0.1046448424 | RI9: -0.08778220415 | RJ9: 0.009323751554 | RK9: 0.06601290405 | RL9: 0.02054638416 | RM9: -0.006299200933 | RN9: -0.04946230352 | RO9: -0.04793696105 | RP9: -0.1375628114 | RQ9: 0.02231586911 | RR9: -0.330032438 | RS9: -0.1228180826 | RT9: -0.02604550309 | RU9: -0.08613776416 | RV9: -0.01888323203 | RW9: 0.01575236022 | RX9: 0.02391226776 | RY9: 0.001111944206 | RZ9: 0.1978931278 | SA9: -0.1503463387 | SB9: 0.03822240606 | SC9: 0.01114304457 | SD9: -0.02418718114 | SE9: -0.06041834131 | SF9: 0.09797170013 | SG9: -0.01196539961 | SH9: -0.06385871023
A10: 8 | B10: =Normalization!G17 -> 0.0223389719 | C10: -0.08509559184 | D10: -0.183350414 | E10: -0.4331432879 | F10: 0.08316411823 | G10: -0.0527494736 | H10: -0.05558569357 | I10: 0.02793909609 | J10: 0.007868877612 | K10: -0.09241390228 | L10: -0.01315218583 | M10: -0.02061717212 | N10: 0.009883059189 | O10: 0.1668860018 | P10: -0.2200096697 | Q10: 0.0438833721 | R10: 0.1045551747 | S10: 0.01500057057 | T10: -0.09991839528 | U10: -0.01231169328 | V10: -0.1315876991 | W10: -0.08560725302 | X10: -0.1801891774 | Y10: 0.09468616545 | Z10: 0.05228278041 | AA10: -0.1190327853 | AB10: 0.1596280336 | AC10: -0.02480060421 | AD10: 0.0008791806176 | AE10: -0.07206128538 | AF10: 0.08077596128 | AG10: -0.08757540584 | AH10: 0.01867184974 | AI10: -0.2118684649 | AJ10: -0.09366775304 | AK10: 0.01287388057 | AL10: 0.08443580568 | AM10: -0.0822763145 | AN10: -0.2346762568 | AO10: -0.01755875535 | AP10: 0.03972383961 | AQ10: 0.09836743772 | AR10: 0.06742777675 | AS10: 0.1169533432 | AT10: -0.07709201425 | AU10: -0.05969934911 | AV10: 0.06655716896 | AW10: 0.1652929038 | AX10: 0.08192832023 | AY10: 0.04199552909 | AZ10: 0.01419304777 | BA10: -0.198743701 | BB10: -0.03802630305 | BC10: -0.03268803656 | BD10: -0.02662912011 | BE10: -0.07565583289 | BF10: -0.2521998882 | BG10: -0.1032669246 | BH10: -0.005463081878 | BI10: -0.10238415 | BJ10: -0.06968250126 | BK10: 0.09821102023 | BL10: 0.07785844058 | BM10: 0.04008347169 | BN10: -0.02027155273 | BO10: -0.04457241669 | BP10: 0.04701717198 | BQ10: 0.02924317308 | BR10: 0.1431151181 | BS10: -0.1026150286 | BT10: -0.360377878 | BU10: -0.08581063896 | BV10: 0.1435195953 | BW10: 0.1148957685 | BX10: -0.09609790891 | BY10: 0.05458775535 | BZ10: -0.02494336851 | CA10: 0.01384188794 | CB10: 0.06528833508 | CC10: 0.0195079688 | CD10: -0.1262435764 | CE10: -0.05488274246 | CF10: -0.00901721511 | CG10: -0.02273250371 | CH10: 0.07842312008 | CI10: -0.0341280289 | CJ10: -0.06254273653 | CK10: -0.06262509525 | CL10: 0.07122264057 | CM10: 0.2103542686 | CN10: -0.02023822069 | CO10: -0.03186611086 | CP10: 0.01311266236 | CQ10: 0.05654700473 | CR10: 0.02878965437 | CS10: 0.09611852467 | CT10: 0.04388933256 | CU10: 0.1027323231 | CV10: -0.1015402451 | CW10: -0.1816711426 | CX10: -0.09572655708 | CY10: -0.09649662673 | CZ10: 0.07927655429 | DA10: -0.07626701891 | DB10: -0.09031801671 | DC10: -0.005556441378 | DD10: 0.09234880656 | DE10: -0.06030269712 | DF10: -0.09662493318 | DG10: -0.07125362754 | DH10: 0.04987622797 | DI10: -0.08399444818 | DJ10: -0.03269416839 | DK10: -0.1320007294 | DL10: -0.1166572347 | DM10: -0.02930213697 | DN10: -0.05241568759 | DO10: 0.06146073714 | DP10: 0.08126657456 | DQ10: 0.1253848374 | DR10: -0.09605716914 | DS10: -0.04126314446 | DT10: 0.05938933045 | DU10: 0.05417104438 | DV10: 0.02911064401 | DW10: 0.03823183104 | DX10: -0.05523839965 | DY10: 0.03245872632 | DZ10: 0.1532034129 | EA10: 0.01288694236 | EB10: 0.03500183299 | EC10: 0.05056358874 | ED10: 0.08249472827 | EE10: 0.01064278092 | EF10: 0.06371561438 | EG10: 0.02310628816 | EH10: -0.06095501035 | EI10: -0.05455131456 | EJ10: 0.1698093563 | EK10: -0.01173339412 | EL10: -0.08672597259 | EM10: 0.06366528571 | EN10: -0.05390679091 | EO10: 0.112784192 | EP10: -0.0381822437 | EQ10: -0.05590267852 | ER10: -0.004250036087 | ES10: -0.08849740028 | ET10: 0.05641554669 | EU10: 0.01413585246 | EV10: 0.1014319584 | EW10: -0.02870175615 | EX10: -0.08400472999 | EY10: -0.03116426431 | EZ10: 0.06864093989 | FA10: 0.06195007637 | FB10: 0.0500542745 | FC10: -0.1358972192 | FD10: -0.0927175656 | FE10: -0.08056626469 | FF10: 0.1128163785 | FG10: 0.1048215181 | FH10: -0.09097550064 | FI10: 0.179403618 | FJ10: 0.0295343753 | FK10: 0.0624155663 | FL10: 0.0226788912 | FM10: 0.08221525699 | FN10: -0.07657089829 | FO10: -0.01146568917 | FP10: 0.07615185529 | FQ10: -0.05240051821 | FR10: 0.02664056048 | FS10: 0.1269674152 | FT10: 0.09597825259 | FU10: -0.05810043961 | FV10: 0.009650055319 | FW10: -0.2609935403 | FX10: -0.1030711085 | FY10: 0.1235675812 | FZ10: -0.0001569492597 | GA10: -0.08208276331 | GB10: 0.05597345531 | GC10: -0.01013716217 | GD10: 0.06010995433 | GE10: -0.2198239267 | GF10: -0.0971795246 | GG10: 0.02912503108 | GH10: -0.02585423179 | GI10: 0.02380859666 | GJ10: 0.02237981185 | GK10: 0.02706815861 | GL10: -0.01804423705 | GM10: 0.1095424816 | GN10: -0.1243310347 | GO10: 0.05561828986 | GP10: -0.1312694699 | GQ10: 0.1160495356 | GR10: -0.08222652972 | GS10: -0.02858779207 | GT10: -0.08896186948 | GU10: 0.1434943229 | GV10: -0.04601550102 | GW10: 0.02389920875 | GX10: -0.2468069941 | GY10: -0.1262063533 | GZ10: -0.2225358635 | HA10: 0.005759230349 | HB10: -0.02965575643 | HC10: 0.03913207352 | HD10: 0.002598708961 | HE10: -0.113620691 | HF10: -0.1606556773 | HG10: 0.08119414002 | HH10: -0.2521300316 | HI10: -0.05159223825 | HJ10: -0.06563770026 | HK10: 0.02629650198 | HL10: 0.05843002349 | HM10: 0.01376194041 | HN10: 0.07224659622 | HO10: -0.01562416367 | HP10: 0.1523505002 | HQ10: 0.02588634379 | HR10: 0.03872922435 | HS10: -0.01548281778 | HT10: 0.02103802189 | HU10: -0.2467420399 | HV10: 0.1224824712 | HW10: -0.04097516835 | HX10: 0.1140069589 | HY10: -0.01026014145 | HZ10: -0.01878830604 | IA10: 0.03407859057 | IB10: -0.02460744232 | IC10: 0.006785896141 | ID10: 0.163504228 | IE10: 0.06564479321 | IF10: -0.1104431897 | IG10: -0.03027596697 | IH10: -0.01284085866 | II10: 0.0007086009136 | IJ10: 0.07890622318 | IK10: -0.02235634811 | IL10: 0.06913354248 | IM10: 0.05296711624 | IN10: -0.07081710547 | IO10: 0.07906222343 | IP10: 0.1634615213 | IQ10: 0.1069432795 | IR10: -0.04223318398 | IS10: -0.01693810895 | IT10: 0.02017985843 | IU10: 0.0164761804 | IV10: -0.001355624641 | IW10: -0.009919884615 | IX10: 0.1754128337 | IY10: 0.03530303389 | IZ10: 0.06592486054 | JA10: 0.08379101008 | JB10: 0.08140721172 | JC10: -0.04472485185 | JD10: 0.01266121399 | JE10: -0.1082033068 | JF10: 0.05247823894 | JG10: 0.02379579842 | JH10: -0.1261212677 | JI10: 0.0345974043 | JJ10: -0.07227006555 | JK10: -0.04816055298 | JL10: 0.04739116505 | JM10: 0.0437666364 | JN10: 0.006236553658 | JO10: -0.02649232186 | JP10: 0.1428260803 | JQ10: 0.06116579473 | JR10: -0.1925067008 | JS10: -0.01607324556 | JT10: -0.02704717219 | JU10: -0.2066119164 | JV10: 0.02524849586 | JW10: 0.1391973346 | JX10: -0.2076445967 | JY10: -0.1456816792 | JZ10: -0.08844582736 | KA10: 0.006317900959 | KB10: -0.1778610796 | KC10: -0.1188213751 | KD10: -0.1046515182 | KE10: -0.1940849423 | KF10: 0.03161459416 | KG10: 0.02327610552 | KH10: -0.3419445455 | KI10: 0.002102965955 | KJ10: -0.07322672009 | KK10: -0.1105927974 | KL10: -0.08449703455 | KM10: -0.05820439011 | KN10: 0.05183252692 | KO10: 0.2124542892 | KP10: -0.006690755952 | KQ10: 0.05340991914 | KR10: 0.05594627559 | KS10: 0.02333677374 | KT10: 0.02850308828 | KU10: -0.03517165035 | KV10: -0.0581179969 | KW10: 0.001099576126 | KX10: 0.07668656111 | KY10: 0.06375844032 | KZ10: 0.1204898879 | LA10: 0.100305967 | LB10: 0.006221207324 | LC10: -0.0892143622 | LD10: -0.1795350313 | LE10: -0.004153044894 | LF10: 0.06413724273 | LG10: 0.06757123023 | LH10: -0.04947880656 | LI10: -0.08762440085 | LJ10: -0.3482648134 | LK10: 0.00359187508 | LL10: -0.09476269782 | LM10: -0.07262219489 | LN10: 0.08814714104 | LO10: 0.07289298624 | LP10: -0.00818954315 | LQ10: 0.1007533073 | LR10: 0.05207789317 | LS10: -0.05811122805 | LT10: -0.02970944904 | LU10: -0.1045003384 | LV10: -0.01503290236 | LW10: -0.09073190391 | LX10: -0.0344982408 | LY10: -0.1288957596 | LZ10: 0.1339590698 | MA10: -0.0292844791 | MB10: -0.0542331785 | MC10: -0.05883408338 | MD10: -0.7663769722 | ME10: -0.0955549553 | MF10: 0.005684298463 | MG10: -0.04479780421 | MH10: 0.06420500576 | MI10: -0.8240830898 | MJ10: -0.007969007827 | MK10: 0.05292814597 | ML10: 0.006810949184 | MM10: -0.01806563139 | MN10: 0.009294256568 | MO10: 0.04142965004 | MP10: -0.006538263522 | MQ10: 0.08682895452 | MR10: 0.0689580217 | MS10: 0.006570318248 | MT10: 0.02726594545 | MU10: -0.1926608384 | MV10: -0.0450434424 | MW10: -0.01292438153 | MX10: -0.1108414531 | MY10: -0.1093012318 | MZ10: -0.001193042262 | NA10: 0.08765093982 | NB10: 0.08014696091 | NC10: 0.1347059906 | ND10: 0.01428286918 | NE10: -0.05553286523 | NF10: 0.03216850013 | NG10: -0.1268167645 | NH10: 0.231061399 | NI10: 0.2163321525 | NJ10: -0.1346245408 | NK10: -0.0009186094394 | NL10: -0.0645544529 | NM10: -0.04651815072 | NN10: -0.0370791927 | NO10: 0.1015951633 | NP10: -0.1512140334 | NQ10: -0.05113032833 | NR10: 0.1527822912 | NS10: -0.06860653311 | NT10: -0.06755066663 | NU10: 0.003282152582 | NV10: 0.12157318 | NW10: -0.01145091653 | NX10: -0.1476904899 | NY10: -0.01279645413 | NZ10: -0.02357405052 | OA10: 0.04471389949 | OB10: 0.1067716628 | OC10: -0.01291675866 | OD10: -0.007613032591 | OE10: -0.05844174698 | OF10: 0.006613570265 | OG10: 0.118990086 | OH10: -0.04645237327 | OI10: -0.06235460937 | OJ10: 0.06828012317 | OK10: -0.08378537744 | OL10: -0.1707698703 | OM10: 0.07047055662 | ON10: -0.1587590277 | OO10: -0.08062087744 | OP10: 0.1400067359 | OQ10: 0.2034055144 | OR10: 0.06378541887 | OS10: 0.072521694 | OT10: 0.02593471855 | OU10: 0.1009584665 | OV10: 0.04047362134 | OW10: 0.03134099767 | OX10: -0.312823832 | OY10: 0.1985206902 | OZ10: 0.03019498847 | PA10: -0.04576180875 | PB10: -0.1732892692 | PC10: -0.1134665906 | PD10: -0.07405206561 | PE10: -0.03203156218 | PF10: 0.07581462711 | PG10: -0.07503475994 | PH10: -0.2002383024 | PI10: -0.03420481086 | PJ10: 0.04180218279 | PK10: 0.04707309604 | PL10: 0.1299834251 | PM10: 0.04374623299 | PN10: -0.01903671585 | PO10: -0.1276002228 | PP10: -0.02503705211 | PQ10: 0.06343513727 | PR10: -0.3388622403 | PS10: 0.002846999327 | PT10: 0.03391444311 | PU10: -0.262663871 | PV10: -0.01409842819 | PW10: 0.01641552523 | PX10: 0.05378158763 | PY10: 0.04024313018 | PZ10: -0.04545486718 | QA10: -0.04061205313 | QB10: -0.03749425709 | QC10: -0.09567470104 | QD10: 0.0606302768 | QE10: -0.02729335241 | QF10: 0.07261939347 | QG10: 0.04220230132 | QH10: -0.1170091256 | QI10: -0.02979440428 | QJ10: -0.00346929254 | QK10: -0.2018173486 | QL10: 0.08094631881 | QM10: -0.4794579744 | QN10: -0.6036190987 | QO10: -0.04718449712 | QP10: 0.02598587424 | QQ10: -0.08601187915 | QR10: 0.05003533512 | QS10: 0.1312670708 | QT10: 0.001860638848 | QU10: 0.003205122659 | QV10: -0.05070067197 | QW10: 0.01369693875 | QX10: -0.01247332245 | QY10: -0.008299922571 | QZ10: 0.1004971266 | RA10: 0.07036036998 | RB10: -0.09553223848 | RC10: 0.03139388934 | RD10: 0.03015413508 | RE10: -0.1397071183 | RF10: 0.02483546734 | RG10: -0.1674901694 | RH10: 0.1802319288 | RI10: -0.1497954726 | RJ10: -0.005524687935 | RK10: -0.06187179312 | RL10: -0.007404093165 | RM10: 0.1102493256 | RN10: 0.03211865947 | RO10: -0.115591228 | RP10: -0.08575298637 | RQ10: 0.01831250452 | RR10: -1.02993679 | RS10: 0.1003216952 | RT10: 0.0612285994 | RU10: -0.08169434965 | RV10: 0.1860480905 | RW10: 0.119483836 | RX10: -0.01685927436 | RY10: 0.1104687229 | RZ10: -0.05293736234 | SA10: -0.05130368471 | SB10: 0.06577523053 | SC10: 0.08701444417 | SD10: 0.00187249959 | SE10: 0.03180805594 | SF10: -0.07347992063 | SG10: 0.01012234949 | SH10: -0.09105772525
A11: 9 | B11: =Normalization!G18 -> 0.003720031335 | C11: -0.1567632556 | D11: 0.03603569418 | E11: -0.1739297807 | F11: -0.02099554613 | G11: -0.09494645894 | H11: -0.01851982623 | I11: 0.03547795862 | J11: -0.01119238138 | K11: -0.01742651127 | L11: 0.121040836 | M11: 0.05736542493 | N11: 0.06001286209 | O11: 0.01621772535 | P11: 0.1520480961 | Q11: 0.0457887277 | R11: 0.08235836774 | S11: -0.07868826389 | T11: -0.09227322042 | U11: 0.1358961761 | V11: 0.01477685757 | W11: 0.002313483506 | X11: 0.1002934054 | Y11: -0.01532987226 | Z11: -0.07795226574 | AA11: -0.004514194559 | AB11: -0.04981435463 | AC11: 0.07483763993 | AD11: -0.01034301799 | AE11: -0.08096737415 | AF11: -0.1533128023 | AG11: 0.03670799732 | AH11: -0.1207508966 | AI11: -0.02600224502 | AJ11: 0.1287944466 | AK11: -0.07122083753 | AL11: 0.1384837627 | AM11: 0.06759200245 | AN11: -0.06235446781 | AO11: 0.09222605824 | AP11: 0.04300550744 | AQ11: -0.06807870418 | AR11: -0.008351589553 | AS11: -0.03354808688 | AT11: 0.07058837265 | AU11: -0.0374041982 | AV11: 0.08944409341 | AW11: 0.1270915121 | AX11: 0.03505855054 | AY11: -0.03978492692 | AZ11: 0.1210375801 | BA11: 0.07758197188 | BB11: -0.06291949749 | BC11: -0.2134701163 | BD11: -0.1005489007 | BE11: 0.04060262442 | BF11: 0.1091837436 | BG11: -0.05011953786 | BH11: 0.02411746234 | BI11: 0.04617284611 | BJ11: 0.002812354593 | BK11: -0.03408057988 | BL11: 0.02739122696 | BM11: 0.08494132757 | BN11: -0.09876683354 | BO11: 0.02708331309 | BP11: 0.1103887111 | BQ11: -0.06809417903 | BR11: 0.06870755553 | BS11: -0.1523989886 | BT11: -0.234713167 | BU11: 0.1072897315 | BV11: 0.02321344987 | BW11: -0.134147957 | BX11: -0.07669660449 | BY11: -0.07036627829 | BZ11: 0.1112348512 | CA11: -0.07917676866 | CB11: 0.002352888929 | CC11: -0.03743608296 | CD11: 0.04736649618 | CE11: -0.0867344439 | CF11: -0.1007353812 | CG11: -0.04139949009 | CH11: 0.06315293163 | CI11: -0.04436278716 | CJ11: -0.08958113939 | CK11: -0.05831518769 | CL11: 0.09945159405 | CM11: -0.09645009786 | CN11: -0.07827980071 | CO11: 0.07247877866 | CP11: 0.003968215548 | CQ11: 0.08751795441 | CR11: -0.00725008361 | CS11: 0.1450372934 | CT11: 0.0849557519 | CU11: -0.07102381438 | CV11: -0.02377099171 | CW11: -0.02435398661 | CX11: 0.05292325467 | CY11: 0.007912368514 | CZ11: 0.03870908916 | DA11: 0.0610939078 | DB11: -0.1302984804 | DC11: 0.1045587957 | DD11: -0.08273365349 | DE11: 0.0009395190282 | DF11: 0.07510165125 | DG11: 0.1493142545 | DH11: -0.01579931751 | DI11: -0.1277769655 | DJ11: -0.04253878072 | DK11: -0.09429765493 | DL11: -0.08278691024 | DM11: 0.04683563113 | DN11: -0.202922523 | DO11: 0.01828340068 | DP11: 0.08555416018 | DQ11: -0.03856280446 | DR11: 0.07911209762 | DS11: 0.02898683771 | DT11: -0.03526723012 | DU11: 0.01338809822 | DV11: -0.149925679 | DW11: -0.05500893295 | DX11: 0.03403572366 | DY11: -0.07575278729 | DZ11: 0.102681607 | EA11: -0.0004679898266 | EB11: -0.023248896 | EC11: -0.08498676121 | ED11: 0.01631877758 | EE11: 0.04666420072 | EF11: -0.1750291884 | EG11: -0.08888331801 | EH11: 0.1025962159 | EI11: -0.006382365711 | EJ11: -0.07547577471 | EK11: -0.04653340951 | EL11: -0.08184053749 | EM11: 0.1185535863 | EN11: 0.07191889733 | EO11: -0.02718200348 | EP11: -0.03382470459 | EQ11: -0.08091472089 | ER11: -0.09619549662 | ES11: 0.04321485758 | ET11: -0.0485461317 | EU11: 0.09551030397 | EV11: -0.05479312316 | EW11: -0.1403657943 | EX11: -0.1008869261 | EY11: -0.1007994488 | EZ11: 0.09478712082 | FA11: 0.09010657668 | FB11: -0.04021399096 | FC11: 0.06778415293 | FD11: -0.07237171382 | FE11: 0.1193196774 | FF11: -0.04412709549 | FG11: 0.03801124543 | FH11: 0.008816963062 | FI11: -0.08644755185 | FJ11: -0.04062595591 | FK11: -0.04863775894 | FL11: 0.1382279992 | FM11: 0.01888566837 | FN11: 0.0336868912 | FO11: -0.02312056161 | FP11: 0.05833226815 | FQ11: 0.02457223833 | FR11: -0.07317848504 | FS11: 0.06902045757 | FT11: -0.0789873302 | FU11: -0.08100489527 | FV11: -0.04583606869 | FW11: 0.004917055368 | FX11: 0.09655384719 | FY11: 0.05103321746 | FZ11: 0.06323193759 | GA11: -0.1425815374 | GB11: -0.0009613931179 | GC11: 0.02225751802 | GD11: -0.1176640689 | GE11: -0.01980847307 | GF11: 0.007147654425 | GG11: -0.149522081 | GH11: -0.05902728438 | GI11: -0.1192008108 | GJ11: -0.03291654587 | GK11: 0.00919443462 | GL11: 0.08568999171 | GM11: -0.1030498371 | GN11: 0.04005291685 | GO11: 0.0494860895 | GP11: 0.05323316902 | GQ11: -0.0003684262338 | GR11: -0.007659639698 | GS11: 0.01271336526 | GT11: -0.1210218519 | GU11: 0.04690209031 | GV11: -0.004437898286 | GW11: 0.05448241159 | GX11: 0.08277399838 | GY11: -0.1274050325 | GZ11: 0.09490441531 | HA11: -0.04119336233 | HB11: 0.0001083315801 | HC11: -0.06521377712 | HD11: 0.1207049713 | HE11: 0.07423534244 | HF11: 0.06570533663 | HG11: 0.06140977144 | HH11: -0.1210623085 | HI11: -0.01108566206 | HJ11: -0.05030256882 | HK11: 0.03928894922 | HL11: -0.09794710577 | HM11: 0.06981056929 | HN11: 0.07866913825 | HO11: 0.09926168621 | HP11: 0.1104517654 | HQ11: 0.04612064734 | HR11: 0.01361645758 | HS11: 0.03568108007 | HT11: 0.07230426371 | HU11: -0.0429366678 | HV11: -0.0959026292 | HW11: 0.01193145569 | HX11: 0.01122155041 | HY11: 0.07839199901 | HZ11: -0.0667553097 | IA11: 0.009147633798 | IB11: -0.1312990636 | IC11: -0.1076107845 | ID11: -0.08938164264 | IE11: 0.07318101823 | IF11: 0.05251192674 | IG11: -0.07551903278 | IH11: -0.03169165179 | II11: -0.07563500851 | IJ11: -0.02137376368 | IK11: 0.005204753019 | IL11: 0.04301494732 | IM11: 0.1008960083 | IN11: 0.07956701517 | IO11: 0.1086019501 | IP11: 0.002348369919 | IQ11: -0.01190175116 | IR11: 0.1563730985 | IS11: 0.02940276638 | IT11: 0.08032520115 | IU11: 0.08088985085 | IV11: -0.01694351807 | IW11: 0.03747377917 | IX11: 0.1457970887 | IY11: 0.02265806682 | IZ11: -0.05905357376 | JA11: -0.08757817 | JB11: -0.07123500854 | JC11: -0.05204524845 | JD11: 0.07605110109 | JE11: -0.00363732595 | JF11: -0.002971431939 | JG11: -0.1376114041 | JH11: 0.04120925069 | JI11: 0.05302511156 | JJ11: -0.04322341457 | JK11: 0.06799244881 | JL11: 0.08909066767 | JM11: 0.01294977497 | JN11: -0.2525436878 | JO11: 0.01379844733 | JP11: -0.009697597474 | JQ11: 0.08748491108 | JR11: 0.08811347932 | JS11: 0.09782488644 | JT11: -0.2553651631 | JU11: -0.001745278016 | JV11: 0.05893212929 | JW11: -0.01150065754 | JX11: -0.1445321888 | JY11: -0.0002744574449 | JZ11: 0.06908649206 | KA11: -0.04052555189 | KB11: 0.04338726774 | KC11: 0.09919712692 | KD11: 0.08089207858 | KE11: -0.04153904319 | KF11: -0.02554690465 | KG11: -0.04740044102 | KH11: -0.222041294 | KI11: 0.04685033113 | KJ11: -0.03463374823 | KK11: -0.1243703291 | KL11: 0.06925353408 | KM11: 0.07165640593 | KN11: -0.01389691979 | KO11: -0.02530618757 | KP11: -0.1110514626 | KQ11: -0.09185039252 | KR11: 0.01293876953 | KS11: -0.04877516255 | KT11: -0.0008768239641 | KU11: 0.05215658247 | KV11: -0.03277336806 | KW11: -0.08966874331 | KX11: 0.1058403701 | KY11: 0.04030143842 | KZ11: -0.101767838 | LA11: -0.03567916527 | LB11: -0.04325253889 | LC11: 0.1317304075 | LD11: 0.08846632391 | LE11: 0.05638455227 | LF11: 0.06650139391 | LG11: 0.09802934527 | LH11: -0.09893994033 | LI11: -0.005785741378 | LJ11: -0.02131369337 | LK11: 0.08083978295 | LL11: 0.0721334517 | LM11: 0.05708055943 | LN11: 0.09338885546 | LO11: -0.1652258188 | LP11: -0.0658031255 | LQ11: -0.0780569762 | LR11: 0.04668765888 | LS11: 0.03261266276 | LT11: -0.02128382772 | LU11: -0.1118665561 | LV11: 0.0530920662 | LW11: 0.00480145216 | LX11: -0.1587360054 | LY11: 0.001854349044 | LZ11: 0.1009082496 | MA11: 0.03789532185 | MB11: 0.04308814555 | MC11: -0.05071816966 | MD11: -0.08987401426 | ME11: -0.03683294728 | MF11: -0.05605047196 | MG11: 0.01299727801 | MH11: 0.02490912192 | MI11: 0.05068368465 | MJ11: 0.07985983789 | MK11: -0.1373991668 | ML11: -0.1941522211 | MM11: 0.1493693292 | MN11: -0.05529051647 | MO11: 0.009306787513 | MP11: -0.1299100816 | MQ11: 0.06629850715 | MR11: -0.05515466258 | MS11: 0.09937489778 | MT11: 0.01321076043 | MU11: -0.03618156537 | MV11: -0.0262178611 | MW11: -0.1064726338 | MX11: 0.09952079505 | MY11: -0.1140818074 | MZ11: -0.09247863293 | NA11: -0.1123401821 | NB11: 0.03561521322 | NC11: 0.113229394 | ND11: 0.03585314751 | NE11: -0.01649856754 | NF11: -0.1192798689 | NG11: -0.07424557209 | NH11: 0.04642481357 | NI11: 0.07720736414 | NJ11: 0.05876454338 | NK11: 0.05262463167 | NL11: -0.01855888963 | NM11: 0.01728570089 | NN11: 0.02904537693 | NO11: -0.05903669819 | NP11: 0.08895403147 | NQ11: -0.05403449386 | NR11: 0.08263017982 | NS11: -0.09037161618 | NT11: 0.01901742816 | NU11: -0.01400512457 | NV11: 0.0622751452 | NW11: -0.02051595226 | NX11: 0.04479315504 | NY11: -0.06278286129 | NZ11: -0.1578430235 | OA11: -0.05807615072 | OB11: 0.1286808699 | OC11: 0.08224527538 | OD11: 0.0591965653 | OE11: -0.04593192786 | OF11: -0.08001338691 | OG11: 0.02524585463 | OH11: 0.09935283661 | OI11: -0.03294120729 | OJ11: -0.2354066968 | OK11: 0.001070536091 | OL11: -0.1381958574 | OM11: -0.03315228969 | ON11: -0.1760571748 | OO11: 0.066246517 | OP11: -0.1430367529 | OQ11: -0.07344081998 | OR11: -0.0006314498605 | OS11: -0.04565636814 | OT11: -0.1678070873 | OU11: 0.01632371545 | OV11: -0.03571050614 | OW11: 0.07274259627 | OX11: 0.08124607801 | OY11: 0.09519758821 | OZ11: -0.01023673546 | PA11: 0.04930671677 | PB11: -0.1456877738 | PC11: 0.09979846328 | PD11: -0.1069584787 | PE11: -0.02065974846 | PF11: 0.00352613884 | PG11: -0.02883697115 | PH11: -0.1228032783 | PI11: 0.05144942552 | PJ11: 0.01617871225 | PK11: -0.02466346882 | PL11: 0.03314517811 | PM11: 0.03834409267 | PN11: -0.008100189269 | PO11: -0.06432263553 | PP11: 0.06804225594 | PQ11: 0.07067444175 | PR11: -0.11738915 | PS11: -0.1398467124 | PT11: -0.003131048055 | PU11: 0.06420968473 | PV11: 0.0805355534 | PW11: -0.01515559945 | PX11: -0.07425899804 | PY11: 0.029421065 | PZ11: 0.02956673503 | QA11: -0.03655835241 | QB11: -0.1610427201 | QC11: 0.06697173417 | QD11: -0.1184073687 | QE11: 0.09757188708 | QF11: 0.109314777 | QG11: 0.01191653777 | QH11: 0.0252431035 | QI11: -0.03487650678 | QJ11: 0.06088731438 | QK11: 0.05263903365 | QL11: -0.02738404088 | QM11: 0.1431555599 | QN11: -0.1489790976 | QO11: 0.085989438 | QP11: 0.001636913861 | QQ11: 0.04070464894 | QR11: -0.1804931164 | QS11: 0.07593438029 | QT11: 0.003096139757 | QU11: -0.221710518 | QV11: 0.07406694442 | QW11: -0.02282755077 | QX11: 0.05787818879 | QY11: 0.0753082484 | QZ11: 0.03807888925 | RA11: 0.05332535505 | RB11: -0.07866058499 | RC11: 0.05941224471 | RD11: 0.06810307503 | RE11: -0.02724897489 | RF11: -0.07875919342 | RG11: 0.05828309804 | RH11: 0.1542111337 | RI11: 0.02786372975 | RJ11: 0.06998746097 | RK11: -0.04581090063 | RL11: -0.07954826206 | RM11: -0.06795757264 | RN11: -0.0111419009 | RO11: 0.01943041198 | RP11: -0.06251209229 | RQ11: -0.1068423837 | RR11: -0.2529331148 | RS11: 0.07637511939 | RT11: -0.106742613 | RU11: 1.464015804e-05 | RV11: -0.01873320341 | RW11: -0.1140057519 | RX11: -0.1378571391 | RY11: -0.06570518017 | RZ11: -0.06792593747 | SA11: -0.02249663509 | SB11: 0.04625276849 | SC11: -0.1031373516 | SD11: -0.05917704478 | SE11: -0.07688522339 | SF11: 0.1751982421 | SG11: -0.03844878823 | SH11: -0.06227093562
A12: 10 | B12: =Normalization!G19 -> 0 | C12: 0.07423054427 | D12: 0.04765627161 | E12: -0.2177667171 | F12: 0.0356252715 | G12: -0.03020405956 | H12: 0.05801862851 | I12: -0.1126559228 | J12: -0.2202516943 | K12: 0.03917670622 | L12: -0.01356423926 | M12: -0.116680935 | N12: -0.01805363037 | O12: -0.3306630552 | P12: -0.04432949796 | Q12: 0.0340474695 | R12: 0.07397591323 | S12: -0.6411716342 | T12: 0.02639100701 | U12: -0.0328826718 | V12: -0.2916125059 | W12: 0.08437859267 | X12: 0.01958536915 | Y12: 0.002102167113 | Z12: 0.06059300527 | AA12: -0.03291900456 | AB12: -0.178544566 | AC12: -0.1165389568 | AD12: -0.2861878872 | AE12: -0.3655121624 | AF12: 0.04590040073 | AG12: -0.2677869797 | AH12: 0.03123586811 | AI12: 0.02042123675 | AJ12: 0.04099370167 | AK12: -0.03413806856 | AL12: 0.06168617681 | AM12: 0.0788378045 | AN12: -0.3323918283 | AO12: 0.01048696972 | AP12: -0.06611312181 | AQ12: 0.05449900404 | AR12: 0.06592097133 | AS12: 0.01160068531 | AT12: -0.02942283079 | AU12: -0.2653571665 | AV12: -0.01626563072 | AW12: 0.06008294597 | AX12: -0.08796842396 | AY12: 0.01472181734 | AZ12: -0.1354497522 | BA12: 0.009592541493 | BB12: -0.0004158874508 | BC12: 0.06696408987 | BD12: -0.04125583917 | BE12: 0.01236429811 | BF12: 0.003508301917 | BG12: -0.5929344296 | BH12: 0.0156681817 | BI12: 0.01024092454 | BJ12: 0.02860488184 | BK12: 0.02235214226 | BL12: 0.02461353317 | BM12: 0.01474912837 | BN12: -0.4751053154 | BO12: -0.03362354636 | BP12: -0.04435758665 | BQ12: -0.2360508591 | BR12: -0.05496143922 | BS12: 0.0842082575 | BT12: -0.03549709916 | BU12: -0.02438231558 | BV12: 0.08876692504 | BW12: -0.02860736288 | BX12: -0.02537675574 | BY12: 0.05744906142 | BZ12: 0.06150289252 | CA12: -0.01595801674 | CB12: 0.09028699994 | CC12: 0.02969759703 | CD12: 0.04037400708 | CE12: 0.02272137254 | CF12: 0.04955461994 | CG12: 0.03170586377 | CH12: 0.001040148665 | CI12: 0.02203838155 | CJ12: 0.03746696189 | CK12: -0.4660143256 | CL12: 0.0712178573 | CM12: 0.1277653575 | CN12: 0.02002217993 | CO12: 0.006641038228 | CP12: 0.1156151295 | CQ12: 0.04710255563 | CR12: -0.2258162796 | CS12: 0.07999264449 | CT12: 0.05548837781 | CU12: 0.002870066324 | CV12: -0.1208779663 | CW12: -0.01056454517 | CX12: 0.08379471302 | CY12: -0.01928338222 | CZ12: -0.1833715588 | DA12: -0.3592195809 | DB12: 0.02530615777 | DC12: -0.003345933044 | DD12: 0.07103441656 | DE12: 0.04655229673 | DF12: -0.1283385456 | DG12: 0.00581444148 | DH12: -0.03640833497 | DI12: -0.1046834067 | DJ12: -0.02359536849 | DK12: -0.5082565546 | DL12: -0.1284207255 | DM12: 0.04920239747 | DN12: -0.2216391861 | DO12: -0.1633193791 | DP12: 0.02055820078 | DQ12: -0.04264742509 | DR12: -0.136966899 | DS12: -0.03331284225 | DT12: 0.09863663465 | DU12: -0.07270912081 | DV12: -0.08779069781 | DW12: -0.4102744162 | DX12: -0.07247973979 | DY12: 0.02522800118 | DZ12: 0.07504677773 | EA12: 0.05011568218 | EB12: -0.05520240963 | EC12: 0.08188724518 | ED12: 0.05180029571 | EE12: -0.017079724 | EF12: 0.08460715413 | EG12: 0.02992023714 | EH12: 0.03076527268 | EI12: -0.06604810804 | EJ12: -0.4031936824 | EK12: 0.06652344763 | EL12: -0.145914346 | EM12: -0.003461827058 | EN12: 0.07926668227 | EO12: 0.01348864287 | EP12: -0.07957160473 | EQ12: -0.02536888234 | ER12: -0.02089098655 | ES12: 0.07274409384 | ET12: 0.008184017614 | EU12: -0.03601096198 | EV12: -0.2751250267 | EW12: 0.01230536867 | EX12: -0.2474135458 | EY12: -0.3639505506 | EZ12: 0.005025459919 | FA12: -0.05687450245 | FB12: 0.1515762508 | FC12: -0.1064431593 | FD12: 0.02040538564 | FE12: -0.07873567194 | FF12: 0.006978046615 | FG12: 0.0639174208 | FH12: -0.1099768057 | FI12: 0.09499242157 | FJ12: 0.007162696682 | FK12: 0.02953244187 | FL12: 0.0825945437 | FM12: -0.01949312538 | FN12: -0.05231400579 | FO12: 0.02921108902 | FP12: 0.01634050347 | FQ12: -0.1853890866 | FR12: -0.4140883684 | FS12: 0.04106823355 | FT12: -0.002203769516 | FU12: -0.08660078049 | FV12: -0.04578446969 | FW12: 0.09689889848 | FX12: 0.03923091292 | FY12: 0.2038102597 | FZ12: 0.06273809075 | GA12: 0.05547538772 | GB12: -0.1310410202 | GC12: 0.02569246665 | GD12: 0.05864261463 | GE12: 0.05552203581 | GF12: 0.05954647064 | GG12: -0.01401885506 | GH12: -0.1394648999 | GI12: 0.07168320566 | GJ12: -0.04214188457 | GK12: 0.08166363835 | GL12: 0.03900605813 | GM12: 0.02686453238 | GN12: 0.04597723484 | GO12: 0.0681239441 | GP12: 0.01279362291 | GQ12: 0.03143822402 | GR12: -0.03718686476 | GS12: -0.153727144 | GT12: -0.06202498823 | GU12: 0.07668288052 | GV12: 0.05139404908 | GW12: 0.05388852581 | GX12: 0.07805389166 | GY12: 0.07744662464 | GZ12: 0.05277003348 | HA12: -0.02570218034 | HB12: -0.01834673807 | HC12: -0.06749210507 | HD12: 0.08425717801 | HE12: -0.09586308151 | HF12: 0.03241077438 | HG12: 0.06958696246 | HH12: -0.02919008955 | HI12: -0.02516796812 | HJ12: -0.2937013209 | HK12: -0.03166690469 | HL12: 0.06773273647 | HM12: 0.05180101842 | HN12: 0.07617297024 | HO12: -0.09485764056 | HP12: -0.02178131603 | HQ12: 0.06665308028 | HR12: 0.0177182816 | HS12: -0.2821095288 | HT12: -0.07095558941 | HU12: -0.5706546903 | HV12: -0.1422832608 | HW12: -0.1238997355 | HX12: 0.02259350754 | HY12: 0.01198874041 | HZ12: -0.3428981006 | IA12: 0.04819949716 | IB12: 0.006598236505 | IC12: 0.05172779411 | ID12: -0.1958342344 | IE12: 0.06648281962 | IF12: -0.1053892747 | IG12: 0.001453515026 | IH12: 0.01920515671 | II12: 0.03737502173 | IJ12: -0.1780136377 | IK12: -0.04525862634 | IL12: 0.008107959293 | IM12: 0.04514059052 | IN12: 0.04617972672 | IO12: 0.02866501361 | IP12: -0.09670148045 | IQ12: -0.07205643505 | IR12: 0.08285985142 | IS12: 0.06172402576 | IT12: 0.02408490889 | IU12: 0.0646546036 | IV12: 0.05071341246 | IW12: -0.0519240275 | IX12: 0.02391899936 | IY12: -0.01069157012 | IZ12: 0.004590564873 | JA12: 0.07386020571 | JB12: -0.15926148 | JC12: -0.09188698232 | JD12: -0.00223522447 | JE12: -0.0316709727 | JF12: 0.0005353437737 | JG12: -0.1807190478 | JH12: -0.04611706734 | JI12: 0.0113450205 | JJ12: -0.06791478395 | JK12: 0.06690144539 | JL12: 0.06109652668 | JM12: 0.03534930199 | JN12: -0.03991907835 | JO12: -0.04903678596 | JP12: -0.02222456783 | JQ12: -0.009970637038 | JR12: 0.04164950922 | JS12: 0.06919674575 | JT12: -0.1183902398 | JU12: -0.6104680896 | JV12: -0.4051768184 | JW12: -0.03211999685 | JX12: -0.4305066764 | JY12: -0.07016407698 | JZ12: 0.06981900334 | KA12: -0.2844086289 | KB12: 0.03607141972 | KC12: 0.0435860306 | KD12: 0.04001978412 | KE12: 0.07976780832 | KF12: 0.07918713987 | KG12: 0.01830492169 | KH12: 0.02790189162 | KI12: -0.04500291869 | KJ12: -0.0492295213 | KK12: 0.01073746756 | KL12: 0.06453582644 | KM12: 0.05557354912 | KN12: -0.06672942638 | KO12: 0.01844303496 | KP12: -0.0296984259 | KQ12: 0.05558156222 | KR12: 0.07564297318 | KS12: 0.05562170967 | KT12: -0.01361715514 | KU12: 0.0531815514 | KV12: 0.004923976492 | KW12: -0.2521999478 | KX12: 0.01511308923 | KY12: -0.009997035377 | KZ12: -0.03045959212 | LA12: -0.02921221033 | LB12: 0.05835713819 | LC12: -0.371170789 | LD12: 0.033913441 | LE12: 0.02090586908 | LF12: -0.4204640687 | LG12: -0.05855580047 | LH12: -0.0809713304 | LI12: -0.054188326 | LJ12: -0.4134149849 | LK12: 0.01416185871 | LL12: 0.005841905251 | LM12: 0.0050123455 | LN12: -0.008211685345 | LO12: -0.07561484724 | LP12: -0.0298827868 | LQ12: -0.38029778 | LR12: -0.2209532112 | LS12: -0.003847822081 | LT12: -0.0141753098 | LU12: -0.025953779 | LV12: 0.07684481889 | LW12: -0.04653948173 | LX12: -0.1084874123 | LY12: 0.07212168723 | LZ12: 0.01109477412 | MA12: 0.0777797401 | MB12: -0.3641433418 | MC12: 0.0434564054 | MD12: -0.4817698896 | ME12: -0.07789684832 | MF12: 0.05254093185 | MG12: -0.4066936672 | MH12: -0.2501690984 | MI12: -0.2267192155 | MJ12: -0.4320350885 | MK12: -0.0419946909 | ML12: 0.06404580176 | MM12: -0.01771857403 | MN12: -0.07926672697 | MO12: 0.05011790618 | MP12: -0.09072446078 | MQ12: 0.006719391327 | MR12: 0.08512970805 | MS12: -0.1311788559 | MT12: 0.006510372739 | MU12: -0.04235752672 | MV12: -0.1623568833 | MW12: -0.1523308456 | MX12: -0.07926694304 | MY12: 0.03321963549 | MZ12: 0.01383591164 | NA12: 0.08333183825 | NB12: -0.07699499279 | NC12: -0.1877303123 | ND12: -0.4999487102 | NE12: 0.04679479823 | NF12: 0.03380324319 | NG12: -0.1793923825 | NH12: 0.02061512694 | NI12: 0.1036359966 | NJ12: 0.0550696291 | NK12: -0.03742397949 | NL12: 0.06743910164 | NM12: -0.1889635175 | NN12: 0.03512920439 | NO12: 0.06698704511 | NP12: 0.02909463644 | NQ12: 0.01040437818 | NR12: -0.00520160608 | NS12: 0.03567641228 | NT12: 0.01446882542 | NU12: 0.05218558013 | NV12: -0.1439331174 | NW12: -0.05261287838 | NX12: 0.07582838833 | NY12: 0.02088079043 | NZ12: 0.03688160703 | OA12: -0.02570112795 | OB12: -0.3288941979 | OC12: 0.1227368489 | OD12: -0.009214282036 | OE12: 0.00977704674 | OF12: 0.06149467453 | OG12: 0.09599727392 | OH12: 0.05393951386 | OI12: -0.2008707225 | OJ12: -0.06242885068 | OK12: 0.04459533468 | OL12: 0.0191551242 | OM12: -0.2681874335 | ON12: -0.173832193 | OO12: -0.05479208753 | OP12: -0.01620801166 | OQ12: 0.008249063045 | OR12: -0.2012907267 | OS12: -0.05189798772 | OT12: 0.09407865256 | OU12: 0.09069439024 | OV12: -0.0596794486 | OW12: -0.1645090133 | OX12: -0.01325738151 | OY12: -0.03988350928 | OZ12: 0.05785190314 | PA12: 0.00243370072 | PB12: 0.0292777624 | PC12: 0.03572661057 | PD12: 0.02962528914 | PE12: 0.06691921502 | PF12: -0.06560694426 | PG12: 0.03782305494 | PH12: -0.03106057085 | PI12: -0.007861211896 | PJ12: -0.2884375751 | PK12: -0.06350190192 | PL12: -0.05064433441 | PM12: 0.02309888415 | PN12: 0.08078242093 | PO12: 0.002191153122 | PP12: -0.02757783234 | PQ12: 0.006503244862 | PR12: -0.4366275668 | PS12: -0.01276511047 | PT12: 0.03519146517 | PU12: 0.05625990406 | PV12: -0.03017653339 | PW12: 0.016280137 | PX12: -0.02340146154 | PY12: -0.2089823782 | PZ12: 0.001587615465 | QA12: -0.01558601018 | QB12: 0.03855601326 | QC12: 0.02778588794 | QD12: -0.0620932132 | QE12: 0.10691531 | QF12: -0.1419757456 | QG12: -0.03020183928 | QH12: 0.08862777054 | QI12: -0.009889938869 | QJ12: 0.04510480538 | QK12: -0.0187996272 | QL12: 0.08970477432 | QM12: 0.01817289181 | QN12: -0.3634680212 | QO12: -0.07475240529 | QP12: 0.07024393231 | QQ12: -0.1720662713 | QR12: -0.06054791063 | QS12: -0.05395241454 | QT12: 0.005346703809 | QU12: -0.0248690974 | QV12: 0.09379062802 | QW12: -0.01322398055 | QX12: -0.03568346798 | QY12: 0.005908263847 | QZ12: 0.01342635415 | RA12: 0.03029186465 | RB12: 0.1014387161 | RC12: 0.05736191943 | RD12: -0.003608815139 | RE12: 0.01377733145 | RF12: -0.03404025733 | RG12: -0.162090376 | RH12: -0.05519691482 | RI12: 0.04826635122 | RJ12: -0.02997122332 | RK12: -0.1233932301 | RL12: -0.1017474085 | RM12: -0.3043488562 | RN12: -0.02095306292 | RO12: 0.08115555346 | RP12: 0.03965075314 | RQ12: 0.03165345266 | RR12: -0.4431542456 | RS12: 0.0831822902 | RT12: 0.07084728777 | RU12: 0.0143517796 | RV12: 0.01498549338 | RW12: -0.04250920936 | RX12: 0.09328973293 | RY12: -0.001266644686 | RZ12: 0.007927095518 | SA12: 0.00775054656 | SB12: -0.00982035324 | SC12: 0.08856179565 | SD12: 0.02212850563 | SE12: 0.03303556517 | SF12: -0.06457565725 | SG12: -0.09404913336 | SH12: -0.1005017534
A13: 11 | B13: =Normalization!G20 -> 0 | C13: -0.06384690106 | D13: -0.2496011853 | E13: -0.4025172293 | F13: -0.1032476649 | G13: 0.01674019732 | H13: -0.05042411759 | I13: -0.0757682845 | J13: -0.119358927 | K13: -0.03229067475 | L13: 0.1169679835 | M13: -0.07452368736 | N13: 0.001755921752 | O13: -0.1163226366 | P13: 0.1422690004 | Q13: 0.00227130577 | R13: 0.02880513109 | S13: -0.09756052494 | T13: -0.03366582096 | U13: 0.07418852299 | V13: -0.07443849742 | W13: 0.0009996234439 | X13: -0.09093941748 | Y13: -0.05065358803 | Z13: -0.07817616314 | AA13: -0.03307600319 | AB13: -0.3403392434 | AC13: -0.02340773493 | AD13: -0.1266773939 | AE13: -0.1970793307 | AF13: 0.02923723124 | AG13: -0.2749802768 | AH13: -0.009255466051 | AI13: 0.06765215099 | AJ13: -0.1344490647 | AK13: 0.01187457051 | AL13: 0.05832345411 | AM13: 0.07168652117 | AN13: -0.1784919798 | AO13: 0.09372978657 | AP13: -0.1004336476 | AQ13: -0.02887539566 | AR13: 0.1014478952 | AS13: -0.05767203495 | AT13: -0.05673463643 | AU13: 0.110809803 | AV13: -0.08470597118 | AW13: -0.214177534 | AX13: 0.06053238735 | AY13: 0.08215143532 | AZ13: -0.1981155574 | BA13: -0.02813542634 | BB13: -0.02850390226 | BC13: 0.03931795433 | BD13: 0.0009954423876 | BE13: 0.05338197947 | BF13: 0.03389483318 | BG13: 0.07141064852 | BH13: 0.07316809893 | BI13: -0.04017071053 | BJ13: 0.01787264086 | BK13: -0.02966502123 | BL13: 0.0692274943 | BM13: 0.1263437271 | BN13: 0.09851671755 | BO13: 0.0319410935 | BP13: -0.1050563008 | BQ13: 0.02407877333 | BR13: 0.0469741635 | BS13: 0.08493364602 | BT13: -0.1057495773 | BU13: 0.09629039466 | BV13: -0.05618938431 | BW13: -0.01390033308 | BX13: 0.1851362735 | BY13: -0.110176146 | BZ13: -0.003423576243 | CA13: 0.06533055753 | CB13: -0.07158707827 | CC13: 0.09278847277 | CD13: 0.06497914344 | CE13: -0.1102346033 | CF13: 0.01943212375 | CG13: 0.09335937351 | CH13: 0.0943743065 | CI13: 0.02444922179 | CJ13: 0.07753292471 | CK13: 0.01600873284 | CL13: -0.0421442166 | CM13: -0.1010009721 | CN13: -0.0983305648 | CO13: -0.01657036506 | CP13: -0.07035685331 | CQ13: 0.1448999345 | CR13: -0.3170217574 | CS13: -0.0270823352 | CT13: 0.1247274652 | CU13: -0.1072698087 | CV13: -0.04272883013 | CW13: 0.03192546591 | CX13: -0.08798071742 | CY13: 0.09783628583 | CZ13: 0.1393209249 | DA13: 0.0857437551 | DB13: 0.07553468645 | DC13: 0.06356303394 | DD13: 0.1238789409 | DE13: 0.1138278767 | DF13: -0.02465815656 | DG13: -0.1764083654 | DH13: -0.007667331956 | DI13: 0.05093969777 | DJ13: 0.1078680754 | DK13: -0.1324337125 | DL13: -0.1731649935 | DM13: -0.03256662935 | DN13: -0.02999895066 | DO13: -0.004401461687 | DP13: -0.07069133222 | DQ13: 0.117874667 | DR13: 0.1157012209 | DS13: 0.03015764803 | DT13: 0.05952054635 | DU13: 0.003172523575 | DV13: -0.1372854561 | DW13: -0.07258030027 | DX13: 0.06687000394 | DY13: 0.02277478017 | DZ13: -0.08482117951 | EA13: -0.08832719922 | EB13: 0.02178161778 | EC13: 0.005542290863 | ED13: -0.1201771051 | EE13: -0.0872881934 | EF13: 0.04834436253 | EG13: 0.001549329609 | EH13: 0.09420480579 | EI13: 0.009938580915 | EJ13: -0.03686816618 | EK13: 0.008253998123 | EL13: 0.08514881879 | EM13: -0.08832599223 | EN13: 0.08520322293 | EO13: -0.02154647559 | EP13: 0.04997659475 | EQ13: 0.05032049119 | ER13: -0.0229323227 | ES13: 0.002408697968 | ET13: 0.04206356406 | EU13: -0.0714424327 | EV13: -0.004763927311 | EW13: 0.107854113 | EX13: -0.01393025089 | EY13: -0.1237012669 | EZ13: -0.09910287708 | FA13: -0.02646317706 | FB13: -0.01134849712 | FC13: 0.04269213974 | FD13: 0.008371442556 | FE13: 0.05590088293 | FF13: 0.03446030617 | FG13: 5.467768642e-05 | FH13: 0.07191752642 | FI13: -0.2696356475 | FJ13: 0.01783210784 | FK13: 0.06012082472 | FL13: -0.02343091182 | FM13: -0.09514378011 | FN13: 0.08419783413 | FO13: -0.005690026097 | FP13: 0.1826470345 | FQ13: 0.05057467893 | FR13: -0.2355201989 | FS13: -0.03206037357 | FT13: -0.09099449962 | FU13: 0.06805896014 | FV13: -0.09239844978 | FW13: 0.1556439102 | FX13: 0.0414454788 | FY13: -0.8450311422 | FZ13: -0.03198788315 | GA13: 0.05109822378 | GB13: 0.06386506557 | GC13: 0.01694148965 | GD13: -0.1153830737 | GE13: -0.1094154567 | GF13: 0.08544896543 | GG13: -0.07517147809 | GH13: 0.102492623 | GI13: -0.0321896188 | GJ13: -0.00125045341 | GK13: 0.09207944572 | GL13: -0.0996851027 | GM13: -0.02616316639 | GN13: 0.01733134501 | GO13: -0.09866942465 | GP13: 0.04185840487 | GQ13: -0.07836388797 | GR13: -0.02808844298 | GS13: -0.01274849568 | GT13: 0.004219072405 | GU13: -0.1060089916 | GV13: 0.02052354813 | GW13: -0.1534031034 | GX13: 0.1401884854 | GY13: 0.08288212866 | GZ13: 0.1277296394 | HA13: 0.03864038363 | HB13: 0.04972722754 | HC13: -0.05587786809 | HD13: -0.05399728939 | HE13: 0.1026129276 | HF13: -0.01002725866 | HG13: -0.07172100991 | HH13: 0.02170760557 | HI13: 0.08291980624 | HJ13: -0.06398010254 | HK13: 0.02044837363 | HL13: 0.03882555291 | HM13: -0.05073283613 | HN13: 0.1371711046 | HO13: -0.12205109 | HP13: 0.009683310054 | HQ13: -0.06289304793 | HR13: 0.1784496009 | HS13: 0.001280670404 | HT13: -0.06252630055 | HU13: 0.09211162478 | HV13: -0.1308201551 | HW13: 0.05303258821 | HX13: 0.04858289286 | HY13: -0.1224280298 | HZ13: 0.03853060678 | IA13: -0.09323438257 | IB13: -0.004140632227 | IC13: -0.08307823539 | ID13: -0.02091376483 | IE13: 0.06657322496 | IF13: -0.007414908148 | IG13: -0.1039493829 | IH13: -0.01370544452 | II13: -0.007980409078 | IJ13: 0.02900628746 | IK13: -0.05617645755 | IL13: -0.022599319 | IM13: -0.1254589558 | IN13: -0.05480848998 | IO13: 0.05759441853 | IP13: -0.2171700746 | IQ13: 0.1352368742 | IR13: -0.08254755288 | IS13: -0.03176481649 | IT13: -0.0312696211 | IU13: 0.04464585334 | IV13: 0.01938157901 | IW13: 0.05278242752 | IX13: -0.02399782278 | IY13: 0.1368343681 | IZ13: 0.002921269042 | JA13: -0.04216892645 | JB13: 0.0576836355 | JC13: 0.0474428013 | JD13: 0.09732697159 | JE13: -0.07273618132 | JF13: -0.04107081145 | JG13: 0.1324888617 | JH13: -0.04639800638 | JI13: -0.03746865317 | JJ13: -0.08037230372 | JK13: -0.109575972 | JL13: -0.01594452374 | JM13: -0.05113916472 | JN13: 0.02222871222 | JO13: 0.05571196228 | JP13: 0.1727933586 | JQ13: 0.04822586477 | JR13: -0.2355651855 | JS13: -0.03117953241 | JT13: -0.05351131037 | JU13: 0.01691153459 | JV13: -0.1189486757 | JW13: 0.08511772007 | JX13: -0.1547826976 | JY13: -0.1532815993 | JZ13: 0.02785330079 | KA13: 0.07047189772 | KB13: -0.03355099633 | KC13: 0.1888741106 | KD13: 0.125293225 | KE13: -0.1507397592 | KF13: 0.08657670766 | KG13: -0.04836172238 | KH13: -0.05113700405 | KI13: 0.05237005651 | KJ13: -0.07886508107 | KK13: -0.001350702951 | KL13: 0.03195646405 | KM13: 0.001990508288 | KN13: 0.03786858544 | KO13: -0.01359656174 | KP13: -0.04493392631 | KQ13: -0.1130861044 | KR13: -0.1348679364 | KS13: -0.03062012978 | KT13: -0.09254921228 | KU13: 0.01883025467 | KV13: 0.1167066544 | KW13: -0.03643217683 | KX13: 0.06711769849 | KY13: 0.1322489381 | KZ13: -0.002748723142 | LA13: 0.04752151668 | LB13: -0.03851031139 | LC13: -0.1195578352 | LD13: -0.09681028128 | LE13: -0.05836935341 | LF13: -0.1179741099 | LG13: 0.09999666363 | LH13: -0.05057095736 | LI13: 0.04829517752 | LJ13: -0.02607599273 | LK13: -0.02626500465 | LL13: 0.08402362466 | LM13: -0.06508701295 | LN13: 0.1067276224 | LO13: 0.0677934587 | LP13: 0.01374002546 | LQ13: 0.111787416 | LR13: -0.08634199947 | LS13: 0.04109976068 | LT13: 0.110728927 | LU13: 0.07312784344 | LV13: -0.0600425601 | LW13: -0.08358816803 | LX13: 0.02584680915 | LY13: 0.0735507682 | LZ13: -0.1090553328 | MA13: -0.004453402944 | MB13: -0.1310201734 | MC13: -0.06045914814 | MD13: -0.09482005239 | ME13: -0.1679823399 | MF13: 0.1595863402 | MG13: 0.04976193234 | MH13: 0.0210671667 | MI13: -0.1834244728 | MJ13: -0.172290653 | MK13: 0.1113399938 | ML13: -0.03888279572 | MM13: -0.09694267064 | MN13: -0.04407823086 | MO13: -0.005166607443 | MP13: 0.03212967142 | MQ13: -0.01266617607 | MR13: -0.08140907437 | MS13: 0.1721322685 | MT13: 0.111747779 | MU13: 0.1116811484 | MV13: -0.1132815406 | MW13: -0.08394210041 | MX13: 0.1251402944 | MY13: -0.02907093987 | MZ13: -0.0866330415 | NA13: 0.001487345551 | NB13: -0.1129514128 | NC13: 0.08841145039 | ND13: -0.04427353665 | NE13: -0.1491184235 | NF13: 0.09059798717 | NG13: -0.04913131148 | NH13: -0.01532838494 | NI13: 0.1911445707 | NJ13: 0.06126442552 | NK13: -0.01227513328 | NL13: 0.08860562742 | NM13: -0.1245157272 | NN13: 0.03550097346 | NO13: 0.1029427648 | NP13: 0.1540342271 | NQ13: -0.09723161906 | NR13: 0.03621562943 | NS13: -0.03377107903 | NT13: -0.03631735966 | NU13: 0.1675389707 | NV13: -0.07625690103 | NW13: -0.08779506385 | NX13: 0.04550819099 | NY13: 0.0573672466 | NZ13: 0.01592674479 | OA13: -0.01337948348 | OB13: 0.06097223237 | OC13: 0.200378269 | OD13: 0.0271100346 | OE13: 0.1431038976 | OF13: -0.1101500019 | OG13: -0.1483619809 | OH13: 0.0708302632 | OI13: -0.08523172885 | OJ13: -0.04054436833 | OK13: 0.05116761848 | OL13: -0.1246199012 | OM13: 0.04517518356 | ON13: -0.06619244814 | OO13: 0.02710494027 | OP13: -0.1898998916 | OQ13: 0.04110588506 | OR13: 0.005662468262 | OS13: 0.07167623937 | OT13: -0.05574496835 | OU13: 0.002904627938 | OV13: 0.04646924138 | OW13: -0.07501634955 | OX13: -0.1356542706 | OY13: -0.01910900511 | OZ13: 0.04384376109 | PA13: -0.08568104357 | PB13: 0.06752538681 | PC13: 0.02243241481 | PD13: -0.0751632899 | PE13: -0.06027301401 | PF13: 0.04410718754 | PG13: 0.00790179614 | PH13: -0.003476418555 | PI13: 0.105964452 | PJ13: -0.07265404612 | PK13: -0.05114793777 | PL13: -0.02820979618 | PM13: -0.06334962696 | PN13: -0.07847996056 | PO13: -0.02776000462 | PP13: 0.1476219893 | PQ13: 0.02782279253 | PR13: 0.08928453177 | PS13: 0.1122527942 | PT13: -0.08024013042 | PU13: -0.05146081746 | PV13: 0.09625080228 | PW13: 0.09658656269 | PX13: 0.1149334684 | PY13: 0.05560132861 | PZ13: -0.08926151693 | QA13: 0.093305327 | QB13: -0.01868689619 | QC13: 0.12113069 | QD13: -0.03770508245 | QE13: 0.125198245 | QF13: 0.107297875 | QG13: 0.02216599509 | QH13: 0.06588235497 | QI13: -0.2321955562 | QJ13: 0.0574484691 | QK13: -0.110187076 | QL13: 0.1114402711 | QM13: -0.6921622157 | QN13: -0.02848616987 | QO13: 0.03771399707 | QP13: -0.01636686921 | QQ13: -0.1155673563 | QR13: 0.08767385781 | QS13: -0.1723631769 | QT13: 0.08742003888 | QU13: -0.000709328393 | QV13: 0.06489341706 | QW13: 0.02652841993 | QX13: 0.009370204993 | QY13: -0.1652537584 | QZ13: -0.01462717634 | RA13: -0.008827471174 | RB13: -0.007549252361 | RC13: 0.06352626532 | RD13: 0.1110691428 | RE13: -0.05926164985 | RF13: 0.07692503929 | RG13: 0.05749780685 | RH13: 0.03806264326 | RI13: -0.02536332048 | RJ13: -0.05479255691 | RK13: 0.04641187191 | RL13: -0.02344552428 | RM13: -0.0303084515 | RN13: -0.05339385197 | RO13: -0.06785477698 | RP13: 0.1456466615 | RQ13: -0.1107262745 | RR13: -0.3958842754 | RS13: 0.05820389837 | RT13: 0.02174244635 | RU13: -0.04327670857 | RV13: 0.030833764 | RW13: -0.03499183431 | RX13: -0.05788428709 | RY13: -0.02414600551 | RZ13: -0.1469415277 | SA13: 0.1254866123 | SB13: -0.00278554461 | SC13: -0.03357899562 | SD13: -0.002249141224 | SE13: -0.04516765103 | SF13: -0.9721441269 | SG13: -0.001729057869 | SH13: -0.1493413895
A14: 12 | B14: =Normalization!G21 -> 0.7407732991 | C14: -0.0170590505 | D14: 7.691654901e-05 | E14: 0.1395305395 | F14: -0.06279593706 | G14: 0.09727691859 | H14: 0.01357276179 | I14: -0.05082315952 | J14: -0.1035971567 | K14: 0.05475914106 | L14: -0.05349833146 | M14: 0.02203572541 | N14: 0.05645405501 | O14: -0.02698779479 | P14: -0.1449579597 | Q14: 0.02754628286 | R14: -0.06329648942 | S14: 0.08952891082 | T14: 0.0756336078 | U14: -0.004642447922 | V14: -0.04077972099 | W14: 0.05685899779 | X14: -0.04334289953 | Y14: 0.02710339986 | Z14: 0.0954605639 | AA14: 0.04170168191 | AB14: -0.1630394459 | AC14: 0.0199768655 | AD14: 0.008959772997 | AE14: 0.03828404099 | AF14: -0.2734746337 | AG14: -0.1458165199 | AH14: 0.04255551845 | AI14: 0.05114087462 | AJ14: 0.03667042777 | AK14: -0.1836236566 | AL14: 0.02684618346 | AM14: 0.1287902892 | AN14: 0.006244535558 | AO14: 0.06068184227 | AP14: -0.04486843944 | AQ14: 0.03865560144 | AR14: -0.00235370663 | AS14: -0.1171165481 | AT14: 0.05475610867 | AU14: -0.2592609227 | AV14: -0.02229934745 | AW14: 0.08620481938 | AX14: 0.01694553718 | AY14: 0.0616523996 | AZ14: 0.009067033418 | BA14: 0.02043704875 | BB14: 0.1206652522 | BC14: -0.1918396056 | BD14: 0.009060178883 | BE14: -0.1392262727 | BF14: 0.02949022688 | BG14: 0.05419907346 | BH14: 0.01439683419 | BI14: 0.09004990757 | BJ14: -0.08563664556 | BK14: -0.2978254557 | BL14: 0.01268849242 | BM14: -0.05652410537 | BN14: 0.03354801983 | BO14: 0.06369654834 | BP14: -0.06486136466 | BQ14: 0.1012263224 | BR14: -0.01933623478 | BS14: 0.04795805737 | BT14: 0.05729526654 | BU14: 0.0706462115 | BV14: -0.1010573506 | BW14: 0.03249700367 | BX14: -0.1097258851 | BY14: -0.08857138455 | BZ14: 0.08154202253 | CA14: -0.03708545119 | CB14: -0.05025203526 | CC14: 0.01075745001 | CD14: 0.03238443658 | CE14: 0.02505480684 | CF14: 0.1022564173 | CG14: -0.04983340204 | CH14: -0.01041027345 | CI14: 0.05635218322 | CJ14: -0.04534376413 | CK14: 0.08468313515 | CL14: -0.06636356562 | CM14: -0.05612647161 | CN14: 0.0610026978 | CO14: 0.08743117005 | CP14: 0.06643169373 | CQ14: 0.05183855817 | CR14: 0.07419713587 | CS14: 0.01389929 | CT14: -0.1703006923 | CU14: 0.0002407047868 | CV14: 0.08356496692 | CW14: 0.1225300208 | CX14: 0.06499754637 | CY14: -0.1203506961 | CZ14: -0.1370694935 | DA14: 0.06042740867 | DB14: 0.01749588549 | DC14: 0.01700229011 | DD14: 0.009673426859 | DE14: -0.04974596202 | DF14: 0.07990371436 | DG14: -0.09416092187 | DH14: -0.113157548 | DI14: -0.1713555753 | DJ14: -0.05596105754 | DK14: 0.08348525316 | DL14: 0.1292836666 | DM14: -0.1084451973 | DN14: 0.01024485007 | DO14: -0.03692615777 | DP14: -0.07624588162 | DQ14: -0.2116084546 | DR14: -0.1559317261 | DS14: 0.0551475808 | DT14: -0.09626881778 | DU14: -0.1039039046 | DV14: 0.143460542 | DW14: 0.03195575252 | DX14: 0.01327164005 | DY14: 0.0720667243 | DZ14: 0.03019440174 | EA14: 0.0694321841 | EB14: -0.01600522175 | EC14: -0.1206562519 | ED14: -0.06906403601 | EE14: -0.1357453763 | EF14: -0.182857886 | EG14: -0.1222616211 | EH14: -0.01146040764 | EI14: 0.1030540392 | EJ14: 0.02799870074 | EK14: -0.0532014519 | EL14: 0.1132112145 | EM14: 0.02287578769 | EN14: -0.001444091322 | EO14: -0.1042170227 | EP14: 0.06976335496 | EQ14: 0.04398747906 | ER14: -0.01478331629 | ES14: 0.1048633233 | ET14: -0.1390019953 | EU14: -0.06528173387 | EV14: -0.02711593919 | EW14: 0.1407841891 | EX14: -0.105670847 | EY14: -0.008160846308 | EZ14: -0.05894229561 | FA14: 0.08526551723 | FB14: -0.0008680934552 | FC14: -0.0404843241 | FD14: 0.09881857038 | FE14: -0.04439727962 | FF14: -0.1975887418 | FG14: -0.06880413741 | FH14: -0.06378164887 | FI14: -0.01065842155 | FJ14: 0.0950922817 | FK14: 0.03818433732 | FL14: -0.02304128744 | FM14: 0.1147457808 | FN14: -0.01313920971 | FO14: -0.02478680015 | FP14: -0.07536655664 | FQ14: 0.01292143483 | FR14: 0.003383761272 | FS14: -0.06535407901 | FT14: 0.004988263361 | FU14: 0.02362509817 | FV14: -0.003059978131 | FW14: 0.120279178 | FX14: 0.03058460727 | FY14: -0.1191074029 | FZ14: -0.02146259695 | GA14: -0.02789709717 | GB14: -0.005592714064 | GC14: -0.02914746664 | GD14: 0.0090218205 | GE14: 0.02499395423 | GF14: 0.02294144221 | GG14: 0.06543389708 | GH14: 0.03832224384 | GI14: 0.05304350704 | GJ14: 0.05523198843 | GK14: -0.1512421072 | GL14: -0.01609196886 | GM14: -0.02623988315 | GN14: -0.06513434649 | GO14: -0.0597014688 | GP14: 0.09088142216 | GQ14: -0.2312476039 | GR14: 0.03743678704 | GS14: 0.1008714065 | GT14: 0.04023323208 | GU14: -0.07170002908 | GV14: 0.02449310571 | GW14: -0.02866538055 | GX14: 0.06658577174 | GY14: 0.001299451105 | GZ14: -0.153585121 | HA14: -0.1264369637 | HB14: -0.07461042702 | HC14: 0.03612652794 | HD14: 0.0493234545 | HE14: -0.07602309436 | HF14: 0.007032466121 | HG14: 0.04744779691 | HH14: -0.0626071766 | HI14: -0.2023165971 | HJ14: -0.05337997898 | HK14: -0.0474252589 | HL14: -0.04961394146 | HM14: 0.08073870838 | HN14: 0.02557993867 | HO14: -0.01516917627 | HP14: -0.2132621557 | HQ14: -0.1304163337 | HR14: 0.1194513142 | HS14: -0.04036189243 | HT14: -0.06150531769 | HU14: 0.04322553799 | HV14: -0.09084937721 | HW14: -0.1108792722 | HX14: 0.03367844969 | HY14: 0.01405133773 | HZ14: 0.05837009847 | IA14: -0.1576435417 | IB14: -0.1692754775 | IC14: -0.1198834032 | ID14: 0.1157026291 | IE14: -0.02199410833 | IF14: 0.02750994265 | IG14: 0.1003254727 | IH14: -0.09749948978 | II14: 0.102086924 | IJ14: 0.1063501984 | IK14: -0.1558062881 | IL14: -0.01319137681 | IM14: 0.1095904931 | IN14: 0.06722529233 | IO14: 0.028018279 | IP14: -0.08979505301 | IQ14: 0.0272031296 | IR14: -0.06649832428 | IS14: 0.02596917748 | IT14: 0.08661676198 | IU14: -0.09092640132 | IV14: 0.08708715439 | IW14: -0.04970764741 | IX14: 0.1153980866 | IY14: 0.003460253356 | IZ14: -0.07288127393 | JA14: 0.03557447717 | JB14: 0.06082271412 | JC14: 0.05476550385 | JD14: -0.1069501117 | JE14: 0.08706144243 | JF14: -0.004848923534 | JG14: -0.1514487267 | JH14: -0.1007017046 | JI14: 0.07422710955 | JJ14: -0.001695933519 | JK14: -0.01622226276 | JL14: 0.0687713176 | JM14: 0.02935352735 | JN14: 0.01814094745 | JO14: 0.0088064624 | JP14: -0.05455364659 | JQ14: -0.02925057895 | JR14: -0.03294043243 | JS14: 0.08495222777 | JT14: -0.08197543025 | JU14: 0.04099757224 | JV14: -0.07839078456 | JW14: -0.1821276546 | JX14: 0.02363398485 | JY14: -0.1511229277 | JZ14: 0.1387849152 | KA14: -0.01406700537 | KB14: -0.161138311 | KC14: -0.04352801666 | KD14: 0.1302643716 | KE14: -0.08564694226 | KF14: 0.04109382629 | KG14: -0.2292745262 | KH14: 0.05976995453 | KI14: -0.04414943606 | KJ14: -0.03173251078 | KK14: 0.05659660324 | KL14: 0.01256327704 | KM14: 0.005311190151 | KN14: 0.06123599038 | KO14: -0.4390509129 | KP14: 0.07321778685 | KQ14: 0.03640707955 | KR14: 0.1380375177 | KS14: -0.06238889694 | KT14: -0.1362740993 | KU14: 0.1060928702 | KV14: 0.08767232299 | KW14: 0.07820614427 | KX14: -0.01625545509 | KY14: 0.07497844845 | KZ14: -0.009823249653 | LA14: -0.09626171738 | LB14: 0.04738074914 | LC14: -0.1636887044 | LD14: -0.07569844276 | LE14: -0.02179299854 | LF14: 0.02004394308 | LG14: 0.02158837579 | LH14: -0.07182256877 | LI14: -0.005275446456 | LJ14: -0.1627983898 | LK14: 0.00608477788 | LL14: -0.1663845927 | LM14: 0.003197384067 | LN14: -0.02002640627 | LO14: 0.0350295566 | LP14: -0.05397809669 | LQ14: 0.01080939826 | LR14: -0.06707783788 | LS14: 0.0171073731 | LT14: 0.04640747979 | LU14: 0.02533286996 | LV14: -0.1042249203 | LW14: -0.07747691125 | LX14: 0.07833334059 | LY14: -0.001177813392 | LZ14: -0.1075609922 | MA14: -0.02330356464 | MB14: -0.1799137294 | MC14: 0.06057710946 | MD14: 0.03078907169 | ME14: 0.07145680487 | MF14: 0.01068712585 | MG14: 0.003806153079 | MH14: 0.07084934413 | MI14: -0.1603998244 | MJ14: -0.005956092384 | MK14: -0.1723294407 | ML14: -0.1661401391 | MM14: 0.1011983156 | MN14: -0.04586348683 | MO14: -0.03234498948 | MP14: 0.07062595338 | MQ14: 0.02277589403 | MR14: 0.1219385117 | MS14: 0.001496905228 | MT14: -0.1223447844 | MU14: -0.3091647923 | MV14: -0.06326789409 | MW14: 0.03871443868 | MX14: -0.05802193657 | MY14: -0.02557394281 | MZ14: -0.01792274602 | NA14: -0.2935874164 | NB14: -0.09409265965 | NC14: -0.05804840103 | ND14: 0.01161697041 | NE14: 0.1728691906 | NF14: -0.208578676 | NG14: 0.007536583114 | NH14: -0.1990363896 | NI14: -0.1335505694 | NJ14: -0.1050109267 | NK14: 0.003711435245 | NL14: -0.09890420735 | NM14: -0.02186883241 | NN14: -0.100699611 | NO14: 0.03682268783 | NP14: -0.04224960506 | NQ14: 0.007787012029 | NR14: 0.005518155638 | NS14: -0.0869923681 | NT14: -0.04299809784 | NU14: 0.109532468 | NV14: -0.007056599483 | NW14: -0.03839211538 | NX14: 0.06992973387 | NY14: -0.226680845 | NZ14: -0.2095894516 | OA14: 0.06307801604 | OB14: -0.06033701077 | OC14: 0.1337686777 | OD14: -0.1392129362 | OE14: 0.1354592443 | OF14: -0.1720371693 | OG14: -0.08598779887 | OH14: 0.005669102073 | OI14: -0.0102898404 | OJ14: -0.0793325752 | OK14: -0.147721529 | OL14: 0.05877519399 | OM14: 0.01491824351 | ON14: 0.08138831705 | OO14: -0.06382264197 | OP14: 0.0149094183 | OQ14: 0.01872925647 | OR14: -0.1083908975 | OS14: -0.1564641893 | OT14: 0.05763297155 | OU14: -0.06407798082 | OV14: 0.01870541647 | OW14: 0.02274465561 | OX14: -0.1340035051 | OY14: 0.07508828491 | OZ14: 0.06946671754 | PA14: -0.05760648847 | PB14: 0.02147288434 | PC14: 0.1031728387 | PD14: -0.09960000962 | PE14: 0.06132153794 | PF14: -0.09276703745 | PG14: 0.02389442921 | PH14: -0.06958132982 | PI14: 0.08711783588 | PJ14: -0.1882309169 | PK14: -0.06829106808 | PL14: 0.06287474185 | PM14: 0.1009944007 | PN14: 0.03144934028 | PO14: -0.1435068548 | PP14: -0.068353571 | PQ14: 0.01092895586 | PR14: -0.03710105643 | PS14: -0.05903001502 | PT14: 0.1217036396 | PU14: 0.02299447171 | PV14: 0.0491977185 | PW14: 0.103131406 | PX14: 0.1024260595 | PY14: -0.05234446004 | PZ14: -0.1665045023 | QA14: -0.07965721935 | QB14: 0.07387558371 | QC14: 0.1134139523 | QD14: 0.08920066804 | QE14: -0.1241314858 | QF14: -0.1131423116 | QG14: -0.09811745584 | QH14: -0.03522669524 | QI14: 0.1324721873 | QJ14: 0.02158382721 | QK14: -0.07417673618 | QL14: -0.1476241052 | QM14: 0.1028346121 | QN14: 0.008655965328 | QO14: 0.0512451902 | QP14: -0.07574223727 | QQ14: 0.08404386789 | QR14: 0.04666443914 | QS14: -0.05691707507 | QT14: -0.07032918185 | QU14: -0.1832583994 | QV14: 0.03611559793 | QW14: -0.1064157039 | QX14: -0.05306634679 | QY14: -0.01900901832 | QZ14: 0.0310305357 | RA14: 0.06926780194 | RB14: 0.08490741253 | RC14: -0.04040367901 | RD14: -0.09216794372 | RE14: 0.05859860778 | RF14: 0.09701926261 | RG14: -0.04843673483 | RH14: 0.09377850592 | RI14: 0.003191941418 | RJ14: 0.06292643398 | RK14: -0.06171997264 | RL14: 0.1325373799 | RM14: 0.07079315186 | RN14: 0.005724439863 | RO14: 0.01083865482 | RP14: 0.1910549998 | RQ14: -0.08216436952 | RR14: 0.0275271479 | RS14: 0.05712047592 | RT14: 0.02346579544 | RU14: -0.05493301153 | RV14: -0.06021459028 | RW14: -0.04775138572 | RX14: -0.05425529182 | RY14: -0.05937739462 | RZ14: -0.2226058841 | SA14: 0.07176201046 | SB14: 0.0540112257 | SC14: -0.2097508609 | SD14: -0.01956088468 | SE14: 0.0687617287 | SF14: -0.08183902502 | SG14: 0.0131139569 | SH14: 0.07291001827
A15: 13 | B15: =Normalization!G22 -> 0 | C15: -0.03841689974 | D15: -0.1367806345 | E15: -0.0208242666 | F15: 0.02778854407 | G15: 0.07442621142 | H15: -0.1010086536 | I15: 0.09640017897 | J15: -0.05252238363 | K15: -0.00752270082 | L15: 0.04936948046 | M15: -0.1793559641 | N15: 0.05525045469 | O15: -0.1641618907 | P15: -0.1025054604 | Q15: 0.01005443837 | R15: 0.03973854706 | S15: -0.1271006167 | T15: 0.0003680286172 | U15: 0.05350579694 | V15: 0.01775915921 | W15: -0.0191873312 | X15: 0.0162823759 | Y15: -0.03029050119 | Z15: 0.02291353233 | AA15: -0.05577648431 | AB15: -0.04902107641 | AC15: -0.05615603924 | AD15: -0.1620812863 | AE15: -0.2721619308 | AF15: -0.01045955159 | AG15: -0.2555212677 | AH15: 0.0860805586 | AI15: 0.1179907992 | AJ15: 0.0363919735 | AK15: -0.03752602637 | AL15: -0.05024035275 | AM15: -0.06334147602 | AN15: 0.1052840576 | AO15: -0.1783485264 | AP15: -0.04256312177 | AQ15: 0.1037295163 | AR15: -0.04975862056 | AS15: -0.002934417687 | AT15: -0.02219793014 | AU15: -0.125943318 | AV15: 0.07353894413 | AW15: 0.03668373823 | AX15: 0.08569470793 | AY15: -0.1130824834 | AZ15: 0.008439435624 | BA15: 0.08988945186 | BB15: 0.06939386576 | BC15: 0.06026215851 | BD15: -0.04759303853 | BE15: -0.07333237678 | BF15: 0.1224265769 | BG15: 0.06278131157 | BH15: 0.00571742747 | BI15: -0.02603962086 | BJ15: 0.02787389793 | BK15: -0.0009311896283 | BL15: -0.06399945915 | BM15: 0.1086208224 | BN15: -0.2508357167 | BO15: -0.1594194472 | BP15: 0.07969864458 | BQ15: 0.07170823961 | BR15: -0.07937884331 | BS15: -0.04286488891 | BT15: -0.04155099392 | BU15: -0.01316068508 | BV15: -0.04823523387 | BW15: 0.06844347715 | BX15: -0.01041620411 | BY15: 0.09717484564 | BZ15: -0.04530780762 | CA15: -0.08209973574 | CB15: 0.1046091095 | CC15: -0.07296797633 | CD15: 0.003011740511 | CE15: -0.007401590701 | CF15: 0.02260301448 | CG15: 0.07914690673 | CH15: 0.03347170725 | CI15: 0.1100578904 | CJ15: 0.07179270685 | CK15: -0.1298285425 | CL15: 0.0450329259 | CM15: 0.03619174659 | CN15: -0.02041478269 | CO15: 0.008688053116 | CP15: -0.06516509503 | CQ15: 0.05903650075 | CR15: -0.2416582853 | CS15: -0.0590402931 | CT15: -0.007856141776 | CU15: 0.03168541566 | CV15: 0.03804377466 | CW15: 0.07083037496 | CX15: -0.02082345821 | CY15: 0.01716092788 | CZ15: -0.08031313866 | DA15: 0.0675381124 | DB15: -0.05929662287 | DC15: 0.1181182638 | DD15: -0.008408489637 | DE15: -0.06331191957 | DF15: 0.09791458398 | DG15: -0.06739620119 | DH15: -0.002798547037 | DI15: 0.04068347067 | DJ15: -0.05328555033 | DK15: 0.04821754992 | DL15: 0.07678754628 | DM15: 0.05277574807 | DN15: -0.01806841418 | DO15: -0.05275627226 | DP15: 0.07147935033 | DQ15: -0.01254502125 | DR15: 0.001416666782 | DS15: 0.1005778387 | DT15: -0.05213300139 | DU15: 0.07736543566 | DV15: -0.08027397096 | DW15: 0.05924450606 | DX15: -0.0328626819 | DY15: -0.09419874102 | DZ15: 0.0005525052547 | EA15: 0.08453796804 | EB15: 0.02400341257 | EC15: 0.001029691542 | ED15: 0.07824299484 | EE15: 0.006974438205 | EF15: 0.0367394723 | EG15: -0.005795160308 | EH15: 0.05609640107 | EI15: 0.03955902904 | EJ15: -0.009667989798 | EK15: 0.04393499345 | EL15: 0.05199428275 | EM15: 0.109413363 | EN15: -0.02125615254 | EO15: 0.1183093041 | EP15: 0.008642801084 | EQ15: -9.495236736e-05 | ER15: -0.1158346906 | ES15: -0.08129757643 | ET15: 0.08911994845 | EU15: 0.1393490881 | EV15: -0.02313907072 | EW15: -0.124356553 | EX15: -0.01936874352 | EY15: -0.183965385 | EZ15: 0.04339169711 | FA15: 0.06767434627 | FB15: 0.1005662829 | FC15: -0.03175294027 | FD15: 0.02382702008 | FE15: 0.03026348911 | FF15: -0.061863821 | FG15: -0.05060531199 | FH15: -0.07669766247 | FI15: 0.008751361631 | FJ15: 0.08565369248 | FK15: -0.03817348555 | FL15: 0.03048767708 | FM15: -0.05719554424 | FN15: -0.110338673 | FO15: -0.04354538396 | FP15: 0.09930612892 | FQ15: 0.1778595746 | FR15: -0.08945727348 | FS15: -0.02291117981 | FT15: -0.07271595299 | FU15: 0.05889465287 | FV15: -0.04999445751 | FW15: 0.03200875968 | FX15: -0.0527571626 | FY15: 0.1213406697 | FZ15: -0.01914934628 | GA15: 0.14158912 | GB15: -0.09480098635 | GC15: -0.04797393084 | GD15: 0.1268032789 | GE15: -0.04147274792 | GF15: -0.1268012524 | GG15: 0.1391873062 | GH15: -0.07304567099 | GI15: -0.06097426265 | GJ15: -0.1313316822 | GK15: -0.1334743053 | GL15: 0.1058965325 | GM15: 0.09843183309 | GN15: 0.02495398372 | GO15: 0.03712853789 | GP15: -0.07051765919 | GQ15: 0.04583825916 | GR15: 0.03833906353 | GS15: 0.06910078973 | GT15: 0.06621712446 | GU15: 0.05237428844 | GV15: -0.03497901559 | GW15: 0.03391014785 | GX15: 0.03573001921 | GY15: -0.1852693409 | GZ15: 0.008408871479 | HA15: -0.07086595893 | HB15: -0.1431168467 | HC15: -0.01866486669 | HD15: 0.004571465775 | HE15: -0.0964955464 | HF15: 0.1429660618 | HG15: -0.01286353543 | HH15: 0.1378077865 | HI15: -0.03863192722 | HJ15: 0.1052880362 | HK15: 0.06994924694 | HL15: -0.008814961649 | HM15: -0.02826234326 | HN15: 0.02235467173 | HO15: 0.03108353354 | HP15: -0.01904497296 | HQ15: -0.1156344488 | HR15: -0.02842502855 | HS15: 0.06230137125 | HT15: -0.04547748342 | HU15: -0.1925861835 | HV15: 0.1937480122 | HW15: 0.142300427 | HX15: -0.01833425462 | HY15: 0.04005582631 | HZ15: -0.01416676398 | IA15: 0.05806756765 | IB15: 0.01699872874 | IC15: -0.0707924515 | ID15: -0.1274063289 | IE15: 0.04847581685 | IF15: 0.05383422226 | IG15: -0.0122862868 | IH15: -0.001702671987 | II15: -0.05538062379 | IJ15: -0.1085968092 | IK15: 0.09120373428 | IL15: -0.01535239909 | IM15: 0.06587529182 | IN15: 0.01633362286 | IO15: 0.1434433609 | IP15: -0.1750404984 | IQ15: -0.0218950212 | IR15: 0.007534409408 | IS15: -0.01066285651 | IT15: -0.3685397506 | IU15: 0.03358679265 | IV15: -0.1147400811 | IW15: 0.07417098433 | IX15: 0.0553741008 | IY15: -0.03485026211 | IZ15: 0.08153696358 | JA15: -0.01538007427 | JB15: -0.1244616657 | JC15: 0.1366654038 | JD15: -0.04466874152 | JE15: -0.03693833575 | JF15: -0.02649283037 | JG15: -0.09144020826 | JH15: -0.004011198878 | JI15: 0.05301072821 | JJ15: 0.03946338594 | JK15: 0.0287113972 | JL15: 0.02333114855 | JM15: 0.1106251478 | JN15: 0.003828165354 | JO15: -0.0001749265648 | JP15: -0.07348889858 | JQ15: 0.1037086919 | JR15: -0.2352735996 | JS15: 0.09845393896 | JT15: 0.060211353 | JU15: -0.1960635483 | JV15: -0.09899540991 | JW15: -0.002116436604 | JX15: -0.2923828065 | JY15: 0.05103752017 | JZ15: -0.04304233566 | KA15: 0.01985555701 | KB15: 0.03539703786 | KC15: 0.07914387435 | KD15: -0.1004427001 | KE15: -0.1780563444 | KF15: -0.04235029593 | KG15: -0.09644038975 | KH15: 0.03787297755 | KI15: 0.09255776554 | KJ15: -0.09029351175 | KK15: 0.002213273197 | KL15: -0.06620401144 | KM15: 0.07856646925 | KN15: 0.01942177303 | KO15: 0.03144550696 | KP15: 0.008344141766 | KQ15: 0.02644752711 | KR15: -0.01956946589 | KS15: -0.07795962691 | KT15: 0.1032899246 | KU15: 0.02380349487 | KV15: 0.106285423 | KW15: -0.2849630117 | KX15: 0.07495635748 | KY15: 0.09683094919 | KZ15: 0.05158213899 | LA15: 0.02097728662 | LB15: -0.04484185204 | LC15: -0.3305686116 | LD15: -0.1159927696 | LE15: -0.01246927772 | LF15: 0.09724769741 | LG15: -0.05702472851 | LH15: -0.2164930254 | LI15: 0.02411812916 | LJ15: -0.4476276338 | LK15: 0.06776493043 | LL15: -0.02397086471 | LM15: -0.1557049304 | LN15: -0.1028454974 | LO15: 0.05511301011 | LP15: -0.06291383505 | LQ15: -0.01563273184 | LR15: 0.1030647159 | LS15: -0.06148273125 | LT15: 0.1368625462 | LU15: 0.06581746042 | LV15: 0.1305074096 | LW15: 0.06263390929 | LX15: -0.04347865283 | LY15: 0.02605285496 | LZ15: 0.1004399657 | MA15: -0.01642450877 | MB15: -0.4560441077 | MC15: -0.04696478322 | MD15: -0.001300155534 | ME15: -0.04232919961 | MF15: -0.08683365583 | MG15: -0.2282284647 | MH15: -0.08248847723 | MI15: -0.3495356441 | MJ15: -0.1286834925 | MK15: -0.01323238574 | ML15: 0.05222094804 | MM15: 0.1220148876 | MN15: -0.09021303803 | MO15: -0.09250554442 | MP15: -0.05064464733 | MQ15: 0.09780549258 | MR15: 0.03642351553 | MS15: 0.06607133895 | MT15: -0.1091252565 | MU15: 0.1365034282 | MV15: -0.0312451683 | MW15: 0.1054034457 | MX15: -0.1473037452 | MY15: 0.05760073289 | MZ15: -0.08137289435 | NA15: -0.07957767695 | NB15: 0.02654691599 | NC15: 0.1134265363 | ND15: -0.167496562 | NE15: -0.1155939028 | NF15: -0.004448036198 | NG15: -0.04251632094 | NH15: -0.0315249972 | NI15: 0.147237584 | NJ15: -0.04066426307 | NK15: -0.05809727684 | NL15: 0.03987944126 | NM15: 0.006232971791 | NN15: 0.01938427798 | NO15: 0.02562978677 | NP15: 0.07486162335 | NQ15: 0.04637548327 | NR15: 0.05615473911 | NS15: -0.01960484684 | NT15: -0.1584900469 | NU15: 0.02756196074 | NV15: -0.01833689213 | NW15: -0.07502548397 | NX15: 0.03179039806 | NY15: 0.02454403043 | NZ15: -0.04120505601 | OA15: -0.03513675183 | OB15: -0.05536725372 | OC15: 0.1113948449 | OD15: -0.1275064796 | OE15: 0.008962961845 | OF15: -0.06832530349 | OG15: -0.03214554116 | OH15: -0.04405453056 | OI15: -0.09649023414 | OJ15: 0.007221765816 | OK15: -0.05998326465 | OL15: 0.1002675965 | OM15: 0.04985258356 | ON15: -0.03734397143 | OO15: 0.004441364668 | OP15: 0.04782710597 | OQ15: 0.01699426211 | OR15: -0.1327545643 | OS15: 0.01677821204 | OT15: -0.00917243585 | OU15: -0.05088924617 | OV15: 0.06483209878 | OW15: -0.1042321995 | OX15: 0.08563578129 | OY15: -0.3080848455 | OZ15: 0.0531973578 | PA15: -0.07844150066 | PB15: 0.04162880778 | PC15: 0.02188355476 | PD15: -0.02047932148 | PE15: -0.01072232518 | PF15: -0.01729664579 | PG15: -0.02031395212 | PH15: 0.1071914062 | PI15: 0.02825601399 | PJ15: -0.2586786747 | PK15: 0.07510241121 | PL15: -0.0004058418563 | PM15: -0.03122960776 | PN15: 0.06943314523 | PO15: -0.08167143911 | PP15: 0.05240954086 | PQ15: 0.0813691467 | PR15: 0.06431432813 | PS15: 0.1016577855 | PT15: 0.06061038002 | PU15: 0.0820819065 | PV15: 0.1314333379 | PW15: 0.09679117799 | PX15: 0.0205269549 | PY15: 0.08823940903 | PZ15: -0.09029538929 | QA15: 0.08791594207 | QB15: -0.02067022957 | QC15: -0.02005787753 | QD15: -0.01297151577 | QE15: -0.1101791039 | QF15: -0.09950035065 | QG15: -0.01476300228 | QH15: -0.07284457237 | QI15: -0.01223517023 | QJ15: -0.05056417733 | QK15: -0.04065353051 | QL15: -0.06679543853 | QM15: 0.1100844964 | QN15: -0.2383501381 | QO15: 0.001760742045 | QP15: -0.08839055151 | QQ15: 0.03968150914 | QR15: 0.04339786246 | QS15: -0.2459953129 | QT15: 0.002017823746 | QU15: 0.06130555645 | QV15: 0.03261979297 | QW15: 0.03964525461 | QX15: 0.09507896006 | QY15: -0.09116788208 | QZ15: 0.0428885594 | RA15: 0.005741770379 | RB15: 0.02615926415 | RC15: -0.08209001273 | RD15: 0.001769919414 | RE15: 0.1008365825 | RF15: -0.1052836552 | RG15: -0.0635247305 | RH15: -0.07294536382 | RI15: -0.2048169374 | RJ15: 0.00681096362 | RK15: -0.02683373354 | RL15: -0.1569948941 | RM15: -0.002951796167 | RN15: 0.107193239 | RO15: 0.06793197244 | RP15: -0.04452054203 | RQ15: -0.05296092853 | RR15: -0.2251065969 | RS15: -0.05135754868 | RT15: -0.006014897954 | RU15: 0.02976367064 | RV15: -0.03555813432 | RW15: 0.0480548963 | RX15: -0.002989128698 | RY15: 0.06195119768 | RZ15: -0.06446504593 | SA15: -0.001913145883 | SB15: 0.1385774016 | SC15: 0.01566200145 | SD15: 0.07286661863 | SE15: -0.02066404559 | SF15: -0.08565612882 | SG15: -0.0271853637 | SH15: 0.09922524542
A16: 14 | B16: =Normalization!G23 -> 0.2598321646 | C16: -0.04237562418 | D16: 0.1286311746 | E16: -0.2364801019 | F16: 0.00696148118 | G16: -0.1577068567 | H16: -0.110628061 | I16: -0.08569836617 | J16: -0.04483919963 | K16: -0.01096013747 | L16: -0.01921313815 | M16: 0.02022339962 | N16: -0.07680689543 | O16: 0.02709325217 | P16: -0.2310576737 | Q16: -0.04075245187 | R16: -0.04846085608 | S16: -0.06057431176 | T16: 6.207163096e-05 | U16: 0.1422904581 | V16: -0.1351236254 | W16: 0.1159484982 | X16: -0.04568124563 | Y16: 0.02316668071 | Z16: -0.2435031831 | AA16: -0.07247705758 | AB16: 0.0005125930766 | AC16: 0.03793245181 | AD16: 0.01556973998 | AE16: 0.0707924217 | AF16: -0.1445866972 | AG16: 0.0684164837 | AH16: -0.2050247043 | AI16: 0.03124844842 | AJ16: 0.04869656265 | AK16: -0.192829892 | AL16: -0.09767922759 | AM16: 0.07532057166 | AN16: -0.1076529175 | AO16: -0.05587247759 | AP16: 0.1239628792 | AQ16: 0.0008449853631 | AR16: 0.02378388867 | AS16: 0.08275750279 | AT16: -0.01139490586 | AU16: -0.05777928978 | AV16: -0.02529971674 | AW16: -0.07478988916 | AX16: 0.002188445535 | AY16: -0.0500388667 | AZ16: -0.1529182047 | BA16: -0.06789010763 | BB16: 0.0111322226 | BC16: -0.1621667594 | BD16: 0.02188742161 | BE16: -0.03691086546 | BF16: -0.1181692332 | BG16: -0.08602098376 | BH16: 0.1007216424 | BI16: -0.08827341348 | BJ16: 0.01226557791 | BK16: -0.2273700088 | BL16: -0.02428164519 | BM16: 0.08254472911 | BN16: -0.1168412268 | BO16: -0.05010539666 | BP16: -0.06977894902 | BQ16: -0.2584782243 | BR16: -0.04501084983 | BS16: -0.1065269336 | BT16: -0.2204868495 | BU16: -0.03974200785 | BV16: -0.2521244586 | BW16: 0.01710870862 | BX16: -0.2096733153 | BY16: 0.08174104244 | BZ16: 0.02423960716 | CA16: -0.03182156011 | CB16: 0.03584844992 | CC16: 0.03936180472 | CD16: -0.1932878494 | CE16: -0.008901780471 | CF16: -0.005260012578 | CG16: -0.09468132257 | CH16: 0.1117630973 | CI16: 0.06287776679 | CJ16: 0.01108958572 | CK16: -0.1172074825 | CL16: -0.03283553198 | CM16: -0.12053857 | CN16: 0.08160208911 | CO16: 0.08552651852 | CP16: 0.1357781589 | CQ16: 0.08667421341 | CR16: 0.09433552623 | CS16: 0.099975802 | CT16: -0.1635978371 | CU16: 0.03464649618 | CV16: 0.008925658651 | CW16: -0.1010478884 | CX16: -0.09685707092 | CY16: -0.08481202275 | CZ16: 0.05529842153 | DA16: -0.05977674201 | DB16: -0.0369544141 | DC16: -0.01677537709 | DD16: -0.005472454242 | DE16: 0.04772397503 | DF16: 0.161746949 | DG16: -0.09058601409 | DH16: -0.1434443295 | DI16: 0.06122538075 | DJ16: 0.1205768138 | DK16: 0.1108912602 | DL16: -0.0007311465451 | DM16: 0.1068798825 | DN16: -0.06391452998 | DO16: -0.07046508044 | DP16: -0.0708623156 | DQ16: -0.09573661536 | DR16: -0.1313622147 | DS16: -0.0597224012 | DT16: 0.08694749326 | DU16: -0.110385187 | DV16: -0.1438113898 | DW16: -0.01521505695 | DX16: -0.03849050775 | DY16: 0.0936512202 | DZ16: -0.09936873615 | EA16: -0.007819104008 | EB16: 0.01280263439 | EC16: -0.4463003278 | ED16: -0.002031250624 | EE16: 0.004880557302 | EF16: 0.2053783834 | EG16: -0.05525076762 | EH16: -0.08645460755 | EI16: 0.1228164956 | EJ16: -0.0488823913 | EK16: -0.1147795469 | EL16: 0.01967588998 | EM16: 0.02928233705 | EN16: 0.1298038512 | EO16: 0.01591989957 | EP16: 0.1318362355 | EQ16: -0.09365330637 | ER16: -0.1574324667 | ES16: -0.05406793207 | ET16: 0.01723138057 | EU16: 0.1242759153 | EV16: -0.05449341238 | EW16: 0.04782807454 | EX16: 0.05433696136 | EY16: -0.07414304465 | EZ16: -0.03788445145 | FA16: -0.01031846646 | FB16: 0.03712356091 | FC16: 0.01093749143 | FD16: -0.1265942752 | FE16: 0.08722405881 | FF16: 0.1021287441 | FG16: 0.06640912592 | FH16: -0.02356798574 | FI16: 0.2053996921 | FJ16: -0.04681905359 | FK16: -0.1258271635 | FL16: -0.1237013415 | FM16: -0.04616460577 | FN16: 0.1638271213 | FO16: -0.05145169795 | FP16: 0.07346525043 | FQ16: -0.04123013094 | FR16: 0.01323803049 | FS16: 0.01378604677 | FT16: -0.2863132358 | FU16: 0.08839294314 | FV16: 0.07928918302 | FW16: -0.07129378617 | FX16: 0.08004326373 | FY16: 0.01391998492 | FZ16: -0.05427145213 | GA16: -0.1084918305 | GB16: -0.01836601272 | GC16: -0.03499342501 | GD16: -0.01198960189 | GE16: 0.02729553171 | GF16: 0.1320511997 | GG16: -0.0777823776 | GH16: 0.00217535859 | GI16: -0.03918831423 | GJ16: -0.01139551122 | GK16: 0.07516524941 | GL16: -0.06262136996 | GM16: -0.07390075922 | GN16: 0.08858317137 | GO16: 0.02421893924 | GP16: 0.01842999086 | GQ16: -0.00465096347 | GR16: 0.1113541648 | GS16: -0.07456962764 | GT16: -0.02227011137 | GU16: 0.09189092368 | GV16: 0.1386744827 | GW16: 0.05363799632 | GX16: -0.1012979746 | GY16: 0.2173748314 | GZ16: -0.09705421329 | HA16: -0.03477515653 | HB16: 0.004220196046 | HC16: 0.01166932471 | HD16: 0.1180450693 | HE16: -0.02235878818 | HF16: -0.0444881022 | HG16: 0.1237502098 | HH16: 0.04744065925 | HI16: 0.06252604723 | HJ16: -0.02558099292 | HK16: 0.09830547124 | HL16: -0.1266925037 | HM16: -0.05180604011 | HN16: -0.06024317443 | HO16: -0.03040514141 | HP16: -0.1549985558 | HQ16: 0.08781661838 | HR16: -0.06875305623 | HS16: 0.02793998085 | HT16: 0.005745129194 | HU16: 0.07748506963 | HV16: -0.1378122717 | HW16: 0.1145132855 | HX16: -0.07302732766 | HY16: -0.1001173407 | HZ16: -0.006972230505 | IA16: 0.1121555343 | IB16: 0.01983397827 | IC16: 0.04495443404 | ID16: 0.1260404885 | IE16: -0.03911257535 | IF16: 0.06543389708 | IG16: 0.06679416448 | IH16: -0.08067937195 | II16: 0.1302735209 | IJ16: -0.03001735918 | IK16: 0.07475818694 | IL16: 0.01121994201 | IM16: 0.0457470566 | IN16: -0.01163648721 | IO16: -0.1110747457 | IP16: 0.006147104781 | IQ16: -0.0523892045 | IR16: -0.03637288138 | IS16: -0.1265124381 | IT16: -0.03865711391 | IU16: 0.07238846272 | IV16: 0.005193175282 | IW16: -0.05225232989 | IX16: 0.06540669501 | IY16: -0.02892406657 | IZ16: -0.04251918942 | JA16: -0.1747869551 | JB16: 0.08734440058 | JC16: 0.1546231359 | JD16: 0.0661451444 | JE16: -0.1290160716 | JF16: 0.0678806603 | JG16: -0.1813189536 | JH16: 0.05590011552 | JI16: -0.08398199826 | JJ16: -0.04516617581 | JK16: -0.04036794975 | JL16: 0.1009931043 | JM16: 0.06508799642 | JN16: 0.0243785698 | JO16: -0.0784214139 | JP16: -0.06964650005 | JQ16: -0.08987218887 | JR16: 0.05177566782 | JS16: 0.007645471953 | JT16: 0.009632694535 | JU16: 0.1064858511 | JV16: 0.08526624739 | JW16: 0.04975179955 | JX16: 0.05797039345 | JY16: 0.02243386954 | JZ16: 0.03819024563 | KA16: -0.1291314214 | KB16: 0.06480097771 | KC16: -0.05286790431 | KD16: -0.09312721342 | KE16: 0.07955954224 | KF16: -0.1556221396 | KG16: 0.173395589 | KH16: -0.1425965577 | KI16: -0.2450464666 | KJ16: -0.1113067642 | KK16: 0.06706175953 | KL16: -0.09389737993 | KM16: 0.08338505775 | KN16: 0.06432382017 | KO16: -0.1417293549 | KP16: 0.02480923384 | KQ16: 0.1190394089 | KR16: 0.00203230069 | KS16: -0.1330696195 | KT16: -0.5118342638 | KU16: 0.07481431961 | KV16: -0.1050541028 | KW16: 0.04372865707 | KX16: -0.002140078228 | KY16: 0.1020649895 | KZ16: 0.02137422375 | LA16: 0.1125706732 | LB16: 0.06466570497 | LC16: -0.03828054667 | LD16: -0.05355259776 | LE16: -0.06173732504 | LF16: -0.06533206254 | LG16: 0.03955945373 | LH16: -0.3941017687 | LI16: -0.01873991266 | LJ16: 0.105118975 | LK16: -0.06092721596 | LL16: -0.01436985377 | LM16: -0.07191995531 | LN16: -0.00159516139 | LO16: 0.03798206151 | LP16: 0.05471678823 | LQ16: -0.01305986196 | LR16: 0.1690752953 | LS16: 0.009479242377 | LT16: -0.04900184274 | LU16: -0.008663776331 | LV16: -0.1284341663 | LW16: -0.02060160786 | LX16: -0.1320798695 | LY16: 0.09646960348 | LZ16: -0.1209182441 | MA16: -0.03873234987 | MB16: -0.04088264331 | MC16: 0.08506608009 | MD16: -0.04940592125 | ME16: -0.03844569996 | MF16: -0.1689468473 | MG16: 0.03346386924 | MH16: -0.04451384395 | MI16: -0.06225105748 | MJ16: 0.01824326068 | MK16: -0.07228308916 | ML16: 0.02058691531 | MM16: -0.01287745591 | MN16: -0.2057759017 | MO16: -0.04589966685 | MP16: 0.02267602086 | MQ16: -0.04853020981 | MR16: -0.4396128356 | MS16: -0.03556369245 | MT16: 0.148418203 | MU16: 0.03901203722 | MV16: 0.056753207 | MW16: -0.1038666889 | MX16: 0.02386018075 | MY16: 0.07517594844 | MZ16: 0.003952627536 | NA16: 0.1212839112 | NB16: -0.09466406703 | NC16: 0.2448772341 | ND16: -0.003578981385 | NE16: -0.0603560172 | NF16: 0.1441990435 | NG16: -0.02799451537 | NH16: -0.8575422764 | NI16: 0.01098156534 | NJ16: 0.01344721019 | NK16: -0.07685030997 | NL16: 0.1183990538 | NM16: -0.06526444107 | NN16: 0.03850638494 | NO16: 0.004384152126 | NP16: 0.03611384705 | NQ16: -0.02647159994 | NR16: 0.01357631572 | NS16: 0.138441205 | NT16: 0.1731331646 | NU16: -0.07892796397 | NV16: -0.1210666299 | NW16: 0.08505577594 | NX16: -0.03197007626 | NY16: -0.218085289 | NZ16: 0.05993837118 | OA16: 0.04486927018 | OB16: 0.1096762866 | OC16: -0.02530775219 | OD16: 0.01948965527 | OE16: 0.1092951223 | OF16: 0.137505278 | OG16: -0.08980471641 | OH16: 0.08398906887 | OI16: 0.1080403402 | OJ16: 0.02622150257 | OK16: 0.03161987662 | OL16: -0.1806311756 | OM16: -0.02386966161 | ON16: 0.08210600168 | OO16: 0.01881017536 | OP16: 0.1050645486 | OQ16: -0.1696704775 | OR16: 0.132496208 | OS16: -0.2251552939 | OT16: -0.1195516214 | OU16: 0.07351722568 | OV16: -0.002644055523 | OW16: 0.06800445914 | OX16: -0.01930917241 | OY16: -0.1076250672 | OZ16: -0.05997083336 | PA16: -0.02929583937 | PB16: 0.09243904054 | PC16: -0.05574946105 | PD16: 0.06259394437 | PE16: 0.01266372018 | PF16: 0.07497277856 | PG16: -0.00650483463 | PH16: -0.1153173447 | PI16: -0.001226401422 | PJ16: 0.09610455483 | PK16: 0.06590791792 | PL16: -0.1064757034 | PM16: -0.06279437244 | PN16: -0.009519549087 | PO16: 0.001458647079 | PP16: 0.01990773901 | PQ16: -0.03137842193 | PR16: -0.09904599935 | PS16: 0.007782859728 | PT16: -0.1043021306 | PU16: 0.05375392735 | PV16: -0.03718768805 | PW16: -0.01020598877 | PX16: 0.03585742787 | PY16: -0.08250948787 | PZ16: 0.1079418659 | QA16: -0.03853959963 | QB16: -0.1201093122 | QC16: -0.03345607221 | QD16: 0.08056063205 | QE16: -0.03228801489 | QF16: 0.04014142603 | QG16: -0.0211567916 | QH16: 0.05066613853 | QI16: 0.06077771634 | QJ16: -0.05291563272 | QK16: 0.09769254178 | QL16: 0.09677702188 | QM16: -0.07996662706 | QN16: 0.02606397308 | QO16: -0.03155443445 | QP16: 0.1199204922 | QQ16: 0.08979201317 | QR16: -0.1093002781 | QS16: 0.1008171365 | QT16: -0.05473389849 | QU16: -0.02768247388 | QV16: -0.009710140526 | QW16: 0.1028446555 | QX16: 0.2070899755 | QY16: -0.2370239496 | QZ16: -0.1667200178 | RA16: 0.03231525421 | RB16: -0.1076882482 | RC16: 0.1023389325 | RD16: 0.1598829627 | RE16: 0.08970762044 | RF16: -0.1284499466 | RG16: 0.05742865428 | RH16: -0.07019337267 | RI16: -0.004870754201 | RJ16: -0.22518529 | RK16: 0.07187370956 | RL16: -0.1259431541 | RM16: 0.03740018979 | RN16: -0.0540246442 | RO16: 0.04626392201 | RP16: 0.1074307337 | RQ16: 0.09875932336 | RR16: -0.1289370358 | RS16: -0.02534451894 | RT16: 0.08822343498 | RU16: 0.1664781719 | RV16: -0.157816574 | RW16: 0.01161332428 | RX16: -0.1382044554 | RY16: -0.5440056324 | RZ16: -0.05954860523 | SA16: -0.09592891484 | SB16: -0.06320653111 | SC16: -0.1671679318 | SD16: -0.07448108494 | SE16: 0.08634764701 | SF16: -0.03842336684 | SG16: 0.1318546981 | SH16: -0.1324877292
A17: 15 | B17: =Normalization!G24 -> 0.5327025021 | C17: -0.1002423316 | D17: 0.1264758259 | E17: -0.1281647384 | F17: -0.04482008144 | G17: -0.1098042801 | H17: -0.1358513534 | I17: 0.1893874407 | J17: -0.1993529499 | K17: 0.02720746212 | L17: -0.1487928778 | M17: 0.1259608716 | N17: -0.09799979627 | O17: 0.1024503857 | P17: 0.02861057222 | Q17: -0.02817285992 | R17: -0.05102908239 | S17: 0.02064554021 | T17: -0.07036729902 | U17: -0.1156542525 | V17: -0.1139586791 | W17: 0.07362151146 | X17: 0.04073061049 | Y17: -0.08740091324 | Z17: -0.09500610828 | AA17: 0.01639297605 | AB17: 0.04146678373 | AC17: -0.2311601192 | AD17: 0.04719050229 | AE17: 0.02303222008 | AF17: -0.1088104546 | AG17: 0.1262321025 | AH17: -0.1328242868 | AI17: -0.0165378917 | AJ17: -0.1057347357 | AK17: 0.05259912461 | AL17: -0.0458086729 | AM17: 0.06416839361 | AN17: -0.5499497056 | AO17: 0.04771484062 | AP17: -0.01229863241 | AQ17: 0.0562347658 | AR17: -0.05286963657 | AS17: 0.05966139212 | AT17: -0.0430848524 | AU17: 0.2113044858 | AV17: 0.1077100709 | AW17: 0.01855008677 | AX17: 0.0548003912 | AY17: -0.2803016603 | AZ17: -0.06371280551 | BA17: 0.0981920138 | BB17: 0.09050567448 | BC17: -0.07641855627 | BD17: -0.04684105143 | BE17: 0.05012604967 | BF17: 0.1295825392 | BG17: -0.001863220474 | BH17: -0.01622033305 | BI17: -0.04346276447 | BJ17: 0.05558146909 | BK17: -0.1292326152 | BL17: -0.0222012978 | BM17: 0.1864471287 | BN17: -0.06174663827 | BO17: 0.03298041597 | BP17: -0.1588861048 | BQ17: -0.001242626458 | BR17: 0.2007308602 | BS17: -0.09096869081 | BT17: -0.04622346908 | BU17: -0.03406108543 | BV17: -0.02957465313 | BW17: 0.1041702107 | BX17: -0.003331981599 | BY17: 0.07594710588 | BZ17: 0.1700252295 | CA17: 0.04999186844 | CB17: -0.1438230127 | CC17: 0.002095727716 | CD17: -0.1126507744 | CE17: -0.03642600402 | CF17: -0.218206659 | CG17: 0.03271557018 | CH17: -0.06300897151 | CI17: 0.03246289864 | CJ17: 0.04036172107 | CK17: -0.144570604 | CL17: -0.09565001726 | CM17: -0.286167562 | CN17: 0.07550804317 | CO17: -0.1242839023 | CP17: -0.03092862852 | CQ17: 0.1622213423 | CR17: 0.06041779742 | CS17: -0.04982851073 | CT17: 0.05184640363 | CU17: -0.06537610292 | CV17: 0.2175211459 | CW17: 0.1528357863 | CX17: 0.02909672819 | CY17: 0.0148808891 | CZ17: -0.09583529085 | DA17: -0.09524309635 | DB17: 0.008279246278 | DC17: 0.03236993402 | DD17: 0.08359252661 | DE17: -0.03955513611 | DF17: 0.02191001363 | DG17: -0.03577302396 | DH17: 0.04120076448 | DI17: -0.01023889612 | DJ17: 0.074352853 | DK17: -0.0621763505 | DL17: 0.009616073221 | DM17: 0.1208096817 | DN17: -0.3945228159 | DO17: -0.2468234003 | DP17: -0.01409906149 | DQ17: -0.1697929949 | DR17: 0.05043491721 | DS17: -0.02719594911 | DT17: -0.004515729845 | DU17: -0.09587460756 | DV17: 0.06841936707 | DW17: -0.0212645866 | DX17: -0.06995453686 | DY17: -0.02110418305 | DZ17: -0.1260703504 | EA17: -0.01306676492 | EB17: 0.1457457393 | EC17: -0.06401254982 | ED17: 0.003031008644 | EE17: -0.05620587617 | EF17: -0.01970190927 | EG17: 0.07479444891 | EH17: 0.08288928121 | EI17: 0.1022879705 | EJ17: -0.1188636199 | EK17: -0.01662449352 | EL17: -0.1661392152 | EM17: -0.02690535039 | EN17: -0.05027250201 | EO17: -0.0036316677 | EP17: -0.0116738854 | EQ17: -0.213315025 | ER17: 0.1110697836 | ES17: -0.0303780213 | ET17: -0.01030212454 | EU17: 0.026538698 | EV17: 0.1083994955 | EW17: -0.1399674118 | EX17: 0.07526431233 | EY17: 0.06715655327 | EZ17: -0.02199980058 | FA17: -0.04143597558 | FB17: 0.1266122013 | FC17: -0.1926112771 | FD17: -0.1498985589 | FE17: 0.1265794188 | FF17: 0.08038659394 | FG17: -0.1645018756 | FH17: -0.07472725213 | FI17: 0.1338530928 | FJ17: -0.06808004528 | FK17: -0.01881477982 | FL17: 0.1157178804 | FM17: 0.05523078516 | FN17: 0.1223931834 | FO17: 0.07514603436 | FP17: 0.1711417288 | FQ17: 0.1003994495 | FR17: -0.01790526696 | FS17: -0.0551427193 | FT17: -0.1009386852 | FU17: -0.07484780997 | FV17: 0.03671778738 | FW17: -0.02943014726 | FX17: 0.09537748247 | FY17: -0.2410331219 | FZ17: 0.05392422527 | GA17: -0.0064700488 | GB17: -0.03082366847 | GC17: 0.0308223404 | GD17: -0.1129301637 | GE17: 0.02113003656 | GF17: 0.05919959024 | GG17: 0.1144322902 | GH17: 0.09104650468 | GI17: -0.06255957484 | GJ17: -0.03213599324 | GK17: 0.08466850221 | GL17: -0.3148755431 | GM17: -0.1500622332 | GN17: 0.05696532503 | GO17: 0.00812427979 | GP17: 0.1147195995 | GQ17: -0.1200671196 | GR17: -0.1356688887 | GS17: 0.08307799697 | GT17: 0.1380510926 | GU17: 0.01967850886 | GV17: 0.004161516204 | GW17: -0.05692577735 | GX17: 0.133259356 | GY17: -0.3789567351 | GZ17: 0.06019624695 | HA17: 0.01918353885 | HB17: -0.05844941363 | HC17: 0.06466554105 | HD17: 0.1924259961 | HE17: -0.09729088098 | HF17: -0.06908611208 | HG17: -0.08860191703 | HH17: -0.08416226506 | HI17: 0.08497148752 | HJ17: -0.03317026421 | HK17: 0.09019012749 | HL17: 0.07304771245 | HM17: 0.01415354852 | HN17: 0.03193790838 | HO17: -0.170819357 | HP17: 0.1424762309 | HQ17: -0.05407831073 | HR17: 0.03456918895 | HS17: 0.1795974076 | HT17: 0.1032486483 | HU17: -0.4533970654 | HV17: -0.09439019859 | HW17: -0.2234974205 | HX17: 0.1019426286 | HY17: 0.009865562432 | HZ17: 0.02968021855 | IA17: -0.02152065001 | IB17: -0.1421468258 | IC17: 0.1359311789 | ID17: -0.3618159294 | IE17: 0.08545422554 | IF17: -0.02026172355 | IG17: 0.04291130975 | IH17: 0.04161339998 | II17: 0.03976079822 | IJ17: 0.02274473198 | IK17: 0.04007233307 | IL17: 0.04484714568 | IM17: -0.2224755287 | IN17: 0.05914613605 | IO17: 0.1182258502 | IP17: -0.002726675244 | IQ17: 0.1007223874 | IR17: 0.03094509616 | IS17: -0.02566986531 | IT17: 0.009303305298 | IU17: -0.1412733346 | IV17: 0.0136765549 | IW17: -0.1588638574 | IX17: 0.06655498594 | IY17: 0.0987007767 | IZ17: 0.0002659962338 | JA17: 0.1107432768 | JB17: 0.0529848896 | JC17: 0.08121243864 | JD17: -0.004909703974 | JE17: -0.03083123267 | JF17: -0.02058132738 | JG17: 0.02850685827 | JH17: 0.1080919132 | JI17: 0.006618035026 | JJ17: 0.175790742 | JK17: -0.03768246621 | JL17: 0.01178507227 | JM17: 0.1057950556 | JN17: -0.1492719501 | JO17: -0.04061676562 | JP17: 0.02810797468 | JQ17: 0.06850272417 | JR17: -0.05856634304 | JS17: 0.0819061771 | JT17: 0.2119005173 | JU17: 0.03149877861 | JV17: 0.07797119021 | JW17: 0.0443906337 | JX17: -0.09079625458 | JY17: -0.1118707657 | JZ17: 0.009945149533 | KA17: -0.009590976872 | KB17: 0.03060493991 | KC17: -0.01176236663 | KD17: -0.2021574825 | KE17: 0.07638095319 | KF17: 0.006385330111 | KG17: 0.005455878563 | KH17: 0.1258835793 | KI17: -0.1393106431 | KJ17: -0.02503684722 | KK17: -0.06193796918 | KL17: 0.03715713695 | KM17: 0.04743337631 | KN17: -0.04517005384 | KO17: -0.06228974834 | KP17: -0.0492865704 | KQ17: 0.0246366486 | KR17: 0.1292286366 | KS17: -0.09731019288 | KT17: 0.05566704273 | KU17: -0.1280729324 | KV17: 0.02181350812 | KW17: -0.04854707047 | KX17: 0.107526131 | KY17: -0.05258155987 | KZ17: -0.1274997145 | LA17: 0.07094494253 | LB17: -0.1302597821 | LC17: 0.1559128314 | LD17: -0.09805481881 | LE17: 0.05029156059 | LF17: -0.05467483401 | LG17: 0.005399590824 | LH17: -0.07822675258 | LI17: -0.08097068965 | LJ17: -0.1157365516 | LK17: -0.03245428577 | LL17: 0.02358042076 | LM17: -0.07122343779 | LN17: 0.1933578253 | LO17: -0.1219914109 | LP17: 0.1595058143 | LQ17: 0.06637809426 | LR17: 0.1379498839 | LS17: -0.05230700597 | LT17: 0.1570224166 | LU17: 0.1903021783 | LV17: 0.04184659198 | LW17: -0.006045025308 | LX17: -0.09930917621 | LY17: -0.1405806243 | LZ17: -0.1004036367 | MA17: -0.04469612986 | MB17: 0.1093219668 | MC17: -0.01434207521 | MD17: -0.3226609826 | ME17: 0.06204376742 | MF17: -0.0281345211 | MG17: 0.03052797168 | MH17: 0.03477727622 | MI17: -0.13677378 | MJ17: -0.01220059022 | MK17: -0.1120058522 | ML17: -0.1165884361 | MM17: -0.02039096132 | MN17: 0.1522157788 | MO17: 0.03733357042 | MP17: -0.09713044763 | MQ17: -0.01727291383 | MR17: 0.1071099937 | MS17: -0.08617059141 | MT17: -0.1975568384 | MU17: 0.09307466447 | MV17: -0.03740547597 | MW17: -0.1186726019 | MX17: 0.08427153528 | MY17: -0.01086308807 | MZ17: -0.03915612027 | NA17: 0.09476748109 | NB17: -0.02908791043 | NC17: 0.01915683411 | ND17: 0.06702316552 | NE17: 0.08259548247 | NF17: -0.05722730607 | NG17: -0.1612706035 | NH17: 0.03940948099 | NI17: -0.2073943317 | NJ17: -0.08001090586 | NK17: 0.1645653844 | NL17: 0.215620473 | NM17: 0.01202254836 | NN17: 0.003324284917 | NO17: 0.007360348478 | NP17: 0.1606587321 | NQ17: -0.06488131732 | NR17: 0.07316932827 | NS17: 0.1413193941 | NT17: 0.0520403944 | NU17: 0.1224471033 | NV17: -0.1287387758 | NW17: 0.09051638097 | NX17: 0.005578767043 | NY17: 0.02438078262 | NZ17: 0.02864169702 | OA17: 0.08784066141 | OB17: -0.1810296029 | OC17: -0.06434495747 | OD17: -0.1528996825 | OE17: 0.1480827779 | OF17: 0.00681647053 | OG17: 0.001657160115 | OH17: -0.05287053436 | OI17: -0.1516949683 | OJ17: -0.2540822029 | OK17: 0.05296072364 | OL17: 0.02623479068 | OM17: 0.09548439831 | ON17: 0.140324071 | OO17: 0.1053101122 | OP17: 0.01091957837 | OQ17: 0.06602076441 | OR17: -0.01066861395 | OS17: 0.06856936961 | OT17: -0.1087190807 | OU17: -0.1302150935 | OV17: -0.1218888387 | OW17: -0.05977384001 | OX17: -0.09210642427 | OY17: 0.2676800191 | OZ17: 0.0678428337 | PA17: 0.01834693737 | PB17: -0.1408010721 | PC17: -0.0577885583 | PD17: 0.06723289937 | PE17: -0.05493221804 | PF17: -0.01941251382 | PG17: -0.01480442472 | PH17: 0.03524472937 | PI17: -0.04566691816 | PJ17: 0.1490739733 | PK17: 0.08553551883 | PL17: -0.1447242051 | PM17: 0.001751329983 | PN17: 0.09863309562 | PO17: -0.03522227705 | PP17: -0.02013811097 | PQ17: 0.06160259992 | PR17: -0.1322034299 | PS17: 0.04463212937 | PT17: -0.02790686674 | PU17: -0.006999941077 | PV17: 0.07372096926 | PW17: -0.09953668714 | PX17: 0.09323896468 | PY17: 0.04424079508 | PZ17: 0.07772863656 | QA17: -0.1448923945 | QB17: 0.05645184964 | QC17: -0.1277927011 | QD17: 0.211826846 | QE17: 0.124070771 | QF17: -0.007923785597 | QG17: 0.07175535709 | QH17: 0.08566707373 | QI17: 0.1246246547 | QJ17: -0.194479391 | QK17: -0.02483820915 | QL17: -0.0224520117 | QM17: -0.01646859944 | QN17: -0.370085746 | QO17: 0.04312662408 | QP17: -0.1646501869 | QQ17: -0.1133062243 | QR17: 0.05113260448 | QS17: -0.05481994152 | QT17: 0.01683940552 | QU17: -0.1843102872 | QV17: 0.1062435061 | QW17: -0.0699730888 | QX17: 0.1467592716 | QY17: -0.1091270968 | QZ17: -0.0791420266 | RA17: 0.09543012083 | RB17: 0.03494827077 | RC17: -0.001245547901 | RD17: 0.1650931984 | RE17: -0.04055166617 | RF17: -0.1257746816 | RG17: 0.06041033193 | RH17: 0.193128258 | RI17: -0.2616342306 | RJ17: -0.1247991547 | RK17: 0.04266331345 | RL17: -0.1165831685 | RM17: 0.01266933046 | RN17: -0.03073450178 | RO17: 0.03330104798 | RP17: -0.05205620453 | RQ17: 0.06008340046 | RR17: -0.3080868721 | RS17: 0.05255543441 | RT17: -0.1255731583 | RU17: -0.05118428171 | RV17: -0.03014599904 | RW17: -0.08792129159 | RX17: 0.03194956481 | RY17: 0.2066519409 | RZ17: 0.008729118854 | SA17: -0.1344011724 | SB17: 0.1384145617 | SC17: -0.09427221119 | SD17: -0.09949764609 | SE17: -0.1568737328 | SF17: -0.1520372033 | SG17: -0.09058637172 | SH17: 0.1272420734
A18: 16 | B18: =Normalization!G25 -> 1.777291195e-05 | C18: -0.1565571874 | D18: -0.01357658207 | E18: -0.1476684511 | F18: 0.08149495721 | G18: 0.01462379377 | H18: -0.08946121484 | I18: 0.04461934417 | J18: -0.08693103492 | K18: -0.01770723797 | L18: 0.0856032297 | M18: 0.1650168449 | N18: 0.01550896 | O18: 0.004057033919 | P18: 0.05190639198 | Q18: 0.09122428298 | R18: -0.2055730224 | S18: 0.08156233281 | T18: 0.0187999066 | U18: 0.04728914797 | V18: 0.006764774211 | W18: -0.2289196551 | X18: -0.1467501819 | Y18: 0.09400703758 | Z18: -0.1448588222 | AA18: 0.1277334094 | AB18: -0.1031452268 | AC18: -0.0656189397 | AD18: -0.05488163605 | AE18: 0.1285917312 | AF18: -0.3039842248 | AG18: -0.02891477384 | AH18: -0.08070441335 | AI18: 0.1713886708 | AJ18: 0.001040557167 | AK18: 0.07562530041 | AL18: -0.02015681565 | AM18: 0.2562514246 | AN18: -0.380610764 | AO18: -0.0345761925 | AP18: -0.05149213225 | AQ18: -0.05703705922 | AR18: -0.1219217405 | AS18: 0.1170074865 | AT18: -0.0006231924053 | AU18: -0.02598531172 | AV18: 0.07939663529 | AW18: 0.05808437243 | AX18: 0.003956306726 | AY18: -0.1088501886 | AZ18: -0.139897123 | BA18: -0.2608512342 | BB18: 0.0816572234 | BC18: -0.1189251989 | BD18: 0.1004297361 | BE18: -0.239926219 | BF18: 0.03448964655 | BG18: 0.07385187596 | BH18: 0.002555450425 | BI18: -0.05416315421 | BJ18: 0.1432252079 | BK18: -0.08043776453 | BL18: -0.1952338368 | BM18: 0.1070332453 | BN18: 0.1589984149 | BO18: 0.1140404716 | BP18: 0.0389068462 | BQ18: -0.3426517546 | BR18: 0.06173178926 | BS18: -0.05517575517 | BT18: -0.401511997 | BU18: -0.04472142458 | BV18: -0.08090356737 | BW18: 0.003518747864 | BX18: 0.1012349501 | BY18: 0.0837611407 | BZ18: -0.07557624578 | CA18: -0.1820072234 | CB18: -0.146764949 | CC18: -0.1235349476 | CD18: 0.04607629776 | CE18: -0.128057614 | CF18: 0.02431388199 | CG18: 0.02955624647 | CH18: 0.1130953431 | CI18: 0.04016302899 | CJ18: 0.09871622175 | CK18: -0.01059962716 | CL18: 0.1763895303 | CM18: -0.1060119793 | CN18: -0.02737566456 | CO18: 0.02712031454 | CP18: -0.4567408264 | CQ18: 0.06308849156 | CR18: -0.2575925589 | CS18: -0.2570761144 | CT18: -0.0826145038 | CU18: 0.04822611809 | CV18: 0.05135537684 | CW18: 0.007014650851 | CX18: -0.04251431674 | CY18: -0.0764124319 | CZ18: -0.3016087711 | DA18: 0.09474764019 | DB18: -0.03764861077 | DC18: -0.06928942353 | DD18: 0.002441555494 | DE18: -0.04405114427 | DF18: 0.1085956618 | DG18: 0.03031213768 | DH18: -0.08285773546 | DI18: -0.03403599933 | DJ18: -0.1371063739 | DK18: 0.1175741702 | DL18: 0.04728470743 | DM18: 0.09147315472 | DN18: -0.7484222054 | DO18: -0.1968447864 | DP18: -0.3913325369 | DQ18: -0.05719041452 | DR18: 0.06218013912 | DS18: 0.05686556548 | DT18: -0.08369490504 | DU18: 0.1488620937 | DV18: 0.03041259572 | DW18: 0.1217342243 | DX18: -0.05334100872 | DY18: 0.01582226902 | DZ18: 0.06299783289 | EA18: -0.2317598909 | EB18: -0.02717815898 | EC18: 0.272944957 | ED18: -0.08388503641 | EE18: -0.0836347416 | EF18: -0.2844026089 | EG18: -0.06109943613 | EH18: 0.0647668913 | EI18: 0.09491210431 | EJ18: 0.00762035232 | EK18: -0.1559022516 | EL18: -0.01772711426 | EM18: -0.09758020192 | EN18: -0.2624512315 | EO18: -0.01814961247 | EP18: -0.2476173043 | EQ18: -0.05420183763 | ER18: -0.2584225535 | ES18: 0.004673960153 | ET18: 0.01931684278 | EU18: -0.1526768655 | EV18: -0.01853511482 | EW18: 0.07908889651 | EX18: 0.1216647252 | EY18: 0.06248161569 | EZ18: 0.009633512236 | FA18: -0.1569450647 | FB18: -0.1303513795 | FC18: 0.1087368876 | FD18: -0.06660694629 | FE18: 0.07184950262 | FF18: -0.1933771968 | FG18: -0.07457911968 | FH18: -0.170963183 | FI18: -0.01243875548 | FJ18: 0.07896118611 | FK18: -0.3238493204 | FL18: -0.008088484406 | FM18: 0.09534089267 | FN18: 0.08921874315 | FO18: 0.09069726616 | FP18: 0.0554760918 | FQ18: 0.04926417768 | FR18: 0.1014256775 | FS18: -0.1320451796 | FT18: -0.2500477433 | FU18: -0.2042047679 | FV18: -0.0106015997 | FW18: -0.03993459046 | FX18: 0.03158713877 | FY18: -0.1355640739 | FZ18: 0.03688749298 | GA18: -0.01417097077 | GB18: 0.1276709437 | GC18: 0.08431836963 | GD18: 0.03270703554 | GE18: -0.1857570112 | GF18: -0.07856748253 | GG18: -0.02431507781 | GH18: 0.07894613594 | GI18: -0.0838734284 | GJ18: 0.1792467684 | GK18: -0.3681762516 | GL18: -0.07292749733 | GM18: -0.05385335535 | GN18: -0.0295670554 | GO18: 0.1532084942 | GP18: -0.06863214076 | GQ18: -0.134824425 | GR18: 0.0284944158 | GS18: 0.01431554463 | GT18: 0.03278584778 | GU18: 0.04039580002 | GV18: -0.5346207023 | GW18: 0.1186361536 | GX18: 0.05524094403 | GY18: 0.1285206974 | GZ18: 0.08851259947 | HA18: -0.1531145424 | HB18: -0.04310478643 | HC18: -0.1504208297 | HD18: 0.1132940128 | HE18: 0.05672959238 | HF18: 0.05589028448 | HG18: -0.02291435003 | HH18: 0.06127559766 | HI18: -0.06493782252 | HJ18: 0.136354804 | HK18: -0.1114097089 | HL18: -0.07416298985 | HM18: 0.1502729654 | HN18: -0.2783719003 | HO18: -0.009356578812 | HP18: -0.1707314998 | HQ18: -0.1435903758 | HR18: -0.04838568717 | HS18: 0.04287699983 | HT18: -0.1386006922 | HU18: -0.03425873816 | HV18: 0.1202753559 | HW18: 0.06333612651 | HX18: -0.07326798141 | HY18: 0.08193496615 | HZ18: 0.01372426935 | IA18: -0.06900919229 | IB18: 0.07635001838 | IC18: -0.1391245723 | ID18: -0.1854047775 | IE18: 0.02644082904 | IF18: -0.1009912714 | IG18: 0.04813553765 | IH18: 0.05856344476 | II18: 0.08148420602 | IJ18: -0.0531479083 | IK18: -0.00630544452 | IL18: -0.1120835543 | IM18: 0.003199412487 | IN18: 0.1118886173 | IO18: 0.03364731744 | IP18: 0.06025764719 | IQ18: -0.1601567417 | IR18: 0.07549894601 | IS18: -0.1641892046 | IT18: 0.1074250787 | IU18: -0.07533381134 | IV18: 2.073516953e-06 | IW18: -0.2172181308 | IX18: 0.02980529144 | IY18: 0.09785921127 | IZ18: -0.1570496559 | JA18: 0.1380411536 | JB18: -0.0004090445582 | JC18: 0.1004448086 | JD18: -0.03223026171 | JE18: 0.1141453162 | JF18: 0.02088975906 | JG18: 0.04023497179 | JH18: 0.12564601 | JI18: -0.154796347 | JJ18: -0.07069848478 | JK18: -0.0648323372 | JL18: 0.1602551788 | JM18: -0.07121650875 | JN18: -0.3834119737 | JO18: 0.02689504996 | JP18: -0.00392228039 | JQ18: -0.0376691781 | JR18: 0.00807948783 | JS18: 0.1056876481 | JT18: 0.006165412255 | JU18: 0.1764936894 | JV18: 0.03532261401 | JW18: -0.1608503461 | JX18: -0.03427034616 | JY18: -0.2455646545 | JZ18: 0.0312017668 | KA18: 0.08567228913 | KB18: 0.07765395939 | KC18: 0.1243151277 | KD18: 0.02555039711 | KE18: 0.03948922455 | KF18: -0.07311997563 | KG18: -0.1374611408 | KH18: 0.05701490119 | KI18: -0.05075464025 | KJ18: -0.1642240733 | KK18: 0.04645154253 | KL18: 0.0506445691 | KM18: -0.07132520527 | KN18: 0.1104771048 | KO18: -0.1484155059 | KP18: 0.1050569341 | KQ18: 0.2691164613 | KR18: 0.06005670875 | KS18: 0.06236127764 | KT18: 0.1580260098 | KU18: 0.08773272485 | KV18: -0.06828393042 | KW18: 0.06489427388 | KX18: -0.06818255037 | KY18: -0.03287015855 | KZ18: 0.03243935108 | LA18: -0.3035184443 | LB18: 0.00260233623 | LC18: 0.07388760149 | LD18: -0.188407585 | LE18: 0.05755067617 | LF18: -0.005431663711 | LG18: -0.1941281408 | LH18: -0.09698973596 | LI18: -0.1185792387 | LJ18: 0.007147116121 | LK18: -0.1291050464 | LL18: 0.02966948412 | LM18: -0.04110006243 | LN18: 0.1021159738 | LO18: 0.06974977255 | LP18: 0.1108858362 | LQ18: 0.1207883954 | LR18: -0.1955945343 | LS18: 0.0388106741 | LT18: 0.075616166 | LU18: -0.07895731181 | LV18: 0.001515706303 | LW18: 0.01776621677 | LX18: 0.09891185164 | LY18: 0.02732599154 | LZ18: 0.2629074156 | MA18: -0.09513715655 | MB18: 0.05459471047 | MC18: -0.04832572863 | MD18: -0.4114060998 | ME18: -0.004965470172 | MF18: 0.06225635111 | MG18: 0.1656902283 | MH18: -0.1713397652 | MI18: -0.3619810045 | MJ18: 0.17565386 | MK18: -0.05871304125 | ML18: -0.01717478223 | MM18: 0.1057619154 | MN18: -0.3583554626 | MO18: -0.02147878706 | MP18: 0.1080625057 | MQ18: -0.0006516735302 | MR18: 0.01264047623 | MS18: 0.1149478555 | MT18: 0.07472570986 | MU18: 0.01970192976 | MV18: -0.01882766187 | MW18: 0.2422529459 | MX18: -0.09927403927 | MY18: 0.002374775009 | MZ18: -0.05635733902 | NA18: -0.1756176651 | NB18: -0.08074194193 | NC18: -0.03540188074 | ND18: 0.03559154272 | NE18: 0.03948660567 | NF18: -0.02003802545 | NG18: 0.02817378007 | NH18: 0.02020561509 | NI18: 0.04963603616 | NJ18: -0.04632757977 | NK18: -0.1325476468 | NL18: -0.2061547786 | NM18: 0.04367458448 | NN18: 0.07152690738 | NO18: -0.1387184113 | NP18: -0.1882885098 | NQ18: 0.007639072835 | NR18: -0.2645521462 | NS18: -0.05819169804 | NT18: -0.02177584916 | NU18: 0.06900170445 | NV18: -0.2869080305 | NW18: 0.1702077389 | NX18: 0.02173129469 | NY18: -0.12549299 | NZ18: -0.01814826019 | OA18: -0.1501884609 | OB18: 0.0576030612 | OC18: 0.04693512991 | OD18: 0.006051756907 | OE18: 0.0132950535 | OF18: -0.1210560575 | OG18: -0.03598070517 | OH18: 0.04322877899 | OI18: 0.1819176972 | OJ18: -0.5035746694 | OK18: -0.08379837126 | OL18: -0.1898943484 | OM18: 0.123570621 | ON18: -0.2053072602 | OO18: 0.03966908902 | OP18: 0.03098345548 | OQ18: -0.03530345485 | OR18: 0.1368594468 | OS18: 0.04310091585 | OT18: -0.1226682812 | OU18: -0.1501569748 | OV18: 0.03015790321 | OW18: 0.01521262992 | OX18: -0.2140687108 | OY18: 0.403778404 | OZ18: -0.009274354205 | PA18: -0.07184208184 | PB18: 0.2372280955 | PC18: -0.1041791141 | PD18: 0.135795489 | PE18: 0.04459990188 | PF18: -0.1085742489 | PG18: 0.02359648235 | PH18: -0.04593186826 | PI18: 0.1635125279 | PJ18: 0.09196199477 | PK18: -0.02916946821 | PL18: -0.2452770174 | PM18: -0.2905577123 | PN18: -0.01415049192 | PO18: -0.0506012626 | PP18: 0.0123878289 | PQ18: -0.1717198491 | PR18: 0.04495384917 | PS18: -0.3080876768 | PT18: 0.0310324505 | PU18: -0.3851145208 | PV18: 0.09682931751 | PW18: -0.1157372519 | PX18: 0.04480460659 | PY18: 0.01117906999 | PZ18: -0.1890754253 | QA18: 0.07714372128 | QB18: -0.2640206218 | QC18: -0.1965485513 | QD18: 0.1793442667 | QE18: -0.0008711330011 | QF18: -0.1430668682 | QG18: -0.1182054579 | QH18: -0.07277550548 | QI18: 0.1615788788 | QJ18: -0.1380322427 | QK18: 0.09229637682 | QL18: -0.09195860475 | QM18: 0.093573533 | QN18: -0.04747086763 | QO18: -0.1836525798 | QP18: 0.1323793679 | QQ18: 0.008043169044 | QR18: -0.005551302806 | QS18: 0.1687268317 | QT18: -0.2476310879 | QU18: -0.1056735069 | QV18: 0.05511206016 | QW18: -0.0561482124 | QX18: 0.04068333656 | QY18: 0.2607400119 | QZ18: -0.06815532595 | RA18: -0.02473335154 | RB18: 0.05710409209 | RC18: 0.00988303218 | RD18: 0.01370023377 | RE18: 0.03545603529 | RF18: -0.03373206779 | RG18: 0.1245431975 | RH18: -0.3079353869 | RI18: 0.02572853491 | RJ18: -0.121345982 | RK18: -0.06967998296 | RL18: -0.03025102615 | RM18: 0.04147179797 | RN18: 0.0925468877 | RO18: -0.01777756773 | RP18: -0.1619784236 | RQ18: 0.09570024163 | RR18: -0.009232729673 | RS18: -0.1686236858 | RT18: -0.08320259303 | RU18: -0.006372854579 | RV18: -0.2629027367 | RW18: -0.1668679267 | RX18: -0.08160383254 | RY18: -0.351935178 | RZ18: 0.098253645 | SA18: 0.1463367045 | SB18: -0.04525687918 | SC18: -0.2491398305 | SD18: 0.03680985048 | SE18: 0.05438471586 | SF18: -0.06157308817 | SG18: 0.0390627645 | SH18: -0.02856812999
A19: 17 | B19: =Normalization!G26 -> 0 | C19: -0.02498336695 | D19: -0.09279945493 | E19: -0.01025629509 | F19: -0.03333563358 | G19: -0.1214378774 | H19: -0.0795424059 | I19: -0.02869520895 | J19: -0.08010125905 | K19: -0.006759678479 | L19: -0.08321312815 | M19: -0.09629107267 | N19: 0.08089355379 | O19: -0.1366035491 | P19: 0.001410555444 | Q19: 0.01839888282 | R19: 0.03820130602 | S19: -0.1573496908 | T19: 0.04585717991 | U19: -0.1148306951 | V19: 0.009038422257 | W19: -0.05680659786 | X19: 0.02327011339 | Y19: -0.1289038807 | Z19: -0.07637286186 | AA19: 0.0133789666 | AB19: -0.01519637555 | AC19: -0.06997997314 | AD19: 0.06845320016 | AE19: -0.09384378046 | AF19: 0.03373197094 | AG19: -0.3264286518 | AH19: -0.09900979698 | AI19: -0.02104599215 | AJ19: -0.1245585009 | AK19: 0.06188790128 | AL19: -0.0519765988 | AM19: 0.05311074853 | AN19: -0.05220529437 | AO19: -0.05903211609 | AP19: -0.05645434931 | AQ19: -0.04997279495 | AR19: 0.1263155043 | AS19: 0.1103463471 | AT19: -0.01014553662 | AU19: 0.04428111389 | AV19: -0.08031544834 | AW19: 0.01755135134 | AX19: -0.03329085559 | AY19: 0.03978789598 | AZ19: -0.2352868319 | BA19: 0.1008435488 | BB19: 0.06359270215 | BC19: -0.2138208449 | BD19: -0.01160885394 | BE19: 0.05090205371 | BF19: 0.06071945652 | BG19: 0.07210934907 | BH19: 0.009987111203 | BI19: 0.06033726782 | BJ19: -0.06620489061 | BK19: -0.1007879227 | BL19: 0.0504835099 | BM19: -0.06969803572 | BN19: -0.08142129332 | BO19: 0.03683589771 | BP19: -0.1042686254 | BQ19: 0.1042158976 | BR19: 0.0971038118 | BS19: 0.04022394121 | BT19: -0.1657800227 | BU19: -0.08181297779 | BV19: -0.01469592843 | BW19: -0.0620088093 | BX19: -0.0319240801 | BY19: 0.02396155894 | BZ19: 0.06261590123 | CA19: -0.04855906218 | CB19: -0.06309407204 | CC19: 0.06489667296 | CD19: -0.01649729908 | CE19: 0.007400791626 | CF19: 0.03313083574 | CG19: 0.06544834375 | CH19: -0.04188830405 | CI19: -0.1011642069 | CJ19: -0.0911007002 | CK19: 0.04454163462 | CL19: 0.05026049167 | CM19: -0.04703268781 | CN19: 0.02371675335 | CO19: -0.1804319769 | CP19: -0.06897902489 | CQ19: -0.1043490618 | CR19: -0.1429959238 | CS19: -0.07928311825 | CT19: -0.08823919296 | CU19: 0.06971310824 | CV19: 0.03602353111 | CW19: 0.09037096798 | CX19: 0.1054391563 | CY19: 0.1371334791 | CZ19: -0.06663118303 | DA19: 0.00458148215 | DB19: 0.06909800321 | DC19: -0.0782333836 | DD19: 0.04481013119 | DE19: -0.00263706129 | DF19: -0.09752961993 | DG19: -0.00438620057 | DH19: 0.01645859145 | DI19: -0.02176510356 | DJ19: 0.002499631606 | DK19: 0.07561907917 | DL19: -0.03245821223 | DM19: -0.1038835198 | DN19: -0.1058720797 | DO19: 0.08318471909 | DP19: -0.04056816548 | DQ19: 0.002740856027 | DR19: -0.1359706521 | DS19: -0.1173164248 | DT19: -0.06622372568 | DU19: 0.03481984138 | DV19: 0.1797622293 | DW19: -0.02979779243 | DX19: 0.0007142879767 | DY19: -0.09728636593 | DZ19: -0.01199461892 | EA19: 0.007482337765 | EB19: -0.03867310286 | EC19: -0.006530076265 | ED19: -0.1520412564 | EE19: 0.03437545896 | EF19: -0.165422976 | EG19: -0.0808275044 | EH19: 0.01778255589 | EI19: -0.06199708208 | EJ19: -0.06215214357 | EK19: -0.06418884546 | EL19: 0.07561905682 | EM19: 0.02675421163 | EN19: -0.01632106304 | EO19: 0.1056300476 | EP19: -0.102636151 | EQ19: 0.02671220526 | ER19: -0.1017792597 | ES19: -0.0481159538 | ET19: 0.03001930378 | EU19: -0.01163532678 | EV19: -0.132474035 | EW19: -0.07724736631 | EX19: 0.08694699407 | EY19: 0.02634723298 | EZ19: -0.03353670612 | FA19: -0.03333091363 | FB19: -0.0610056445 | FC19: -0.1338605285 | FD19: 0.01262739487 | FE19: 0.06438080966 | FF19: 0.04853454232 | FG19: 0.01574723609 | FH19: 0.03817344829 | FI19: -0.2895635664 | FJ19: -0.002323281253 | FK19: 0.02264152281 | FL19: -0.05675499886 | FM19: 0.06410744041 | FN19: 0.01535250433 | FO19: 0.01929290034 | FP19: -0.162518248 | FQ19: 0.03461123258 | FR19: 0.09012854099 | FS19: -0.05885798857 | FT19: 0.02490697987 | FU19: 0.1282521635 | FV19: -0.02689985 | FW19: 0.1408630461 | FX19: 0.05675946921 | FY19: -0.1817602366 | FZ19: -0.03510660678 | GA19: -0.02665773965 | GB19: -0.06701170653 | GC19: -0.05736767128 | GD19: -0.05906019732 | GE19: 0.0629580915 | GF19: -0.1405232847 | GG19: -0.1313973963 | GH19: -0.1503712982 | GI19: 0.007360991091 | GJ19: 0.08621286601 | GK19: -0.0497861132 | GL19: 0.1192116812 | GM19: -0.03570709005 | GN19: -0.07381267846 | GO19: -0.03391915932 | GP19: 0.06082831696 | GQ19: 0.05155755952 | GR19: -0.1541955173 | GS19: -0.1636445075 | GT19: -0.04024235159 | GU19: 0.1022573337 | GV19: 0.1039496809 | GW19: -0.01699940115 | GX19: 0.002326753223 | GY19: 0.05787364021 | GZ19: -0.02305885218 | HA19: -0.1263509691 | HB19: 0.06710998714 | HC19: -0.0230678767 | HD19: -0.1011445448 | HE19: -0.02440704964 | HF19: 0.09450026602 | HG19: 0.06675264984 | HH19: 0.05765482411 | HI19: 0.1378983259 | HJ19: 0.03967575356 | HK19: -0.00482907705 | HL19: 0.1335983574 | HM19: -0.08011008054 | HN19: -0.1280699819 | HO19: 0.008071052842 | HP19: 0.05580087379 | HQ19: 0.01187491044 | HR19: 0.1005242467 | HS19: -0.005980231799 | HT19: 0.05588146672 | HU19: -0.136898458 | HV19: 0.08848827332 | HW19: -0.1335253268 | HX19: -0.03401631862 | HY19: 0.08564516902 | HZ19: -0.1179252937 | IA19: 0.03235077858 | IB19: -0.06993699074 | IC19: -0.1239050478 | ID19: 0.02413157746 | IE19: -0.09579513222 | IF19: 0.02820009738 | IG19: -0.08529446274 | IH19: -0.08163587004 | II19: -0.06035960466 | IJ19: 0.05413135514 | IK19: -0.05809450522 | IL19: 0.1320203245 | IM19: 0.08308963478 | IN19: -0.01064447407 | IO19: 0.094202362 | IP19: 0.008279910311 | IQ19: 0.1193568259 | IR19: 0.09837861359 | IS19: 0.03001114726 | IT19: 0.06680938601 | IU19: -0.1025141254 | IV19: -0.06149676815 | IW19: 0.02585631236 | IX19: 0.02111442201 | IY19: -0.07125831395 | IZ19: 0.007496978622 | JA19: -0.04934084788 | JB19: -0.136942327 | JC19: 0.02312209643 | JD19: 0.03298078477 | JE19: 0.07611571252 | JF19: -0.07202234119 | JG19: -0.1266488284 | JH19: -0.1002043188 | JI19: -0.02545144409 | JJ19: 0.02047862299 | JK19: -0.02190730534 | JL19: -0.05916422978 | JM19: -0.05674108863 | JN19: 0.03665964678 | JO19: -0.03991106898 | JP19: 0.1364601701 | JQ19: 0.02648987435 | JR19: -0.05573455617 | JS19: -0.1137325242 | JT19: -0.07819249481 | JU19: 0.07749049366 | JV19: -0.1331275254 | JW19: 0.07036450505 | JX19: -0.1270827204 | JY19: -0.04172372818 | JZ19: -0.19738473 | KA19: -0.1249791235 | KB19: -0.0712826997 | KC19: -0.1471088678 | KD19: -0.01122673601 | KE19: -0.01835336536 | KF19: 0.07555179298 | KG19: 0.006458867807 | KH19: 0.1434262842 | KI19: 0.06999977678 | KJ19: -0.02382876538 | KK19: 0.07683280855 | KL19: -0.1351759434 | KM19: 0.007079718169 | KN19: -0.1230224743 | KO19: -0.04408475757 | KP19: -0.06662282348 | KQ19: -0.109371677 | KR19: 0.08749721944 | KS19: 0.01429808792 | KT19: -0.1732117832 | KU19: -0.1702854782 | KV19: -0.03248393163 | KW19: 0.0836071223 | KX19: -0.0349750407 | KY19: -0.06432789564 | KZ19: -0.04129608348 | LA19: 0.05553046614 | LB19: 0.03097211383 | LC19: -0.09365573525 | LD19: -0.1652428359 | LE19: 0.01889763027 | LF19: 0.06151774898 | LG19: -0.07890371233 | LH19: 0.01216627005 | LI19: -0.06634622812 | LJ19: 0.06657406688 | LK19: -0.03101308644 | LL19: 3.321500117e-05 | LM19: 0.03187231719 | LN19: 0.0797091797 | LO19: -0.02557040565 | LP19: -0.07868914306 | LQ19: -0.03535639122 | LR19: 0.02440692298 | LS19: 0.04490818828 | LT19: 0.06509234756 | LU19: -0.08249400556 | LV19: -0.02899466082 | LW19: 0.1409516037 | LX19: 0.03425132856 | LY19: -0.1622721255 | LZ19: -0.02033514902 | MA19: -0.07885380834 | MB19: -0.03998646885 | MC19: 0.06532654166 | MD19: -0.05651747063 | ME19: -0.1965026259 | MF19: -0.04086199403 | MG19: -0.134299174 | MH19: -0.06851218641 | MI19: -0.1165411845 | MJ19: 0.05497581512 | MK19: -0.0148944268 | ML19: 0.005314336158 | MM19: 0.02803479321 | MN19: 0.03462257236 | MO19: 0.07482179999 | MP19: -0.1278354675 | MQ19: 0.008168285713 | MR19: 0.04201099277 | MS19: -0.1397548318 | MT19: -0.06606967747 | MU19: -0.01175815333 | MV19: -0.05060222 | MW19: 0.08196606487 | MX19: -0.06109418347 | MY19: 0.05884907395 | MZ19: -0.008850105107 | NA19: -0.02806990966 | NB19: -0.1030835137 | NC19: -0.02634507976 | ND19: 0.03813898191 | NE19: 0.0007653120556 | NF19: 0.04387711734 | NG19: -0.1775892526 | NH19: 0.06539674848 | NI19: -0.06220019981 | NJ19: -0.05058403313 | NK19: 0.05769465491 | NL19: 0.04655594379 | NM19: -0.0216288548 | NN19: 0.006146315951 | NO19: 0.1028885841 | NP19: -0.02376933396 | NQ19: -0.07523497939 | NR19: -0.1380989105 | NS19: 0.01851498149 | NT19: -0.1663535237 | NU19: 0.04406295344 | NV19: 0.0004674537631 | NW19: 0.019488452 | NX19: 0.1010463089 | NY19: 0.07609605044 | NZ19: 0.07159107178 | OA19: -0.08888167143 | OB19: 0.1051714048 | OC19: 0.01595443301 | OD19: 0.0008167449851 | OE19: 0.2105049044 | OF19: -0.1222807243 | OG19: -0.0431574136 | OH19: 0.06669431925 | OI19: 0.02110966668 | OJ19: 0.06757134199 | OK19: 0.02918257751 | OL19: 0.01991310343 | OM19: 0.04215571284 | ON19: -0.09301086515 | OO19: -0.01289463416 | OP19: -0.113523066 | OQ19: -0.1477394402 | OR19: -0.01482131239 | OS19: 7.794010162e-05 | OT19: -0.07107815892 | OU19: 0.006135259289 | OV19: -0.1250739098 | OW19: 0.02468856424 | OX19: -0.009047976695 | OY19: -0.03502212092 | OZ19: 0.02439885587 | PA19: -0.04261211306 | PB19: -0.1977250129 | PC19: 0.03935705125 | PD19: 0.03235793486 | PE19: -0.04965535179 | PF19: -0.03788792714 | PG19: -0.08537599444 | PH19: 0.07572753727 | PI19: 0.0675797388 | PJ19: -0.2170284539 | PK19: 0.07898957282 | PL19: -0.0787928924 | PM19: -0.09002364427 | PN19: -0.2101915479 | PO19: 0.08209256828 | PP19: -0.0993238315 | PQ19: -0.08498352766 | PR19: -0.2640552223 | PS19: -0.01538305823 | PT19: -0.0594249554 | PU19: -0.01735509746 | PV19: 0.02105022781 | PW19: -0.03902481869 | PX19: -0.08297167718 | PY19: -0.07192237675 | PZ19: -0.05416763201 | QA19: -0.0108303111 | QB19: 0.03746207058 | QC19: 0.04864364117 | QD19: -0.01868712716 | QE19: -0.05796233937 | QF19: -0.009402132593 | QG19: -0.1380742639 | QH19: 0.07524646819 | QI19: -0.02480925247 | QJ19: 0.08683079481 | QK19: -0.1302394271 | QL19: 0.01436390541 | QM19: -0.1935978383 | QN19: -0.0976633057 | QO19: -0.004858745262 | QP19: -0.03106524423 | QQ19: 0.02542171441 | QR19: -0.005381617695 | QS19: -0.01128379162 | QT19: -0.04058638588 | QU19: 0.08377677202 | QV19: -0.03721512482 | QW19: 0.01342310943 | QX19: -0.1429910958 | QY19: -0.2376350462 | QZ19: 0.09854305536 | RA19: -0.05651328713 | RB19: -0.04629837349 | RC19: -0.09493109584 | RD19: 0.04047133401 | RE19: 0.08343347162 | RF19: 0.06450788677 | RG19: -0.02400471643 | RH19: 0.01299995743 | RI19: 0.1062203273 | RJ19: 0.02584472299 | RK19: -0.1363387406 | RL19: -0.006478536408 | RM19: -0.0496182628 | RN19: -0.05097427964 | RO19: 0.1225366965 | RP19: -0.1250599325 | RQ19: -0.004706383683 | RR19: -0.02445163205 | RS19: -0.1476995945 | RT19: 0.04802975431 | RU19: -0.2652727962 | RV19: -0.02612571418 | RW19: -0.08711809665 | RX19: 0.03823799267 | RY19: 0.07981927693 | RZ19: -0.1317159534 | SA19: -0.1012202054 | SB19: 0.01545301173 | SC19: 0.04413530231 | SD19: -0.02731765993 | SE19: 0.01548130997 | SF19: 0.008407627232 | SG19: 0.04523473233 | SH19: -0.04547959194
A20: 18 | B20: =Normalization!G27 -> 0.01504338042 | C20: -0.04030859843 | D20: 0.03008076735 | E20: -0.1866565496 | F20: 0.07442841679 | G20: 0.09095336497 | H20: 0.01686585322 | I20: 0.1427403688 | J20: 0.1120199263 | K20: 0.06641814858 | L20: -0.2010183632 | M20: -0.03108369745 | N20: -0.08011716604 | O20: -0.08087448776 | P20: -0.03451164439 | Q20: -0.0464492254 | R20: -0.09689662606 | S20: -0.1119051799 | T20: 0.01184817124 | U20: 0.125847742 | V20: 0.1201282665 | W20: -0.0784477517 | X20: 0.09423099458 | Y20: -0.03777502477 | Z20: 0.05137237161 | AA20: -0.07891168445 | AB20: 0.2176077366 | AC20: 0.02222716995 | AD20: -0.00299067609 | AE20: 0.06956542283 | AF20: 0.01623356342 | AG20: 0.03504693881 | AH20: 0.09448117018 | AI20: 0.04387489334 | AJ20: 0.07933096588 | AK20: -0.01907767355 | AL20: 0.1086092293 | AM20: 0.1080221683 | AN20: 0.04227580875 | AO20: 0.05184271559 | AP20: 0.08821944892 | AQ20: -0.1695544422 | AR20: -0.09936773032 | AS20: -0.08382355422 | AT20: -0.01913398504 | AU20: -0.004705385305 | AV20: -0.07088085264 | AW20: -0.09959185123 | AX20: -0.08699666709 | AY20: -0.07939682901 | AZ20: 0.1393782347 | BA20: 0.05259239301 | BB20: 0.0906131044 | BC20: 0.09854410589 | BD20: 0.07039921731 | BE20: 0.0003032149107 | BF20: 0.152835533 | BG20: -0.02167298459 | BH20: 0.01072778832 | BI20: -0.08856450766 | BJ20: 0.004545712378 | BK20: 0.1030743942 | BL20: -0.1022129804 | BM20: 0.09970589727 | BN20: -0.02765989676 | BO20: -0.1379340887 | BP20: 0.04693299904 | BQ20: 0.1120558009 | BR20: 0.04020825028 | BS20: 0.1328533441 | BT20: -0.07377882302 | BU20: 0.06773720682 | BV20: 0.01838164963 | BW20: -0.1377021074 | BX20: -0.1989737898 | BY20: 0.02091968618 | BZ20: 0.0002747113176 | CA20: 0.04108561575 | CB20: 0.05608912557 | CC20: -0.1463451087 | CD20: -0.01445783675 | CE20: 0.02933986299 | CF20: -0.1086576805 | CG20: -0.06038036942 | CH20: 0.01194685325 | CI20: 0.03144227341 | CJ20: -0.05220365897 | CK20: 0.06963624805 | CL20: -0.07760459185 | CM20: 0.001144172158 | CN20: -0.05532957986 | CO20: 0.03592127934 | CP20: -0.09906310588 | CQ20: -0.09010097384 | CR20: -0.2539292276 | CS20: 0.03835313395 | CT20: 0.031911809 | CU20: -0.02375545911 | CV20: -0.01243856642 | CW20: -0.1409336179 | CX20: -0.02791083232 | CY20: -0.06605618447 | CZ20: 0.04216736928 | DA20: 0.03993491828 | DB20: 0.007019948214 | DC20: 0.1045691669 | DD20: 0.06592489034 | DE20: -0.05187254772 | DF20: 0.05442987382 | DG20: 0.07306550443 | DH20: 0.06597055495 | DI20: 0.01597926766 | DJ20: -0.1134725884 | DK20: -0.0608773157 | DL20: -0.09926791489 | DM20: 0.08639784157 | DN20: -0.03180412203 | DO20: -0.05271895975 | DP20: -0.07975707948 | DQ20: 0.162526235 | DR20: -0.00274501578 | DS20: 0.01443149522 | DT20: -0.05257340148 | DU20: 0.02155127376 | DV20: -0.1086038649 | DW20: -0.04278074205 | DX20: -0.03992554918 | DY20: -0.01587362401 | DZ20: -0.03823718429 | EA20: -0.07641628385 | EB20: 0.01507816836 | EC20: 0.0828929618 | ED20: -0.0237399023 | EE20: 0.07137018442 | EF20: 0.02444580384 | EG20: -0.04972628877 | EH20: 0.02693848312 | EI20: -0.06270649284 | EJ20: -0.08517739177 | EK20: 0.136142239 | EL20: 0.04255937785 | EM20: -0.01543570496 | EN20: -0.1331602037 | EO20: 0.004372678697 | EP20: 0.06128892675 | EQ20: 0.09217759222 | ER20: -0.05624711141 | ES20: -0.09432897717 | ET20: -0.01277030632 | EU20: -0.08602969348 | EV20: 0.06972485036 | EW20: -0.04789988697 | EX20: 0.05586793274 | EY20: 5.61967172e-05 | EZ20: 0.03525868431 | FA20: -0.1197061837 | FB20: 0.045362629 | FC20: 0.03132851422 | FD20: 0.09173086286 | FE20: 0.02626780234 | FF20: -0.04023364931 | FG20: -0.05910781026 | FH20: 0.09018126875 | FI20: -0.02501522936 | FJ20: 0.04892574623 | FK20: 0.01656267233 | FL20: 0.09898728877 | FM20: -0.05670744181 | FN20: 0.08623745292 | FO20: 0.03203457221 | FP20: 0.02169298008 | FQ20: 0.07976360619 | FR20: -0.02887213416 | FS20: -0.0614441745 | FT20: 0.0307580065 | FU20: -0.07079911977 | FV20: 0.0661521256 | FW20: 0.1789996475 | FX20: 0.02538636699 | FY20: -0.05309682712 | FZ20: -0.08045814931 | GA20: 0.01780680753 | GB20: 0.006966419052 | GC20: 0.03861556947 | GD20: -0.0721180439 | GE20: 0.1094772816 | GF20: -0.1380294263 | GG20: -0.1901794076 | GH20: 0.01013712306 | GI20: -0.1029330641 | GJ20: -0.02128171548 | GK20: 0.0770105198 | GL20: 0.009358623996 | GM20: 0.1206621081 | GN20: -0.09370651096 | GO20: -0.04941012338 | GP20: 0.03395257145 | GQ20: 0.01113284286 | GR20: -0.02955249511 | GS20: -0.08529317379 | GT20: -0.03282384947 | GU20: -0.1097578332 | GV20: -0.01540822815 | GW20: 0.01745004021 | GX20: 0.1431850493 | GY20: -0.04760047421 | GZ20: -0.148063764 | HA20: 0.01481985673 | HB20: -0.01761038043 | HC20: -0.08522754163 | HD20: -0.09175235778 | HE20: -0.05683748424 | HF20: 0.170238167 | HG20: -0.03282530978 | HH20: -0.1123249903 | HI20: -0.07077164203 | HJ20: -0.09086389095 | HK20: -0.07530555874 | HL20: 0.107480906 | HM20: -0.05419277772 | HN20: -0.02193557657 | HO20: 0.09597782046 | HP20: -0.2136040777 | HQ20: 0.06030725688 | HR20: 0.1027834341 | HS20: -0.04713627324 | HT20: 0.06884653121 | HU20: -0.121632129 | HV20: 0.05957502872 | HW20: 0.1192644462 | HX20: -0.01188497059 | HY20: -0.04405710474 | HZ20: -0.06160967052 | IA20: -0.06486930698 | IB20: 0.1098024473 | IC20: -0.005582147278 | ID20: -0.04759667441 | IE20: -0.10620597 | IF20: 0.05292975157 | IG20: -0.05670072511 | IH20: -0.05972915143 | II20: 0.05486869439 | IJ20: -0.08829142898 | IK20: -0.04097605124 | IL20: 0.08725956082 | IM20: 0.05941737443 | IN20: -0.04713609815 | IO20: 0.1088271961 | IP20: 0.02920528874 | IQ20: 0.02097140625 | IR20: 0.147392422 | IS20: 0.06775254756 | IT20: -0.04967448115 | IU20: 0.1469849795 | IV20: 0.002007670933 | IW20: -0.01760946773 | IX20: -0.004978899378 | IY20: 0.04268793389 | IZ20: -0.07086864114 | JA20: 0.0522656627 | JB20: -0.04745510593 | JC20: -0.08017936349 | JD20: -0.1021261141 | JE20: -0.05840661004 | JF20: -0.006686809473 | JG20: 0.04075164348 | JH20: 0.01017948613 | JI20: 0.08638770878 | JJ20: 0.06359680742 | JK20: -0.04402606189 | JL20: 0.05376967415 | JM20: -0.07934208214 | JN20: -0.08287899196 | JO20: 0.008483610116 | JP20: 0.006444547791 | JQ20: 0.1091348231 | JR20: 0.01116427779 | JS20: 0.09136552364 | JT20: -0.04390988871 | JU20: -0.1187504679 | JV20: 0.025907645 | JW20: -0.1614268273 | JX20: 0.01200887281 | JY20: -0.07561346889 | JZ20: 0.01929492131 | KA20: 0.06727981567 | KB20: 0.02704726532 | KC20: -0.04624072835 | KD20: -0.06705657393 | KE20: -0.04165032879 | KF20: -0.0853298977 | KG20: -0.009938366711 | KH20: -0.04773952812 | KI20: 0.02317047678 | KJ20: 0.004896243569 | KK20: -0.09636140615 | KL20: 0.06231966615 | KM20: -0.102750361 | KN20: 0.0182342045 | KO20: -0.4449920654 | KP20: -0.1284168065 | KQ20: 0.009632497095 | KR20: -0.03657893091 | KS20: -0.02031040937 | KT20: 0.1446455866 | KU20: -0.02976001054 | KV20: 0.071360223 | KW20: -0.06815759093 | KX20: -0.00404988043 | KY20: -0.01102961227 | KZ20: 0.01305815298 | LA20: -0.05938353017 | LB20: -0.06857376546 | LC20: 0.02785627171 | LD20: -0.05022768676 | LE20: 0.07836506516 | LF20: -0.006279945839 | LG20: 0.0778305009 | LH20: -0.02123394981 | LI20: 0.1953261793 | LJ20: -0.1206676066 | LK20: 0.104858093 | LL20: -0.1122728363 | LM20: 0.02023054101 | LN20: 0.06440169364 | LO20: -0.1347597688 | LP20: 0.005791740492 | LQ20: -0.07778203487 | LR20: -0.05307681486 | LS20: 0.09248461574 | LT20: 0.01065992005 | LU20: 0.06891263276 | LV20: -0.0001007241008 | LW20: -0.1368906498 | LX20: -0.02417129278 | LY20: 0.04374248534 | LZ20: -0.003814314492 | MA20: -0.01315889414 | MB20: -0.0571301356 | MC20: -0.1037256941 | MD20: 0.005684740376 | ME20: -0.1018352658 | MF20: -0.0613746345 | MG20: 0.008796572685 | MH20: -0.06380138546 | MI20: -0.1368496567 | MJ20: 0.0605061911 | MK20: 0.07919005305 | ML20: 0.06218155101 | MM20: 0.02741269581 | MN20: 0.1195346192 | MO20: 0.06505434215 | MP20: 0.008331666701 | MQ20: 0.07896160334 | MR20: -0.06617948413 | MS20: -0.2294358611 | MT20: 0.05881295353 | MU20: -0.1092348322 | MV20: -0.04067204148 | MW20: 0.01828448102 | MX20: 0.02085088752 | MY20: 0.01262212917 | MZ20: 0.03254039213 | NA20: 0.0268299412 | NB20: -0.04176436365 | NC20: -0.04345018044 | ND20: -0.1323866099 | NE20: 0.02743900567 | NF20: -0.06543370336 | NG20: 0.1021686271 | NH20: -0.09440816939 | NI20: 0.1825579852 | NJ20: -0.08813927323 | NK20: 0.04491917044 | NL20: -0.1123518199 | NM20: 0.05346021801 | NN20: -0.05025180429 | NO20: -0.0436645709 | NP20: -0.07154534757 | NQ20: -0.06653755903 | NR20: -0.01537793782 | NS20: -0.02437120676 | NT20: 0.02361438796 | NU20: 0.1122744828 | NV20: -0.1121256948 | NW20: -0.04259752482 | NX20: -0.08674395829 | NY20: 0.05220878124 | NZ20: -0.08443776518 | OA20: -0.09691892564 | OB20: -0.126878649 | OC20: 0.03874659166 | OD20: 0.03644919768 | OE20: -0.1656234413 | OF20: 0.06927399337 | OG20: 0.03375662118 | OH20: -0.06066297367 | OI20: -0.03883009031 | OJ20: -0.01640195213 | OK20: -0.07430960238 | OL20: 0.01597346552 | OM20: -0.1188922375 | ON20: 0.09853199124 | OO20: -0.1034176797 | OP20: -0.1271588653 | OQ20: -0.02410499007 | OR20: -0.09506092221 | OS20: -0.03212062642 | OT20: -0.008303735405 | OU20: -0.07707460225 | OV20: -0.08564708382 | OW20: 0.06518294662 | OX20: 0.01181879919 | OY20: 0.05914863944 | OZ20: -0.004376247991 | PA20: -0.05010835826 | PB20: -0.121145986 | PC20: 0.1060735881 | PD20: -0.08160768449 | PE20: -0.09864702076 | PF20: -0.1085168645 | PG20: 0.03148749098 | PH20: 0.0122813927 | PI20: -0.02746535651 | PJ20: -0.05056501925 | PK20: -0.09452803433 | PL20: -0.1128888801 | PM20: -0.05165180936 | PN20: -0.05780424178 | PO20: 0.1136067882 | PP20: 0.004043623805 | PQ20: -0.04990446568 | PR20: 0.02863767929 | PS20: 0.001817159355 | PT20: -0.03293870762 | PU20: 0.06424640119 | PV20: -0.03154273331 | PW20: -0.06639257073 | PX20: -0.09303746372 | PY20: -0.08314619213 | PZ20: -0.07499299943 | QA20: -0.1235765293 | QB20: -0.100794591 | QC20: -0.01710511185 | QD20: -0.003919660114 | QE20: 0.04185694829 | QF20: 0.04471477866 | QG20: -0.01899615303 | QH20: -0.1156784967 | QI20: -0.03871448711 | QJ20: 0.06923913211 | QK20: 0.1030942947 | QL20: -0.1005726084 | QM20: -0.2556884587 | QN20: -0.07134283334 | QO20: -0.1333289444 | QP20: 0.06685278565 | QQ20: -0.08856292069 | QR20: -0.1078820452 | QS20: 0.1098150611 | QT20: 0.0677350834 | QU20: -0.02309911139 | QV20: 0.1203259826 | QW20: -0.03861273453 | QX20: 0.1167773902 | QY20: 0.03589564189 | QZ20: 0.03238095716 | RA20: 0.004687561654 | RB20: 0.04564961791 | RC20: -0.02800218575 | RD20: -0.09474241734 | RE20: 0.04800808057 | RF20: 0.05335268378 | RG20: -0.03527295589 | RH20: 0.06412514299 | RI20: 0.05156236142 | RJ20: 0.09350393713 | RK20: 0.09079384804 | RL20: 0.05897539109 | RM20: -0.1081167459 | RN20: -0.04015320167 | RO20: 0.05146131665 | RP20: 0.03817505762 | RQ20: -0.1187189817 | RR20: -0.0395045802 | RS20: 0.03139845654 | RT20: -0.1152923927 | RU20: 0.09964413941 | RV20: -0.0183852762 | RW20: -0.02700428106 | RX20: 0.08109078556 | RY20: 0.1389719695 | RZ20: 0.0517424643 | SA20: -0.0008408808499 | SB20: -0.0535505265 | SC20: -0.01650626771 | SD20: -0.001295085764 | SE20: -0.01809571497 | SF20: -0.1267686337 | SG20: -0.04307696596 | SH20: 0.118649438
A21: 19 | B21: =Normalization!G28 -> 0 | C21: -0.04258051142 | D21: -0.0293219164 | E21: 0.09178218246 | F21: 0.04655747861 | G21: -0.048610989 | H21: 0.01777191646 | I21: -0.01428354345 | J21: -0.2651681304 | K21: -0.09569457918 | L21: -0.03768072277 | M21: -0.1005762368 | N21: 0.06168260053 | O21: -0.1004366651 | P21: 0.104791902 | Q21: 0.05056379363 | R21: -0.01132733002 | S21: 0.07520543784 | T21: -0.09400711209 | U21: 0.04044244066 | V21: -0.04681473225 | W21: -0.1129671559 | X21: -0.08894444257 | Y21: 0.06111119315 | Z21: -0.07895052433 | AA21: -0.00209224713 | AB21: 0.2023789585 | AC21: -0.05748344585 | AD21: -0.02106418274 | AE21: -0.07588224113 | AF21: -0.05767440423 | AG21: -0.1870756298 | AH21: -0.05169018731 | AI21: -0.0540401414 | AJ21: 0.08840101212 | AK21: 0.10448654 | AL21: 0.0643773675 | AM21: 0.001631053747 | AN21: 0.07421970367 | AO21: 0.03770046309 | AP21: 0.07229667902 | AQ21: 0.03974279016 | AR21: 0.008149724454 | AS21: 0.03226345778 | AT21: 0.06572410464 | AU21: 0.171634987 | AV21: -0.06455569714 | AW21: -0.1271105111 | AX21: 0.04051864147 | AY21: -0.08062883466 | AZ21: -0.09509985894 | BA21: -0.01872757822 | BB21: 0.09455242753 | BC21: 0.09833319485 | BD21: 0.07182291895 | BE21: -0.05722532421 | BF21: 0.06337399781 | BG21: -0.06787547469 | BH21: -0.03534555063 | BI21: 0.03417754918 | BJ21: 0.04832651839 | BK21: -0.06703405827 | BL21: 0.06515776366 | BM21: -0.08271523565 | BN21: -0.06630530953 | BO21: -0.07907129824 | BP21: 0.03305531293 | BQ21: 0.1085936204 | BR21: -0.07974223793 | BS21: 0.02315819636 | BT21: -0.1283803731 | BU21: -0.08301465958 | BV21: 0.0173899103 | BW21: 0.04171732068 | BX21: -0.0157398358 | BY21: 0.01806091517 | BZ21: -0.06033994257 | CA21: 0.002484005876 | CB21: -0.02263906412 | CC21: -0.03387752175 | CD21: 0.0120223444 | CE21: 0.01156552322 | CF21: -0.1494825482 | CG21: -0.08940919489 | CH21: -0.07052389532 | CI21: -0.03527050465 | CJ21: -0.08882153779 | CK21: -0.04737397656 | CL21: -0.1050908938 | CM21: 0.06642969698 | CN21: -0.0215242859 | CO21: 0.01915575005 | CP21: 0.006883086171 | CQ21: -0.004423851613 | CR21: 0.1942531615 | CS21: -0.00761132082 | CT21: 0.06010248512 | CU21: 0.02472758107 | CV21: -0.08072504401 | CW21: -0.02143916301 | CX21: -0.08195667714 | CY21: 0.1742347479 | CZ21: -0.2342569083 | DA21: -0.09354551882 | DB21: 0.02124413103 | DC21: -0.01533614658 | DD21: -0.05746604875 | DE21: -0.08383430541 | DF21: 0.1186833233 | DG21: 0.05175906047 | DH21: 0.01088732388 | DI21: 0.05191205814 | DJ21: 0.03510995209 | DK21: -0.1146107838 | DL21: 0.002689353889 | DM21: -0.09687808901 | DN21: -0.1251088828 | DO21: -0.07444483787 | DP21: -0.01915671304 | DQ21: -0.07815246284 | DR21: 0.07507231086 | DS21: -0.07775295526 | DT21: -0.1005581096 | DU21: 0.03918162733 | DV21: 0.1080671996 | DW21: -0.0706339553 | DX21: -0.05600706115 | DY21: 0.04184675217 | DZ21: -0.07214155793 | EA21: -0.1963077635 | EB21: -0.02389270626 | EC21: 0.004426259547 | ED21: 0.02687436156 | EE21: -0.06916040182 | EF21: 0.05119272321 | EG21: -0.1158116832 | EH21: -0.0110116303 | EI21: 0.07985753566 | EJ21: 0.0659449324 | EK21: -0.0230369959 | EL21: -0.1728506833 | EM21: 0.08423226327 | EN21: -0.06606249511 | EO21: 0.05932775885 | EP21: -0.06933087111 | EQ21: -0.08359286189 | ER21: 0.02044914849 | ES21: 0.05384230986 | ET21: 0.1079994366 | EU21: -0.09659845382 | EV21: -0.0445195362 | EW21: 0.06329404563 | EX21: -0.09765187651 | EY21: 0.08668425679 | EZ21: -0.05115582049 | FA21: -0.01539683715 | FB21: -0.008052251302 | FC21: 0.08352409303 | FD21: -0.09177187085 | FE21: -0.08763340116 | FF21: 0.08223143965 | FG21: -0.04395957664 | FH21: -0.04796172306 | FI21: 0.02490630187 | FJ21: 0.1210170463 | FK21: -0.05353459343 | FL21: -0.02467843145 | FM21: 0.127076745 | FN21: -0.04101333022 | FO21: -0.0385068208 | FP21: -0.03979873657 | FQ21: -0.1250035614 | FR21: -0.1287563741 | FS21: -0.01454852056 | FT21: 0.09745959193 | FU21: 0.04773938283 | FV21: -0.04957265779 | FW21: 0.06098904833 | FX21: -0.008593728766 | FY21: -0.07811213285 | FZ21: -0.1196698919 | GA21: -0.1125707403 | GB21: -0.006926991511 | GC21: 0.05877358466 | GD21: 0.007307862863 | GE21: 0.09158123285 | GF21: 0.02123618312 | GG21: 0.1214549989 | GH21: -0.01729349792 | GI21: 0.1015936807 | GJ21: -0.1251591146 | GK21: -0.06989185512 | GL21: -0.08856869489 | GM21: 0.02540832199 | GN21: 0.02307004109 | GO21: -0.01911094226 | GP21: 0.04613962397 | GQ21: -0.02692998014 | GR21: 0.04841574654 | GS21: 0.04667128995 | GT21: 0.08700817823 | GU21: -0.0587756075 | GV21: -0.07636424899 | GW21: -0.07904490083 | GX21: -0.0623767674 | GY21: -0.1611689031 | GZ21: 0.06415648013 | HA21: -0.03421811014 | HB21: -0.032167878 | HC21: -0.1029704958 | HD21: -0.01367109921 | HE21: 0.05071887746 | HF21: -0.008656427264 | HG21: -0.008291106671 | HH21: 0.07849184424 | HI21: -0.04061389714 | HJ21: -0.07713804394 | HK21: 0.08851798624 | HL21: 0.06772791594 | HM21: 0.08863530308 | HN21: -0.05676293746 | HO21: 0.08538226783 | HP21: -0.04663196206 | HQ21: 0.004983874038 | HR21: -0.06242255121 | HS21: -0.1130186319 | HT21: -0.02323049121 | HU21: 0.01122777537 | HV21: -0.1003866941 | HW21: 0.02146102116 | HX21: 0.02469050139 | HY21: 0.1879021823 | HZ21: -0.0004089993308 | IA21: 0.1101573929 | IB21: -0.01065864693 | IC21: -0.01148791518 | ID21: 0.01406630594 | IE21: -0.03141029924 | IF21: -0.01258466393 | IG21: 0.04166098684 | IH21: -0.1704325974 | II21: 0.0319089964 | IJ21: 0.08968193829 | IK21: 0.1111956686 | IL21: 0.04559154809 | IM21: -0.1264341623 | IN21: -0.1354591399 | IO21: -0.002581076929 | IP21: 0.07013855129 | IQ21: 0.08702871203 | IR21: 0.1414395124 | IS21: -0.06285391748 | IT21: -0.1030659601 | IU21: 0.02027496509 | IV21: 0.04092976823 | IW21: -0.1143292263 | IX21: -0.07106606662 | IY21: -0.06200895831 | IZ21: 0.0269903224 | JA21: 0.1507418305 | JB21: 0.07973634452 | JC21: -0.1101498157 | JD21: 0.09143143147 | JE21: -0.09758082032 | JF21: 0.07528147101 | JG21: 0.07230132073 | JH21: -0.07105623186 | JI21: 0.06068864837 | JJ21: -0.03459786996 | JK21: 0.1008488536 | JL21: -0.08018575609 | JM21: -0.2901917398 | JN21: -0.06480771303 | JO21: 0.03380926326 | JP21: 0.1365820169 | JQ21: 0.1272451878 | JR21: 0.12940602 | JS21: 0.02826604247 | JT21: -0.04305623472 | JU21: -0.06352359056 | JV21: 0.06268451363 | JW21: -0.01982825622 | JX21: -0.0159708485 | JY21: -0.2515062392 | JZ21: 0.1583823264 | KA21: -0.07680057734 | KB21: 0.08500488102 | KC21: 0.08530961722 | KD21: 0.04777200148 | KE21: -0.09457205981 | KF21: -0.03782648221 | KG21: 0.07511933893 | KH21: 0.06251896173 | KI21: 0.06904494017 | KJ21: -0.1093405485 | KK21: 0.02812116034 | KL21: 0.028814964 | KM21: 0.08363503218 | KN21: -0.1308636963 | KO21: 0.09103730321 | KP21: 0.1128865927 | KQ21: -0.1778018177 | KR21: -0.04206753522 | KS21: -0.03436638415 | KT21: 0.1001047939 | KU21: 0.04311970621 | KV21: 0.07614345849 | KW21: -0.09922332317 | KX21: 0.04620100185 | KY21: 0.06095449254 | KZ21: -0.004798857495 | LA21: -0.0367631726 | LB21: -0.003385123797 | LC21: 0.02253466845 | LD21: -0.1319312155 | LE21: 0.09221461415 | LF21: 0.09430079162 | LG21: 0.05396103114 | LH21: -0.04109145701 | LI21: 0.05646060407 | LJ21: -0.169161737 | LK21: -0.06099026278 | LL21: -0.1028071865 | LM21: 0.01955792867 | LN21: -0.04971874878 | LO21: 0.03507671878 | LP21: -0.02197547816 | LQ21: -0.1334477514 | LR21: -0.01527466904 | LS21: 0.06046303734 | LT21: -0.08820932359 | LU21: -0.1648541093 | LV21: -0.09931325167 | LW21: -0.05471498519 | LX21: -0.04768336937 | LY21: 0.07388661802 | LZ21: 0.08830916882 | MA21: -0.06862813234 | MB21: 0.03075029142 | MC21: -0.05215351284 | MD21: 0.09067962319 | ME21: -0.1756150573 | MF21: 0.1026969329 | MG21: -0.1080183163 | MH21: 0.09784788638 | MI21: -0.1470268667 | MJ21: -0.05175188556 | MK21: 0.02997034788 | ML21: -0.0118841771 | MM21: 0.05659474432 | MN21: -0.1271966249 | MO21: -0.05102870613 | MP21: 0.04712470621 | MQ21: -0.03560803831 | MR21: -0.005594160408 | MS21: 0.02959717438 | MT21: -0.1583633274 | MU21: -0.06402942538 | MV21: -0.01269212738 | MW21: 0.1200406998 | MX21: 0.01537860744 | MY21: 0.03817403689 | MZ21: 0.08457820117 | NA21: 0.07982266694 | NB21: -0.05234399065 | NC21: -0.03427738696 | ND21: -0.08605694026 | NE21: 0.06182526052 | NF21: -0.1608366966 | NG21: 0.03614557162 | NH21: -0.05696799606 | NI21: -0.1056703553 | NJ21: 0.03733095154 | NK21: -0.01389953401 | NL21: -0.2036860138 | NM21: -0.003467570059 | NN21: -0.04342958331 | NO21: -0.05314409733 | NP21: 0.05407064036 | NQ21: 0.03757635504 | NR21: -0.1249755844 | NS21: -0.02167406864 | NT21: -0.1648550481 | NU21: -0.1405225694 | NV21: 0.07989427447 | NW21: -0.08890982717 | NX21: 0.08132103831 | NY21: -0.03671133891 | NZ21: -0.02445433289 | OA21: 0.03095868416 | OB21: 0.01115920767 | OC21: -0.1571291238 | OD21: -0.1232957914 | OE21: -0.01883513667 | OF21: 0.06911502033 | OG21: -0.03637591377 | OH21: 0.1103976592 | OI21: 0.04065894336 | OJ21: -0.2009548992 | OK21: 0.01380767487 | OL21: 0.01972245798 | OM21: -0.004162771627 | ON21: 0.0441057384 | OO21: -0.01574740186 | OP21: 0.03838210553 | OQ21: -0.05346556753 | OR21: 0.07815547287 | OS21: 0.0003489140072 | OT21: 0.02479978465 | OU21: 0.09341584891 | OV21: -0.07588106394 | OW21: -0.03802220896 | OX21: 0.01752846502 | OY21: -0.2351339012 | OZ21: 0.1432088017 | PA21: -0.06611803919 | PB21: -0.09704715014 | PC21: -0.0550903976 | PD21: -0.07632104307 | PE21: -0.03050462529 | PF21: 0.04827870056 | PG21: 0.08339066803 | PH21: 0.1327141076 | PI21: 0.0448076278 | PJ21: -0.1008915007 | PK21: 0.0943158865 | PL21: 0.1223969683 | PM21: 0.01312466525 | PN21: -0.132112056 | PO21: -0.08912203461 | PP21: 0.01559061091 | PQ21: 0.07804020494 | PR21: 0.0893906951 | PS21: -0.08534108847 | PT21: -0.1644460857 | PU21: -0.05424106494 | PV21: -0.05882577226 | PW21: -0.04534429684 | PX21: -0.02947455831 | PY21: 0.0461730361 | PZ21: 0.03104714304 | QA21: -0.01350780018 | QB21: 0.006614011247 | QC21: -0.01928326301 | QD21: -0.06005239114 | QE21: -0.03111867048 | QF21: 0.0003224100801 | QG21: -0.01286861114 | QH21: -0.06357368827 | QI21: 0.1204811484 | QJ21: -0.03894838318 | QK21: -0.04364237934 | QL21: 0.00628946675 | QM21: -0.01579028554 | QN21: -0.03097890876 | QO21: -0.04676880687 | QP21: -0.1083284914 | QQ21: 0.04131702334 | QR21: -0.1951067001 | QS21: -0.143069908 | QT21: 0.0836757943 | QU21: 0.04083292186 | QV21: 0.09486102313 | QW21: 0.06460854411 | QX21: -0.1895846874 | QY21: 0.04706418887 | QZ21: -0.1994603425 | RA21: -0.03953558952 | RB21: -0.03050473332 | RC21: -0.05403940007 | RD21: 0.05851679668 | RE21: 0.03701709956 | RF21: 0.03388185054 | RG21: 0.08022171259 | RH21: 0.02561976761 | RI21: -0.03689282015 | RJ21: 0.1113226935 | RK21: -0.1361753643 | RL21: -0.009984392673 | RM21: 0.006360089872 | RN21: -0.105836615 | RO21: -0.0797374174 | RP21: 0.03639892116 | RQ21: -0.1167449355 | RR21: -0.09582990408 | RS21: -0.1622789651 | RT21: -0.04377382621 | RU21: 0.01168815512 | RV21: 0.0523589775 | RW21: -0.08398418128 | RX21: -0.04442878813 | RY21: -0.03756253421 | RZ21: -0.06686969846 | SA21: 0.03337740898 | SB21: 0.08228011429 | SC21: -0.03984218463 | SD21: 0.07880444825 | SE21: -0.002310092328 | SF21: 0.07838444412 | SG21: -0.1293438673 | SH21: -0.03294510394
A22: 20 | B22: =Normalization!G29 -> 0 | C22: -0.04671011865 | D22: -0.1643274724 | E22: -0.07430031896 | F22: 0.1112868935 | G22: 0.1446079612 | H22: -0.05978930742 | I22: 0.00276165735 | J22: -0.04079145193 | K22: 0.02453893982 | L22: -0.1376902759 | M22: -0.1437946707 | N22: 0.01919771731 | O22: 0.04827801883 | P22: -0.3100111783 | Q22: -0.02779048681 | R22: 0.001181568485 | S22: 0.08086650819 | T22: 0.02299002372 | U22: -0.03837775439 | V22: 0.1490514427 | W22: 0.07999379933 | X22: -0.1377357692 | Y22: 0.05681636557 | Z22: 0.1180565506 | AA22: 0.06289109588 | AB22: -0.1459742039 | AC22: 0.07577741146 | AD22: -0.02527946979 | AE22: -0.09198725969 | AF22: 0.08103817701 | AG22: 0.02302463911 | AH22: 0.108837314 | AI22: 0.03847882524 | AJ22: -0.09542720765 | AK22: 0.1300793886 | AL22: 0.08569265902 | AM22: 0.07840520889 | AN22: 0.1166469902 | AO22: -0.01226369105 | AP22: 0.05639213324 | AQ22: 0.0229259152 | AR22: -0.01897440851 | AS22: -0.1212218404 | AT22: 0.05217471719 | AU22: -0.2761815786 | AV22: 0.01279810816 | AW22: -0.08978448063 | AX22: -0.01775166579 | AY22: 0.05979574844 | AZ22: -0.2887273431 | BA22: 0.1006983295 | BB22: 0.03446834162 | BC22: 0.09582152963 | BD22: 0.03880670294 | BE22: 0.02495173737 | BF22: 0.05577836931 | BG22: 0.1674100608 | BH22: 0.02832842059 | BI22: -0.1183320507 | BJ22: 0.02213327773 | BK22: 0.1363324374 | BL22: 0.05311545357 | BM22: 0.08345875144 | BN22: 0.1172769815 | BO22: -0.0212543495 | BP22: -0.05064535141 | BQ22: -0.06334455311 | BR22: 0.08513508737 | BS22: 0.06983248889 | BT22: -0.07935293764 | BU22: 0.09848041087 | BV22: 0.09698003531 | BW22: -0.007710963953 | BX22: 0.1302739084 | BY22: 0.01021547616 | BZ22: 0.04120550305 | CA22: 0.01441913377 | CB22: 0.09787394851 | CC22: 0.0151227871 | CD22: -0.09164568037 | CE22: -0.04182089493 | CF22: -0.001007866696 | CG22: 0.03902550042 | CH22: 0.006904714741 | CI22: 0.08782466501 | CJ22: 0.05516836047 | CK22: 0.1792229712 | CL22: -0.01797587052 | CM22: 0.04132842273 | CN22: 0.03973912075 | CO22: 0.0307303872 | CP22: -0.1366046965 | CQ22: 0.0343034938 | CR22: 0.2272733301 | CS22: 0.09798462689 | CT22: 0.07077810913 | CU22: 0.05482324958 | CV22: -0.1103981435 | CW22: 0.02234637178 | CX22: 0.08215046674 | CY22: -0.1129356697 | CZ22: 0.1092950702 | DA22: 0.01691789739 | DB22: 0.06968863308 | DC22: 0.05222414806 | DD22: -0.02890670858 | DE22: -0.07214434445 | DF22: 0.0280494187 | DG22: -0.1303833723 | DH22: 0.03520093486 | DI22: 0.01912408695 | DJ22: -0.1276854128 | DK22: 0.1662598848 | DL22: 0.07188595831 | DM22: -0.07687351853 | DN22: -0.0342579782 | DO22: -0.04032612592 | DP22: 0.03619622439 | DQ22: 0.07917817682 | DR22: 0.03647851199 | DS22: 0.07729635388 | DT22: 0.04957227409 | DU22: 0.06816497445 | DV22: -0.02245104685 | DW22: 0.1114077717 | DX22: 0.0746640116 | DY22: 0.08182810247 | DZ22: -0.02982494049 | EA22: -0.06234071404 | EB22: 0.001882528421 | EC22: 0.1271890849 | ED22: -0.11754632 | EE22: -0.03134725615 | EF22: -0.03403060138 | EG22: 0.04081040248 | EH22: -0.05515164882 | EI22: -0.01026425976 | EJ22: 0.06072615087 | EK22: -0.04847905412 | EL22: 0.05216130987 | EM22: 0.04801320657 | EN22: -0.07616589963 | EO22: 0.06518983841 | EP22: -0.04466624931 | EQ22: -0.01743385009 | ER22: -0.2602976859 | ES22: 0.08772740513 | ET22: 0.07949935645 | EU22: -0.02333424613 | EV22: 0.02150445431 | EW22: -0.08540468663 | EX22: 0.1267454475 | EY22: 0.09588763118 | EZ22: 0.1139371842 | FA22: -0.1053162143 | FB22: -0.01653966308 | FC22: -0.04412165284 | FD22: 0.02196077257 | FE22: -0.03820784017 | FF22: -0.02168064006 | FG22: 0.02951816283 | FH22: 0.04342596233 | FI22: -0.02318343893 | FJ22: 0.0785259828 | FK22: 0.01611417532 | FL22: 0.04752130434 | FM22: -0.04900959879 | FN22: -0.01299248543 | FO22: -0.0841878131 | FP22: 0.03675763682 | FQ22: -0.0188776385 | FR22: -0.08792377263 | FS22: -0.09539773315 | FT22: -0.04447246715 | FU22: -0.08866685629 | FV22: 0.02340456285 | FW22: -0.1208419278 | FX22: -0.007711752318 | FY22: -0.4843465388 | FZ22: 0.1539012194 | GA22: 0.1461029351 | GB22: 0.05415163934 | GC22: 0.04419325292 | GD22: -0.004773864988 | GE22: -0.005229949951 | GF22: -0.1466569602 | GG22: 0.0561151728 | GH22: -0.1728685796 | GI22: 0.04789803922 | GJ22: -0.02657998726 | GK22: 0.003785106586 | GL22: -0.01338782441 | GM22: 0.07379802316 | GN22: 0.09140492231 | GO22: 0.1341018379 | GP22: -0.001150112366 | GQ22: 0.01442754082 | GR22: -0.02398417145 | GS22: 0.01572983339 | GT22: 0.07347408682 | GU22: -0.005902096629 | GV22: -0.03874451667 | GW22: 0.09985590726 | GX22: -0.005064060912 | GY22: -0.07297522575 | GZ22: -0.3240011632 | HA22: -0.05588828772 | HB22: -0.158521682 | HC22: 0.06797897071 | HD22: 0.02474541217 | HE22: -0.1122469455 | HF22: -0.02033378556 | HG22: -0.0736092031 | HH22: -0.01474783849 | HI22: -0.05774001777 | HJ22: -0.01233850606 | HK22: 0.09784110636 | HL22: -0.02887055278 | HM22: 0.001229986199 | HN22: 0.1392092854 | HO22: -0.02562043816 | HP22: -0.1796268821 | HQ22: -0.0512830317 | HR22: -0.0201889351 | HS22: 0.07483995706 | HT22: 0.05108095333 | HU22: 0.06007776409 | HV22: 0.05781506747 | HW22: -0.1145951375 | HX22: 0.1036486402 | HY22: -0.249428615 | HZ22: 0.164521873 | IA22: -0.08510945737 | IB22: -0.007092814427 | IC22: 0.06666509807 | ID22: 0.06857584417 | IE22: 0.06717072427 | IF22: -0.05981741846 | IG22: 0.06007702276 | IH22: -0.08967214078 | II22: -0.06586832553 | IJ22: 0.1082103029 | IK22: -0.01523099933 | IL22: 0.08008579165 | IM22: -0.04839420319 | IN22: 0.0470399335 | IO22: -0.105373472 | IP22: -0.2361080945 | IQ22: -0.1523718685 | IR22: -0.3440063 | IS22: 0.08176356554 | IT22: -0.3089530766 | IU22: -0.03297693282 | IV22: 0.1167210713 | IW22: -0.01705141552 | IX22: 0.06301377714 | IY22: 0.1237531751 | IZ22: 0.007534174714 | JA22: 0.1378922462 | JB22: -0.1399624646 | JC22: -0.04963484779 | JD22: -0.07960899919 | JE22: -0.005961879622 | JF22: -0.03901066631 | JG22: -0.1298445463 | JH22: -0.09084249288 | JI22: -0.07470823079 | JJ22: -0.1088804975 | JK22: 0.06265256554 | JL22: 0.05292390287 | JM22: -0.09114308655 | JN22: 0.05690828338 | JO22: 0.02818637528 | JP22: 0.0434345603 | JQ22: 0.07208839059 | JR22: -0.1730127931 | JS22: 0.1085981131 | JT22: -0.2127066851 | JU22: 0.1053745076 | JV22: 0.07529880106 | JW22: 0.02577158995 | JX22: 0.1351142228 | JY22: 0.05684031174 | JZ22: -0.1513458937 | KA22: 0.04747371376 | KB22: 0.00528357178 | KC22: 0.1361857802 | KD22: 0.08135884255 | KE22: 0.1377057135 | KF22: 0.0399668701 | KG22: -0.1555234939 | KH22: -0.08324493468 | KI22: 0.07168342173 | KJ22: 0.05366643518 | KK22: -0.1464501768 | KL22: 0.04511123523 | KM22: -0.03019202873 | KN22: 0.01676795259 | KO22: -0.3702034354 | KP22: 0.02614663169 | KQ22: 0.134183526 | KR22: 0.1363641322 | KS22: -0.1034380719 | KT22: 0.05826598406 | KU22: 0.077269651 | KV22: -0.09528149664 | KW22: 0.008061821572 | KX22: -0.1162689328 | KY22: 0.07109670341 | KZ22: 0.08377084136 | LA22: 0.03610865399 | LB22: 0.049579788 | LC22: -0.2656530738 | LD22: -0.1097940728 | LE22: 0.01711412147 | LF22: -0.06925298274 | LG22: -0.002399433171 | LH22: 0.03300131112 | LI22: -0.1150397956 | LJ22: 0.01608356275 | LK22: 0.1208892763 | LL22: -0.05219461396 | LM22: -0.1741318256 | LN22: -0.04557207599 | LO22: 0.04888621345 | LP22: -0.0008446027059 | LQ22: -0.03939414024 | LR22: -0.07569824159 | LS22: 0.08454035223 | LT22: -0.02532551251 | LU22: 0.02106983587 | LV22: 0.0001676668326 | LW22: -0.01639425941 | LX22: 0.08850996196 | LY22: 0.09667865932 | LZ22: -0.1254442334 | MA22: 0.06019567326 | MB22: -0.1788324714 | MC22: -0.03060634434 | MD22: 0.175820291 | ME22: -0.01814472303 | MF22: 0.09229545295 | MG22: 0.09374509752 | MH22: 0.06797477603 | MI22: 0.05842587724 | MJ22: -0.1445264369 | MK22: 0.007409441285 | ML22: 0.01167064812 | MM22: 0.08018154651 | MN22: 0.06600346416 | MO22: 0.08207438141 | MP22: 0.2209400833 | MQ22: -0.07855274528 | MR22: 0.1002723351 | MS22: 0.09086549282 | MT22: 0.04949051142 | MU22: 0.05834527314 | MV22: 0.1256025136 | MW22: 0.08279446512 | MX22: -0.1734783947 | MY22: -0.05547519028 | MZ22: -0.05724417046 | NA22: -0.002469065133 | NB22: -0.004980511963 | NC22: -0.02150971442 | ND22: 0.08356191963 | NE22: -0.2356950939 | NF22: 0.04669247195 | NG22: 0.09413352609 | NH22: 0.07887724042 | NI22: 0.05784131959 | NJ22: -0.06192855537 | NK22: -0.01187675539 | NL22: 0.0008121544961 | NM22: 0.04449171573 | NN22: -0.03598681092 | NO22: -0.06663566828 | NP22: -0.1196265891 | NQ22: 0.02569708601 | NR22: -0.2291038334 | NS22: -0.04244919866 | NT22: -0.003543969942 | NU22: -0.1774983555 | NV22: -0.06283785403 | NW22: 0.1190952435 | NX22: -0.1896104366 | NY22: 0.06942955405 | NZ22: -0.03554015979 | OA22: 0.09382588416 | OB22: -0.009166076779 | OC22: -0.1402356029 | OD22: -0.01027256623 | OE22: -0.07166337222 | OF22: -0.0180714149 | OG22: 0.08507934213 | OH22: 0.08183667809 | OI22: -0.02071648836 | OJ22: 0.09981758893 | OK22: -0.07118879259 | OL22: -5.601051089e-05 | OM22: 0.09617854655 | ON22: 0.04291778803 | OO22: 0.07883804291 | OP22: 0.08551257849 | OQ22: 0.001881164499 | OR22: 0.08459817618 | OS22: 0.09939055145 | OT22: -0.02779461257 | OU22: -0.06885775179 | OV22: -0.006648664828 | OW22: 0.08307836205 | OX22: 0.09089227021 | OY22: -0.1026501954 | OZ22: -0.09548430145 | PA22: 0.01620456576 | PB22: -0.02428229712 | PC22: 0.06812631339 | PD22: -0.06768450886 | PE22: -0.0124730058 | PF22: -0.04010326788 | PG22: 0.02052903175 | PH22: 0.03028283268 | PI22: 0.0416085124 | PJ22: -0.1055659652 | PK22: 0.07915762067 | PL22: -0.02560138889 | PM22: -0.06266226619 | PN22: 0.0939091444 | PO22: 0.06570062786 | PP22: -0.03149597719 | PQ22: 0.03469672427 | PR22: 0.110202238 | PS22: 0.03281106427 | PT22: -0.004320480861 | PU22: 0.01596082188 | PV22: 0.07666517049 | PW22: -0.0054666996 | PX22: -0.09056035429 | PY22: -0.09128411114 | PZ22: 0.1033771038 | QA22: 0.1110418141 | QB22: -4.28493986e-05 | QC22: 0.03222214803 | QD22: -0.1304211617 | QE22: 0.112210907 | QF22: 0.02898861468 | QG22: -0.1055885032 | QH22: -0.006954292767 | QI22: 0.1602111012 | QJ22: -0.07927940786 | QK22: -0.09272649884 | QL22: 0.08448987454 | QM22: 0.3785471618 | QN22: 0.04117156193 | QO22: -0.03477073833 | QP22: 0.02513410896 | QQ22: -0.0237299297 | QR22: -0.04683744162 | QS22: -0.1871060133 | QT22: 0.0458412692 | QU22: 0.07327495515 | QV22: 0.01474830322 | QW22: 0.08876670897 | QX22: 0.04175104573 | QY22: -0.1080556586 | QZ22: 0.1627292484 | RA22: -0.02279846556 | RB22: -0.0008973788354 | RC22: 0.002522338647 | RD22: 0.07354009897 | RE22: -0.04026260599 | RF22: 0.03833378106 | RG22: -0.01658724621 | RH22: 0.07576177269 | RI22: 0.03663149476 | RJ22: -0.06967569888 | RK22: 0.05999998003 | RL22: -0.05798421055 | RM22: -0.01739483885 | RN22: 0.09799332917 | RO22: 0.03212669864 | RP22: 0.06371989846 | RQ22: -0.02107874304 | RR22: 0.3399213552 | RS22: -0.0596245639 | RT22: -0.01918887906 | RU22: 0.06042982638 | RV22: 0.001042739139 | RW22: 0.1016584188 | RX22: 0.05558090657 | RY22: 0.1259929687 | RZ22: 0.09671017528 | SA22: 0.04227414355 | SB22: -0.05801054835 | SC22: 0.08361495286 | SD22: 0.07098910213 | SE22: 0.01252000593 | SF22: -0.6043025255 | SG22: 0.02884011157 | SH22: 0.02414848655
A23: 21 | B23: =Normalization!G30 -> 0 | C23: -0.05453152582 | D23: 0.09686977416 | E23: 0.06858597696 | F23: 0.08212558925 | G23: 0.1143157631 | H23: -0.03914310038 | I23: 0.1541758776 | J23: 0.1042997092 | K23: 0.0633847788 | L23: 0.1219309866 | M23: 0.04023432732 | N23: -0.01989041641 | O23: -0.00625710329 | P23: 0.06383471936 | Q23: 0.02074795216 | R23: 0.02227048017 | S23: -0.2640736103 | T23: -0.09309402853 | U23: 0.05013590679 | V23: -0.03901984543 | W23: 0.0001473380544 | X23: 0.03485811502 | Y23: -0.0930955261 | Z23: 0.03465469554 | AA23: 0.008428956382 | AB23: 0.02789804339 | AC23: -0.002667874331 | AD23: 0.0967535004 | AE23: -0.03756895289 | AF23: 0.06271103024 | AG23: -0.2944138646 | AH23: 0.06692196429 | AI23: -0.155512929 | AJ23: 0.09095445275 | AK23: -0.0264919661 | AL23: -0.09231787175 | AM23: -0.07405269891 | AN23: -0.1050953344 | AO23: 0.02669222839 | AP23: 0.1133744046 | AQ23: 0.03480915353 | AR23: -0.05768653005 | AS23: 0.03878430277 | AT23: 0.001897836803 | AU23: -0.02810752764 | AV23: 0.004050505348 | AW23: -0.4315633476 | AX23: -0.06001056731 | AY23: 0.0772870183 | AZ23: -0.05468875915 | BA23: -0.1375525594 | BB23: -0.002853227081 | BC23: 0.01472723205 | BD23: 0.07840319723 | BE23: 0.08167814463 | BF23: -0.2218545377 | BG23: -0.04235849902 | BH23: -0.06901371479 | BI23: -0.008936318569 | BJ23: 0.001523266663 | BK23: 0.08719027042 | BL23: -0.03642249852 | BM23: 0.01604713686 | BN23: -0.1803980768 | BO23: -0.01123816054 | BP23: 0.1649412066 | BQ23: 0.1099976972 | BR23: 0.09099556506 | BS23: -0.01873103343 | BT23: 0.1478796005 | BU23: -0.01015742868 | BV23: -0.03723719344 | BW23: 0.1271226853 | BX23: -0.1586273909 | BY23: 0.04559852928 | BZ23: 0.119393751 | CA23: 0.06851384789 | CB23: -0.02789950743 | CC23: 0.05901290104 | CD23: -0.07063783705 | CE23: 0.02160392329 | CF23: -0.08856413513 | CG23: -0.1070654243 | CH23: -0.03221574798 | CI23: 0.02516034804 | CJ23: -0.06007684767 | CK23: -0.03799076378 | CL23: 0.04677340761 | CM23: 0.1263961941 | CN23: -0.06374320388 | CO23: 0.07010453194 | CP23: -0.02854531258 | CQ23: -0.004915058147 | CR23: -0.4480979443 | CS23: 0.02984970436 | CT23: 0.08405967057 | CU23: 0.01599338278 | CV23: -0.1401095539 | CW23: 0.05742781982 | CX23: 0.03883316368 | CY23: 0.089408122 | CZ23: -0.0306920968 | DA23: -0.0148121845 | DB23: -0.07802280784 | DC23: -0.07400663942 | DD23: 0.04018175974 | DE23: 0.06245203316 | DF23: 0.03462846577 | DG23: -0.07074127346 | DH23: 0.003344724188 | DI23: 0.06646005064 | DJ23: -0.1158236712 | DK23: -0.06857054681 | DL23: 0.0001229395857 | DM23: -0.1680398434 | DN23: 0.006244217511 | DO23: 0.06156544015 | DP23: -0.05036658421 | DQ23: 0.03484091908 | DR23: 0.0561256893 | DS23: 0.0232289657 | DT23: 0.00165455055 | DU23: 0.01975281164 | DV23: 0.008462562226 | DW23: -0.04838198796 | DX23: 0.02104751952 | DY23: -0.01938314177 | DZ23: -0.05834724382 | EA23: -0.1670928597 | EB23: -0.05245219916 | EC23: -0.01842707582 | ED23: -0.04194524139 | EE23: -0.09609336406 | EF23: -0.2408426553 | EG23: -0.02080654912 | EH23: -0.01536691189 | EI23: 0.02795716934 | EJ23: -0.04391116649 | EK23: -0.07730700076 | EL23: 0.1402186453 | EM23: 0.09227924049 | EN23: 0.06926870346 | EO23: 0.02707384899 | EP23: 0.0186991673 | EQ23: 0.01403947454 | ER23: 0.01583473198 | ES23: -0.03838374838 | ET23: 0.00937647 | EU23: 0.007720404305 | EV23: -0.262955606 | EW23: -0.02681753226 | EX23: 0.05571607128 | EY23: -0.09164153039 | EZ23: -0.06131992862 | FA23: -0.05246977136 | FB23: -0.2008432597 | FC23: 0.02590436302 | FD23: 0.06391186267 | FE23: -0.01451682765 | FF23: 0.1072118208 | FG23: 0.04305669665 | FH23: 0.0322845988 | FI23: 0.1166992709 | FJ23: -0.05189662427 | FK23: 0.08878769726 | FL23: 0.1048435941 | FM23: -0.1913235486 | FN23: -0.08445639163 | FO23: -0.04907914996 | FP23: 0.107498683 | FQ23: -0.1025180072 | FR23: -0.05120585859 | FS23: -0.02612709254 | FT23: -0.05331041291 | FU23: -0.06387295574 | FV23: -0.03071212023 | FW23: 0.08511518687 | FX23: 0.02904377878 | FY23: 0.08412214369 | FZ23: 0.0302303452 | GA23: -0.007059331052 | GB23: -0.008990069851 | GC23: 0.05538470298 | GD23: -0.02550701238 | GE23: 0.08946639299 | GF23: 0.1478161216 | GG23: -0.1691563427 | GH23: -0.1647355258 | GI23: -0.06325347722 | GJ23: 0.05516720563 | GK23: 0.01797601208 | GL23: -0.08137460053 | GM23: 0.05517142266 | GN23: 0.05663992092 | GO23: -0.01937354915 | GP23: 0.0253612306 | GQ23: -0.004909470212 | GR23: 0.04128964618 | GS23: 0.08261621743 | GT23: -0.04146602005 | GU23: -0.06435279548 | GV23: -0.05624817312 | GW23: 0.004670491908 | GX23: -0.0355367735 | GY23: -0.08892069757 | GZ23: -0.01932221092 | HA23: 0.06518315524 | HB23: 0.1174371988 | HC23: 0.08479207754 | HD23: -0.0986065343 | HE23: -0.1088976562 | HF23: -0.2329814583 | HG23: 0.0838887915 | HH23: 0.06113002822 | HI23: -0.0251346752 | HJ23: -0.08199572563 | HK23: -0.1272014827 | HL23: 0.09502337873 | HM23: 0.05526943877 | HN23: 0.02963070944 | HO23: -0.09376759827 | HP23: -0.04875012115 | HQ23: -0.002061516978 | HR23: -0.01397525053 | HS23: -0.07326859236 | HT23: 0.06292100996 | HU23: 0.04999022558 | HV23: 0.04314357415 | HW23: -0.09466291964 | HX23: 0.0287874788 | HY23: -0.02610633522 | HZ23: -0.03223854303 | IA23: -0.09254131466 | IB23: -0.009584769607 | IC23: 0.09856891632 | ID23: -0.001597099123 | IE23: -0.07406117767 | IF23: 0.0406255275 | IG23: 0.03468829766 | IH23: -0.05216582492 | II23: -0.026494449 | IJ23: 0.05147603527 | IK23: 0.030679157 | IL23: -0.08282461762 | IM23: 0.01986292005 | IN23: -0.09477303177 | IO23: -0.2520942688 | IP23: -0.1915281862 | IQ23: 0.1178559586 | IR23: -0.05198892206 | IS23: 0.05460351333 | IT23: 0.03976780176 | IU23: 0.04604142904 | IV23: 0.00758443214 | IW23: 0.03399604559 | IX23: -0.0449052304 | IY23: 0.02292677201 | IZ23: 0.1136479378 | JA23: 0.06616733968 | JB23: 0.06822734326 | JC23: -0.1076164693 | JD23: 0.0871295929 | JE23: 0.02851039171 | JF23: 0.03254885972 | JG23: -0.04845300317 | JH23: 0.08071585745 | JI23: -0.1983054429 | JJ23: -0.0671158433 | JK23: 0.01868757792 | JL23: -0.06386999041 | JM23: 0.05636497959 | JN23: -0.05013858527 | JO23: 0.0637325719 | JP23: -0.006198243704 | JQ23: -0.1617450118 | JR23: 0.02493101545 | JS23: -0.1662663817 | JT23: 0.05932668597 | JU23: -0.02290497534 | JV23: -0.1467966586 | JW23: -0.1380765736 | JX23: 0.05121991783 | JY23: -0.1454564035 | JZ23: -0.007878631353 | KA23: -0.0264416784 | KB23: -0.08184631169 | KC23: 0.002918806393 | KD23: 0.002363848267 | KE23: -0.006699897349 | KF23: -0.03798712417 | KG23: -0.1977400035 | KH23: 0.0695508644 | KI23: 0.07754167169 | KJ23: -0.06412619352 | KK23: 0.03942605481 | KL23: 0.07517354935 | KM23: -0.0671063289 | KN23: 0.08858071268 | KO23: 0.0181028638 | KP23: 0.07497504354 | KQ23: -0.07252427191 | KR23: 0.0232546255 | KS23: 0.07871077955 | KT23: -0.1762809157 | KU23: 0.07984029502 | KV23: -0.1389369071 | KW23: -0.01406912599 | KX23: 0.07376347482 | KY23: 0.0942402482 | KZ23: -0.1780572534 | LA23: -0.03164151311 | LB23: 0.04307017103 | LC23: -0.4219519198 | LD23: 0.02765366808 | LE23: 0.08209556341 | LF23: 0.07545841485 | LG23: -0.009142708033 | LH23: 0.1454110891 | LI23: -0.0286031682 | LJ23: 0.05405569822 | LK23: -0.03781316802 | LL23: 0.02726313099 | LM23: -0.243609041 | LN23: -0.0219579991 | LO23: 0.02196764946 | LP23: 0.0573653616 | LQ23: 0.09383509308 | LR23: -0.03813591227 | LS23: 0.08385054022 | LT23: -0.04868334532 | LU23: -0.2572018206 | LV23: 0.04935948551 | LW23: -0.03971885517 | LX23: 0.09847809374 | LY23: -0.002261538291 | LZ23: 0.1046227738 | MA23: -0.06554092467 | MB23: -0.0164220836 | MC23: -0.06189309433 | MD23: -0.06995472312 | ME23: -0.3172316849 | MF23: 0.07983938605 | MG23: 0.02520748414 | MH23: 0.02105754986 | MI23: -0.2625488341 | MJ23: 0.01888681017 | MK23: 0.03311664239 | ML23: -0.06319124997 | MM23: -0.1422572136 | MN23: 0.01598038338 | MO23: -0.02740419842 | MP23: 0.1527045816 | MQ23: -0.05940340087 | MR23: -0.01526839659 | MS23: -0.6138673425 | MT23: -0.04552069679 | MU23: -0.04820146412 | MV23: -0.02534140274 | MW23: 0.05722013861 | MX23: -0.06533210725 | MY23: 0.09495715797 | MZ23: -0.02403389849 | NA23: -0.0478531681 | NB23: -0.02498908341 | NC23: -0.08676882088 | ND23: 0.0596717 | NE23: 0.1126203686 | NF23: -0.01670706272 | NG23: 0.07124985009 | NH23: -0.005266388413 | NI23: -0.3782087564 | NJ23: 0.04899516702 | NK23: -0.1720898449 | NL23: -0.06354726106 | NM23: -0.09096257389 | NN23: 0.02942946739 | NO23: -0.06465554237 | NP23: -0.02087148651 | NQ23: 0.01707860269 | NR23: -0.5987107158 | NS23: -0.07448980212 | NT23: -0.07787100226 | NU23: 0.03454532847 | NV23: -0.05654126406 | NW23: 0.04918868467 | NX23: 0.09967500716 | NY23: -0.03173885494 | NZ23: 0.01527481806 | OA23: 0.06534603983 | OB23: -0.1832001954 | OC23: 0.04002712667 | OD23: 0.03726718947 | OE23: -0.2743385434 | OF23: 0.006604996044 | OG23: -0.02076571435 | OH23: 0.1028084978 | OI23: 0.03672494367 | OJ23: -0.1042822823 | OK23: -0.08238267154 | OL23: 0.05867047608 | OM23: 0.07853730768 | ON23: 0.1593237817 | OO23: 0.1057003215 | OP23: 0.005932339467 | OQ23: -0.04862798378 | OR23: 0.0431894958 | OS23: -0.005792194977 | OT23: -0.01453189272 | OU23: 0.02822282538 | OV23: 0.0136218369 | OW23: -0.03688119352 | OX23: -0.0625108555 | OY23: -0.003681938164 | OZ23: 0.1201280728 | PA23: 0.1130590215 | PB23: -0.05156842619 | PC23: -0.1278954595 | PD23: -0.1028548852 | PE23: -0.04209009558 | PF23: -0.05675437674 | PG23: -0.06051484495 | PH23: 0.1730328649 | PI23: 0.07034433633 | PJ23: 0.06505613029 | PK23: -0.03195377439 | PL23: -0.005303896964 | PM23: -0.05051711947 | PN23: 0.04857241735 | PO23: -0.1103216633 | PP23: 0.02696748078 | PQ23: -0.0180682838 | PR23: -0.1212324873 | PS23: 0.04492554441 | PT23: 0.02099036239 | PU23: 0.02316041291 | PV23: -0.1659088433 | PW23: 0.03870851174 | PX23: -0.03791074082 | PY23: 0.07087647915 | PZ23: -0.09131984413 | QA23: -0.2192144096 | QB23: -0.03789630905 | QC23: 0.04116199166 | QD23: 0.05336343497 | QE23: -0.0822135359 | QF23: -0.006390966475 | QG23: 0.02817941085 | QH23: -0.04170887172 | QI23: -0.1608621478 | QJ23: -0.194222793 | QK23: -0.09620926529 | QL23: 0.04856325313 | QM23: -0.3346618414 | QN23: 0.02782800049 | QO23: 0.05621096864 | QP23: -0.05615276098 | QQ23: -0.02009825408 | QR23: -0.1811903268 | QS23: 0.01735963486 | QT23: 0.1396259815 | QU23: 0.07383968681 | QV23: -0.01145162154 | QW23: -0.00905033946 | QX23: 0.02636598609 | QY23: 0.05021643266 | QZ23: -0.03277818486 | RA23: 0.02711918205 | RB23: -0.003722508904 | RC23: 0.02498814464 | RD23: -0.2111240327 | RE23: -0.08664307743 | RF23: 0.08289390057 | RG23: 0.02225238457 | RH23: 0.05860475823 | RI23: -0.01582133956 | RJ23: 0.08987668902 | RK23: 0.04140412062 | RL23: -0.004325862043 | RM23: -0.001490242779 | RN23: 0.05734630674 | RO23: 0.04829875752 | RP23: -0.05576936156 | RQ23: 0.0895754993 | RR23: 0.08413299918 | RS23: -0.1055326462 | RT23: 0.06702952832 | RU23: -0.05347263813 | RV23: -0.1003737673 | RW23: 0.04364106804 | RX23: 0.06823102385 | RY23: 0.02952523902 | RZ23: 0.05301495269 | SA23: -0.07205308229 | SB23: -0.1364533156 | SC23: -0.02498470061 | SD23: -0.0221308656 | SE23: -0.00988515839 | SF23: -0.3301075101 | SG23: 0.05729606375 | SH23: -0.03708943352
A24: 22 | B24: =Normalization!G31 -> 0 | C24: 0.07799979299 | D24: 0.003292342182 | E24: 0.1164560243 | F24: 0.03417928889 | G24: -0.08056308329 | H24: -0.04462750256 | I24: 0.03195333481 | J24: -0.2892982364 | K24: 0.05468995869 | L24: -0.06275624037 | M24: 0.07140704244 | N24: 0.09061516076 | O24: -0.02287835628 | P24: -0.0589613691 | Q24: 0.05617037043 | R24: 0.128827095 | S24: 0.1065142751 | T24: 0.06261914968 | U24: 0.1228544712 | V24: 0.11386545 | W24: -0.002750108717 | X24: -0.1530626863 | Y24: -0.03848543018 | Z24: 0.02596308291 | AA24: -0.1085640043 | AB24: 0.05006526411 | AC24: 0.0595953539 | AD24: -0.07485489547 | AE24: -0.1968763769 | AF24: 0.01239583082 | AG24: -0.1543582678 | AH24: -0.09944071621 | AI24: 0.01257084589 | AJ24: -0.05110553652 | AK24: -0.05771742761 | AL24: 0.03765040264 | AM24: 0.01609523594 | AN24: -0.07768575847 | AO24: 0.03994230181 | AP24: 0.04598391429 | AQ24: 0.05783978105 | AR24: -0.00952991657 | AS24: -0.1581409574 | AT24: 0.1010203362 | AU24: -0.004274590872 | AV24: 0.07910179347 | AW24: -0.04926143587 | AX24: 0.1204976812 | AY24: -0.1027082428 | AZ24: -0.1558350772 | BA24: 0.05198536813 | BB24: 0.01925030537 | BC24: 0.02225164324 | BD24: -0.01651372761 | BE24: -0.07236988097 | BF24: 0.03130055591 | BG24: 0.1170434728 | BH24: 0.06642117351 | BI24: 0.1224827245 | BJ24: 0.05782058835 | BK24: 0.09848911315 | BL24: -0.03233752027 | BM24: -0.03761949763 | BN24: 0.1538779438 | BO24: -0.07927402109 | BP24: -0.05809987709 | BQ24: -0.01280855015 | BR24: 0.06992904842 | BS24: 0.005554987583 | BT24: -0.03883029893 | BU24: 0.09892531484 | BV24: 0.0305167567 | BW24: 0.05810828879 | BX24: 0.02799480781 | BY24: 0.05604672432 | BZ24: 0.1234445721 | CA24: 0.05695382506 | CB24: 0.06988986582 | CC24: -0.114108108 | CD24: -0.1006949767 | CE24: 0.004113610368 | CF24: -0.03589465097 | CG24: -0.1076491177 | CH24: 0.04161802307 | CI24: 0.05655213445 | CJ24: -0.09776230156 | CK24: 0.03766846284 | CL24: 0.06419918686 | CM24: -0.07986214012 | CN24: -0.03255814686 | CO24: -0.1085869074 | CP24: 0.006491516251 | CQ24: -0.05525212362 | CR24: -0.0469270125 | CS24: -0.1154288426 | CT24: -0.1188782007 | CU24: -0.1039036587 | CV24: 0.02433292009 | CW24: -0.08402861655 | CX24: 0.01432636008 | CY24: 0.1128849611 | CZ24: 0.00962414965 | DA24: -0.0749592483 | DB24: 0.1175188199 | DC24: 0.106580928 | DD24: -0.02042967267 | DE24: 0.07809696347 | DF24: 0.001576283714 | DG24: -0.02483407408 | DH24: -0.04706051946 | DI24: 0.02031428181 | DJ24: -0.002260446083 | DK24: -0.04994018003 | DL24: -0.1262747645 | DM24: 0.004412539303 | DN24: -0.1955891997 | DO24: -0.002151629655 | DP24: 0.0320677273 | DQ24: -0.04142244905 | DR24: -0.03517915681 | DS24: -0.1528806239 | DT24: -0.0967695266 | DU24: -0.1317796111 | DV24: -0.1338622719 | DW24: 0.1049241871 | DX24: -0.004717843141 | DY24: 0.07874110341 | DZ24: -0.0597929582 | EA24: -0.01160200965 | EB24: 0.0774967894 | EC24: 0.01377205085 | ED24: -0.04249011353 | EE24: -0.07337173074 | EF24: -0.06113878638 | EG24: 0.02949686721 | EH24: 0.018667344 | EI24: -0.01379176416 | EJ24: -0.09572456777 | EK24: 0.04784628749 | EL24: -0.1291044354 | EM24: 0.001648551319 | EN24: 0.02127560414 | EO24: -0.05928550288 | EP24: 0.1171178967 | EQ24: -0.1032472104 | ER24: -0.01438160427 | ES24: -0.1035446152 | ET24: 0.08745006472 | EU24: 0.06360391527 | EV24: -0.1758069843 | EW24: 0.01445455011 | EX24: -0.08352460712 | EY24: -0.0001111552992 | EZ24: 0.07496806234 | FA24: 0.03567082435 | FB24: -0.08689788729 | FC24: 0.0869930014 | FD24: 0.006691209041 | FE24: -0.08854545653 | FF24: 0.06398029625 | FG24: -0.08248221129 | FH24: 0.02962464094 | FI24: -0.1075396687 | FJ24: 0.01255500596 | FK24: -0.08660089225 | FL24: 0.1285995692 | FM24: -0.006679250859 | FN24: 0.0606004782 | FO24: 0.01165240165 | FP24: -0.1298375279 | FQ24: 0.06229642779 | FR24: -0.1515563726 | FS24: 0.08601503819 | FT24: -0.1493931115 | FU24: 0.05967314914 | FV24: -0.03131853789 | FW24: 0.1750343889 | FX24: -0.06642775983 | FY24: -0.08369915932 | FZ24: 0.08239678293 | GA24: 0.04755890742 | GB24: 0.02003428526 | GC24: -0.07396265119 | GD24: -0.07801433653 | GE24: 0.02840574645 | GF24: 0.01739531383 | GG24: 0.1612850279 | GH24: 0.1077997535 | GI24: 0.08386322111 | GJ24: -0.0603961423 | GK24: 0.08852550387 | GL24: -0.2221144438 | GM24: -0.05786710232 | GN24: -0.01111635379 | GO24: 0.05456442013 | GP24: 0.0622038953 | GQ24: 0.09875428677 | GR24: -0.1013401598 | GS24: 0.1149742007 | GT24: 0.01196018886 | GU24: 0.131182313 | GV24: 0.08776052296 | GW24: -0.01906911284 | GX24: 0.06001534685 | GY24: 0.0006967892405 | GZ24: -0.006390273105 | HA24: 0.0341332294 | HB24: -0.01863128692 | HC24: -0.05542618409 | HD24: -0.05636657402 | HE24: 0.0832766518 | HF24: -0.07108542323 | HG24: -0.03184488416 | HH24: -0.07137858123 | HI24: 0.04535024986 | HJ24: -0.1437290013 | HK24: 0.07062215358 | HL24: 0.03347671404 | HM24: -0.00989012979 | HN24: -0.05630574748 | HO24: -0.116132699 | HP24: 0.06254542619 | HQ24: 0.1066330075 | HR24: 0.06019064039 | HS24: -0.02564234659 | HT24: 0.1338545829 | HU24: 0.06615693122 | HV24: 0.05640842021 | HW24: 0.04249539226 | HX24: 0.04333460703 | HY24: -0.09026809037 | HZ24: 0.06416781247 | IA24: 0.0114761861 | IB24: 0.03561867028 | IC24: -0.07635436207 | ID24: -0.07105243206 | IE24: -0.04130108282 | IF24: -0.109431766 | IG24: 0.01901949942 | IH24: 0.08245830238 | II24: 0.07324675471 | IJ24: 0.08051869273 | IK24: 0.0610983111 | IL24: 0.08528012037 | IM24: -0.02517431043 | IN24: -0.07560593635 | IO24: -0.0512790978 | IP24: -0.3410130441 | IQ24: 0.04488151893 | IR24: -0.2125240117 | IS24: 0.08770217001 | IT24: 0.01005616598 | IU24: 0.0746371001 | IV24: 0.03060765564 | IW24: -0.07393495739 | IX24: -0.1628434211 | IY24: -0.09359152615 | IZ24: 0.1300049275 | JA24: -0.08597766608 | JB24: 0.05876750126 | JC24: 0.03805131465 | JD24: -0.06253421307 | JE24: -0.0841737017 | JF24: 0.06381523609 | JG24: -0.1462530792 | JH24: -0.0743182376 | JI24: -0.0965828374 | JJ24: 0.04893101379 | JK24: 0.08630827814 | JL24: 0.09309776127 | JM24: -0.04629682377 | JN24: -0.02693309076 | JO24: 0.03353919089 | JP24: -0.05887999013 | JQ24: 0.00257125753 | JR24: -0.1757112145 | JS24: -0.02135629207 | JT24: -0.113463074 | JU24: -0.1059988737 | JV24: 0.08312888443 | JW24: 0.04473070055 | JX24: 0.07022900134 | JY24: -0.2063701451 | JZ24: 0.04651854187 | KA24: -0.1491491944 | KB24: -0.1012466103 | KC24: -0.117145665 | KD24: -0.08601945639 | KE24: 0.1176769733 | KF24: -0.02764632739 | KG24: -0.01356903929 | KH24: 0.01902530529 | KI24: -0.06108354032 | KJ24: -0.08391025662 | KK24: -0.03804579377 | KL24: 0.0396521762 | KM24: -0.02401584201 | KN24: -0.09960305691 | KO24: 0.007633998524 | KP24: -0.07504841685 | KQ24: 0.08682477474 | KR24: 0.02794021368 | KS24: 0.08846439421 | KT24: 0.09955094755 | KU24: -0.08799830824 | KV24: 0.1002107933 | KW24: -0.01816843636 | KX24: -0.08726610988 | KY24: 0.03247736394 | KZ24: -0.04090969265 | LA24: 0.04196992144 | LB24: -0.06299951673 | LC24: -0.2495210022 | LD24: 0.02926850319 | LE24: 0.05561786145 | LF24: -0.1055638716 | LG24: -0.002180038253 | LH24: -0.03888577223 | LI24: -0.05462736636 | LJ24: -0.2674883306 | LK24: -0.1332327425 | LL24: -0.04399259761 | LM24: -0.1061805189 | LN24: -0.06477306038 | LO24: -0.009161336347 | LP24: -0.06774935871 | LQ24: -0.1503110081 | LR24: 0.11768502 | LS24: 0.05540745705 | LT24: -0.03311241046 | LU24: -0.137036249 | LV24: 0.04073180631 | LW24: 0.09162768722 | LX24: -0.0916299969 | LY24: -0.02780886181 | LZ24: 0.03238936886 | MA24: 0.005911152344 | MB24: -0.1830508262 | MC24: 0.1201049238 | MD24: -0.3345223665 | ME24: -0.2177006006 | MF24: -0.0805888474 | MG24: -0.2157522887 | MH24: -0.06076954678 | MI24: -0.1307624578 | MJ24: -0.2024154067 | MK24: -0.1120630875 | ML24: -0.1513749808 | MM24: -0.02594036236 | MN24: -0.01548742037 | MO24: 0.1393054575 | MP24: -0.04765836522 | MQ24: 0.02560249344 | MR24: 0.009930357337 | MS24: 0.07694790512 | MT24: -0.1346417069 | MU24: -0.03752738237 | MV24: 0.04462526739 | MW24: -0.01095660217 | MX24: 0.03666849807 | MY24: 0.03610634059 | MZ24: -0.03380246088 | NA24: 0.0363154076 | NB24: 0.02915500849 | NC24: 0.09913434833 | ND24: 0.0450963825 | NE24: 0.00649003312 | NF24: -0.133953467 | NG24: -0.09724399447 | NH24: 0.0745184049 | NI24: 0.1807615906 | NJ24: 0.04772428423 | NK24: 0.0722355321 | NL24: -0.02570724674 | NM24: -0.004747344647 | NN24: 0.06594603509 | NO24: 0.05116102472 | NP24: -0.09854571521 | NQ24: 0.03973187506 | NR24: -0.07117222995 | NS24: -0.04635545984 | NT24: -0.05619669333 | NU24: 0.08812666684 | NV24: 0.07808233052 | NW24: -0.09794278443 | NX24: 0.0945699811 | NY24: -0.02701722458 | NZ24: -0.03022506461 | OA24: -0.04223746061 | OB24: 0.1243793219 | OC24: 0.1342659295 | OD24: -0.03714897856 | OE24: 0.1106663197 | OF24: -0.08618824184 | OG24: 0.07066724449 | OH24: 0.01266829297 | OI24: 0.1192476302 | OJ24: -0.06637435406 | OK24: 0.03300636634 | OL24: 0.002562896581 | OM24: -0.005996490829 | ON24: -0.01717526652 | OO24: 0.04287972674 | OP24: -0.02830686234 | OQ24: 0.02386491187 | OR24: 0.04148114473 | OS24: -0.0838694647 | OT24: -0.1449047625 | OU24: -0.02901386097 | OV24: -0.03637118638 | OW24: -0.03949129209 | OX24: -0.1019098014 | OY24: 0.107906878 | OZ24: 0.0745106712 | PA24: -0.09826952219 | PB24: 0.0576177761 | PC24: 0.1153044552 | PD24: 0.05386598036 | PE24: 0.07394366711 | PF24: 0.07023281604 | PG24: -0.1202780381 | PH24: 0.08064999431 | PI24: -0.009218687192 | PJ24: -0.1660233736 | PK24: -0.01989487745 | PL24: 0.09414658695 | PM24: 0.008749211207 | PN24: -0.04438598827 | PO24: 0.002227929886 | PP24: -0.06214746833 | PQ24: -0.03896353766 | PR24: -0.2575801611 | PS24: 0.07534284145 | PT24: 0.1395894587 | PU24: -0.02783021703 | PV24: -0.03109465539 | PW24: -0.04015965387 | PX24: -0.0626771003 | PY24: -0.08780048788 | PZ24: -0.05728232488 | QA24: 0.09425377846 | QB24: 0.05383892357 | QC24: 0.04260516539 | QD24: 0.02389739826 | QE24: -0.03119498119 | QF24: -0.05561778694 | QG24: -0.09181980044 | QH24: 0.02911223844 | QI24: -0.02077174559 | QJ24: -0.1522706598 | QK24: -0.01109176502 | QL24: 0.09563844651 | QM24: 0.1137524545 | QN24: 0.0007256504614 | QO24: -0.03430215642 | QP24: -0.06700769067 | QQ24: -0.1866941303 | QR24: -0.1330989599 | QS24: -0.153459534 | QT24: -0.02430884354 | QU24: 0.09804006666 | QV24: 0.0439485386 | QW24: 0.05607718229 | QX24: -0.0888402909 | QY24: -0.1097381637 | QZ24: -0.1309755594 | RA24: 0.07698150724 | RB24: -0.04080047831 | RC24: 0.1190168262 | RD24: -0.01187134814 | RE24: -0.05639011785 | RF24: -0.1007052287 | RG24: 0.09003271908 | RH24: 0.07291368395 | RI24: -0.08358447999 | RJ24: -0.1345976889 | RK24: -0.04254036397 | RL24: -0.06507889926 | RM24: 0.06436106563 | RN24: -0.09283518046 | RO24: 0.1070708781 | RP24: -0.1093274876 | RQ24: -0.01137508452 | RR24: -0.411067009 | RS24: -0.01021024678 | RT24: -0.06655375659 | RU24: -0.2254659235 | RV24: 0.01870981045 | RW24: -0.009025548585 | RX24: 0.0023645896 | RY24: -0.03195048496 | RZ24: -0.2243323922 | SA24: 0.07609188557 | SB24: -0.05539496616 | SC24: 0.09487562627 | SD24: -0.1382247955 | SE24: -0.0631756708 | SF24: -0.0119890105 | SG24: 0.05594573542 | SH24: -0.04214832932
A25: 23 | B25: =Normalization!G32 -> 0 | C25: -0.1426580101 | D25: 0.03339585662 | E25: 0.1137966737 | F25: -0.1250079572 | G25: -0.02548915707 | H25: -0.03096966259 | I25: 0.08449576795 | J25: 0.09237045795 | K25: -0.1111348569 | L25: 0.149606809 | M25: 0.08096624166 | N25: 0.1196106225 | O25: -0.03561389446 | P25: -0.03685419261 | Q25: -0.0686955303 | R25: -0.05717578158 | S25: 0.0289521385 | T25: 0.03445435315 | U25: 0.09320861846 | V25: 0.003487783251 | W25: -0.03937014192 | X25: 0.007973141968 | Y25: 0.03350777924 | Z25: -0.05223734677 | AA25: 0.03579255566 | AB25: -0.07378596812 | AC25: 0.003047969658 | AD25: -0.1783028841 | AE25: -0.04966130853 | AF25: -0.1649967581 | AG25: 0.2488858402 | AH25: 0.04127578065 | AI25: -0.01543771382 | AJ25: 0.02928539924 | AK25: -0.3649250865 | AL25: -0.1719144285 | AM25: 0.05071508884 | AN25: 0.00982342381 | AO25: 0.07998035103 | AP25: 0.1609490216 | AQ25: 0.1451299489 | AR25: -0.1273428202 | AS25: 0.05370517075 | AT25: -0.09289106727 | AU25: 0.06264966726 | AV25: -0.1135682985 | AW25: -0.2039273232 | AX25: -0.07308874279 | AY25: 0.1414685845 | AZ25: -0.08709202707 | BA25: 0.03061402217 | BB25: 0.2222839594 | BC25: -0.6166968346 | BD25: -0.1189683974 | BE25: 0.02306098491 | BF25: 0.1546025425 | BG25: 0.02761356346 | BH25: 0.03165352345 | BI25: -0.0654797703 | BJ25: -0.1733548641 | BK25: -0.3209657073 | BL25: 0.02127599902 | BM25: -0.1467981786 | BN25: 0.09631516039 | BO25: 0.09794791043 | BP25: 0.05861451104 | BQ25: -0.05462026969 | BR25: -0.02741040289 | BS25: -0.1245086864 | BT25: -0.242222175 | BU25: -0.08511988074 | BV25: -0.03857806697 | BW25: 0.09985918552 | BX25: -0.04856888205 | BY25: -0.01092050038 | BZ25: 0.04438129812 | CA25: -0.04820344225 | CB25: 0.01596140675 | CC25: -0.01076703425 | CD25: -0.1122557297 | CE25: -0.2266270816 | CF25: 0.08593141288 | CG25: 0.08279522508 | CH25: 0.02782577649 | CI25: -0.1233946681 | CJ25: -0.08126720786 | CK25: -0.09839982539 | CL25: -0.1383554041 | CM25: 0.03875957802 | CN25: 0.07938542217 | CO25: -0.01472376194 | CP25: 0.04966744781 | CQ25: 0.1157862917 | CR25: -0.02612830512 | CS25: 0.06742431223 | CT25: -0.2731687725 | CU25: 0.06888408959 | CV25: -0.1335550994 | CW25: 0.06177615747 | CX25: 0.02665249631 | CY25: -0.02967469208 | CZ25: -0.1260189265 | DA25: 0.04249085113 | DB25: -0.09219446778 | DC25: 0.06125297025 | DD25: -0.02999338694 | DE25: -0.04527412355 | DF25: 0.1048345491 | DG25: -0.05855275318 | DH25: -0.001540300203 | DI25: -0.03338557109 | DJ25: 0.01587160677 | DK25: -0.0886785239 | DL25: 0.08095499873 | DM25: 0.02144371346 | DN25: 0.258903712 | DO25: -0.02881343663 | DP25: 0.02561086044 | DQ25: -0.09270441532 | DR25: -0.06961336732 | DS25: 0.03912302479 | DT25: -0.1708117574 | DU25: -0.1409267634 | DV25: 0.1917229891 | DW25: 0.06097684428 | DX25: 0.03487786278 | DY25: 0.124110356 | DZ25: 0.1462741345 | EA25: 0.06289925426 | EB25: 0.006219359115 | EC25: -0.206695646 | ED25: 0.1203753948 | EE25: 0.09209511429 | EF25: 0.01197915245 | EG25: 0.006923272274 | EH25: -0.02305850014 | EI25: 0.1047895178 | EJ25: -0.02942400798 | EK25: 0.09451292455 | EL25: 0.07282934338 | EM25: 0.01001701783 | EN25: 0.1053781509 | EO25: -0.1377724558 | EP25: 0.1522913277 | EQ25: -0.02837920748 | ER25: 0.02931668796 | ES25: -0.03475641087 | ET25: -0.01180064492 | EU25: 0.09074070305 | EV25: 0.118795082 | EW25: 0.261636138 | EX25: -0.02793366089 | EY25: -0.0689599961 | EZ25: 0.05321099982 | FA25: 0.07464461774 | FB25: -0.1347131729 | FC25: 0.1092762202 | FD25: -0.008688230067 | FE25: -0.09091639519 | FF25: -0.05601957813 | FG25: 0.002584381728 | FH25: 0.09446336329 | FI25: 0.158808127 | FJ25: 0.07669833302 | FK25: -0.02678321488 | FL25: -0.05552852899 | FM25: -0.1526941806 | FN25: 0.1195319891 | FO25: 0.1552994549 | FP25: 0.0530298762 | FQ25: 0.01732980274 | FR25: 0.07965862006 | FS25: 0.1032987311 | FT25: -0.1426827312 | FU25: 0.09070984274 | FV25: -0.06093397737 | FW25: 0.1390106082 | FX25: -0.07128695399 | FY25: 0.09314884245 | FZ25: -0.04997823387 | GA25: 0.05522198975 | GB25: -0.04806572944 | GC25: -0.04420249164 | GD25: 0.08697085083 | GE25: 0.01994218677 | GF25: -0.1098356918 | GG25: 0.06099512056 | GH25: -0.03418235853 | GI25: -0.03804416582 | GJ25: -0.1729801297 | GK25: -0.07443675399 | GL25: 0.1098909676 | GM25: 0.103208527 | GN25: -0.06120397523 | GO25: 0.03878486529 | GP25: 0.126529783 | GQ25: -0.09203498811 | GR25: -0.0856891647 | GS25: -0.06709052622 | GT25: -0.01367278583 | GU25: -0.06367113441 | GV25: 0.1643677503 | GW25: 0.00828435272 | GX25: 0.1363311261 | GY25: -0.09596653283 | GZ25: 0.111270763 | HA25: -0.01529077999 | HB25: -0.1265284121 | HC25: -0.0810232237 | HD25: -0.2593520284 | HE25: 0.05325173587 | HF25: 0.07010804862 | HG25: -0.05593939498 | HH25: -0.08396270126 | HI25: -0.20765917 | HJ25: 0.04293838143 | HK25: -0.02412731946 | HL25: 0.06056862324 | HM25: -0.02121433616 | HN25: -0.07372715324 | HO25: -0.1125928834 | HP25: -0.1974608451 | HQ25: -0.01614676975 | HR25: -0.05730871111 | HS25: 0.09644782543 | HT25: 0.05058749393 | HU25: -0.276501447 | HV25: -0.1205786988 | HW25: 0.1593252569 | HX25: 0.1828766465 | HY25: -0.1010139808 | HZ25: -0.04112735763 | IA25: -0.2804917097 | IB25: -0.02049919963 | IC25: 0.04511297867 | ID25: 0.1745377332 | IE25: -0.06697194278 | IF25: -0.09974314272 | IG25: 0.002625713591 | IH25: -0.1150355786 | II25: -0.1466272771 | IJ25: 0.1293023229 | IK25: -0.1755512655 | IL25: 0.09817682952 | IM25: 0.006175746676 | IN25: 0.03537833691 | IO25: -0.02932664379 | IP25: 0.01286117639 | IQ25: 0.03684511781 | IR25: -0.1158576757 | IS25: -0.006521183997 | IT25: -0.1493190378 | IU25: 0.09413966537 | IV25: -0.1738449335 | IW25: 0.008776050992 | IX25: 0.08649515361 | IY25: 0.1001394764 | IZ25: -0.1464058459 | JA25: 0.08499707282 | JB25: 0.07878696918 | JC25: -0.1731408387 | JD25: 0.007118274458 | JE25: -0.1537322849 | JF25: 0.01453172136 | JG25: -0.07470902056 | JH25: 0.1268931627 | JI25: -0.1169474944 | JJ25: -0.0123422714 | JK25: 0.03007422388 | JL25: -0.1725952625 | JM25: 0.1690658778 | JN25: 0.0123920124 | JO25: 0.07252245396 | JP25: 0.162067607 | JQ25: 0.09495083243 | JR25: -0.145988062 | JS25: -0.1498484462 | JT25: -0.1476468444 | JU25: -0.004575183615 | JV25: 0.02315764874 | JW25: -0.2395671755 | JX25: 0.0898950696 | JY25: 0.1339447796 | JZ25: -0.3031175435 | KA25: -0.006007499527 | KB25: -0.1843711585 | KC25: -0.1291014254 | KD25: 0.1304849833 | KE25: 0.03147210926 | KF25: 0.01818673685 | KG25: -0.3385087848 | KH25: 0.04449226335 | KI25: 0.06496434659 | KJ25: -0.01862295531 | KK25: 0.07401201129 | KL25: 0.1153720543 | KM25: 0.09471140057 | KN25: -0.137028724 | KO25: -0.06125893816 | KP25: -0.08444185555 | KQ25: -0.02920358256 | KR25: -0.1435760707 | KS25: 0.08059558272 | KT25: -0.1007344052 | KU25: 0.1512331218 | KV25: 0.02033463866 | KW25: 0.03478396311 | KX25: -0.02819731832 | KY25: -0.05489422753 | KZ25: -0.07877250761 | LA25: 0.05987209454 | LB25: 0.1425345838 | LC25: 0.1465474814 | LD25: 0.04284400865 | LE25: 0.08432757854 | LF25: 0.1222003251 | LG25: 0.07478372008 | LH25: -0.08406256884 | LI25: 0.02560655959 | LJ25: -0.09597938508 | LK25: -0.03006538749 | LL25: -0.1646443307 | LM25: -0.05124298483 | LN25: 0.182413891 | LO25: 0.04170848429 | LP25: -0.07709846646 | LQ25: -0.05523591489 | LR25: -0.007669414859 | LS25: 0.06375277787 | LT25: 0.05796032399 | LU25: 0.1315028816 | LV25: -0.01495376416 | LW25: 0.04094544426 | LX25: -0.1049849987 | LY25: -0.2855273187 | LZ25: -0.009800415486 | MA25: -0.07204646617 | MB25: 0.191440478 | MC25: -0.08622512221 | MD25: -0.07274340093 | ME25: -0.07238209993 | MF25: 0.05493116006 | MG25: -0.0002865200222 | MH25: -0.06733315438 | MI25: 0.1103956774 | MJ25: 0.1201544702 | MK25: -0.302410543 | ML25: -0.1348139793 | MM25: 0.1385898143 | MN25: 0.1294963211 | MO25: 0.1801131368 | MP25: 0.08902040869 | MQ25: -0.1077220067 | MR25: 0.007550160401 | MS25: 0.1269757152 | MT25: 0.1434173584 | MU25: -0.268201977 | MV25: -0.01645490527 | MW25: 0.2313625216 | MX25: -0.03456020728 | MY25: 0.0861325115 | MZ25: 0.09582734108 | NA25: -0.1848970056 | NB25: 0.02894018404 | NC25: 0.1130781546 | ND25: -0.1335176677 | NE25: -0.2208445221 | NF25: -0.2475822866 | NG25: 0.05756033584 | NH25: -0.2894557118 | NI25: -0.1004324034 | NJ25: 0.1044501811 | NK25: 0.03011786193 | NL25: -0.08645594865 | NM25: -0.1117704287 | NN25: 0.08986370265 | NO25: -0.1074146777 | NP25: -0.0958577171 | NQ25: 0.06741365045 | NR25: 0.09320938587 | NS25: 0.001513185911 | NT25: 0.1244640127 | NU25: -0.003193208715 | NV25: 0.08333129436 | NW25: 0.1000802517 | NX25: -0.1755012125 | NY25: -0.4757944345 | NZ25: -0.1511499733 | OA25: -0.1020961106 | OB25: 0.09162000567 | OC25: -0.1719427556 | OD25: 0.0563701652 | OE25: -0.008978595957 | OF25: -0.06252180785 | OG25: -0.0316580981 | OH25: -0.02820484899 | OI25: 0.1373268664 | OJ25: 0.0957564339 | OK25: -0.1009472832 | OL25: 0.03484758362 | OM25: 0.10569112 | ON25: -0.05933433771 | OO25: -0.06149376929 | OP25: 0.05310200155 | OQ25: 0.005371460225 | OR25: 0.02672691643 | OS25: -0.261018306 | OT25: 0.01665572263 | OU25: -0.0753742978 | OV25: -0.079438366 | OW25: 0.01922193728 | OX25: 0.1222573221 | OY25: 0.1539340466 | OZ25: -0.01368692052 | PA25: -0.143921718 | PB25: 0.2738051713 | PC25: -0.2028721869 | PD25: -0.1105176061 | PE25: -0.1981049627 | PF25: -0.004077591468 | PG25: 0.100156635 | PH25: -0.1558947712 | PI25: 0.03097042441 | PJ25: 0.3052389622 | PK25: 0.01361437049 | PL25: 0.02449514344 | PM25: -0.01785213128 | PN25: 0.1086649969 | PO25: 0.1712833941 | PP25: 0.05824062601 | PQ25: 0.004545163829 | PR25: 0.2608452439 | PS25: 0.05076845363 | PT25: -0.171532169 | PU25: 0.01321995351 | PV25: 0.01442757156 | PW25: -0.01236737706 | PX25: 0.08386606723 | PY25: -0.04833119735 | PZ25: -0.1910177171 | QA25: -0.1193629801 | QB25: -0.02703730389 | QC25: 0.1019829586 | QD25: -0.1472767442 | QE25: -0.04653454944 | QF25: 0.0361787267 | QG25: -0.03320161626 | QH25: 0.008285026997 | QI25: -0.06249093264 | QJ25: -0.1852813512 | QK25: 0.03234106302 | QL25: -0.2011191994 | QM25: -0.07346979529 | QN25: -0.03544477373 | QO25: -0.04494682327 | QP25: -0.1624689549 | QQ25: -0.2017687857 | QR25: 0.212703228 | QS25: 0.08300443739 | QT25: 0.03087193519 | QU25: -0.4644328952 | QV25: 0.1220333949 | QW25: -0.1459232271 | QX25: 0.06949347258 | QY25: 0.01891974732 | QZ25: 0.00625836337 | RA25: -0.02984671667 | RB25: -0.06062508374 | RC25: -0.05332003906 | RD25: -0.164107725 | RE25: 0.08079578727 | RF25: 0.1444636136 | RG25: -0.1320007145 | RH25: 0.03363804519 | RI25: -0.1174800694 | RJ25: -0.01164719835 | RK25: -0.09139574319 | RL25: 0.2070334107 | RM25: 0.02665458806 | RN25: 0.1172167957 | RO25: -0.06177349761 | RP25: 0.2129719108 | RQ25: -0.04582507163 | RR25: 0.1173830777 | RS25: 0.1279012263 | RT25: 0.04587299004 | RU25: 0.02458814159 | RV25: 0.004916615784 | RW25: -7.56368172e-05 | RX25: 0.05474030599 | RY25: 0.04032963887 | RZ25: -0.03901616484 | SA25: 0.04733262211 | SB25: -0.1379117668 | SC25: -0.3141657412 | SD25: -0.1565471888 | SE25: 0.1533069611 | SF25: -0.04489649832 | SG25: -0.0447938852 | SH25: -0.09373898804
A26: 24 | B26: =Normalization!G33 -> 0.002430507673 | C26: -0.3129405379 | D26: 0.05315927416 | E26: -0.1137439236 | F26: 0.01364398375 | G26: -0.126994893 | H26: -0.08864714205 | I26: -0.1607915908 | J26: 0.1638860852 | K26: 0.08710771799 | L26: 0.0971961543 | M26: 0.05027950555 | N26: 0.06856714934 | O26: 0.1021364704 | P26: 0.04649033025 | Q26: 0.01688203029 | R26: 0.04947550222 | S26: 0.003466062481 | T26: -0.08848936856 | U26: 0.1561914235 | V26: -0.01460336056 | W26: -0.05734500289 | X26: -0.2338341773 | Y26: 0.002608185401 | Z26: -0.1438812464 | AA26: 0.06662342697 | AB26: 0.1281680465 | AC26: -0.08164610714 | AD26: 0.09212876111 | AE26: 0.03637053072 | AF26: -0.4808547497 | AG26: -0.1524355412 | AH26: 0.08193035424 | AI26: 0.02180148847 | AJ26: -0.01211602986 | AK26: -0.4479919672 | AL26: -0.005175347906 | AM26: -0.006279058289 | AN26: 0.09715548158 | AO26: 0.05947376415 | AP26: -0.04858427495 | AQ26: 0.0296742674 | AR26: -0.1845729947 | AS26: 0.05218025297 | AT26: 0.04960442334 | AU26: -0.1428367198 | AV26: 0.03509109467 | AW26: 0.00846483279 | AX26: -0.1971218139 | AY26: -0.08810520172 | AZ26: -0.2540402114 | BA26: -0.2251216322 | BB26: 0.118827261 | BC26: -0.05665224046 | BD26: -0.1857631654 | BE26: -0.04995007813 | BF26: -0.08236239105 | BG26: -0.02398262918 | BH26: 0.0597140789 | BI26: -0.00153188582 | BJ26: 0.04705896974 | BK26: -0.6227496266 | BL26: -0.177324295 | BM26: 0.08202254027 | BN26: 0.04460290447 | BO26: -0.04566159472 | BP26: 0.05970788747 | BQ26: 0.005152312573 | BR26: 0.05992937833 | BS26: -0.02701974846 | BT26: -0.08028847724 | BU26: 0.1087126881 | BV26: 0.07675745338 | BW26: -0.1510324776 | BX26: -0.1257824302 | BY26: -0.0396347791 | BZ26: 0.007105246652 | CA26: -0.1517557651 | CB26: -0.03404518217 | CC26: 0.07331254333 | CD26: 0.07995911688 | CE26: -0.10228239 | CF26: 0.06786804646 | CG26: -0.04779569805 | CH26: 0.03217392415 | CI26: 0.05235676467 | CJ26: 0.07701249421 | CK26: 0.06785809994 | CL26: -0.1002278477 | CM26: 0.03831701353 | CN26: -0.04803559557 | CO26: -0.001430573873 | CP26: -0.002504385542 | CQ26: 0.1157189757 | CR26: 0.1384744048 | CS26: -0.001047689933 | CT26: 0.04320247099 | CU26: 0.02933754213 | CV26: 0.02690632641 | CW26: 0.06832128763 | CX26: -0.06257465482 | CY26: 0.06597064435 | CZ26: -0.1813179255 | DA26: -0.1516375691 | DB26: -0.1090771854 | DC26: 0.06172082946 | DD26: 0.07025979459 | DE26: 0.01955909841 | DF26: -0.1359608918 | DG26: -0.07232326269 | DH26: -0.1065018177 | DI26: -0.07902175933 | DJ26: -0.1276783645 | DK26: -0.02620279416 | DL26: 0.01420674473 | DM26: -0.1096215621 | DN26: 0.08075109869 | DO26: -0.0705056414 | DP26: -0.1797953248 | DQ26: 0.04852527007 | DR26: -0.02092415094 | DS26: 0.01705797017 | DT26: 0.04320741072 | DU26: -0.005679049063 | DV26: -0.1976275146 | DW26: -0.03508641198 | DX26: 0.001310406718 | DY26: -0.03498819843 | DZ26: -0.08638319373 | EA26: 0.06994522363 | EB26: 0.1158435866 | EC26: -0.1438941061 | ED26: 0.04730520397 | EE26: 0.002763186814 | EF26: 0.1136829704 | EG26: -0.04188091308 | EH26: 0.001534595271 | EI26: -0.08160247654 | EJ26: 0.1458235681 | EK26: -0.1261663437 | EL26: -0.01169862319 | EM26: -0.07288494706 | EN26: -0.1821376532 | EO26: 0.01305021998 | EP26: 0.08415263891 | EQ26: -0.08752863109 | ER26: -0.05082453042 | ES26: -0.01467831619 | ET26: 0.008427055553 | EU26: -0.07311160862 | EV26: 0.06210631505 | EW26: 0.02369988337 | EX26: -0.04279509932 | EY26: -0.001064055832 | EZ26: 0.03926585615 | FA26: -0.09784151614 | FB26: -0.1617470831 | FC26: -0.06361555308 | FD26: 0.03719898313 | FE26: 0.1117205918 | FF26: 0.07571864128 | FG26: 0.01382216439 | FH26: 0.06682346016 | FI26: 0.07892317325 | FJ26: -0.2210239321 | FK26: 0.03612720966 | FL26: -0.2081979811 | FM26: 0.05525290594 | FN26: -0.05541969091 | FO26: 0.07018326223 | FP26: -0.03172029182 | FQ26: 0.005349235144 | FR26: 0.0783707723 | FS26: 0.07874811441 | FT26: 0.05666733906 | FU26: -0.1946350783 | FV26: -0.08441020548 | FW26: -0.1148421988 | FX26: -0.02295025066 | FY26: 0.1115015596 | FZ26: 0.01200185902 | GA26: -0.009424454533 | GB26: 0.006051595788 | GC26: -0.001803681022 | GD26: 0.05160590261 | GE26: -0.06536888331 | GF26: -0.1077903286 | GG26: 0.1890422255 | GH26: 0.02571606822 | GI26: 0.06537426263 | GJ26: 0.1533120424 | GK26: 0.1004025638 | GL26: -0.01738484949 | GM26: -0.0650453791 | GN26: 0.05347310752 | GO26: 0.1204381436 | GP26: 0.03287824243 | GQ26: -0.1164702624 | GR26: -0.1612473279 | GS26: 0.02337657101 | GT26: -0.04285430908 | GU26: -0.1850946993 | GV26: 0.1307976991 | GW26: -0.007260806859 | GX26: -0.469217211 | GY26: 0.05372122303 | GZ26: -0.1109362617 | HA26: 0.06121722981 | HB26: 0.007030364592 | HC26: -0.01127414964 | HD26: -0.004853100982 | HE26: 0.003204884473 | HF26: -0.3065536022 | HG26: 0.02226146497 | HH26: 0.03652520478 | HI26: 0.06493386626 | HJ26: 0.07974085212 | HK26: -0.07939425856 | HL26: -0.09280475229 | HM26: 0.06978096068 | HN26: -0.0935696587 | HO26: 0.1165291145 | HP26: 0.09791490436 | HQ26: 0.09202826768 | HR26: 0.1029699445 | HS26: -0.05294792727 | HT26: 0.05922716483 | HU26: 0.169363901 | HV26: 0.1051105633 | HW26: 0.1031285599 | HX26: -0.1469338834 | HY26: 0.04189647734 | HZ26: 0.003271500813 | IA26: 0.06283463538 | IB26: -0.08810841292 | IC26: 0.02598764747 | ID26: 0.05549389869 | IE26: -0.1114557311 | IF26: -0.1031232104 | IG26: 0.08119303733 | IH26: -0.04999410734 | II26: -0.02407118119 | IJ26: 0.04064293206 | IK26: -0.2795485556 | IL26: -0.1021370888 | IM26: 0.04526214302 | IN26: -0.2041684389 | IO26: 0.02759839594 | IP26: -0.0244614128 | IQ26: -0.01877319999 | IR26: -0.01457095146 | IS26: -0.1189135239 | IT26: -0.08680123836 | IU26: 0.05156459287 | IV26: 0.0763912797 | IW26: 0.0801839903 | IX26: 0.01150052156 | IY26: -0.07647166401 | IZ26: -0.02134923823 | JA26: -0.2780317068 | JB26: 0.03176053241 | JC26: 0.03720815852 | JD26: 0.07092235982 | JE26: 0.05141256377 | JF26: 0.02607082762 | JG26: -0.04889988154 | JH26: 0.09817384928 | JI26: 0.112933293 | JJ26: 0.0001475957979 | JK26: -0.1312871873 | JL26: -0.0004503161763 | JM26: 0.04604781792 | JN26: -0.06357747316 | JO26: 0.008914179169 | JP26: -0.1360943317 | JQ26: -0.03700691089 | JR26: 0.1676767766 | JS26: 0.01914208569 | JT26: -0.1710967869 | JU26: 0.1035851464 | JV26: 0.1462842971 | JW26: -0.02837463468 | JX26: 0.2081407607 | JY26: 0.01617090777 | JZ26: 0.05383080989 | KA26: 0.09888570011 | KB26: -0.03317501768 | KC26: -0.1259956807 | KD26: -0.1008549854 | KE26: 0.1245318055 | KF26: 0.01200873218 | KG26: -0.0390570052 | KH26: -0.03239362687 | KI26: -0.02602636814 | KJ26: 0.083080329 | KK26: -0.04724098369 | KL26: 0.07344349474 | KM26: -0.007285553031 | KN26: -0.157259956 | KO26: 0.07996562868 | KP26: -0.1517890394 | KQ26: -0.1234600767 | KR26: 0.07301670313 | KS26: -0.02825358883 | KT26: -0.1800888032 | KU26: -0.2862455547 | KV26: -0.1459536105 | KW26: -0.0772542432 | KX26: 0.04519811645 | KY26: 0.006867073942 | KZ26: 0.02461731248 | LA26: 0.1349236369 | LB26: 0.01731698774 | LC26: -0.07118615508 | LD26: 0.00765654631 | LE26: -0.1934619546 | LF26: -0.004483480006 | LG26: 0.00248365989 | LH26: 0.075303711 | LI26: -0.3742584586 | LJ26: 0.2168312967 | LK26: 0.06464153528 | LL26: -0.1914756596 | LM26: -0.03686219826 | LN26: -0.009665612131 | LO26: -0.100757055 | LP26: 0.05135066435 | LQ26: 0.08154566586 | LR26: 0.0730965957 | LS26: -0.1210758984 | LT26: 0.06315784901 | LU26: -0.2863491178 | LV26: -0.08730913699 | LW26: -0.2699800432 | LX26: 0.02191239223 | LY26: 0.04594977573 | LZ26: -0.1074603274 | MA26: -0.1551661342 | MB26: 0.002353373682 | MC26: -0.08702588081 | MD26: 0.1584327519 | ME26: 0.1087562889 | MF26: -0.007689060178 | MG26: 0.09909367561 | MH26: 0.06800185144 | MI26: 0.0002505473676 | MJ26: -0.07151845098 | MK26: 0.06646754593 | ML26: -0.02283585258 | MM26: 0.06578697264 | MN26: -0.0299582351 | MO26: 0.02200171351 | MP26: 0.0487616919 | MQ26: 0.07782930136 | MR26: -0.04618540406 | MS26: 0.06457771361 | MT26: -0.124306269 | MU26: -0.006015412509 | MV26: 0.1012022942 | MW26: -0.1417036653 | MX26: -0.04410775751 | MY26: -0.1635169536 | MZ26: -0.06705206633 | NA26: 0.07508093119 | NB26: 0.01412535924 | NC26: 0.03817234561 | ND26: -0.05215424299 | NE26: -0.0923884511 | NF26: 0.04146564379 | NG26: -0.0853677094 | NH26: -0.3606050014 | NI26: 0.1102559566 | NJ26: 0.006118353922 | NK26: -0.1269514412 | NL26: 0.09918196499 | NM26: -0.01690904424 | NN26: 0.02589122206 | NO26: 0.07213968784 | NP26: -0.02467811294 | NQ26: 0.02522472106 | NR26: 0.1163564324 | NS26: 0.06397465616 | NT26: 0.03781335056 | NU26: -0.2575336099 | NV26: 0.02367458865 | NW26: -0.01575750858 | NX26: -0.03581358492 | NY26: -0.3513673842 | NZ26: -0.2152351886 | OA26: 0.06594128907 | OB26: -0.0883698836 | OC26: 0.0712030381 | OD26: -0.008564720862 | OE26: 0.03129819036 | OF26: -0.2102249563 | OG26: -0.05471569672 | OH26: -0.04274606332 | OI26: -0.02052706666 | OJ26: -0.3019058108 | OK26: -0.1048710942 | OL26: 0.06493792683 | OM26: 0.06016716361 | ON26: 0.1186041161 | OO26: 0.09496967494 | OP26: 0.06520646065 | OQ26: 0.1060826555 | OR26: -0.02015101537 | OS26: -0.1170558408 | OT26: -0.03068907559 | OU26: -0.2144747376 | OV26: -0.0475249216 | OW26: 0.07661554217 | OX26: -0.02385003679 | OY26: -0.0389820002 | OZ26: 0.04525974393 | PA26: -0.1030208692 | PB26: 0.04957114905 | PC26: -0.04943861067 | PD26: 0.08912113309 | PE26: -0.05600416288 | PF26: 0.04186629876 | PG26: -0.02652249113 | PH26: 0.03791722283 | PI26: -0.009141894057 | PJ26: 0.1085083038 | PK26: 0.09443189949 | PL26: -0.05612032488 | PM26: -0.01189084817 | PN26: 0.06996194273 | PO26: -0.1236037984 | PP26: -0.01388661191 | PQ26: -0.002805856755 | PR26: 0.09712561965 | PS26: 0.06079687178 | PT26: 0.03860542178 | PU26: 0.05077096075 | PV26: 0.002446286613 | PW26: -0.3951681554 | PX26: 0.049559962 | PY26: 0.04730480909 | PZ26: 0.06838718802 | QA26: 0.09485667199 | QB26: -0.01880803145 | QC26: 0.0658229515 | QD26: -0.151653558 | QE26: -0.1813042015 | QF26: -0.07104569674 | QG26: -0.1232212186 | QH26: 0.07701965421 | QI26: 0.03474382311 | QJ26: -0.05824805796 | QK26: -0.01422962919 | QL26: -0.09782906622 | QM26: 0.1683782637 | QN26: 0.1188954264 | QO26: 0.03891222924 | QP26: 0.004706206731 | QQ26: -0.07542875409 | QR26: 0.1808243543 | QS26: 0.05054970831 | QT26: 0.05883548781 | QU26: -0.03763824701 | QV26: -0.0566594936 | QW26: -0.1598717868 | QX26: 0.07176795602 | QY26: 0.08603844047 | QZ26: -0.05601549149 | RA26: 0.02116974257 | RB26: -0.01208206825 | RC26: 0.04175707325 | RD26: 0.02540088631 | RE26: 0.1091087684 | RF26: -0.1273515671 | RG26: -0.04414402321 | RH26: 0.08116551489 | RI26: 0.05887143314 | RJ26: 0.01194372773 | RK26: -0.06013103947 | RL26: 0.06942490488 | RM26: -0.03610247001 | RN26: 0.01653459668 | RO26: -0.02699431963 | RP26: 0.08432307094 | RQ26: 0.005791876465 | RR26: 0.2699184418 | RS26: 0.1420998275 | RT26: -0.03352905065 | RU26: 0.1404523402 | RV26: 0.09987540543 | RW26: -0.1292331964 | RX26: -0.1043149382 | RY26: 0.1861165762 | RZ26: 0.005126345437 | SA26: -0.03712116182 | SB26: 0.004545011092 | SC26: -0.2717083395 | SD26: -0.1398300976 | SE26: -0.1557784975 | SF26: 0.1714567542 | SG26: 0.08397977054 | SH26: -0.1186359599
